Workbook

Sheet Sample Report (hidden)
A2: Date
A3: Hen
A4: Program
A5: Start at 999999
A6: Sequence component 1 | B6: Time 1 | C6: Seqeunce Component 2 | D6: Time 2 | E6: Seqeunce Component 3 | F6: Time 3 | G6: Correct 0 = No 1=Yes | J6: Seqeunce | K6: Time
A7: 12 | B7: 7 | C7: 12 | D7: 42 | E7: 13 | F7: 18 | G7: if 77 new line, if 31 or 41 = yes new line on 77, | J7: =string of Seqeunce compponent 1, 2 & 3 | K7: =time 3
A8: This continues until ther is a 1 on its own to indicate start of summary data
J9: 10-19 =1
A10: Summary Data | J10: 20-29 =2
A11: Correct | B11: Incorrect | C11: Rft | D11: total | E11: Av Correct | F11: Av Incorrect | G11: Percent correct | H11: Time | J11: in this example the seqeunce would be 111
A12: 40 | B12: 33 | C12: 40 | D12: 73 | E12: 23.95 | F12: 15 | G12: 54 | H12: 806

Sheet Summary
A2: Day | B2: Date | C2: Average Response Rate | D2: Target % | E2: RF for non correct sequence | F2: U Value | K2: Block 1 | L2: Block 2 | M2: Block 3 | N2: Block 4 | O2: Block 5 | P2: Block 6
A3: 1 | B3: ='!M919910.091'!B2:C2 -> <date> | C3: =('!M919910.091'!F75/60)/'!M919910.091'!Q3 -> 5.341545894 | D3: ='!M919910.091'!N20/'!M919910.091'!Q3 -> 0 | E3: =SUM('!M919910.091'!L20:Q20)/'!M919910.091'!Q3 -> 2.101449275 | F3: ='!M919910.091'!Q16 -> 0.1617692918 | J3: Average Response Rate | K3: =AVERAGE(C3:C7) -> 2.874066874 | L3: =AVERAGE(C8:C12) -> 2.178627296 | M3: =AVERAGE(C13:C17) -> 2.092465347 | N3: =AVERAGE(C18:C22) -> 2.330706004 | O3: =AVERAGE(C23:C27) -> 2.217886654 | P3: =AVERAGE(C28:C32) -> 2.712537265
A4: 2 | B4: ='!M922820.091'!B2:C2 -> <date> | C4: =('!M922820.091'!F185/60)/'!M922820.091'!Q3 -> 2.229795158 | D4: ='!M922820.091'!N20/'!M922820.091'!Q3 -> 0 | E4: =SUM('!M922820.091'!L20:Q20)/'!M922820.091'!Q3 -> 1.016759777 | F4: ='!M922820.091'!Q16 -> 0.1232360912 | J4: Target % | K4: =AVERAGE(D3:D7) -> 0 | L4: =AVERAGE(D8:D12) -> 0 | M4: =AVERAGE(D13:D17) -> 0 | N4: =AVERAGE(D18:D22) -> 0 | O4: =AVERAGE(D23:D27) -> 0 | P4: =AVERAGE(D28:D32) -> 0
A5: 3 | B5: ='!M923920.091'!B2:C2 -> <date> | C5: =('!M923920.091'!F179/60)/'!M923920.091'!Q3 -> 2.305202312 | D5: ='!M923920.091'!N20/'!M923920.091'!Q3 -> 0 | E5: =SUM('!M923920.091'!L20:Q20)/'!M923920.091'!Q3 -> 1.61849711 | F5: ='!M923920.091'!Q16 -> 0.1627749478 | J5: CCRF | K5: =AVERAGE(E3:E7) -> 1.35527774 | L5: =AVERAGE(E8:E12) -> 1.21742749 | M5: =AVERAGE(E13:E17) -> 1.171136163 | N5: =AVERAGE(E18:E22) -> 1.265701579 | O5: =AVERAGE(E23:E27) -> 1.087225758 | P5: =AVERAGE(E28:E32) -> 1.693123121
A6: 4 | B6: ='!M924900.091'!B2:C2 -> <date> | C6: =('!M924900.091'!F186/60)/'!M924900.091'!Q3 -> 2.217314815 | D6: ='!M924900.091'!N20/'!M924900.091'!Q3 -> 0 | E6: =SUM('!M924900.091'!L20:Q20)/'!M924900.091'!Q3 -> 1.011111111 | F6: ='!M924900.091'!Q16 -> 0.172484701 | J6: U Value | K6: =AVERAGE(F3:F7) -> 0.1627962846 | L6: =AVERAGE(F8:F12) -> 0.1521517992 | M6: =AVERAGE(F13:F17) -> 0.1451837659 | N6: =AVERAGE(F18:F22) -> 0.1856342757 | O6: =AVERAGE(F23:F27) -> 0.1840543493 | P6: =AVERAGE(F28:F32) -> 0.1121616338
A7: 5 | B7: ='!M925640.091'!B2:C2 -> <date> | C7: =('!M925640.091'!F181/60)/'!M925640.091'!Q3 -> 2.27647619 | D7: ='!M925640.091'!N20/'!M925640.091'!Q3 -> 0 | E7: =SUM('!M925640.091'!L20:Q20)/'!M925640.091'!Q3 -> 1.028571429 | F7: ='!M925640.091'!Q16 -> 0.1937163913
A8: 6 | B8: ='!M926650.091'!B2:C2 -> <date> | C8: =('!M926650.091'!F190/60)/'!M926650.091'!Q3 -> 2.173278986 | D8: ='!M926650.091'!N20/'!M926650.091'!Q3 -> 0 | E8: =SUM('!M926650.091'!L20:Q20)/'!M926650.091'!Q3 -> 0.9945652174 | F8: ='!M926650.091'!Q16 -> 0.1721158931
A9: 7 | B9: ='!M927750.091'!B2:C2 -> <date> | C9: =('!M927750.091'!F189/60)/'!M927750.091'!Q3 -> 2.182422587 | D9: ='!M927750.091'!N20/'!M927750.091'!Q3 -> 0 | E9: =SUM('!M927750.091'!L20:Q20)/'!M927750.091'!Q3 -> 1.546448087 | F9: ='!M927750.091'!Q16 -> 0.1425091396
A10: 8 | B10: ='!M928850.091'!B2:C2 -> <date> | C10: =('!M928850.091'!F188/60)/'!M928850.091'!Q3 -> 2.189102564 | D10: ='!M928850.091'!N20/'!M928850.091'!Q3 -> 0 | E10: =SUM('!M928850.091'!L20:Q20)/'!M928850.091'!Q3 -> 1.005494505 | F10: ='!M928850.091'!Q16 -> 0.1460776225
A11: 9 | B11: ='!M929840.091'!B2:C2 -> <date> | C11: =('!M929840.091'!F190/60)/'!M929840.091'!Q3 -> 2.151171171 | D11: ='!M929840.091'!N20/'!M929840.091'!Q3 -> 0 | E11: =SUM('!M929840.091'!L20:Q20)/'!M929840.091'!Q3 -> 1.535135135 | F11: ='!M929840.091'!Q16 -> 0.1465779725
A12: 10 | B12: ='!M930840.091'!B2:C2 -> <date> | C12: =('!M930840.091'!F188/60)/'!M930840.091'!Q3 -> 2.197161172 | D12: ='!M930840.091'!N20/'!M930840.091'!Q3 -> 0 | E12: =SUM('!M930840.091'!L20:Q20)/'!M930840.091'!Q3 -> 1.005494505 | F12: ='!M930840.091'!Q16 -> 0.1534783684
A13: 11 | B13: ='!MA01700.091'!B2:C2 -> <date> | C13: =('!MA01700.091'!F200/60)/'!MA01700.091'!Q3 -> 2.061082474 | D13: ='!MA01700.091'!N20/'!MA01700.091'!Q3 -> 0 | E13: =SUM('!MA01700.091'!L20:Q20)/'!MA01700.091'!Q3 -> 1.479381443 | F13: ='!MA01700.091'!Q16 -> 0.1351898438
A14: 12 | B14: ='!MA02750.091'!B2:C2 -> <date> | C14: =('!MA02750.091'!F197/60)/'!MA02750.091'!Q3 -> 2.090750436 | D14: ='!MA02750.091'!N20/'!MA02750.091'!Q3 -> 0 | E14: =SUM('!MA02750.091'!L20:Q20)/'!MA02750.091'!Q3 -> 0.9738219895 | F14: ='!MA02750.091'!Q16 -> 0.1425583214
A15: 13 | B15: ='!MA03650.091'!B2:C2 -> <date> | C15: =('!MA03650.091'!F193/60)/'!MA03650.091'!Q3 -> 2.117375887 | D15: ='!MA03650.091'!N20/'!MA03650.091'!Q3 -> 0 | E15: =SUM('!MA03650.091'!L20:Q20)/'!MA03650.091'!Q3 -> 0.9840425532 | F15: ='!MA03650.091'!Q16 -> 0.1318891725
A16: 14 | B16: ='!MA04830.091'!B2:C2 -> <date> | C16: =('!MA04830.091'!F196/60)/'!MA04830.091'!Q3 -> 2.102192982 | D16: ='!MA04830.091'!N20/'!MA04830.091'!Q3 -> 0 | E16: =SUM('!MA04830.091'!L20:Q20)/'!MA04830.091'!Q3 -> 0.9210526316 | F16: ='!MA04830.091'!Q16 -> 0.1570832972
A17: 15 | B17: ='!MA05810.091'!B2:C2 -> <date> | C17: =('!MA05810.091'!F197/60)/'!MA05810.091'!Q3 -> 2.090924956 | D17: ='!MA05810.091'!N20/'!MA05810.091'!Q3 -> 0 | E17: =SUM('!MA05810.091'!L20:Q20)/'!MA05810.091'!Q3 -> 1.497382199 | F17: ='!MA05810.091'!Q16 -> 0.1591981948
A18: 16 | B18: ='!MA06800.091'!B2:C2 -> <date> | C18: =('!MA06800.091'!F198/60)/'!MA06800.091'!Q3 -> 2.081336806 | D18: ='!MA06800.091'!N20/'!MA06800.091'!Q3 -> 0 | E18: =SUM('!MA06800.091'!L20:Q20)/'!MA06800.091'!Q3 -> 1.489583333 | F18: ='!MA06800.091'!Q16 -> 0.1528778914
A19: 17 | B19: ='!MA07A40.091'!B2:C2 -> <date> | C19: =('!MA07A40.091'!F195/60)/'!MA07A40.091'!Q3 -> 2.107848325 | D19: ='!MA07A40.091'!N20/'!MA07A40.091'!Q3 -> 0 | E19: =SUM('!MA07A40.091'!L20:Q20)/'!MA07A40.091'!Q3 -> 0.9788359788 | F19: ='!MA07A40.091'!Q16 -> 0.1696727671
A20: 18 | B20: ='!MA08900.091'!B2:C2 -> <date> | C20: =('!MA08900.091'!F198/60)/'!MA08900.091'!Q3 -> 2.077690972 | D20: ='!MA08900.091'!N20/'!MA08900.091'!Q3 -> 0 | E20: =SUM('!MA08900.091'!L20:Q20)/'!MA08900.091'!Q3 -> 0.96875 | F20: ='!MA08900.091'!Q16 -> 0.1755103017
A21: 19 | B21: ='!MA09920.091'!B2:C2 -> <date> | C21: =('!MA09920.091'!F181/60)/'!MA09920.091'!Q3 -> 2.237047619 | D21: ='!MA09920.091'!N20/'!MA09920.091'!Q3 -> 0 | E21: =SUM('!MA09920.091'!L20:Q20)/'!MA09920.091'!Q3 -> 1.6 | F21: ='!MA09920.091'!Q16 -> 0.1844553009
A22: 20 | B22: ='!MA10A00.091'!B2:C2 -> <date> | C22: =('!MA10A00.091'!F133/60)/'!MA10A00.091'!Q3 -> 3.149606299 | D22: ='!MA10A00.091'!N20/'!MA10A00.091'!Q3 -> 0 | E22: =SUM('!MA10A00.091'!L20:Q20)/'!MA10A00.091'!Q3 -> 1.291338583 | F22: ='!MA10A00.091'!Q16 -> 0.2456551176
A23: 21 | B23: ='!MA11910.091'!B2:C2 -> <date> | C23: =('!MA11910.091'!F203/60)/'!MA11910.091'!Q3 -> 2.028087986 | D23: ='!MA11910.091'!N20/'!MA11910.091'!Q3 -> 0 | E23: =SUM('!MA11910.091'!L20:Q20)/'!MA11910.091'!Q3 -> 1.461928934 | F23: ='!MA11910.091'!Q16 -> 0.2502650674
A24: 22 | B24: ='!MA12A10.091'!B2:C2 -> <date> | C24: =('!MA12A10.091'!F202/60)/'!MA12A10.091'!Q3 -> 2.039880952 | D24: ='!MA12A10.091'!N20/'!MA12A10.091'!Q3 -> 0 | E24: =SUM('!MA12A10.091'!L20:Q20)/'!MA12A10.091'!Q3 -> 0.9540816327 | F24: ='!MA12A10.091'!Q16 -> 0.2310027134
A25: 23 | B25: ='!MA13900.091'!B2:C2 -> <date> | C25: =('!MA13900.091'!F202/60)/'!MA13900.091'!Q3 -> 2.017005076 | D25: ='!MA13900.091'!N20/'!MA13900.091'!Q3 -> 0 | E25: =SUM('!MA13900.091'!L20:Q20)/'!MA13900.091'!Q3 -> 0.9543147208 | F25: ='!MA13900.091'!Q16 -> 0.1804262756
A26: 24 | B26: ='!MA15910.091'!B2:C2 -> <date> | C26: =('!MA15910.091'!F208/60)/'!MA15910.091'!Q3 -> 1.974587459 | D26: ='!MA15910.091'!N20/'!MA15910.091'!Q3 -> 0 | E26: =SUM('!MA15910.091'!L20:Q20)/'!MA15910.091'!Q3 -> 0.8811881188 | F26: ='!MA15910.091'!Q16 -> 0.1167839992
A27: 25 | B27: ='!MA16740.091'!B2:C2 -> <date> | C27: =('!MA16740.091'!F136/60)/'!MA16740.091'!Q3 -> 3.029871795 | D27: ='!MA16740.091'!N20/'!MA16740.091'!Q3 -> 0 | E27: =SUM('!MA16740.091'!L20:Q20)/'!MA16740.091'!Q3 -> 1.184615385 | F27: ='!MA16740.091'!Q16 -> 0.141793691
A28: 26 | B28: ='!MA17A20.091'!B2:C2 -> <date> | C28: =('!MA17A20.091'!F169/60)/'!MA17A20.091'!Q3 -> 2.425357873 | D28: ='!MA17A20.091'!N20/'!MA17A20.091'!Q3 -> 0 | E28: =SUM('!MA17A20.091'!L20:Q20)/'!MA17A20.091'!Q3 -> 1.693251534 | F28: ='!MA17A20.091'!Q16 -> 0.1298002885
A29: 27 | B29: ='!MA18850.091'!B2:C2 -> <date> | C29: =('!MA18850.091'!F148/60)/'!MA18850.091'!Q3 -> 2.808098592 | D29: ='!MA18850.091'!N20/'!MA18850.091'!Q3 -> 0 | E29: =SUM('!MA18850.091'!L20:Q20)/'!MA18850.091'!Q3 -> 1.112676056 | F29: ='!MA18850.091'!Q16 -> 0.1110671648
A30: 28 | B30: ='!MA19A00.091'!B2:C2 -> <date> | C30: =('!MA19A00.091'!F202/60)/'!MA19A00.091'!Q3 -> 2.038605442 | D30: ='!MA19A00.091'!N20/'!MA19A00.091'!Q3 -> 0 | E30: =SUM('!MA19A00.091'!L20:Q20)/'!MA19A00.091'!Q3 -> 1.464285714 | F30: ='!MA19A00.091'!Q16 -> 0.1307056526
A31: 29 | B31: ='!MA20820.091'!B2:C2 -> <date> | C31: =('!MA20820.091'!F117/60)/'!MA20820.091'!Q3 -> 3.536486486 | D31: ='!MA20820.091'!N20/'!MA20820.091'!Q3 -> 0 | E31: =SUM('!MA20820.091'!L20:Q20)/'!MA20820.091'!Q3 -> 2.333333333 | F31: ='!MA20820.091'!Q16 -> 0.09472606562
A32: 30 | B32: ='!MA21830.091'!B2:C2 -> <date> | C32: =('!MA21830.091'!F151/60)/'!MA21830.091'!Q3 -> 2.754137931 | D32: ='!MA21830.091'!N20/'!MA21830.091'!Q3 -> 0 | E32: =SUM('!MA21830.091'!L20:Q20)/'!MA21830.091'!Q3 -> 1.862068966 | F32: ='!MA21830.091'!Q16 -> 0.09450899756

Sheet Start
F1: Use Folder 51 | H1: Auto Clean Up | J1: Correct sequence
F2: FALSE | H2: TRUE | J2: 211
A4: Working with Folder | G4: Process All/Or Pick A number: ALL or an integer
A5: F:\Hen Chapter\Raw Data\91_17\phase 1 any\ | G5: ALL
A6: Filenames:
A7: !M929840.091 | G7: Paint Cells
A8: !M930840.091 | G8: FALSE
A9: !MA01700.091
A10: !MA02750.091
A11: !MA03650.091
A12: !MA04830.091
A13: !MA05810.091
A14: !MA06800.091
A15: !MA07A40.091
A16: !MA08900.091
A17: !MA09920.091
A18: !MA10A00.091
A19: !MA11910.091
A20: !MA12A10.091
A21: !MA13900.091
A22: !MA15910.091
A23: !MA16740.091
A24: !MA17A20.091
A25: !MA18850.091
A26: !MA19A00.091
A27: !MA20820.091
A28: !MA21830.091
A29: !M919910.091
A30: !M922820.091
A31: !M923920.091
A32: !M924900.091
A33: !M925640.091
A34: !M926650.091
A35: !M927750.091
A36: !M928850.091

Sheet !M919910.091
A1: Report for:!M919910.091
A2: Date: | B2: <date>
A3: Hen: | B3: <hen> | F3: Correct Sequence | G3: =Start!J2 -> 211 | P3: Total Sequences in Data | Q3: =4994-COUNTBLANK(L7:L5000) -> 69 | V3: Total Sequences in Block Data | W3: =COUNTA(L7:L18) -> 12 | AA3: Total Sequences in Block Data | AB3: =COUNTA(L19:L29) -> 11 | AF3: Total Sequences in Block Data | AG3: =COUNTA(L30:L41) -> 12 | AK3: Total Sequences in Block Data | AL3: =COUNTA(L42:L52) -> 11 | AP3: Total Sequences in Block Data | AQ3: =COUNTA(L53:L64) -> 12 | AU3: Total Sequences in Block Data | AV3: =COUNTA(L65:L75) -> 11
P4: Total Sequences in Summary | Q4: =SUM(O7:O14) -> 69 | V4: Total Sequences in Block Summary | W4: =SUM(U7:U14) -> 12 | AA4: Total Sequences in Block Summary | AB4: =SUM(Z7:Z14) -> 11 | AF4: Total Sequences in Block Summary | AG4: =SUM(AE7:AE14) -> 12 | AK4: Total Sequences in Block Summary | AL4: =SUM(AJ7:AJ14) -> 11 | AP4: Total Sequences in Block Summary | AQ4: =SUM(AO7:AO14) -> 12 | AU4: Total Sequences in Block Summary | AV4: =SUM(AT7:AT14) -> 11
T5: Block 1 | Y5: Block 2 | AD5: Block 3 | AI5: Block 4 | AN5: Block 5 | AS5: Block 6
A6: Sequence Component 1 | B6: Time 1 | C6: Sequence Component 2 | D6: Time 2 | E6: Sequence Component 3 | F6: Time 3 | G6: Sequence Component 4 | H6: Time 4 | I6: Sequence Component 5 | J6: Time 5 | K6: Correct? 0=No 1=Yes | L6: Sequence | N6: Frequency | P6: Relative Frequency | Q6: Variability | T6: Frequency | V6: Relative Frequency | W6: Variability | Y6: Frequency | AA6: Relative Frequency | AB6: Variability | AD6: Frequency | AF6: Relative Frequency | AG6: Variability | AI6: Frequency | AK6: Relative Frequency | AL6: Variability | AN6: Frequency | AP6: Relative Frequency | AQ6: Variability | AS6: Frequency | AU6: Relative Frequency | AV6: Variability
A7: 21 | B7: 29 | C7: 22 | D7: 85 | E7: 24 | F7: 102 | K7: 0 | L7: 222 | N7: 111 | O7: =COUNTIF($L$7:$L$500,N7) -> 0 | P7: =O7/$Q$4 -> 0 | Q7: =IF(P7=0,0,(P7*((LOG(P7))/LOG(2)))) -> 0 | T7: =N7 -> 111 | U7: =COUNTIF(L7:L18,T7) -> 0 | V7: =U7/(W4-U11) -> 0 | W7: =IF(V7=0,0,(V7*((LOG(V7))/LOG(2)))) -> 0 | Y7: =N7 -> 111 | Z7: =COUNTIF(L19:L29,Y7) -> 0 | AA7: =Z7/(AB4-Z11) -> 0 | AB7: =IF(AA7=0,0,(AA7*((LOG(AA7))/LOG(2)))) -> 0 | AD7: =N7 -> 111 | AE7: =COUNTIF(L30:L41,AD7) -> 0 | AF7: =AE7/(AG4-AE11) -> 0 | AG7: =IF(AF7=0,0,(AF7*((LOG(AF7))/LOG(2)))) -> 0 | AI7: =N7 -> 111 | AJ7: =COUNTIF(L42:L52,AI7) -> 0 | AK7: =AJ7/(AL4-AJ11) -> 0 | AL7: =IF(AK7=0,0,(AK7*((LOG(AK7))/LOG(2)))) -> 0 | AN7: =N7 -> 111 | AO7: =COUNTIF(L53:L64,AN7) -> 0 | AP7: =AO7/(AQ4-AO11) -> 0 | AQ7: =IF(AP7=0,0,(AP7*((LOG(AP7))/LOG(2)))) -> 0 | AS7: =N7 -> 111 | AT7: =COUNTIF(L65:L75,AS7) -> 0 | AU7: =AT7/(AV4-AT11) -> 0 | AV7: =IF(AU7=0,0,(AU7*((LOG(AU7))/LOG(2)))) -> 0
A8: 12 | B8: 208 | C8: 24 | D8: 224 | E8: 24 | F8: 235 | K8: 0 | L8: 122 | N8: 112 | O8: =COUNTIF($L$7:$L$500,N8) -> 1 | P8: =O8/$Q$4 -> 0.01449275362 | Q8: =IF(P8=0,0,(P8*((LOG(P8))/LOG(2)))) -> -0.08852933995 | T8: =N8 -> 112 | U8: =COUNTIF(L7:L18,T8) -> 1 | V8: =U8/(W4-U11) -> 0.08333333333 | W8: =IF(V8=0,0,(V8*((LOG(V8))/LOG(2)))) -> -0.2987468751 | Y8: =N8 -> 112 | Z8: =COUNTIF(L19:L29,Y8) -> 0 | AA8: =Z8/(AB4-Z11) -> 0 | AB8: =IF(AA8=0,0,(AA8*((LOG(AA8))/LOG(2)))) -> 0 | AD8: =N8 -> 112 | AE8: =COUNTIF(L30:L41,AD8) -> 0 | AF8: =AE8/(AG4-AE11) -> 0 | AG8: =IF(AF8=0,0,(AF8*((LOG(AF8))/LOG(2)))) -> 0 | AI8: =N8 -> 112 | AJ8: =COUNTIF(L42:L52,AI8) -> 0 | AK8: =AJ8/(AL4-AJ11) -> 0 | AL8: =IF(AK8=0,0,(AK8*((LOG(AK8))/LOG(2)))) -> 0 | AN8: =N8 -> 112 | AO8: =COUNTIF(L53:L64,AN8) -> 0 | AP8: =AO8/(AQ4-AO11) -> 0 | AQ8: =IF(AP8=0,0,(AP8*((LOG(AP8))/LOG(2)))) -> 0 | AS8: =N8 -> 112 | AT8: =COUNTIF(L65:L75,AS8) -> 0 | AU8: =AT8/(AV4-AT11) -> 0 | AV8: =IF(AU8=0,0,(AU8*((LOG(AU8))/LOG(2)))) -> 0
A9: 12 | B9: 336 | C9: 24 | D9: 374 | E9: 24 | F9: 384 | K9: 0 | L9: 122 | N9: 121 | O9: =COUNTIF($L$7:$L$500,N9) -> 0 | P9: =O9/$Q$4 -> 0 | Q9: =IF(P9=0,0,(P9*((LOG(P9))/LOG(2)))) -> 0 | T9: =N9 -> 121 | U9: =COUNTIF(L7:L18,T9) -> 0 | V9: =U9/(W4-U11) -> 0 | W9: =IF(V9=0,0,(V9*((LOG(V9))/LOG(2)))) -> 0 | Y9: =N9 -> 121 | Z9: =COUNTIF(L19:L29,Y9) -> 0 | AA9: =Z9/(AB4-Z11) -> 0 | AB9: =IF(AA9=0,0,(AA9*((LOG(AA9))/LOG(2)))) -> 0 | AD9: =N9 -> 121 | AE9: =COUNTIF(L30:L41,AD9) -> 0 | AF9: =AE9/(AG4-AE11) -> 0 | AG9: =IF(AF9=0,0,(AF9*((LOG(AF9))/LOG(2)))) -> 0 | AI9: =N9 -> 121 | AJ9: =COUNTIF(L42:L52,AI9) -> 0 | AK9: =AJ9/(AL4-AJ11) -> 0 | AL9: =IF(AK9=0,0,(AK9*((LOG(AK9))/LOG(2)))) -> 0 | AN9: =N9 -> 121 | AO9: =COUNTIF(L53:L64,AN9) -> 0 | AP9: =AO9/(AQ4-AO11) -> 0 | AQ9: =IF(AP9=0,0,(AP9*((LOG(AP9))/LOG(2)))) -> 0 | AS9: =N9 -> 121 | AT9: =COUNTIF(L65:L75,AS9) -> 0 | AU9: =AT9/(AV4-AT11) -> 0 | AV9: =IF(AU9=0,0,(AU9*((LOG(AU9))/LOG(2)))) -> 0
A10: 12 | B10: 484 | C10: 13 | D10: 500 | E10: 24 | F10: 520 | K10: 0 | L10: 112 | N10: 122 | O10: =COUNTIF($L$7:$L$500,N10) -> 47 | P10: =O10/$Q$4 -> 0.6811594203 | Q10: =IF(P10=0,0,(P10*((LOG(P10))/LOG(2)))) -> -0.3773184556 | T10: =N10 -> 122 | U10: =COUNTIF(L7:L18,T10) -> 5 | V10: =U10/(W4-U11) -> 0.4166666667 | W10: =IF(V10=0,0,(V10*((LOG(V10))/LOG(2)))) -> -0.5262643358 | Y10: =N10 -> 122 | Z10: =COUNTIF(L19:L29,Y10) -> 9 | AA10: =Z10/(AB4-Z11) -> 0.8181818182 | AB10: =IF(AA10=0,0,(AA10*((LOG(AA10))/LOG(2)))) -> -0.2368690504 | AD10: =N10 -> 122 | AE10: =COUNTIF(L30:L41,AD10) -> 10 | AF10: =AE10/(AG4-AE11) -> 0.8333333333 | AG10: =IF(AF10=0,0,(AF10*((LOG(AF10))/LOG(2)))) -> -0.2191953382 | AI10: =N10 -> 122 | AJ10: =COUNTIF(L42:L52,AI10) -> 8 | AK10: =AJ10/(AL4-AJ11) -> 0.7272727273 | AL10: =IF(AK10=0,0,(AK10*((LOG(AK10))/LOG(2)))) -> -0.3341320863 | AN10: =N10 -> 122 | AO10: =COUNTIF(L53:L64,AN10) -> 9 | AP10: =AO10/(AQ4-AO11) -> 0.75 | AQ10: =IF(AP10=0,0,(AP10*((LOG(AP10))/LOG(2)))) -> -0.3112781245 | AS10: =N10 -> 122 | AT10: =COUNTIF(L65:L75,AS10) -> 6 | AU10: =AT10/(AV4-AT11) -> 0.5454545455 | AV10: =IF(AU10=0,0,(AU10*((LOG(AU10))/LOG(2)))) -> -0.4769831552
A11: 12 | B11: 623 | C11: 24 | D11: 714 | E11: 24 | F11: 745 | K11: 0 | L11: 122 | N11: 211 | O11: =COUNTIF($L$7:$L$500,N11) -> 0 | P11: =O11/$Q$4 -> 0 | Q11: =IF(P11=0,0,(P11*((LOG(P11))/LOG(2)))) -> 0 | T11: =N11 -> 211 | U11: =COUNTIF(L7:L18,T11) -> 0 | Y11: =N11 -> 211 | Z11: =COUNTIF(L19:L29,Y11) -> 0 | AD11: =N11 -> 211 | AE11: =COUNTIF(L30:L41,AD11) -> 0 | AI11: =N11 -> 211 | AJ11: =COUNTIF(L42:L52,AI11) -> 0 | AN11: =N11 -> 211 | AO11: =COUNTIF(L53:L64,AN11) -> 0 | AS11: =N11 -> 211 | AT11: =COUNTIF(L65:L75,AS11) -> 0
A12: 12 | B12: 847 | C12: 24 | D12: 864 | E12: 24 | F12: 875 | K12: 0 | L12: 122 | N12: 212 | O12: =COUNTIF($L$7:$L$500,N12) -> 0 | P12: =O12/$Q$4 -> 0 | Q12: =IF(P12=0,0,(P12*((LOG(P12))/LOG(2)))) -> 0 | T12: =N12 -> 212 | U12: =COUNTIF(L7:L18,T12) -> 0 | V12: =U12/(W4-U11) -> 0 | W12: =IF(V12=0,0,(V12*((LOG(V12))/LOG(2)))) -> 0 | Y12: =N12 -> 212 | Z12: =COUNTIF(L19:L29,Y12) -> 0 | AA12: =Z12/(AB4-Z11) -> 0 | AB12: =IF(AA12=0,0,(AA12*((LOG(AA12))/LOG(2)))) -> 0 | AD12: =N12 -> 212 | AE12: =COUNTIF(L30:L41,AD12) -> 0 | AF12: =AE12/(AG4-AE11) -> 0 | AG12: =IF(AF12=0,0,(AF12*((LOG(AF12))/LOG(2)))) -> 0 | AI12: =N12 -> 212 | AJ12: =COUNTIF(L42:L52,AI12) -> 0 | AK12: =AJ12/(AL4-AJ11) -> 0 | AL12: =IF(AK12=0,0,(AK12*((LOG(AK12))/LOG(2)))) -> 0 | AN12: =N12 -> 212 | AO12: =COUNTIF(L53:L64,AN12) -> 0 | AP12: =AO12/(AQ4-AO11) -> 0 | AQ12: =IF(AP12=0,0,(AP12*((LOG(AP12))/LOG(2)))) -> 0 | AS12: =N12 -> 212 | AT12: =COUNTIF(L65:L75,AS12) -> 0 | AU12: =AT12/(AV4-AT11) -> 0 | AV12: =IF(AU12=0,0,(AU12*((LOG(AU12))/LOG(2)))) -> 0
A13: 21 | B13: 1010 | C13: 22 | D13: 1022 | E13: 24 | F13: 1045 | K13: 0 | L13: 222 | N13: 221 | O13: =COUNTIF($L$7:$L$500,N13) -> 0 | P13: =O13/$Q$4 -> 0 | Q13: =IF(P13=0,0,(P13*((LOG(P13))/LOG(2)))) -> 0 | T13: =N13 -> 221 | U13: =COUNTIF(L7:L18,T13) -> 0 | V13: =U13/(W4-U11) -> 0 | W13: =IF(V13=0,0,(V13*((LOG(V13))/LOG(2)))) -> 0 | Y13: =N13 -> 221 | Z13: =COUNTIF(L19:L29,Y13) -> 0 | AA13: =Z13/(AB4-Z11) -> 0 | AB13: =IF(AA13=0,0,(AA13*((LOG(AA13))/LOG(2)))) -> 0 | AD13: =N13 -> 221 | AE13: =COUNTIF(L30:L41,AD13) -> 0 | AF13: =AE13/(AG4-AE11) -> 0 | AG13: =IF(AF13=0,0,(AF13*((LOG(AF13))/LOG(2)))) -> 0 | AI13: =N13 -> 221 | AJ13: =COUNTIF(L42:L52,AI13) -> 0 | AK13: =AJ13/(AL4-AJ11) -> 0 | AL13: =IF(AK13=0,0,(AK13*((LOG(AK13))/LOG(2)))) -> 0 | AN13: =N13 -> 221 | AO13: =COUNTIF(L53:L64,AN13) -> 0 | AP13: =AO13/(AQ4-AO11) -> 0 | AQ13: =IF(AP13=0,0,(AP13*((LOG(AP13))/LOG(2)))) -> 0 | AS13: =N13 -> 221 | AT13: =COUNTIF(L65:L75,AS13) -> 0 | AU13: =AT13/(AV4-AT11) -> 0 | AV13: =IF(AU13=0,0,(AU13*((LOG(AU13))/LOG(2)))) -> 0
A14: 21 | B14: 1164 | C14: 22 | D14: 1173 | E14: 24 | F14: 1212 | K14: 0 | L14: 222 | N14: 222 | O14: =COUNTIF($L$7:$L$500,N14) -> 21 | P14: =O14/$Q$4 -> 0.3043478261 | Q14: =IF(P14=0,0,(P14*((LOG(P14))/LOG(2)))) -> -0.5223238799 | T14: =N14 -> 222 | U14: =COUNTIF(L7:L18,T14) -> 6 | V14: =U14/(W4-U11) -> 0.5 | W14: =IF(V14=0,0,(V14*((LOG(V14))/LOG(2)))) -> -0.5 | Y14: =N14 -> 222 | Z14: =COUNTIF(L19:L29,Y14) -> 2 | AA14: =Z14/(AB4-Z11) -> 0.1818181818 | AB14: =IF(AA14=0,0,(AA14*((LOG(AA14))/LOG(2)))) -> -0.4471693852 | AD14: =N14 -> 222 | AE14: =COUNTIF(L30:L41,AD14) -> 2 | AF14: =AE14/(AG4-AE11) -> 0.1666666667 | AG14: =IF(AF14=0,0,(AF14*((LOG(AF14))/LOG(2)))) -> -0.4308270835 | AI14: =N14 -> 222 | AJ14: =COUNTIF(L42:L52,AI14) -> 3 | AK14: =AJ14/(AL4-AJ11) -> 0.2727272727 | AL14: =IF(AK14=0,0,(AK14*((LOG(AK14))/LOG(2)))) -> -0.5112188503 | AN14: =N14 -> 222 | AO14: =COUNTIF(L53:L64,AN14) -> 3 | AP14: =AO14/(AQ4-AO11) -> 0.25 | AQ14: =IF(AP14=0,0,(AP14*((LOG(AP14))/LOG(2)))) -> -0.5 | AS14: =N14 -> 222 | AT14: =COUNTIF(L65:L75,AS14) -> 5 | AU14: =AT14/(AV4-AT11) -> 0.4545454545 | AV14: =IF(AU14=0,0,(AU14*((LOG(AU14))/LOG(2)))) -> -0.5170470562
A15: 21 | B15: 1338 | C15: 22 | D15: 1348 | E15: 24 | F15: 1359 | K15: 0 | L15: 222 | P15: =SUM(P7:P14) -> 1 | Q15: =-SUM(Q7:Q14) -> 0.9881716755 | V15: =SUM(V7:V14) -> 1 | W15: =-SUM(W7:W14) -> 1.325011211 | AA15: =SUM(AA7:AA14) -> 1 | AB15: =-SUM(AB7:AB14) -> 0.6840384356 | AF15: =SUM(AF7:AF14) -> 1 | AG15: =-SUM(AG7:AG14) -> 0.6500224216 | AK15: =SUM(AK7:AK14) -> 1 | AL15: =-SUM(AL7:AL14) -> 0.8453509366 | AP15: =SUM(AP7:AP14) -> 1 | AQ15: =-SUM(AQ7:AQ14) -> 0.8112781245 | AU15: =SUM(AU7:AU14) -> 1 | AV15: =-SUM(AV7:AV14) -> 0.9940302115
A16: 21 | B16: 1476 | C16: 22 | D16: 1485 | E16: 24 | F16: 1498 | K16: 0 | L16: 222 | P16: U= | Q16: =Q15/(LOG(Q4)/LOG(2)) -> 0.1617692918 | V16: U1= | W16: =W15/(LOG(W4)/LOG(2)) -> 0.3696025302 | AA16: U2= | AB16: =AB15/(LOG(AB4)/LOG(2)) -> 0.1977314516 | AF16: U3= | AG16: =AG15/(LOG(AG4)/LOG(2)) -> 0.181319169 | AK16: U4= | AL16: =AL15/(LOG(AL4)/LOG(2)) -> 0.2443612217 | AP16: U5= | AQ16: =AQ15/(LOG(AQ4)/LOG(2)) -> 0.2263003098 | AU16: U6= | AV16: =AV15/(LOG(AV4)/LOG(2)) -> 0.2873391704
A17: 21 | B17: 1610 | C17: 22 | D17: 1619 | E17: 24 | F17: 1637 | K17: 0 | L17: 222
A18: 12 | B18: 1741 | C18: 24 | D18: 1758 | E18: 24 | F18: 1769 | K18: 0 | L18: 122
A19: 21 | B19: 1875 | C19: 22 | D19: 1886 | E19: 24 | F19: 1894 | K19: 0 | L19: 222 | N19: Total Target Seq
A20: 12 | B20: 2000 | C20: 24 | D20: 2020 | E20: 24 | F20: 2033 | K20: 0 | L20: 122 | N20: =COUNTIF(L7:L75,G3) -> 0 | P20: 12 | Q20: 11 | R20: 12 | S20: 11 | T20: 12 | U20: 11
A21: 12 | B21: 2141 | C21: 24 | D21: 2157 | E21: 24 | F21: 2167 | K21: 0 | L21: 122 | P21: % of reinforcement given in 6 equal intervals based on number of trials
A22: 21 | B22: 2338 | C22: 22 | D22: 2349 | E22: 24 | F22: 2356 | K22: 0 | L22: 222 | P22: %_1 | Q22: %_2 | R22: %_3 | S22: %_4 | T22: %_5 | U22: %_6
A23: 12 | B23: 2459 | C23: 24 | D23: 2472 | E23: 24 | F23: 2497 | K23: 0 | L23: 122 | O23: target sequence | P23: =$G$3 -> 211 | Q23: =$G$3 -> 211 | R23: =$G$3 -> 211 | S23: =$G$3 -> 211 | T23: =$G$3 -> 211 | U23: =$G$3 -> 211
A24: 12 | B24: 2603 | C24: 24 | D24: 2623 | E24: 24 | F24: 2636 | K24: 0 | L24: 122 | O24: total reinforcement | P24: =U11 -> 0 | Q24: =Z11 -> 0 | R24: =AE11 -> 0 | S24: =AJ11 -> 0 | T24: =AO11 -> 0 | U24: =AT11 -> 0
A25: 12 | B25: 2744 | C25: 24 | D25: 2761 | E25: 24 | F25: 2772 | K25: 0 | L25: 122 | O25: % target
A26: 12 | B26: 2872 | C26: 24 | D26: 2885 | E26: 24 | F26: 2894 | K26: 0 | L26: 122 | O26: CCRF
A27: 12 | B27: 3001 | C27: 24 | D27: 3017 | E27: 24 | F27: 3026 | K27: 0 | L27: 122 | O27: % CCRf
A28: 12 | B28: 3129 | C28: 24 | D28: 3144 | E28: 24 | F28: 3155 | K28: 0 | L28: 122 | O28: average response rate | P28: =F18/P20 -> 147.4166667 | Q28: =(F29-F18)/Q20 -> 137.7272727 | R28: =(F41-F29)/R20 -> 141.1666667 | S28: =(F52-F41)/S20 -> 144.9090909 | T28: =(F64-F52)/T20 -> 189.6666667 | U28: =(F75-F64)/U20 -> 1206
A29: 12 | B29: 3256 | C29: 24 | D29: 3276 | E29: 24 | F29: 3284 | K29: 0 | L29: 122
A30: 12 | B30: 3385 | C30: 24 | D30: 3402 | E30: 24 | F30: 3412 | K30: 0 | L30: 122
A31: 12 | B31: 3507 | C31: 24 | D31: 3523 | E31: 24 | F31: 3532 | K31: 0 | L31: 122
A32: 21 | B32: 3643 | C32: 22 | D32: 3653 | E32: 24 | F32: 3662 | K32: 0 | L32: 222
A33: 12 | B33: 3768 | C33: 24 | D33: 3781 | E33: 24 | F33: 3790 | K33: 0 | L33: 122
A34: 12 | B34: 3889 | C34: 24 | D34: 3904 | E34: 24 | F34: 3916 | K34: 0 | L34: 122
A35: 12 | B35: 4014 | C35: 24 | D35: 4031 | E35: 24 | F35: 4040 | K35: 0 | L35: 122
A36: 12 | B36: 4141 | C36: 24 | D36: 4153 | E36: 24 | F36: 4163 | K36: 0 | L36: 122
A37: 12 | B37: 4267 | C37: 24 | D37: 4284 | E37: 24 | F37: 4296 | K37: 0 | L37: 122
A38: 12 | B38: 4407 | C38: 24 | D38: 4425 | E38: 24 | F38: 4602 | K38: 0 | L38: 122
A39: 21 | B39: 4710 | C39: 22 | D39: 4718 | E39: 24 | F39: 4728 | K39: 0 | L39: 222
A40: 12 | B40: 4833 | C40: 24 | D40: 4848 | E40: 24 | F40: 4859 | K40: 0 | L40: 122
A41: 12 | B41: 4952 | C41: 24 | D41: 4967 | E41: 24 | F41: 4978 | K41: 0 | L41: 122
A42: 12 | B42: 5084 | C42: 24 | D42: 5098 | E42: 24 | F42: 5109 | K42: 0 | L42: 122
A43: 12 | B43: 5223 | C43: 24 | D43: 5238 | E43: 24 | F43: 5248 | K43: 0 | L43: 122
A44: 12 | B44: 5347 | C44: 24 | D44: 5362 | E44: 24 | F44: 5371 | K44: 0 | L44: 122
A45: 21 | B45: 5479 | C45: 22 | D45: 5488 | E45: 24 | F45: 5496 | K45: 0 | L45: 222
A46: 21 | B46: 5608 | C46: 22 | D46: 5619 | E46: 24 | F46: 5635 | K46: 0 | L46: 222
A47: 12 | B47: 5740 | C47: 24 | D47: 5754 | E47: 24 | F47: 5764 | K47: 0 | L47: 122
A48: 21 | B48: 5887 | C48: 22 | D48: 5900 | E48: 24 | F48: 5909 | K48: 0 | L48: 222
A49: 12 | B49: 6085 | C49: 24 | D49: 6106 | E49: 24 | F49: 6124 | K49: 0 | L49: 122
A50: 12 | B50: 6229 | C50: 24 | D50: 6240 | E50: 24 | F50: 6248 | K50: 0 | L50: 122
A51: 12 | B51: 6354 | C51: 24 | D51: 6370 | E51: 24 | F51: 6380 | K51: 0 | L51: 122
A52: 12 | B52: 6544 | C52: 24 | D52: 6562 | E52: 24 | F52: 6572 | K52: 0 | L52: 122
A53: 12 | B53: 6681 | C53: 24 | D53: 6694 | E53: 24 | F53: 6712 | K53: 0 | L53: 122
A54: 12 | B54: 6820 | C54: 24 | D54: 6837 | E54: 24 | F54: 6860 | K54: 0 | L54: 122
A55: 12 | B55: 6964 | C55: 24 | D55: 6983 | E55: 24 | F55: 6993 | K55: 0 | L55: 122
A56: 21 | B56: 7101 | C56: 22 | D56: 7109 | E56: 24 | F56: 7120 | K56: 0 | L56: 222
A57: 12 | B57: 7279 | C57: 24 | D57: 7296 | E57: 24 | F57: 7345 | K57: 0 | L57: 122
A58: 12 | B58: 7469 | C58: 24 | D58: 7479 | E58: 24 | F58: 7492 | K58: 0 | L58: 122
A59: 12 | B59: 7595 | C59: 24 | D59: 7605 | E59: 24 | F59: 7615 | K59: 0 | L59: 122
A60: 12 | B60: 7716 | C60: 24 | D60: 7728 | E60: 24 | F60: 7737 | K60: 0 | L60: 122
A61: 21 | B61: 7842 | C61: 22 | D61: 7851 | E61: 24 | F61: 7861 | K61: 0 | L61: 222
A62: 21 | B62: 7966 | C62: 22 | D62: 7983 | E62: 24 | F62: 7991 | K62: 0 | L62: 222
A63: 12 | B63: 8243 | C63: 24 | D63: 8254 | E63: 24 | F63: 8272 | K63: 0 | L63: 122
A64: 12 | B64: 8825 | C64: 24 | D64: 8839 | E64: 24 | F64: 8848 | K64: 0 | L64: 122
A65: 12 | B65: 9466 | C65: 24 | D65: 9476 | E65: 24 | F65: 9487 | K65: 0 | L65: 122
A66: 12 | B66: 9588 | C66: 24 | D66: 9597 | E66: 24 | F66: 9608 | K66: 0 | L66: 122
A67: 21 | B67: 12083 | C67: 22 | D67: 12093 | E67: 24 | F67: 12112 | K67: 0 | L67: 222
A68: 12 | B68: 15868 | C68: 24 | D68: 15891 | E68: 24 | F68: 15903 | K68: 0 | L68: 122
A69: 21 | B69: 16019 | C69: 22 | D69: 16027 | E69: 24 | F69: 16044 | K69: 0 | L69: 222
A70: 12 | B70: 16146 | C70: 24 | D70: 16160 | E70: 24 | F70: 16168 | K70: 0 | L70: 122
A71: 21 | B71: 19245 | C71: 22 | D71: 19255 | E71: 24 | F71: 19266 | K71: 0 | L71: 222
A72: 12 | B72: 19374 | C72: 24 | D72: 19383 | E72: 24 | F72: 19388 | K72: 0 | L72: 122
A73: 21 | B73: 21813 | C73: 22 | D73: 21828 | E73: 24 | F73: 21837 | K73: 0 | L73: 222
A74: 12 | B74: 21935 | C74: 24 | D74: 21946 | E74: 24 | F74: 21952 | K74: 0 | L74: 122
A75: 21 | B75: 22096 | C75: 22 | D75: 22105 | E75: 24 | F75: 22114 | K75: 0 | L75: 222

Sheet !M922820.091
A1: Report for:!M922820.091
A2: Date: | B2: <date>
A3: Hen: | B3: <hen> | F3: Correct Sequence | G3: =Start!J2 -> 211 | P3: Total Sequences in Data | Q3: =4994-COUNTBLANK(L7:L5000) -> 179 | V3: Total Sequences in Block Data | W3: =COUNTA(L7:L36) -> 30 | AA3: Total Sequences in Block Data | AB3: =COUNTA(L37:L66) -> 30 | AF3: Total Sequences in Block Data | AG3: =COUNTA(L67:L95) -> 29 | AK3: Total Sequences in Block Data | AL3: =COUNTA(L96:L125) -> 30 | AP3: Total Sequences in Block Data | AQ3: =COUNTA(L126:L155) -> 30 | AU3: Total Sequences in Block Data | AV3: =COUNTA(L156:L185) -> 30
P4: Total Sequences in Summary | Q4: =SUM(O7:O14) -> 179 | V4: Total Sequences in Block Summary | W4: =SUM(U7:U14) -> 30 | AA4: Total Sequences in Block Summary | AB4: =SUM(Z7:Z14) -> 30 | AF4: Total Sequences in Block Summary | AG4: =SUM(AE7:AE14) -> 29 | AK4: Total Sequences in Block Summary | AL4: =SUM(AJ7:AJ14) -> 30 | AP4: Total Sequences in Block Summary | AQ4: =SUM(AO7:AO14) -> 30 | AU4: Total Sequences in Block Summary | AV4: =SUM(AT7:AT14) -> 30
T5: Block 1 | Y5: Block 2 | AD5: Block 3 | AI5: Block 4 | AN5: Block 5 | AS5: Block 6
A6: Sequence Component 1 | B6: Time 1 | C6: Sequence Component 2 | D6: Time 2 | E6: Sequence Component 3 | F6: Time 3 | G6: Sequence Component 4 | H6: Time 4 | I6: Sequence Component 5 | J6: Time 5 | K6: Correct? 0=No 1=Yes | L6: Sequence | N6: Frequency | P6: Relative Frequency | Q6: Variability | T6: Frequency | V6: Relative Frequency | W6: Variability | Y6: Frequency | AA6: Relative Frequency | AB6: Variability | AD6: Frequency | AF6: Relative Frequency | AG6: Variability | AI6: Frequency | AK6: Relative Frequency | AL6: Variability | AN6: Frequency | AP6: Relative Frequency | AQ6: Variability | AS6: Frequency | AU6: Relative Frequency | AV6: Variability
A7: 12 | B7: 30 | C7: 24 | D7: 44 | E7: 24 | F7: 53 | K7: 0 | L7: 122 | N7: 111 | O7: =COUNTIF($L$7:$L$500,N7) -> 0 | P7: =O7/$Q$4 -> 0 | Q7: =IF(P7=0,0,(P7*((LOG(P7))/LOG(2)))) -> 0 | T7: =N7 -> 111 | U7: =COUNTIF(L7:L36,T7) -> 0 | V7: =U7/(W4-U11) -> 0 | W7: =IF(V7=0,0,(V7*((LOG(V7))/LOG(2)))) -> 0 | Y7: =N7 -> 111 | Z7: =COUNTIF(L37:L66,Y7) -> 0 | AA7: =Z7/(AB4-Z11) -> 0 | AB7: =IF(AA7=0,0,(AA7*((LOG(AA7))/LOG(2)))) -> 0 | AD7: =N7 -> 111 | AE7: =COUNTIF(L67:L95,AD7) -> 0 | AF7: =AE7/(AG4-AE11) -> 0 | AG7: =IF(AF7=0,0,(AF7*((LOG(AF7))/LOG(2)))) -> 0 | AI7: =N7 -> 111 | AJ7: =COUNTIF(L96:L125,AI7) -> 0 | AK7: =AJ7/(AL4-AJ11) -> 0 | AL7: =IF(AK7=0,0,(AK7*((LOG(AK7))/LOG(2)))) -> 0 | AN7: =N7 -> 111 | AO7: =COUNTIF(L126:L155,AN7) -> 0 | AP7: =AO7/(AQ4-AO11) -> 0 | AQ7: =IF(AP7=0,0,(AP7*((LOG(AP7))/LOG(2)))) -> 0 | AS7: =N7 -> 111 | AT7: =COUNTIF(L156:L185,AS7) -> 0 | AU7: =AT7/(AV4-AT11) -> 0 | AV7: =IF(AU7=0,0,(AU7*((LOG(AU7))/LOG(2)))) -> 0
A8: 21 | B8: 171 | C8: 22 | D8: 180 | E8: 24 | F8: 189 | K8: 0 | L8: 222 | N8: 112 | O8: =COUNTIF($L$7:$L$500,N8) -> 4 | P8: =O8/$Q$4 -> 0.02234636872 | Q8: =IF(P8=0,0,(P8*((LOG(P8))/LOG(2)))) -> -0.1225433693 | T8: =N8 -> 112 | U8: =COUNTIF(L7:L36,T8) -> 2 | V8: =U8/(W4-U11) -> 0.06666666667 | W8: =IF(V8=0,0,(V8*((LOG(V8))/LOG(2)))) -> -0.260459373 | Y8: =N8 -> 112 | Z8: =COUNTIF(L37:L66,Y8) -> 2 | AA8: =Z8/(AB4-Z11) -> 0.06666666667 | AB8: =IF(AA8=0,0,(AA8*((LOG(AA8))/LOG(2)))) -> -0.260459373 | AD8: =N8 -> 112 | AE8: =COUNTIF(L67:L95,AD8) -> 0 | AF8: =AE8/(AG4-AE11) -> 0 | AG8: =IF(AF8=0,0,(AF8*((LOG(AF8))/LOG(2)))) -> 0 | AI8: =N8 -> 112 | AJ8: =COUNTIF(L96:L125,AI8) -> 0 | AK8: =AJ8/(AL4-AJ11) -> 0 | AL8: =IF(AK8=0,0,(AK8*((LOG(AK8))/LOG(2)))) -> 0 | AN8: =N8 -> 112 | AO8: =COUNTIF(L126:L155,AN8) -> 0 | AP8: =AO8/(AQ4-AO11) -> 0 | AQ8: =IF(AP8=0,0,(AP8*((LOG(AP8))/LOG(2)))) -> 0 | AS8: =N8 -> 112 | AT8: =COUNTIF(L156:L185,AS8) -> 0 | AU8: =AT8/(AV4-AT11) -> 0 | AV8: =IF(AU8=0,0,(AU8*((LOG(AU8))/LOG(2)))) -> 0
A9: 12 | B9: 288 | C9: 24 | D9: 303 | E9: 24 | F9: 318 | K9: 0 | L9: 122 | N9: 121 | O9: =COUNTIF($L$7:$L$500,N9) -> 0 | P9: =O9/$Q$4 -> 0 | Q9: =IF(P9=0,0,(P9*((LOG(P9))/LOG(2)))) -> 0 | T9: =N9 -> 121 | U9: =COUNTIF(L7:L36,T9) -> 0 | V9: =U9/(W4-U11) -> 0 | W9: =IF(V9=0,0,(V9*((LOG(V9))/LOG(2)))) -> 0 | Y9: =N9 -> 121 | Z9: =COUNTIF(L37:L66,Y9) -> 0 | AA9: =Z9/(AB4-Z11) -> 0 | AB9: =IF(AA9=0,0,(AA9*((LOG(AA9))/LOG(2)))) -> 0 | AD9: =N9 -> 121 | AE9: =COUNTIF(L67:L95,AD9) -> 0 | AF9: =AE9/(AG4-AE11) -> 0 | AG9: =IF(AF9=0,0,(AF9*((LOG(AF9))/LOG(2)))) -> 0 | AI9: =N9 -> 121 | AJ9: =COUNTIF(L96:L125,AI9) -> 0 | AK9: =AJ9/(AL4-AJ11) -> 0 | AL9: =IF(AK9=0,0,(AK9*((LOG(AK9))/LOG(2)))) -> 0 | AN9: =N9 -> 121 | AO9: =COUNTIF(L126:L155,AN9) -> 0 | AP9: =AO9/(AQ4-AO11) -> 0 | AQ9: =IF(AP9=0,0,(AP9*((LOG(AP9))/LOG(2)))) -> 0 | AS9: =N9 -> 121 | AT9: =COUNTIF(L156:L185,AS9) -> 0 | AU9: =AT9/(AV4-AT11) -> 0 | AV9: =IF(AU9=0,0,(AU9*((LOG(AU9))/LOG(2)))) -> 0
A10: 12 | B10: 421 | C10: 24 | D10: 436 | E10: 24 | F10: 448 | K10: 0 | L10: 122 | N10: 122 | O10: =COUNTIF($L$7:$L$500,N10) -> 134 | P10: =O10/$Q$4 -> 0.748603352 | Q10: =IF(P10=0,0,(P10*((LOG(P10))/LOG(2)))) -> -0.3127115231 | T10: =N10 -> 122 | U10: =COUNTIF(L7:L36,T10) -> 18 | V10: =U10/(W4-U11) -> 0.6 | W10: =IF(V10=0,0,(V10*((LOG(V10))/LOG(2)))) -> -0.4421793565 | Y10: =N10 -> 122 | Z10: =COUNTIF(L37:L66,Y10) -> 19 | AA10: =Z10/(AB4-Z11) -> 0.6333333333 | AB10: =IF(AA10=0,0,(AA10*((LOG(AA10))/LOG(2)))) -> -0.4173432854 | AD10: =N10 -> 122 | AE10: =COUNTIF(L67:L95,AD10) -> 25 | AF10: =AE10/(AG4-AE11) -> 0.8620689655 | AG10: =IF(AF10=0,0,(AF10*((LOG(AF10))/LOG(2)))) -> -0.1845903494 | AI10: =N10 -> 122 | AJ10: =COUNTIF(L96:L125,AI10) -> 27 | AK10: =AJ10/(AL4-AJ11) -> 0.9 | AL10: =IF(AK10=0,0,(AK10*((LOG(AK10))/LOG(2)))) -> -0.1368027841 | AN10: =N10 -> 122 | AO10: =COUNTIF(L126:L155,AN10) -> 28 | AP10: =AO10/(AQ4-AO11) -> 0.9333333333 | AQ10: =IF(AP10=0,0,(AP10*((LOG(AP10))/LOG(2)))) -> -0.09289996198 | AS10: =N10 -> 122 | AT10: =COUNTIF(L156:L185,AS10) -> 17 | AU10: =AT10/(AV4-AT11) -> 0.5666666667 | AV10: =IF(AU10=0,0,(AU10*((LOG(AU10))/LOG(2)))) -> -0.4643423941
A11: 21 | B11: 564 | C11: 22 | D11: 574 | E11: 24 | F11: 601 | K11: 0 | L11: 222 | N11: 211 | O11: =COUNTIF($L$7:$L$500,N11) -> 0 | P11: =O11/$Q$4 -> 0 | Q11: =IF(P11=0,0,(P11*((LOG(P11))/LOG(2)))) -> 0 | T11: =N11 -> 211 | U11: =COUNTIF(L7:L36,T11) -> 0 | Y11: =N11 -> 211 | Z11: =COUNTIF(L37:L66,Y11) -> 0 | AD11: =N11 -> 211 | AE11: =COUNTIF(L67:L95,AD11) -> 0 | AI11: =N11 -> 211 | AJ11: =COUNTIF(L96:L125,AI11) -> 0 | AN11: =N11 -> 211 | AO11: =COUNTIF(L126:L155,AN11) -> 0 | AS11: =N11 -> 211 | AT11: =COUNTIF(L156:L185,AS11) -> 0
A12: 21 | B12: 708 | C12: 22 | D12: 720 | E12: 24 | F12: 728 | K12: 0 | L12: 222 | N12: 212 | O12: =COUNTIF($L$7:$L$500,N12) -> 0 | P12: =O12/$Q$4 -> 0 | Q12: =IF(P12=0,0,(P12*((LOG(P12))/LOG(2)))) -> 0 | T12: =N12 -> 212 | U12: =COUNTIF(L7:L36,T12) -> 0 | V12: =U12/(W4-U11) -> 0 | W12: =IF(V12=0,0,(V12*((LOG(V12))/LOG(2)))) -> 0 | Y12: =N12 -> 212 | Z12: =COUNTIF(L37:L66,Y12) -> 0 | AA12: =Z12/(AB4-Z11) -> 0 | AB12: =IF(AA12=0,0,(AA12*((LOG(AA12))/LOG(2)))) -> 0 | AD12: =N12 -> 212 | AE12: =COUNTIF(L67:L95,AD12) -> 0 | AF12: =AE12/(AG4-AE11) -> 0 | AG12: =IF(AF12=0,0,(AF12*((LOG(AF12))/LOG(2)))) -> 0 | AI12: =N12 -> 212 | AJ12: =COUNTIF(L96:L125,AI12) -> 0 | AK12: =AJ12/(AL4-AJ11) -> 0 | AL12: =IF(AK12=0,0,(AK12*((LOG(AK12))/LOG(2)))) -> 0 | AN12: =N12 -> 212 | AO12: =COUNTIF(L126:L155,AN12) -> 0 | AP12: =AO12/(AQ4-AO11) -> 0 | AQ12: =IF(AP12=0,0,(AP12*((LOG(AP12))/LOG(2)))) -> 0 | AS12: =N12 -> 212 | AT12: =COUNTIF(L156:L185,AS12) -> 0 | AU12: =AT12/(AV4-AT11) -> 0 | AV12: =IF(AU12=0,0,(AU12*((LOG(AU12))/LOG(2)))) -> 0
A13: 12 | B13: 827 | C13: 24 | D13: 838 | E13: 24 | F13: 851 | K13: 0 | L13: 122 | N13: 221 | O13: =COUNTIF($L$7:$L$500,N13) -> 0 | P13: =O13/$Q$4 -> 0 | Q13: =IF(P13=0,0,(P13*((LOG(P13))/LOG(2)))) -> 0 | T13: =N13 -> 221 | U13: =COUNTIF(L7:L36,T13) -> 0 | V13: =U13/(W4-U11) -> 0 | W13: =IF(V13=0,0,(V13*((LOG(V13))/LOG(2)))) -> 0 | Y13: =N13 -> 221 | Z13: =COUNTIF(L37:L66,Y13) -> 0 | AA13: =Z13/(AB4-Z11) -> 0 | AB13: =IF(AA13=0,0,(AA13*((LOG(AA13))/LOG(2)))) -> 0 | AD13: =N13 -> 221 | AE13: =COUNTIF(L67:L95,AD13) -> 0 | AF13: =AE13/(AG4-AE11) -> 0 | AG13: =IF(AF13=0,0,(AF13*((LOG(AF13))/LOG(2)))) -> 0 | AI13: =N13 -> 221 | AJ13: =COUNTIF(L96:L125,AI13) -> 0 | AK13: =AJ13/(AL4-AJ11) -> 0 | AL13: =IF(AK13=0,0,(AK13*((LOG(AK13))/LOG(2)))) -> 0 | AN13: =N13 -> 221 | AO13: =COUNTIF(L126:L155,AN13) -> 0 | AP13: =AO13/(AQ4-AO11) -> 0 | AQ13: =IF(AP13=0,0,(AP13*((LOG(AP13))/LOG(2)))) -> 0 | AS13: =N13 -> 221 | AT13: =COUNTIF(L156:L185,AS13) -> 0 | AU13: =AT13/(AV4-AT11) -> 0 | AV13: =IF(AU13=0,0,(AU13*((LOG(AU13))/LOG(2)))) -> 0
A14: 21 | B14: 954 | C14: 22 | D14: 961 | E14: 24 | F14: 969 | K14: 0 | L14: 222 | N14: 222 | O14: =COUNTIF($L$7:$L$500,N14) -> 41 | P14: =O14/$Q$4 -> 0.2290502793 | Q14: =IF(P14=0,0,(P14*((LOG(P14))/LOG(2)))) -> -0.4870213111 | T14: =N14 -> 222 | U14: =COUNTIF(L7:L36,T14) -> 10 | V14: =U14/(W4-U11) -> 0.3333333333 | W14: =IF(V14=0,0,(V14*((LOG(V14))/LOG(2)))) -> -0.5283208336 | Y14: =N14 -> 222 | Z14: =COUNTIF(L37:L66,Y14) -> 9 | AA14: =Z14/(AB4-Z11) -> 0.3 | AB14: =IF(AA14=0,0,(AA14*((LOG(AA14))/LOG(2)))) -> -0.5210896782 | AD14: =N14 -> 222 | AE14: =COUNTIF(L67:L95,AD14) -> 4 | AF14: =AE14/(AG4-AE11) -> 0.1379310345 | AG14: =IF(AF14=0,0,(AF14*((LOG(AF14))/LOG(2)))) -> -0.3942042752 | AI14: =N14 -> 222 | AJ14: =COUNTIF(L96:L125,AI14) -> 3 | AK14: =AJ14/(AL4-AJ11) -> 0.1 | AL14: =IF(AK14=0,0,(AK14*((LOG(AK14))/LOG(2)))) -> -0.3321928095 | AN14: =N14 -> 222 | AO14: =COUNTIF(L126:L155,AN14) -> 2 | AP14: =AO14/(AQ4-AO11) -> 0.06666666667 | AQ14: =IF(AP14=0,0,(AP14*((LOG(AP14))/LOG(2)))) -> -0.260459373 | AS14: =N14 -> 222 | AT14: =COUNTIF(L156:L185,AS14) -> 13 | AU14: =AT14/(AV4-AT11) -> 0.4333333333 | AV14: =IF(AU14=0,0,(AU14*((LOG(AU14))/LOG(2)))) -> -0.5227953802
A15: 12 | B15: 1071 | C15: 24 | D15: 1083 | E15: 24 | F15: 1106 | K15: 0 | L15: 122 | P15: =SUM(P7:P14) -> 1 | Q15: =-SUM(Q7:Q14) -> 0.9222762035 | V15: =SUM(V7:V14) -> 1 | W15: =-SUM(W7:W14) -> 1.230959563 | AA15: =SUM(AA7:AA14) -> 1 | AB15: =-SUM(AB7:AB14) -> 1.198892337 | AF15: =SUM(AF7:AF14) -> 1 | AG15: =-SUM(AG7:AG14) -> 0.5787946246 | AK15: =SUM(AK7:AK14) -> 1 | AL15: =-SUM(AL7:AL14) -> 0.4689955936 | AP15: =SUM(AP7:AP14) -> 1 | AQ15: =-SUM(AQ7:AQ14) -> 0.353359335 | AU15: =SUM(AU7:AU14) -> 1 | AV15: =-SUM(AV7:AV14) -> 0.9871377744
A16: 21 | B16: 1220 | C16: 22 | D16: 1225 | E16: 24 | F16: 1237 | K16: 0 | L16: 222 | P16: U= | Q16: =Q15/(LOG(Q4)/LOG(2)) -> 0.1232360912 | V16: U1= | W16: =W15/(LOG(W4)/LOG(2)) -> 0.2508634621 | AA16: U2= | AB16: =AB15/(LOG(AB4)/LOG(2)) -> 0.2443283202 | AF16: U3= | AG16: =AG15/(LOG(AG4)/LOG(2)) -> 0.1191430401 | AK16: U4= | AL16: =AL15/(LOG(AL4)/LOG(2)) -> 0.09557897908 | AP16: U5= | AQ16: =AQ15/(LOG(AQ4)/LOG(2)) -> 0.07201288232 | AU16: U6= | AV16: =AV15/(LOG(AV4)/LOG(2)) -> 0.2011737892
A17: 12 | B17: 1344 | C17: 24 | D17: 1357 | E17: 24 | F17: 1370 | K17: 0 | L17: 122
A18: 21 | B18: 1501 | C18: 22 | D18: 1510 | E18: 24 | F18: 1519 | K18: 0 | L18: 222
A19: 12 | B19: 1617 | C19: 24 | D19: 1631 | E19: 24 | F19: 1641 | K19: 0 | L19: 122 | N19: Total Target Seq
A20: 12 | B20: 1742 | C20: 24 | D20: 1757 | E20: 24 | F20: 1768 | K20: 0 | L20: 122 | N20: =COUNTIF(L7:L185,G3) -> 0 | P20: 30 | Q20: 30 | R20: 29 | S20: 30 | T20: 30 | U20: 30
A21: 21 | B21: 1897 | C21: 22 | D21: 1922 | E21: 24 | F21: 1935 | K21: 0 | L21: 222 | P21: % of reinforcement given in 6 equal intervals based on number of trials
A22: 12 | B22: 2042 | C22: 24 | D22: 2054 | E22: 24 | F22: 2065 | K22: 0 | L22: 122 | P22: %_1 | Q22: %_2 | R22: %_3 | S22: %_4 | T22: %_5 | U22: %_6
A23: 21 | B23: 2188 | C23: 22 | D23: 2203 | E23: 24 | F23: 2217 | K23: 0 | L23: 222 | O23: target sequence | P23: =$G$3 -> 211 | Q23: =$G$3 -> 211 | R23: =$G$3 -> 211 | S23: =$G$3 -> 211 | T23: =$G$3 -> 211 | U23: =$G$3 -> 211
A24: 12 | B24: 2309 | C24: 24 | D24: 2332 | E24: 24 | F24: 2345 | K24: 0 | L24: 122 | O24: total reinforcement | P24: =U11 -> 0 | Q24: =Z11 -> 0 | R24: =AE11 -> 0 | S24: =AJ11 -> 0 | T24: =AO11 -> 0 | U24: =AT11 -> 0
A25: 12 | B25: 2445 | C25: 24 | D25: 2480 | E25: 24 | F25: 2501 | K25: 0 | L25: 122 | O25: % target
A26: 21 | B26: 2620 | C26: 22 | D26: 2628 | E26: 24 | F26: 2642 | K26: 0 | L26: 222 | O26: CCRF
A27: 21 | B27: 2752 | C27: 22 | D27: 2817 | E27: 24 | F27: 2838 | K27: 0 | L27: 222 | O27: % CCRf
A28: 12 | B28: 2940 | C28: 24 | D28: 2954 | E28: 24 | F28: 2962 | K28: 0 | L28: 122 | O28: average response rate | P28: =F36/P20 -> 135.5333333 | Q28: =(F66-F36)/Q20 -> 133.7333333 | R28: =(F95-F66)/R20 -> 129.2758621 | S28: =(F125-F95)/S20 -> 133.3333333 | T28: =(F155-F125)/T20 -> 133.0333333 | U28: =(F185-F155)/U20 -> 137.6666667
A29: 12 | B29: 3062 | C29: 24 | D29: 3088 | E29: 24 | F29: 3120 | K29: 0 | L29: 122
A30: 12 | B30: 3215 | C30: 24 | D30: 3226 | E30: 24 | F30: 3257 | K30: 0 | L30: 122
A31: 12 | B31: 3363 | C31: 24 | D31: 3376 | E31: 24 | F31: 3387 | K31: 0 | L31: 122
A32: 12 | B32: 3485 | C32: 13 | D32: 3497 | E32: 24 | F32: 3510 | K32: 0 | L32: 112
A33: 12 | B33: 3609 | C33: 24 | D33: 3624 | E33: 24 | F33: 3633 | K33: 0 | L33: 122
A34: 12 | B34: 3731 | C34: 13 | D34: 3734 | E34: 24 | F34: 3781 | K34: 0 | L34: 112
A35: 12 | B35: 3881 | C35: 24 | D35: 3894 | E35: 24 | F35: 3903 | K35: 0 | L35: 122
A36: 12 | B36: 4009 | C36: 24 | D36: 4055 | E36: 24 | F36: 4066 | K36: 0 | L36: 122
A37: 12 | B37: 4163 | C37: 13 | D37: 4174 | E37: 24 | F37: 4204 | K37: 0 | L37: 112
A38: 12 | B38: 4308 | C38: 24 | D38: 4324 | E38: 24 | F38: 4333 | K38: 0 | L38: 122
A39: 12 | B39: 4442 | C39: 24 | D39: 4454 | E39: 24 | F39: 4461 | K39: 0 | L39: 122
A40: 12 | B40: 4562 | C40: 24 | D40: 4580 | E40: 24 | F40: 4614 | K40: 0 | L40: 122
A41: 12 | B41: 4708 | C41: 24 | D41: 4722 | E41: 24 | F41: 4734 | K41: 0 | L41: 122
A42: 21 | B42: 4838 | C42: 22 | D42: 4849 | E42: 24 | F42: 4869 | K42: 0 | L42: 222
A43: 12 | B43: 4969 | C43: 24 | D43: 4984 | E43: 24 | F43: 4992 | K43: 0 | L43: 122
A44: 21 | B44: 5117 | C44: 22 | D44: 5122 | E44: 24 | F44: 5132 | K44: 0 | L44: 222
A45: 21 | B45: 5243 | C45: 22 | D45: 5256 | E45: 24 | F45: 5272 | K45: 0 | L45: 222
A46: 21 | B46: 5382 | C46: 22 | D46: 5390 | E46: 24 | F46: 5409 | K46: 0 | L46: 222
A47: 21 | B47: 5524 | C47: 22 | D47: 5533 | E47: 24 | F47: 5542 | K47: 0 | L47: 222
A48: 12 | B48: 5653 | C48: 24 | D48: 5667 | E48: 24 | F48: 5679 | K48: 0 | L48: 122
A49: 12 | B49: 5776 | C49: 24 | D49: 5790 | E49: 24 | F49: 5817 | K49: 0 | L49: 122
A50: 12 | B50: 5922 | C50: 24 | D50: 5937 | E50: 24 | F50: 5947 | K50: 0 | L50: 122
A51: 12 | B51: 6046 | C51: 24 | D51: 6060 | E51: 24 | F51: 6084 | K51: 0 | L51: 122
A52: 12 | B52: 6182 | C52: 24 | D52: 6199 | E52: 24 | F52: 6207 | K52: 0 | L52: 122
A53: 21 | B53: 6316 | C53: 22 | D53: 6327 | E53: 24 | F53: 6337 | K53: 0 | L53: 222
A54: 12 | B54: 6436 | C54: 24 | D54: 6453 | E54: 24 | F54: 6488 | K54: 0 | L54: 122
A55: 12 | B55: 6591 | C55: 24 | D55: 6604 | E55: 24 | F55: 6615 | K55: 0 | L55: 122
A56: 21 | B56: 6734 | C56: 22 | D56: 6773 | E56: 24 | F56: 6813 | K56: 0 | L56: 222
A57: 12 | B57: 6912 | C57: 24 | D57: 6925 | E57: 24 | F57: 6931 | K57: 0 | L57: 122
A58: 12 | B58: 7030 | C58: 13 | D58: 7042 | E58: 24 | F58: 7066 | K58: 0 | L58: 112
A59: 12 | B59: 7166 | C59: 24 | D59: 7180 | E59: 24 | F59: 7187 | K59: 0 | L59: 122
A60: 12 | B60: 7282 | C60: 24 | D60: 7295 | E60: 24 | F60: 7303 | K60: 0 | L60: 122
A61: 12 | B61: 7407 | C61: 24 | D61: 7429 | E61: 24 | F61: 7444 | K61: 0 | L61: 122
A62: 12 | B62: 7544 | C62: 24 | D62: 7557 | E62: 24 | F62: 7565 | K62: 0 | L62: 122
A63: 12 | B63: 7667 | C63: 24 | D63: 7678 | E63: 24 | F63: 7686 | K63: 0 | L63: 122
A64: 12 | B64: 7785 | C64: 24 | D64: 7795 | E64: 24 | F64: 7802 | K64: 0 | L64: 122
A65: 21 | B65: 7923 | C65: 22 | D65: 7929 | E65: 24 | F65: 7936 | K65: 0 | L65: 222
A66: 21 | B66: 8041 | C66: 22 | D66: 8051 | E66: 24 | F66: 8078 | K66: 0 | L66: 222
A67: 12 | B67: 8177 | C67: 24 | D67: 8190 | E67: 24 | F67: 8196 | K67: 0 | L67: 122
A68: 12 | B68: 8297 | C68: 24 | D68: 8307 | E68: 24 | F68: 8315 | K68: 0 | L68: 122
A69: 12 | B69: 8415 | C69: 24 | D69: 8429 | E69: 24 | F69: 8443 | K69: 0 | L69: 122
A70: 12 | B70: 8542 | C70: 24 | D70: 8558 | E70: 24 | F70: 8567 | K70: 0 | L70: 122
A71: 12 | B71: 8668 | C71: 24 | D71: 8688 | E71: 24 | F71: 8701 | K71: 0 | L71: 122
A72: 12 | B72: 8795 | C72: 24 | D72: 8810 | E72: 24 | F72: 8819 | K72: 0 | L72: 122
A73: 21 | B73: 8924 | C73: 22 | D73: 8931 | E73: 24 | F73: 8953 | K73: 0 | L73: 222
A74: 12 | B74: 9052 | C74: 24 | D74: 9073 | E74: 24 | F74: 9085 | K74: 0 | L74: 122
A75: 12 | B75: 9187 | C75: 24 | D75: 9201 | E75: 24 | F75: 9230 | K75: 0 | L75: 122
A76: 12 | B76: 9327 | C76: 24 | D76: 9346 | E76: 24 | F76: 9356 | K76: 0 | L76: 122
A77: 12 | B77: 9454 | C77: 24 | D77: 9468 | E77: 24 | F77: 9475 | K77: 0 | L77: 122
A78: 12 | B78: 9575 | C78: 24 | D78: 9592 | E78: 24 | F78: 9611 | K78: 0 | L78: 122
A79: 12 | B79: 9707 | C79: 24 | D79: 9718 | E79: 24 | F79: 9725 | K79: 0 | L79: 122
A80: 12 | B80: 9824 | C80: 24 | D80: 9858 | E80: 24 | F80: 9884 | K80: 0 | L80: 122
A81: 12 | B81: 9982 | C81: 24 | D81: 9996 | E81: 24 | F81: 10006 | K81: 0 | L81: 122
A82: 12 | B82: 10108 | C82: 24 | D82: 10122 | E82: 24 | F82: 10145 | K82: 0 | L82: 122
A83: 12 | B83: 10244 | C83: 24 | D83: 10258 | E83: 24 | F83: 10265 | K83: 0 | L83: 122
A84: 12 | B84: 10364 | C84: 24 | D84: 10378 | E84: 24 | F84: 10391 | K84: 0 | L84: 122
A85: 12 | B85: 10498 | C85: 24 | D85: 10524 | E85: 24 | F85: 10563 | K85: 0 | L85: 122
A86: 12 | B86: 10663 | C86: 24 | D86: 10678 | E86: 24 | F86: 10689 | K86: 0 | L86: 122
A87: 21 | B87: 10799 | C87: 22 | D87: 10812 | E87: 24 | F87: 10830 | K87: 0 | L87: 222
A88: 12 | B88: 10929 | C88: 24 | D88: 10940 | E88: 24 | F88: 10957 | K88: 0 | L88: 122
A89: 12 | B89: 11060 | C89: 24 | D89: 11072 | E89: 24 | F89: 11080 | K89: 0 | L89: 122
A90: 12 | B90: 11178 | C90: 24 | D90: 11191 | E90: 24 | F90: 11196 | K90: 0 | L90: 122
A91: 21 | B91: 11302 | C91: 22 | D91: 11310 | E91: 24 | F91: 11324 | K91: 0 | L91: 222
A92: 12 | B92: 11424 | C92: 24 | D92: 11433 | E92: 24 | F92: 11445 | K92: 0 | L92: 122
A93: 12 | B93: 11548 | C93: 24 | D93: 11559 | E93: 24 | F93: 11566 | K93: 0 | L93: 122
A94: 21 | B94: 11673 | C94: 22 | D94: 11686 | E94: 24 | F94: 11709 | K94: 0 | L94: 222
A95: 12 | B95: 11809 | C95: 24 | D95: 11819 | E95: 24 | F95: 11827 | K95: 0 | L95: 122
A96: 12 | B96: 11930 | C96: 24 | D96: 11947 | E96: 24 | F96: 11963 | K96: 0 | L96: 122
A97: 12 | B97: 12061 | C97: 24 | D97: 12076 | E97: 24 | F97: 12095 | K97: 0 | L97: 122
A98: 12 | B98: 12197 | C98: 24 | D98: 12213 | E98: 24 | F98: 12232 | K98: 0 | L98: 122
A99: 12 | B99: 12335 | C99: 24 | D99: 12367 | E99: 24 | F99: 12378 | K99: 0 | L99: 122
A100: 12 | B100: 12477 | C100: 24 | D100: 12490 | E100: 24 | F100: 12499 | K100: 0 | L100: 122
A101: 12 | B101: 12598 | C101: 24 | D101: 12616 | E101: 24 | F101: 12625 | K101: 0 | L101: 122
A102: 12 | B102: 12723 | C102: 24 | D102: 12738 | E102: 24 | F102: 12749 | K102: 0 | L102: 122
A103: 12 | B103: 12847 | C103: 24 | D103: 12858 | E103: 24 | F103: 12867 | K103: 0 | L103: 122
A104: 12 | B104: 12967 | C104: 24 | D104: 13018 | E104: 24 | F104: 13044 | K104: 0 | L104: 122
A105: 21 | B105: 13174 | C105: 22 | D105: 13183 | E105: 24 | F105: 13198 | K105: 0 | L105: 222
A106: 21 | B106: 13326 | C106: 22 | D106: 13339 | E106: 24 | F106: 13358 | K106: 0 | L106: 222
A107: 12 | B107: 13453 | C107: 24 | D107: 13465 | E107: 24 | F107: 13472 | K107: 0 | L107: 122
A108: 12 | B108: 13575 | C108: 24 | D108: 13585 | E108: 24 | F108: 13594 | K108: 0 | L108: 122
A109: 12 | B109: 13689 | C109: 24 | D109: 13745 | E109: 24 | F109: 13761 | K109: 0 | L109: 122
A110: 12 | B110: 13858 | C110: 24 | D110: 13868 | E110: 24 | F110: 13886 | K110: 0 | L110: 122
A111: 21 | B111: 13988 | C111: 22 | D111: 13993 | E111: 24 | F111: 14006 | K111: 0 | L111: 222
A112: 12 | B112: 14102 | C112: 24 | D112: 14116 | E112: 24 | F112: 14132 | K112: 0 | L112: 122
A113: 12 | B113: 14230 | C113: 24 | D113: 14243 | E113: 24 | F113: 14250 | K113: 0 | L113: 122
A114: 12 | B114: 14348 | C114: 24 | D114: 14362 | E114: 24 | F114: 14367 | K114: 0 | L114: 122
A115: 12 | B115: 14470 | C115: 24 | D115: 14489 | E115: 24 | F115: 14513 | K115: 0 | L115: 122
A116: 12 | B116: 14611 | C116: 24 | D116: 14626 | E116: 24 | F116: 14633 | K116: 0 | L116: 122
A117: 12 | B117: 14731 | C117: 24 | D117: 14747 | E117: 24 | F117: 14824 | K117: 0 | L117: 122
A118: 12 | B118: 14917 | C118: 24 | D118: 14932 | E118: 24 | F118: 14941 | K118: 0 | L118: 122
A119: 12 | B119: 15040 | C119: 24 | D119: 15055 | E119: 24 | F119: 15064 | K119: 0 | L119: 122
A120: 12 | B120: 15163 | C120: 24 | D120: 15190 | E120: 24 | F120: 15197 | K120: 0 | L120: 122
A121: 12 | B121: 15296 | C121: 24 | D121: 15309 | E121: 24 | F121: 15316 | K121: 0 | L121: 122
A122: 12 | B122: 15422 | C122: 24 | D122: 15437 | E122: 24 | F122: 15447 | K122: 0 | L122: 122
A123: 12 | B123: 15546 | C123: 24 | D123: 15559 | E123: 24 | F123: 15567 | K123: 0 | L123: 122
A124: 12 | B124: 15673 | C124: 24 | D124: 15692 | E124: 24 | F124: 15699 | K124: 0 | L124: 122
A125: 12 | B125: 15796 | C125: 24 | D125: 15814 | E125: 24 | F125: 15827 | K125: 0 | L125: 122
A126: 21 | B126: 15953 | C126: 22 | D126: 15960 | E126: 24 | F126: 16009 | K126: 0 | L126: 222
A127: 12 | B127: 16107 | C127: 24 | D127: 16123 | E127: 24 | F127: 16131 | K127: 0 | L127: 122
A128: 12 | B128: 16229 | C128: 24 | D128: 16264 | E128: 24 | F128: 16280 | K128: 0 | L128: 122
A129: 12 | B129: 16388 | C129: 24 | D129: 16398 | E129: 24 | F129: 16427 | K129: 0 | L129: 122
A130: 12 | B130: 16525 | C130: 24 | D130: 16539 | E130: 24 | F130: 16549 | K130: 0 | L130: 122
A131: 12 | B131: 16649 | C131: 24 | D131: 16662 | E131: 24 | F131: 16671 | K131: 0 | L131: 122
A132: 12 | B132: 16769 | C132: 24 | D132: 16783 | E132: 24 | F132: 16793 | K132: 0 | L132: 122
A133: 12 | B133: 16896 | C133: 24 | D133: 16909 | E133: 24 | F133: 16918 | K133: 0 | L133: 122
A134: 12 | B134: 17021 | C134: 24 | D134: 17035 | E134: 24 | F134: 17092 | K134: 0 | L134: 122
A135: 12 | B135: 17192 | C135: 24 | D135: 17205 | E135: 24 | F135: 17224 | K135: 0 | L135: 122
A136: 12 | B136: 17324 | C136: 24 | D136: 17339 | E136: 24 | F136: 17353 | K136: 0 | L136: 122
A137: 12 | B137: 17452 | C137: 24 | D137: 17464 | E137: 24 | F137: 17486 | K137: 0 | L137: 122
A138: 12 | B138: 17582 | C138: 24 | D138: 17595 | E138: 24 | F138: 17619 | K138: 0 | L138: 122
A139: 12 | B139: 17716 | C139: 24 | D139: 17727 | E139: 24 | F139: 17738 | K139: 0 | L139: 122
A140: 12 | B140: 17840 | C140: 24 | D140: 17854 | E140: 24 | F140: 17864 | K140: 0 | L140: 122
A141: 12 | B141: 17963 | C141: 24 | D141: 17978 | E141: 24 | F141: 17987 | K141: 0 | L141: 122
A142: 12 | B142: 18087 | C142: 24 | D142: 18115 | E142: 24 | F142: 18178 | K142: 0 | L142: 122
A143: 12 | B143: 18281 | C143: 24 | D143: 18299 | E143: 24 | F143: 18311 | K143: 0 | L143: 122
A144: 12 | B144: 18412 | C144: 24 | D144: 18422 | E144: 24 | F144: 18427 | K144: 0 | L144: 122
A145: 21 | B145: 18530 | C145: 22 | D145: 18550 | E145: 24 | F145: 18557 | K145: 0 | L145: 222
A146: 12 | B146: 18658 | C146: 24 | D146: 18668 | E146: 24 | F146: 18703 | K146: 0 | L146: 122
A147: 12 | B147: 18803 | C147: 24 | D147: 18812 | E147: 24 | F147: 18821 | K147: 0 | L147: 122
A148: 12 | B148: 18918 | C148: 24 | D148: 18933 | E148: 24 | F148: 18943 | K148: 0 | L148: 122
A149: 12 | B149: 19047 | C149: 24 | D149: 19057 | E149: 24 | F149: 19063 | K149: 0 | L149: 122
A150: 12 | B150: 19162 | C150: 24 | D150: 19175 | E150: 24 | F150: 19186 | K150: 0 | L150: 122
A151: 12 | B151: 19285 | C151: 24 | D151: 19305 | E151: 24 | F151: 19328 | K151: 0 | L151: 122
A152: 12 | B152: 19423 | C152: 24 | D152: 19442 | E152: 24 | F152: 19455 | K152: 0 | L152: 122
A153: 12 | B153: 19557 | C153: 24 | D153: 19571 | E153: 24 | F153: 19583 | K153: 0 | L153: 122
A154: 12 | B154: 19683 | C154: 24 | D154: 19693 | E154: 24 | F154: 19700 | K154: 0 | L154: 122
A155: 12 | B155: 19799 | C155: 24 | D155: 19812 | E155: 24 | F155: 19818 | K155: 0 | L155: 122
A156: 21 | B156: 19923 | C156: 22 | D156: 19929 | E156: 24 | F156: 19965 | K156: 0 | L156: 222
A157: 12 | B157: 20069 | C157: 24 | D157: 20082 | E157: 24 | F157: 20092 | K157: 0 | L157: 122
A158: 12 | B158: 20196 | C158: 24 | D158: 20209 | E158: 24 | F158: 20217 | K158: 0 | L158: 122
A159: 21 | B159: 20326 | C159: 22 | D159: 20384 | E159: 24 | F159: 20394 | K159: 0 | L159: 222
A160: 12 | B160: 20497 | C160: 24 | D160: 20507 | E160: 24 | F160: 20516 | K160: 0 | L160: 122
A161: 12 | B161: 20613 | C161: 24 | D161: 20626 | E161: 24 | F161: 20634 | K161: 0 | L161: 122
A162: 21 | B162: 20757 | C162: 22 | D162: 20765 | E162: 24 | F162: 20790 | K162: 0 | L162: 222
A163: 21 | B163: 20901 | C163: 22 | D163: 20924 | E163: 24 | F163: 20938 | K163: 0 | L163: 222
A164: 12 | B164: 21036 | C164: 24 | D164: 21050 | E164: 24 | F164: 21061 | K164: 0 | L164: 122
A165: 12 | B165: 21163 | C165: 24 | D165: 21188 | E165: 24 | F165: 21216 | K165: 0 | L165: 122
A166: 12 | B166: 21315 | C166: 24 | D166: 21329 | E166: 24 | F166: 21337 | K166: 0 | L166: 122
A167: 21 | B167: 21459 | C167: 22 | D167: 21468 | E167: 24 | F167: 21477 | K167: 0 | L167: 222
A168: 12 | B168: 21578 | C168: 24 | D168: 21587 | E168: 24 | F168: 21593 | K168: 0 | L168: 122
A169: 21 | B169: 21713 | C169: 22 | D169: 21720 | E169: 24 | F169: 21729 | K169: 0 | L169: 222
A170: 12 | B170: 21835 | C170: 24 | D170: 21847 | E170: 24 | F170: 21880 | K170: 0 | L170: 122
A171: 21 | B171: 22001 | C171: 22 | D171: 22006 | E171: 24 | F171: 22026 | K171: 0 | L171: 222
A172: 21 | B172: 22216 | C172: 22 | D172: 22224 | E172: 24 | F172: 22232 | K172: 0 | L172: 222
A173: 12 | B173: 22331 | C173: 24 | D173: 22343 | E173: 24 | F173: 22364 | K173: 0 | L173: 122
A174: 12 | B174: 22465 | C174: 24 | D174: 22479 | E174: 24 | F174: 22488 | K174: 0 | L174: 122
A175: 21 | B175: 22601 | C175: 22 | D175: 22622 | E175: 24 | F175: 22633 | K175: 0 | L175: 222
A176: 21 | B176: 22734 | C176: 22 | D176: 22743 | E176: 24 | F176: 22754 | K176: 0 | L176: 222
A177: 12 | B177: 22857 | C177: 24 | D177: 22888 | E177: 24 | F177: 22912 | K177: 0 | L177: 122
A178: 12 | B178: 23014 | C178: 24 | D178: 23025 | E178: 24 | F178: 23035 | K178: 0 | L178: 122
A179: 21 | B179: 23148 | C179: 22 | D179: 23155 | E179: 24 | F179: 23168 | K179: 0 | L179: 222
A180: 12 | B180: 23273 | C180: 24 | D180: 23298 | E180: 24 | F180: 23324 | K180: 0 | L180: 122
A181: 21 | B181: 23421 | C181: 22 | D181: 23429 | E181: 24 | F181: 23438 | K181: 0 | L181: 222
A182: 12 | B182: 23538 | C182: 24 | D182: 23550 | E182: 24 | F182: 23557 | K182: 0 | L182: 122
A183: 12 | B183: 23656 | C183: 24 | D183: 23676 | E183: 24 | F183: 23694 | K183: 0 | L183: 122
A184: 21 | B184: 23806 | C184: 22 | D184: 23815 | E184: 24 | F184: 23828 | K184: 0 | L184: 222
A185: 12 | B185: 23926 | C185: 24 | D185: 23942 | E185: 24 | F185: 23948 | L185: 122

Sheet !M923920.091
A1: Report for:!M923920.091
A2: Date: | B2: <date>
A3: Hen: | B3: <hen> | F3: Correct Sequence | G3: =Start!J2 -> 211 | P3: Total Sequences in Data | Q3: =4994-COUNTBLANK(L7:L5000) -> 173 | V3: Total Sequences in Block Data | W3: =COUNTA(L7:L35) -> 29 | AA3: Total Sequences in Block Data | AB3: =COUNTA(L36:L64) -> 29 | AF3: Total Sequences in Block Data | AG3: =COUNTA(L65:L92) -> 28 | AK3: Total Sequences in Block Data | AL3: =COUNTA(L93:L121) -> 29 | AP3: Total Sequences in Block Data | AQ3: =COUNTA(L122:L150) -> 29 | AU3: Total Sequences in Block Data | AV3: =COUNTA(L151:L179) -> 29
P4: Total Sequences in Summary | Q4: =SUM(O7:O14) -> 173 | V4: Total Sequences in Block Summary | W4: =SUM(U7:U14) -> 29 | AA4: Total Sequences in Block Summary | AB4: =SUM(Z7:Z14) -> 29 | AF4: Total Sequences in Block Summary | AG4: =SUM(AE7:AE14) -> 28 | AK4: Total Sequences in Block Summary | AL4: =SUM(AJ7:AJ14) -> 29 | AP4: Total Sequences in Block Summary | AQ4: =SUM(AO7:AO14) -> 29 | AU4: Total Sequences in Block Summary | AV4: =SUM(AT7:AT14) -> 29
T5: Block 1 | Y5: Block 2 | AD5: Block 3 | AI5: Block 4 | AN5: Block 5 | AS5: Block 6
A6: Sequence Component 1 | B6: Time 1 | C6: Sequence Component 2 | D6: Time 2 | E6: Sequence Component 3 | F6: Time 3 | G6: Sequence Component 4 | H6: Time 4 | I6: Sequence Component 5 | J6: Time 5 | K6: Correct? 0=No 1=Yes | L6: Sequence | N6: Frequency | P6: Relative Frequency | Q6: Variability | T6: Frequency | V6: Relative Frequency | W6: Variability | Y6: Frequency | AA6: Relative Frequency | AB6: Variability | AD6: Frequency | AF6: Relative Frequency | AG6: Variability | AI6: Frequency | AK6: Relative Frequency | AL6: Variability | AN6: Frequency | AP6: Relative Frequency | AQ6: Variability | AS6: Frequency | AU6: Relative Frequency | AV6: Variability
A7: 21 | B7: 43 | C7: 22 | D7: 53 | E7: 24 | F7: 68 | K7: 0 | L7: 222 | N7: 111 | O7: =COUNTIF($L$7:$L$500,N7) -> 2 | P7: =O7/$Q$4 -> 0.01156069364 | Q7: =IF(P7=0,0,(P7*((LOG(P7))/LOG(2)))) -> -0.07438876564 | T7: =N7 -> 111 | U7: =COUNTIF(L7:L35,T7) -> 1 | V7: =U7/(W4-U11) -> 0.03448275862 | W7: =IF(V7=0,0,(V7*((LOG(V7))/LOG(2)))) -> -0.167516586 | Y7: =N7 -> 111 | Z7: =COUNTIF(L36:L64,Y7) -> 0 | AA7: =Z7/(AB4-Z11) -> 0 | AB7: =IF(AA7=0,0,(AA7*((LOG(AA7))/LOG(2)))) -> 0 | AD7: =N7 -> 111 | AE7: =COUNTIF(L65:L92,AD7) -> 0 | AF7: =AE7/(AG4-AE11) -> 0 | AG7: =IF(AF7=0,0,(AF7*((LOG(AF7))/LOG(2)))) -> 0 | AI7: =N7 -> 111 | AJ7: =COUNTIF(L93:L121,AI7) -> 0 | AK7: =AJ7/(AL4-AJ11) -> 0 | AL7: =IF(AK7=0,0,(AK7*((LOG(AK7))/LOG(2)))) -> 0 | AN7: =N7 -> 111 | AO7: =COUNTIF(L122:L150,AN7) -> 0 | AP7: =AO7/(AQ4-AO11) -> 0 | AQ7: =IF(AP7=0,0,(AP7*((LOG(AP7))/LOG(2)))) -> 0 | AS7: =N7 -> 111 | AT7: =COUNTIF(L151:L179,AS7) -> 1 | AU7: =AT7/(AV4-AT11) -> 0.03448275862 | AV7: =IF(AU7=0,0,(AU7*((LOG(AU7))/LOG(2)))) -> -0.167516586
A8: 21 | B8: 172 | C8: 22 | D8: 225 | E8: 24 | F8: 234 | K8: 0 | L8: 222 | N8: 112 | O8: =COUNTIF($L$7:$L$500,N8) -> 12 | P8: =O8/$Q$4 -> 0.06936416185 | Q8: =IF(P8=0,0,(P8*((LOG(P8))/LOG(2)))) -> -0.2670288365 | T8: =N8 -> 112 | U8: =COUNTIF(L7:L35,T8) -> 1 | V8: =U8/(W4-U11) -> 0.03448275862 | W8: =IF(V8=0,0,(V8*((LOG(V8))/LOG(2)))) -> -0.167516586 | Y8: =N8 -> 112 | Z8: =COUNTIF(L36:L64,Y8) -> 2 | AA8: =Z8/(AB4-Z11) -> 0.06896551724 | AB8: =IF(AA8=0,0,(AA8*((LOG(AA8))/LOG(2)))) -> -0.2660676548 | AD8: =N8 -> 112 | AE8: =COUNTIF(L65:L92,AD8) -> 0 | AF8: =AE8/(AG4-AE11) -> 0 | AG8: =IF(AF8=0,0,(AF8*((LOG(AF8))/LOG(2)))) -> 0 | AI8: =N8 -> 112 | AJ8: =COUNTIF(L93:L121,AI8) -> 0 | AK8: =AJ8/(AL4-AJ11) -> 0 | AL8: =IF(AK8=0,0,(AK8*((LOG(AK8))/LOG(2)))) -> 0 | AN8: =N8 -> 112 | AO8: =COUNTIF(L122:L150,AN8) -> 3 | AP8: =AO8/(AQ4-AO11) -> 0.1034482759 | AQ8: =IF(AP8=0,0,(AP8*((LOG(AP8))/LOG(2)))) -> -0.3385881201 | AS8: =N8 -> 112 | AT8: =COUNTIF(L151:L179,AS8) -> 6 | AU8: =AT8/(AV4-AT11) -> 0.2068965517 | AV8: =IF(AU8=0,0,(AU8*((LOG(AU8))/LOG(2)))) -> -0.4702796885
A9: 12 | B9: 338 | C9: 24 | D9: 362 | E9: 24 | F9: 372 | K9: 0 | L9: 122 | N9: 121 | O9: =COUNTIF($L$7:$L$500,N9) -> 0 | P9: =O9/$Q$4 -> 0 | Q9: =IF(P9=0,0,(P9*((LOG(P9))/LOG(2)))) -> 0 | T9: =N9 -> 121 | U9: =COUNTIF(L7:L35,T9) -> 0 | V9: =U9/(W4-U11) -> 0 | W9: =IF(V9=0,0,(V9*((LOG(V9))/LOG(2)))) -> 0 | Y9: =N9 -> 121 | Z9: =COUNTIF(L36:L64,Y9) -> 0 | AA9: =Z9/(AB4-Z11) -> 0 | AB9: =IF(AA9=0,0,(AA9*((LOG(AA9))/LOG(2)))) -> 0 | AD9: =N9 -> 121 | AE9: =COUNTIF(L65:L92,AD9) -> 0 | AF9: =AE9/(AG4-AE11) -> 0 | AG9: =IF(AF9=0,0,(AF9*((LOG(AF9))/LOG(2)))) -> 0 | AI9: =N9 -> 121 | AJ9: =COUNTIF(L93:L121,AI9) -> 0 | AK9: =AJ9/(AL4-AJ11) -> 0 | AL9: =IF(AK9=0,0,(AK9*((LOG(AK9))/LOG(2)))) -> 0 | AN9: =N9 -> 121 | AO9: =COUNTIF(L122:L150,AN9) -> 0 | AP9: =AO9/(AQ4-AO11) -> 0 | AQ9: =IF(AP9=0,0,(AP9*((LOG(AP9))/LOG(2)))) -> 0 | AS9: =N9 -> 121 | AT9: =COUNTIF(L151:L179,AS9) -> 0 | AU9: =AT9/(AV4-AT11) -> 0 | AV9: =IF(AU9=0,0,(AU9*((LOG(AU9))/LOG(2)))) -> 0
A10: 12 | B10: 471 | C10: 24 | D10: 484 | E10: 24 | F10: 493 | K10: 0 | L10: 122 | N10: 122 | O10: =COUNTIF($L$7:$L$500,N10) -> 118 | P10: =O10/$Q$4 -> 0.6820809249 | Q10: =IF(P10=0,0,(P10*((LOG(P10))/LOG(2)))) -> -0.3764985609 | T10: =N10 -> 122 | U10: =COUNTIF(L7:L35,T10) -> 21 | V10: =U10/(W4-U11) -> 0.724137931 | W10: =IF(V10=0,0,(V10*((LOG(V10))/LOG(2)))) -> -0.3372046558 | Y10: =N10 -> 122 | Z10: =COUNTIF(L36:L64,Y10) -> 20 | AA10: =Z10/(AB4-Z11) -> 0.6896551724 | AB10: =IF(AA10=0,0,(AA10*((LOG(AA10))/LOG(2)))) -> -0.3696916553 | AD10: =N10 -> 122 | AE10: =COUNTIF(L65:L92,AD10) -> 24 | AF10: =AE10/(AG4-AE11) -> 0.8571428571 | AG10: =IF(AF10=0,0,(AF10*((LOG(AF10))/LOG(2)))) -> -0.1906220754 | AI10: =N10 -> 122 | AJ10: =COUNTIF(L93:L121,AI10) -> 19 | AK10: =AJ10/(AL4-AJ11) -> 0.6551724138 | AL10: =IF(AK10=0,0,(AK10*((LOG(AK10))/LOG(2)))) -> -0.3996902121 | AN10: =N10 -> 122 | AO10: =COUNTIF(L122:L150,AN10) -> 17 | AP10: =AO10/(AQ4-AO11) -> 0.5862068966 | AQ10: =IF(AP10=0,0,(AP10*((LOG(AP10))/LOG(2)))) -> -0.4516830557 | AS10: =N10 -> 122 | AT10: =COUNTIF(L151:L179,AS10) -> 17 | AU10: =AT10/(AV4-AT11) -> 0.5862068966 | AV10: =IF(AU10=0,0,(AU10*((LOG(AU10))/LOG(2)))) -> -0.4516830557
A11: 12 | B11: 593 | C11: 24 | D11: 607 | E11: 24 | F11: 653 | K11: 0 | L11: 122 | N11: 211 | O11: =COUNTIF($L$7:$L$500,N11) -> 0 | P11: =O11/$Q$4 -> 0 | Q11: =IF(P11=0,0,(P11*((LOG(P11))/LOG(2)))) -> 0 | T11: =N11 -> 211 | U11: =COUNTIF(L7:L35,T11) -> 0 | Y11: =N11 -> 211 | Z11: =COUNTIF(L36:L64,Y11) -> 0 | AD11: =N11 -> 211 | AE11: =COUNTIF(L65:L92,AD11) -> 0 | AI11: =N11 -> 211 | AJ11: =COUNTIF(L93:L121,AI11) -> 0 | AN11: =N11 -> 211 | AO11: =COUNTIF(L122:L150,AN11) -> 0 | AS11: =N11 -> 211 | AT11: =COUNTIF(L151:L179,AS11) -> 0
A12: 21 | B12: 812 | C12: 22 | D12: 822 | E12: 24 | F12: 833 | K12: 0 | L12: 222 | N12: 212 | O12: =COUNTIF($L$7:$L$500,N12) -> 0 | P12: =O12/$Q$4 -> 0 | Q12: =IF(P12=0,0,(P12*((LOG(P12))/LOG(2)))) -> 0 | T12: =N12 -> 212 | U12: =COUNTIF(L7:L35,T12) -> 0 | V12: =U12/(W4-U11) -> 0 | W12: =IF(V12=0,0,(V12*((LOG(V12))/LOG(2)))) -> 0 | Y12: =N12 -> 212 | Z12: =COUNTIF(L36:L64,Y12) -> 0 | AA12: =Z12/(AB4-Z11) -> 0 | AB12: =IF(AA12=0,0,(AA12*((LOG(AA12))/LOG(2)))) -> 0 | AD12: =N12 -> 212 | AE12: =COUNTIF(L65:L92,AD12) -> 0 | AF12: =AE12/(AG4-AE11) -> 0 | AG12: =IF(AF12=0,0,(AF12*((LOG(AF12))/LOG(2)))) -> 0 | AI12: =N12 -> 212 | AJ12: =COUNTIF(L93:L121,AI12) -> 0 | AK12: =AJ12/(AL4-AJ11) -> 0 | AL12: =IF(AK12=0,0,(AK12*((LOG(AK12))/LOG(2)))) -> 0 | AN12: =N12 -> 212 | AO12: =COUNTIF(L122:L150,AN12) -> 0 | AP12: =AO12/(AQ4-AO11) -> 0 | AQ12: =IF(AP12=0,0,(AP12*((LOG(AP12))/LOG(2)))) -> 0 | AS12: =N12 -> 212 | AT12: =COUNTIF(L151:L179,AS12) -> 0 | AU12: =AT12/(AV4-AT11) -> 0 | AV12: =IF(AU12=0,0,(AU12*((LOG(AU12))/LOG(2)))) -> 0
A13: 21 | B13: 952 | C13: 22 | D13: 959 | E13: 24 | F13: 978 | K13: 0 | L13: 222 | N13: 221 | O13: =COUNTIF($L$7:$L$500,N13) -> 0 | P13: =O13/$Q$4 -> 0 | Q13: =IF(P13=0,0,(P13*((LOG(P13))/LOG(2)))) -> 0 | T13: =N13 -> 221 | U13: =COUNTIF(L7:L35,T13) -> 0 | V13: =U13/(W4-U11) -> 0 | W13: =IF(V13=0,0,(V13*((LOG(V13))/LOG(2)))) -> 0 | Y13: =N13 -> 221 | Z13: =COUNTIF(L36:L64,Y13) -> 0 | AA13: =Z13/(AB4-Z11) -> 0 | AB13: =IF(AA13=0,0,(AA13*((LOG(AA13))/LOG(2)))) -> 0 | AD13: =N13 -> 221 | AE13: =COUNTIF(L65:L92,AD13) -> 0 | AF13: =AE13/(AG4-AE11) -> 0 | AG13: =IF(AF13=0,0,(AF13*((LOG(AF13))/LOG(2)))) -> 0 | AI13: =N13 -> 221 | AJ13: =COUNTIF(L93:L121,AI13) -> 0 | AK13: =AJ13/(AL4-AJ11) -> 0 | AL13: =IF(AK13=0,0,(AK13*((LOG(AK13))/LOG(2)))) -> 0 | AN13: =N13 -> 221 | AO13: =COUNTIF(L122:L150,AN13) -> 0 | AP13: =AO13/(AQ4-AO11) -> 0 | AQ13: =IF(AP13=0,0,(AP13*((LOG(AP13))/LOG(2)))) -> 0 | AS13: =N13 -> 221 | AT13: =COUNTIF(L151:L179,AS13) -> 0 | AU13: =AT13/(AV4-AT11) -> 0 | AV13: =IF(AU13=0,0,(AU13*((LOG(AU13))/LOG(2)))) -> 0
A14: 21 | B14: 1104 | C14: 22 | D14: 1114 | E14: 24 | F14: 1126 | K14: 0 | L14: 222 | N14: 222 | O14: =COUNTIF($L$7:$L$500,N14) -> 41 | P14: =O14/$Q$4 -> 0.2369942197 | Q14: =IF(P14=0,0,(P14*((LOG(P14))/LOG(2)))) -> -0.4922550586 | T14: =N14 -> 222 | U14: =COUNTIF(L7:L35,T14) -> 6 | V14: =U14/(W4-U11) -> 0.2068965517 | W14: =IF(V14=0,0,(V14*((LOG(V14))/LOG(2)))) -> -0.4702796885 | Y14: =N14 -> 222 | Z14: =COUNTIF(L36:L64,Y14) -> 7 | AA14: =Z14/(AB4-Z11) -> 0.2413793103 | AB14: =IF(AA14=0,0,(AA14*((LOG(AA14))/LOG(2)))) -> -0.4949787073 | AD14: =N14 -> 222 | AE14: =COUNTIF(L65:L92,AD14) -> 4 | AF14: =AE14/(AG4-AE11) -> 0.1428571429 | AG14: =IF(AF14=0,0,(AF14*((LOG(AF14))/LOG(2)))) -> -0.4010507032 | AI14: =N14 -> 222 | AJ14: =COUNTIF(L93:L121,AI14) -> 10 | AK14: =AJ14/(AL4-AJ11) -> 0.3448275862 | AL14: =IF(AK14=0,0,(AK14*((LOG(AK14))/LOG(2)))) -> -0.5296734139 | AN14: =N14 -> 222 | AO14: =COUNTIF(L122:L150,AN14) -> 9 | AP14: =AO14/(AQ4-AO11) -> 0.3103448276 | AQ14: =IF(AP14=0,0,(AP14*((LOG(AP14))/LOG(2)))) -> -0.5238794463 | AS14: =N14 -> 222 | AT14: =COUNTIF(L151:L179,AS14) -> 5 | AU14: =AT14/(AV4-AT11) -> 0.1724137931 | AV14: =IF(AU14=0,0,(AU14*((LOG(AU14))/LOG(2)))) -> -0.4372505
A15: 12 | B15: 1234 | C15: 13 | D15: 1264 | E15: 13 | F15: 1312 | K15: 0 | L15: 111 | P15: =SUM(P7:P14) -> 1 | Q15: =-SUM(Q7:Q14) -> 1.210171222 | V15: =SUM(V7:V14) -> 1 | W15: =-SUM(W7:W14) -> 1.142517516 | AA15: =SUM(AA7:AA14) -> 1 | AB15: =-SUM(AB7:AB14) -> 1.130738017 | AF15: =SUM(AF7:AF14) -> 1 | AG15: =-SUM(AG7:AG14) -> 0.5916727786 | AK15: =SUM(AK7:AK14) -> 1 | AL15: =-SUM(AL7:AL14) -> 0.929363626 | AP15: =SUM(AP7:AP14) -> 1 | AQ15: =-SUM(AQ7:AQ14) -> 1.314150622 | AU15: =SUM(AU7:AU14) -> 1 | AV15: =-SUM(AV7:AV14) -> 1.52672983
A16: 12 | B16: 1416 | C16: 24 | D16: 1431 | E16: 24 | F16: 1443 | K16: 0 | L16: 122 | P16: U= | Q16: =Q15/(LOG(Q4)/LOG(2)) -> 0.1627749478 | V16: U1= | W16: =W15/(LOG(W4)/LOG(2)) -> 0.2351836118 | AA16: U2= | AB16: =AB15/(LOG(AB4)/LOG(2)) -> 0.2327588392 | AF16: U3= | AG16: =AG15/(LOG(AG4)/LOG(2)) -> 0.123076575 | AK16: U4= | AL16: =AL15/(LOG(AL4)/LOG(2)) -> 0.1913065586 | AP16: U5= | AQ16: =AQ15/(LOG(AQ4)/LOG(2)) -> 0.2705137429 | AU16: U6= | AV16: =AV15/(LOG(AV4)/LOG(2)) -> 0.3142724996
A17: 12 | B17: 1548 | C17: 24 | D17: 1562 | E17: 24 | F17: 1571 | K17: 0 | L17: 122
A18: 12 | B18: 1671 | C18: 13 | D18: 1681 | E18: 24 | F18: 1699 | K18: 0 | L18: 112
A19: 12 | B19: 1803 | C19: 24 | D19: 1821 | E19: 24 | F19: 1851 | K19: 0 | L19: 122 | N19: Total Target Seq
A20: 21 | B20: 1987 | C20: 22 | D20: 1996 | E20: 24 | F20: 2009 | K20: 0 | L20: 222 | N20: =COUNTIF(L7:L179,G3) -> 0 | P20: 29 | Q20: 29 | R20: 28 | S20: 29 | T20: 29 | U20: 29
A21: 12 | B21: 2112 | C21: 24 | D21: 2125 | E21: 24 | F21: 2132 | K21: 0 | L21: 122 | P21: % of reinforcement given in 6 equal intervals based on number of trials
A22: 12 | B22: 2238 | C22: 24 | D22: 2254 | E22: 24 | F22: 2264 | K22: 0 | L22: 122 | P22: %_1 | Q22: %_2 | R22: %_3 | S22: %_4 | T22: %_5 | U22: %_6
A23: 12 | B23: 2368 | C23: 24 | D23: 2384 | E23: 24 | F23: 2409 | K23: 0 | L23: 122 | O23: target sequence | P23: =$G$3 -> 211 | Q23: =$G$3 -> 211 | R23: =$G$3 -> 211 | S23: =$G$3 -> 211 | T23: =$G$3 -> 211 | U23: =$G$3 -> 211
A24: 12 | B24: 2502 | C24: 24 | D24: 2516 | E24: 24 | F24: 2523 | K24: 0 | L24: 122 | O24: total reinforcement | P24: =U11 -> 0 | Q24: =Z11 -> 0 | R24: =AE11 -> 0 | S24: =AJ11 -> 0 | T24: =AO11 -> 0 | U24: =AT11 -> 0
A25: 12 | B25: 2623 | C25: 24 | D25: 2638 | E25: 24 | F25: 2659 | K25: 0 | L25: 122 | O25: % target
A26: 12 | B26: 2758 | C26: 24 | D26: 2773 | E26: 24 | F26: 2782 | K26: 0 | L26: 122 | O26: CCRF
A27: 12 | B27: 2878 | C27: 24 | D27: 2890 | E27: 24 | F27: 2896 | K27: 0 | L27: 122 | O27: % CCRf
A28: 12 | B28: 2993 | C28: 24 | D28: 3019 | E28: 24 | F28: 3033 | K28: 0 | L28: 122 | O28: average response rate | P28: =F35/P20 -> 137.3793103 | Q28: =(F64-F35)/Q20 -> 135.9310345 | R28: =(F92-F64)/R20 -> 135.8571429 | S28: =(F121-F92)/S20 -> 136.2068966 | T28: =(F150-F121)/T20 -> 143.3448276 | U28: =(F179-F150)/U20 -> 141.0689655
A29: 12 | B29: 3131 | C29: 24 | D29: 3147 | E29: 24 | F29: 3170 | K29: 0 | L29: 122
A30: 12 | B30: 3269 | C30: 24 | D30: 3285 | E30: 24 | F30: 3293 | K30: 0 | L30: 122
A31: 12 | B31: 3392 | C31: 24 | D31: 3407 | E31: 24 | F31: 3432 | K31: 0 | L31: 122
A32: 12 | B32: 3532 | C32: 24 | D32: 3548 | E32: 24 | F32: 3606 | K32: 0 | L32: 122
A33: 12 | B33: 3707 | C33: 24 | D33: 3721 | E33: 24 | F33: 3739 | K33: 0 | L33: 122
A34: 12 | B34: 3837 | C34: 24 | D34: 3853 | E34: 24 | F34: 3859 | K34: 0 | L34: 122
A35: 12 | B35: 3961 | C35: 24 | D35: 3978 | E35: 24 | F35: 3984 | K35: 0 | L35: 122
A36: 12 | B36: 4085 | C36: 24 | D36: 4100 | E36: 24 | F36: 4121 | K36: 0 | L36: 122
A37: 12 | B37: 4219 | C37: 24 | D37: 4232 | E37: 24 | F37: 4253 | K37: 0 | L37: 122
A38: 12 | B38: 4354 | C38: 24 | D38: 4366 | E38: 24 | F38: 4373 | K38: 0 | L38: 122
A39: 12 | B39: 4474 | C39: 24 | D39: 4489 | E39: 24 | F39: 4497 | K39: 0 | L39: 122
A40: 12 | B40: 4595 | C40: 24 | D40: 4609 | E40: 24 | F40: 4631 | K40: 0 | L40: 122
A41: 12 | B41: 4732 | C41: 24 | D41: 4746 | E41: 24 | F41: 4753 | K41: 0 | L41: 122
A42: 12 | B42: 4859 | C42: 24 | D42: 4879 | E42: 24 | F42: 4912 | K42: 0 | L42: 122
A43: 12 | B43: 5013 | C43: 24 | D43: 5030 | E43: 24 | F43: 5057 | K43: 0 | L43: 122
A44: 12 | B44: 5150 | C44: 24 | D44: 5163 | E44: 24 | F44: 5200 | K44: 0 | L44: 122
A45: 12 | B45: 5310 | C45: 24 | D45: 5329 | E45: 24 | F45: 5379 | K45: 0 | L45: 122
A46: 12 | B46: 5483 | C46: 24 | D46: 5502 | E46: 24 | F46: 5534 | K46: 0 | L46: 122
A47: 21 | B47: 5652 | C47: 22 | D47: 5670 | E47: 24 | F47: 5682 | K47: 0 | L47: 222
A48: 12 | B48: 5784 | C48: 24 | D48: 5796 | E48: 24 | F48: 5813 | K48: 0 | L48: 122
A49: 12 | B49: 5914 | C49: 24 | D49: 5932 | E49: 24 | F49: 5939 | K49: 0 | L49: 122
A50: 12 | B50: 6037 | C50: 13 | D50: 6038 | E50: 24 | F50: 6054 | K50: 0 | L50: 112
A51: 12 | B51: 6148 | C51: 24 | D51: 6177 | E51: 24 | F51: 6205 | K51: 0 | L51: 122
A52: 12 | B52: 6304 | C52: 24 | D52: 6319 | E52: 24 | F52: 6327 | K52: 0 | L52: 122
A53: 12 | B53: 6427 | C53: 24 | D53: 6442 | E53: 24 | F53: 6453 | K53: 0 | L53: 122
A54: 12 | B54: 6553 | C54: 24 | D54: 6571 | E54: 24 | F54: 6580 | K54: 0 | L54: 122
A55: 12 | B55: 6678 | C55: 13 | D55: 6680 | E55: 24 | F55: 6712 | K55: 0 | L55: 112
A56: 21 | B56: 6828 | C56: 22 | D56: 6838 | E56: 24 | F56: 6848 | K56: 0 | L56: 222
A57: 21 | B57: 6971 | C57: 22 | D57: 6979 | E57: 24 | F57: 6992 | K57: 0 | L57: 222
A58: 21 | B58: 7102 | C58: 22 | D58: 7108 | E58: 24 | F58: 7144 | K58: 0 | L58: 222
A59: 12 | B59: 7244 | C59: 24 | D59: 7257 | E59: 24 | F59: 7264 | K59: 0 | L59: 122
A60: 21 | B60: 7378 | C60: 22 | D60: 7384 | E60: 24 | F60: 7392 | K60: 0 | L60: 222
A61: 12 | B61: 7494 | C61: 24 | D61: 7510 | E61: 24 | F61: 7520 | K61: 0 | L61: 122
A62: 21 | B62: 7625 | C62: 22 | D62: 7635 | E62: 24 | F62: 7649 | K62: 0 | L62: 222
A63: 12 | B63: 7747 | C63: 24 | D63: 7761 | E63: 24 | F63: 7770 | K63: 0 | L63: 122
A64: 21 | B64: 7886 | C64: 22 | D64: 7912 | E64: 24 | F64: 7926 | K64: 0 | L64: 222
A65: 12 | B65: 8026 | C65: 24 | D65: 8040 | E65: 24 | F65: 8048 | K65: 0 | L65: 122
A66: 12 | B66: 8148 | C66: 24 | D66: 8163 | E66: 24 | F66: 8194 | K66: 0 | L66: 122
A67: 12 | B67: 8288 | C67: 24 | D67: 8301 | E67: 24 | F67: 8332 | K67: 0 | L67: 122
A68: 12 | B68: 8430 | C68: 24 | D68: 8443 | E68: 24 | F68: 8455 | K68: 0 | L68: 122
A69: 12 | B69: 8558 | C69: 24 | D69: 8573 | E69: 24 | F69: 8583 | K69: 0 | L69: 122
A70: 21 | B70: 8722 | C70: 22 | D70: 8736 | E70: 24 | F70: 8744 | K70: 0 | L70: 222
A71: 12 | B71: 8836 | C71: 24 | D71: 8849 | E71: 24 | F71: 8856 | K71: 0 | L71: 122
A72: 12 | B72: 8954 | C72: 24 | D72: 8967 | E72: 24 | F72: 8984 | K72: 0 | L72: 122
A73: 12 | B73: 9082 | C73: 24 | D73: 9101 | E73: 24 | F73: 9110 | K73: 0 | L73: 122
A74: 12 | B74: 9208 | C74: 24 | D74: 9224 | E74: 24 | F74: 9233 | K74: 0 | L74: 122
A75: 12 | B75: 9332 | C75: 24 | D75: 9376 | E75: 24 | F75: 9404 | K75: 0 | L75: 122
A76: 12 | B76: 9513 | C76: 24 | D76: 9527 | E76: 24 | F76: 9533 | K76: 0 | L76: 122
A77: 21 | B77: 9640 | C77: 22 | D77: 9645 | E77: 24 | F77: 9671 | K77: 0 | L77: 222
A78: 12 | B78: 9767 | C78: 24 | D78: 9788 | E78: 24 | F78: 9817 | K78: 0 | L78: 122
A79: 21 | B79: 9930 | C79: 22 | D79: 9935 | E79: 24 | F79: 9943 | K79: 0 | L79: 222
A80: 12 | B80: 10040 | C80: 24 | D80: 10054 | E80: 24 | F80: 10073 | K80: 0 | L80: 122
A81: 21 | B81: 10180 | C81: 22 | D81: 10236 | E81: 24 | F81: 10252 | K81: 0 | L81: 222
A82: 12 | B82: 10349 | C82: 24 | D82: 10364 | E82: 24 | F82: 10378 | K82: 0 | L82: 122
A83: 12 | B83: 10477 | C83: 24 | D83: 10492 | E83: 24 | F83: 10514 | K83: 0 | L83: 122
A84: 12 | B84: 10613 | C84: 24 | D84: 10627 | E84: 24 | F84: 10632 | K84: 0 | L84: 122
A85: 12 | B85: 10731 | C85: 24 | D85: 10745 | E85: 24 | F85: 10752 | K85: 0 | L85: 122
A86: 12 | B86: 10856 | C86: 24 | D86: 10870 | E86: 24 | F86: 10885 | K86: 0 | L86: 122
A87: 12 | B87: 10985 | C87: 24 | D87: 11000 | E87: 24 | F87: 11029 | K87: 0 | L87: 122
A88: 12 | B88: 11131 | C88: 24 | D88: 11144 | E88: 24 | F88: 11197 | K88: 0 | L88: 122
A89: 12 | B89: 11293 | C89: 24 | D89: 11317 | E89: 24 | F89: 11324 | K89: 0 | L89: 122
A90: 12 | B90: 11422 | C90: 24 | D90: 11432 | E90: 24 | F90: 11438 | K90: 0 | L90: 122
A91: 12 | B91: 11536 | C91: 24 | D91: 11550 | E91: 24 | F91: 11573 | K91: 0 | L91: 122
A92: 12 | B92: 11677 | C92: 24 | D92: 11692 | E92: 24 | F92: 11730 | K92: 0 | L92: 122
A93: 12 | B93: 11829 | C93: 24 | D93: 11843 | E93: 24 | F93: 11849 | K93: 0 | L93: 122
A94: 12 | B94: 11948 | C94: 24 | D94: 11962 | E94: 24 | F94: 11970 | K94: 0 | L94: 122
A95: 12 | B95: 12073 | C95: 24 | D95: 12086 | E95: 24 | F95: 12119 | K95: 0 | L95: 122
A96: 12 | B96: 12217 | C96: 24 | D96: 12232 | E96: 24 | F96: 12240 | K96: 0 | L96: 122
A97: 12 | B97: 12340 | C97: 24 | D97: 12355 | E97: 24 | F97: 12372 | K97: 0 | L97: 122
A98: 21 | B98: 12483 | C98: 22 | D98: 12490 | E98: 24 | F98: 12514 | K98: 0 | L98: 222
A99: 12 | B99: 12611 | C99: 24 | D99: 12626 | E99: 24 | F99: 12632 | K99: 0 | L99: 122
A100: 12 | B100: 12731 | C100: 24 | D100: 12745 | E100: 24 | F100: 12754 | K100: 0 | L100: 122
A101: 12 | B101: 12853 | C101: 24 | D101: 12865 | E101: 24 | F101: 12871 | K101: 0 | L101: 122
A102: 12 | B102: 12970 | C102: 24 | D102: 12983 | E102: 24 | F102: 13029 | K102: 0 | L102: 122
A103: 12 | B103: 13132 | C103: 24 | D103: 13149 | E103: 24 | F103: 13158 | K103: 0 | L103: 122
A104: 12 | B104: 13258 | C104: 24 | D104: 13278 | E104: 24 | F104: 13299 | K104: 0 | L104: 122
A105: 12 | B105: 13406 | C105: 24 | D105: 13421 | E105: 24 | F105: 13441 | K105: 0 | L105: 122
A106: 21 | B106: 13547 | C106: 22 | D106: 13563 | E106: 24 | F106: 13572 | K106: 0 | L106: 222
A107: 21 | B107: 13688 | C107: 22 | D107: 13699 | E107: 24 | F107: 13713 | K107: 0 | L107: 222
A108: 12 | B108: 13812 | C108: 24 | D108: 13826 | E108: 24 | F108: 13852 | K108: 0 | L108: 122
A109: 21 | B109: 13973 | C109: 22 | D109: 13984 | E109: 24 | F109: 14000 | K109: 0 | L109: 222
A110: 21 | B110: 14132 | C110: 22 | D110: 14198 | E110: 24 | F110: 14217 | K110: 0 | L110: 222
A111: 12 | B111: 14317 | C111: 24 | D111: 14331 | E111: 24 | F111: 14354 | K111: 0 | L111: 122
A112: 21 | B112: 14469 | C112: 22 | D112: 14489 | E112: 24 | F112: 14498 | K112: 0 | L112: 222
A113: 21 | B113: 14614 | C113: 22 | D113: 14631 | E113: 24 | F113: 14641 | K113: 0 | L113: 222
A114: 21 | B114: 14750 | C114: 22 | D114: 14756 | E114: 24 | F114: 14765 | K114: 0 | L114: 222
A115: 12 | B115: 14870 | C115: 24 | D115: 14884 | E115: 24 | F115: 14891 | K115: 0 | L115: 122
A116: 12 | B116: 14993 | C116: 24 | D116: 15006 | E116: 24 | F116: 15024 | K116: 0 | L116: 122
A117: 21 | B117: 15136 | C117: 22 | D117: 15146 | E117: 24 | F117: 15159 | K117: 0 | L117: 222
A118: 21 | B118: 15278 | C118: 22 | D118: 15308 | E118: 24 | F118: 15321 | K118: 0 | L118: 222
A119: 12 | B119: 15418 | C119: 24 | D119: 15432 | E119: 24 | F119: 15438 | K119: 0 | L119: 122
A120: 12 | B120: 15538 | C120: 24 | D120: 15549 | E120: 24 | F120: 15555 | K120: 0 | L120: 122
A121: 12 | B121: 15654 | C121: 24 | D121: 15670 | E121: 24 | F121: 15680 | K121: 0 | L121: 122
A122: 21 | B122: 15783 | C122: 22 | D122: 15789 | E122: 24 | F122: 15824 | K122: 0 | L122: 222
A123: 12 | B123: 15919 | C123: 24 | D123: 15931 | E123: 24 | F123: 15946 | K123: 0 | L123: 122
A124: 12 | B124: 16044 | C124: 24 | D124: 16057 | E124: 24 | F124: 16073 | K124: 0 | L124: 122
A125: 12 | B125: 16173 | C125: 24 | D125: 16187 | E125: 24 | F125: 16209 | K125: 0 | L125: 122
A126: 12 | B126: 16309 | C126: 24 | D126: 16329 | E126: 24 | F126: 16338 | K126: 0 | L126: 122
A127: 21 | B127: 16464 | C127: 22 | D127: 16471 | E127: 24 | F127: 16499 | K127: 0 | L127: 222
A128: 12 | B128: 16599 | C128: 13 | D128: 16610 | E128: 24 | F128: 16623 | K128: 0 | L128: 112
A129: 12 | B129: 16721 | C129: 24 | D129: 16735 | E129: 24 | F129: 16740 | K129: 0 | L129: 122
A130: 12 | B130: 16841 | C130: 24 | D130: 16856 | E130: 24 | F130: 16895 | K130: 0 | L130: 122
A131: 21 | B131: 17009 | C131: 22 | D131: 17019 | E131: 24 | F131: 17040 | K131: 0 | L131: 222
A132: 12 | B132: 17133 | C132: 24 | D132: 17145 | E132: 24 | F132: 17155 | K132: 0 | L132: 122
A133: 21 | B133: 17260 | C133: 22 | D133: 17265 | E133: 24 | F133: 17274 | K133: 0 | L133: 222
A134: 21 | B134: 17494 | C134: 22 | D134: 17526 | E134: 24 | F134: 17553 | K134: 0 | L134: 222
A135: 21 | B135: 17662 | C135: 22 | D135: 17669 | E135: 24 | F135: 17677 | K135: 0 | L135: 222
A136: 12 | B136: 17784 | C136: 24 | D136: 17801 | E136: 24 | F136: 17807 | K136: 0 | L136: 122
A137: 12 | B137: 17910 | C137: 24 | D137: 17929 | E137: 24 | F137: 17950 | K137: 0 | L137: 122
A138: 12 | B138: 18049 | C138: 24 | D138: 18064 | E138: 24 | F138: 18069 | K138: 0 | L138: 122
A139: 12 | B139: 18172 | C139: 24 | D139: 18185 | E139: 24 | F139: 18191 | K139: 0 | L139: 122
A140: 21 | B140: 18304 | C140: 22 | D140: 18311 | E140: 24 | F140: 18322 | K140: 0 | L140: 222
A141: 12 | B141: 18427 | C141: 13 | D141: 18443 | E141: 24 | F141: 18471 | K141: 0 | L141: 112
A142: 12 | B142: 18577 | C142: 24 | D142: 18610 | E142: 24 | F142: 18638 | K142: 0 | L142: 122
A143: 12 | B143: 18733 | C143: 24 | D143: 18747 | E143: 24 | F143: 18771 | K143: 0 | L143: 122
A144: 12 | B144: 18867 | C144: 24 | D144: 18880 | E144: 24 | F144: 18886 | K144: 0 | L144: 122
A145: 21 | B145: 18999 | C145: 22 | D145: 19009 | E145: 24 | F145: 19089 | K145: 0 | L145: 222
A146: 12 | B146: 19187 | C146: 13 | D146: 19196 | E146: 24 | F146: 19211 | K146: 0 | L146: 112
A147: 12 | B147: 19326 | C147: 24 | D147: 19341 | E147: 24 | F147: 19368 | K147: 0 | L147: 122
A148: 12 | B148: 19485 | C148: 24 | D148: 19497 | E148: 24 | F148: 19504 | K148: 0 | L148: 122
A149: 12 | B149: 19603 | C149: 24 | D149: 19615 | E149: 24 | F149: 19629 | K149: 0 | L149: 122
A150: 21 | B150: 19772 | C150: 22 | D150: 19783 | E150: 24 | F150: 19837 | K150: 0 | L150: 222
A151: 21 | B151: 19957 | C151: 22 | D151: 19963 | E151: 24 | F151: 19978 | K151: 0 | L151: 222
A152: 12 | B152: 20078 | C152: 13 | D152: 20089 | E152: 24 | F152: 20101 | K152: 0 | L152: 112
A153: 12 | B153: 20210 | C153: 24 | D153: 20223 | E153: 24 | F153: 20232 | K153: 0 | L153: 122
A154: 12 | B154: 20334 | C154: 24 | D154: 20351 | E154: 24 | F154: 20357 | K154: 0 | L154: 122
A155: 12 | B155: 20450 | C155: 13 | D155: 20465 | E155: 24 | F155: 20478 | K155: 0 | L155: 112
A156: 12 | B156: 20576 | C156: 13 | D156: 20587 | E156: 13 | F156: 20597 | K156: 0 | L156: 111
A157: 12 | B157: 20703 | C157: 24 | D157: 20717 | E157: 24 | F157: 20747 | K157: 0 | L157: 122
A158: 12 | B158: 20852 | C158: 24 | D158: 20865 | E158: 24 | F158: 20913 | K158: 0 | L158: 122
A159: 12 | B159: 21014 | C159: 24 | D159: 21027 | E159: 24 | F159: 21182 | K159: 0 | L159: 122
A160: 21 | B160: 21306 | C160: 22 | D160: 21312 | E160: 24 | F160: 21325 | K160: 0 | L160: 222
A161: 12 | B161: 21433 | C161: 24 | D161: 21447 | E161: 24 | F161: 21513 | K161: 0 | L161: 122
A162: 12 | B162: 21613 | C162: 13 | D162: 21622 | E162: 24 | F162: 21637 | K162: 0 | L162: 112
A163: 12 | B163: 21745 | C163: 24 | D163: 21760 | E163: 24 | F163: 21807 | K163: 0 | L163: 122
A164: 12 | B164: 21902 | C164: 24 | D164: 21911 | E164: 24 | F164: 21916 | K164: 0 | L164: 122
A165: 12 | B165: 22031 | C165: 24 | D165: 22043 | E165: 24 | F165: 22049 | K165: 0 | L165: 122
A166: 12 | B166: 22151 | C166: 24 | D166: 22171 | E166: 24 | F166: 22177 | K166: 0 | L166: 122
A167: 21 | B167: 22288 | C167: 22 | D167: 22294 | E167: 24 | F167: 22314 | K167: 0 | L167: 222
A168: 12 | B168: 22416 | C168: 24 | D168: 22431 | E168: 24 | F168: 22438 | K168: 0 | L168: 122
A169: 12 | B169: 22538 | C169: 24 | D169: 22547 | E169: 24 | F169: 22568 | K169: 0 | L169: 122
A170: 12 | B170: 22666 | C170: 13 | D170: 22686 | E170: 24 | F170: 22703 | K170: 0 | L170: 112
A171: 12 | B171: 22813 | C171: 13 | D171: 22826 | E171: 24 | F171: 22838 | K171: 0 | L171: 112
A172: 12 | B172: 22941 | C172: 24 | D172: 22953 | E172: 24 | F172: 22958 | K172: 0 | L172: 122
A173: 12 | B173: 23064 | C173: 24 | D173: 23079 | E173: 24 | F173: 23101 | K173: 0 | L173: 122
A174: 12 | B174: 23202 | C174: 13 | D174: 23219 | E174: 24 | F174: 23236 | K174: 0 | L174: 112
A175: 21 | B175: 23354 | C175: 22 | D175: 23365 | E175: 24 | F175: 23392 | K175: 0 | L175: 222
A176: 21 | B176: 23503 | C176: 22 | D176: 23508 | E176: 24 | F176: 23519 | K176: 0 | L176: 222
A177: 12 | B177: 23621 | C177: 24 | D177: 23641 | E177: 24 | F177: 23650 | K177: 0 | L177: 122
A178: 12 | B178: 23749 | C178: 24 | D178: 23762 | E178: 24 | F178: 23795 | K178: 0 | L178: 122
A179: 12 | B179: 23908 | C179: 24 | D179: 23921 | E179: 24 | F179: 23928 | L179: 122

Sheet !M924900.091
A1: Report for:!M924900.091
A2: Date: | B2: <date>
A3: Hen: | B3: <hen> | F3: Correct Sequence | G3: =Start!J2 -> 211 | P3: Total Sequences in Data | Q3: =4994-COUNTBLANK(L7:L5000) -> 180 | V3: Total Sequences in Block Data | W3: =COUNTA(L7:L36) -> 30 | AA3: Total Sequences in Block Data | AB3: =COUNTA(L37:L66) -> 30 | AF3: Total Sequences in Block Data | AG3: =COUNTA(L67:L96) -> 30 | AK3: Total Sequences in Block Data | AL3: =COUNTA(L97:L126) -> 30 | AP3: Total Sequences in Block Data | AQ3: =COUNTA(L127:L156) -> 30 | AU3: Total Sequences in Block Data | AV3: =COUNTA(L157:L186) -> 30
P4: Total Sequences in Summary | Q4: =SUM(O7:O14) -> 180 | V4: Total Sequences in Block Summary | W4: =SUM(U7:U14) -> 30 | AA4: Total Sequences in Block Summary | AB4: =SUM(Z7:Z14) -> 30 | AF4: Total Sequences in Block Summary | AG4: =SUM(AE7:AE14) -> 30 | AK4: Total Sequences in Block Summary | AL4: =SUM(AJ7:AJ14) -> 30 | AP4: Total Sequences in Block Summary | AQ4: =SUM(AO7:AO14) -> 30 | AU4: Total Sequences in Block Summary | AV4: =SUM(AT7:AT14) -> 30
T5: Block 1 | Y5: Block 2 | AD5: Block 3 | AI5: Block 4 | AN5: Block 5 | AS5: Block 6
A6: Sequence Component 1 | B6: Time 1 | C6: Sequence Component 2 | D6: Time 2 | E6: Sequence Component 3 | F6: Time 3 | G6: Sequence Component 4 | H6: Time 4 | I6: Sequence Component 5 | J6: Time 5 | K6: Correct? 0=No 1=Yes | L6: Sequence | N6: Frequency | P6: Relative Frequency | Q6: Variability | T6: Frequency | V6: Relative Frequency | W6: Variability | Y6: Frequency | AA6: Relative Frequency | AB6: Variability | AD6: Frequency | AF6: Relative Frequency | AG6: Variability | AI6: Frequency | AK6: Relative Frequency | AL6: Variability | AN6: Frequency | AP6: Relative Frequency | AQ6: Variability | AS6: Frequency | AU6: Relative Frequency | AV6: Variability
A7: 12 | B7: 14 | C7: 24 | D7: 35 | E7: 24 | F7: 43 | K7: 0 | L7: 122 | N7: 111 | O7: =COUNTIF($L$7:$L$500,N7) -> 0 | P7: =O7/$Q$4 -> 0 | Q7: =IF(P7=0,0,(P7*((LOG(P7))/LOG(2)))) -> 0 | T7: =N7 -> 111 | U7: =COUNTIF(L7:L36,T7) -> 0 | V7: =U7/(W4-U11) -> 0 | W7: =IF(V7=0,0,(V7*((LOG(V7))/LOG(2)))) -> 0 | Y7: =N7 -> 111 | Z7: =COUNTIF(L37:L66,Y7) -> 0 | AA7: =Z7/(AB4-Z11) -> 0 | AB7: =IF(AA7=0,0,(AA7*((LOG(AA7))/LOG(2)))) -> 0 | AD7: =N7 -> 111 | AE7: =COUNTIF(L67:L96,AD7) -> 0 | AF7: =AE7/(AG4-AE11) -> 0 | AG7: =IF(AF7=0,0,(AF7*((LOG(AF7))/LOG(2)))) -> 0 | AI7: =N7 -> 111 | AJ7: =COUNTIF(L97:L126,AI7) -> 0 | AK7: =AJ7/(AL4-AJ11) -> 0 | AL7: =IF(AK7=0,0,(AK7*((LOG(AK7))/LOG(2)))) -> 0 | AN7: =N7 -> 111 | AO7: =COUNTIF(L127:L156,AN7) -> 0 | AP7: =AO7/(AQ4-AO11) -> 0 | AQ7: =IF(AP7=0,0,(AP7*((LOG(AP7))/LOG(2)))) -> 0 | AS7: =N7 -> 111 | AT7: =COUNTIF(L157:L186,AS7) -> 0 | AU7: =AT7/(AV4-AT11) -> 0 | AV7: =IF(AU7=0,0,(AU7*((LOG(AU7))/LOG(2)))) -> 0
A8: 12 | B8: 145 | C8: 24 | D8: 160 | E8: 24 | F8: 166 | K8: 0 | L8: 122 | N8: 112 | O8: =COUNTIF($L$7:$L$500,N8) -> 29 | P8: =O8/$Q$4 -> 0.1611111111 | Q8: =IF(P8=0,0,(P8*((LOG(P8))/LOG(2)))) -> -0.4243460607 | T8: =N8 -> 112 | U8: =COUNTIF(L7:L36,T8) -> 3 | V8: =U8/(W4-U11) -> 0.1 | W8: =IF(V8=0,0,(V8*((LOG(V8))/LOG(2)))) -> -0.3321928095 | Y8: =N8 -> 112 | Z8: =COUNTIF(L37:L66,Y8) -> 6 | AA8: =Z8/(AB4-Z11) -> 0.2 | AB8: =IF(AA8=0,0,(AA8*((LOG(AA8))/LOG(2)))) -> -0.464385619 | AD8: =N8 -> 112 | AE8: =COUNTIF(L67:L96,AD8) -> 2 | AF8: =AE8/(AG4-AE11) -> 0.06666666667 | AG8: =IF(AF8=0,0,(AF8*((LOG(AF8))/LOG(2)))) -> -0.260459373 | AI8: =N8 -> 112 | AJ8: =COUNTIF(L97:L126,AI8) -> 13 | AK8: =AJ8/(AL4-AJ11) -> 0.4333333333 | AL8: =IF(AK8=0,0,(AK8*((LOG(AK8))/LOG(2)))) -> -0.5227953802 | AN8: =N8 -> 112 | AO8: =COUNTIF(L127:L156,AN8) -> 3 | AP8: =AO8/(AQ4-AO11) -> 0.1 | AQ8: =IF(AP8=0,0,(AP8*((LOG(AP8))/LOG(2)))) -> -0.3321928095 | AS8: =N8 -> 112 | AT8: =COUNTIF(L157:L186,AS8) -> 2 | AU8: =AT8/(AV4-AT11) -> 0.06666666667 | AV8: =IF(AU8=0,0,(AU8*((LOG(AU8))/LOG(2)))) -> -0.260459373
A9: 12 | B9: 267 | C9: 24 | D9: 280 | E9: 24 | F9: 289 | K9: 0 | L9: 122 | N9: 121 | O9: =COUNTIF($L$7:$L$500,N9) -> 0 | P9: =O9/$Q$4 -> 0 | Q9: =IF(P9=0,0,(P9*((LOG(P9))/LOG(2)))) -> 0 | T9: =N9 -> 121 | U9: =COUNTIF(L7:L36,T9) -> 0 | V9: =U9/(W4-U11) -> 0 | W9: =IF(V9=0,0,(V9*((LOG(V9))/LOG(2)))) -> 0 | Y9: =N9 -> 121 | Z9: =COUNTIF(L37:L66,Y9) -> 0 | AA9: =Z9/(AB4-Z11) -> 0 | AB9: =IF(AA9=0,0,(AA9*((LOG(AA9))/LOG(2)))) -> 0 | AD9: =N9 -> 121 | AE9: =COUNTIF(L67:L96,AD9) -> 0 | AF9: =AE9/(AG4-AE11) -> 0 | AG9: =IF(AF9=0,0,(AF9*((LOG(AF9))/LOG(2)))) -> 0 | AI9: =N9 -> 121 | AJ9: =COUNTIF(L97:L126,AI9) -> 0 | AK9: =AJ9/(AL4-AJ11) -> 0 | AL9: =IF(AK9=0,0,(AK9*((LOG(AK9))/LOG(2)))) -> 0 | AN9: =N9 -> 121 | AO9: =COUNTIF(L127:L156,AN9) -> 0 | AP9: =AO9/(AQ4-AO11) -> 0 | AQ9: =IF(AP9=0,0,(AP9*((LOG(AP9))/LOG(2)))) -> 0 | AS9: =N9 -> 121 | AT9: =COUNTIF(L157:L186,AS9) -> 0 | AU9: =AT9/(AV4-AT11) -> 0 | AV9: =IF(AU9=0,0,(AU9*((LOG(AU9))/LOG(2)))) -> 0
A10: 12 | B10: 393 | C10: 24 | D10: 403 | E10: 24 | F10: 414 | K10: 0 | L10: 122 | N10: 122 | O10: =COUNTIF($L$7:$L$500,N10) -> 116 | P10: =O10/$Q$4 -> 0.6444444444 | Q10: =IF(P10=0,0,(P10*((LOG(P10))/LOG(2)))) -> -0.4084953541 | T10: =N10 -> 122 | U10: =COUNTIF(L7:L36,T10) -> 22 | V10: =U10/(W4-U11) -> 0.7333333333 | W10: =IF(V10=0,0,(V10*((LOG(V10))/LOG(2)))) -> -0.3281365831 | Y10: =N10 -> 122 | Z10: =COUNTIF(L37:L66,Y10) -> 20 | AA10: =Z10/(AB4-Z11) -> 0.6666666667 | AB10: =IF(AA10=0,0,(AA10*((LOG(AA10))/LOG(2)))) -> -0.3899750005 | AD10: =N10 -> 122 | AE10: =COUNTIF(L67:L96,AD10) -> 26 | AF10: =AE10/(AG4-AE11) -> 0.8666666667 | AG10: =IF(AF10=0,0,(AF10*((LOG(AF10))/LOG(2)))) -> -0.1789240938 | AI10: =N10 -> 122 | AJ10: =COUNTIF(L97:L126,AI10) -> 9 | AK10: =AJ10/(AL4-AJ11) -> 0.3 | AL10: =IF(AK10=0,0,(AK10*((LOG(AK10))/LOG(2)))) -> -0.5210896782 | AN10: =N10 -> 122 | AO10: =COUNTIF(L127:L156,AN10) -> 19 | AP10: =AO10/(AQ4-AO11) -> 0.6333333333 | AQ10: =IF(AP10=0,0,(AP10*((LOG(AP10))/LOG(2)))) -> -0.4173432854 | AS10: =N10 -> 122 | AT10: =COUNTIF(L157:L186,AS10) -> 20 | AU10: =AT10/(AV4-AT11) -> 0.6666666667 | AV10: =IF(AU10=0,0,(AU10*((LOG(AU10))/LOG(2)))) -> -0.3899750005
A11: 12 | B11: 515 | C11: 24 | D11: 525 | E11: 24 | F11: 532 | K11: 0 | L11: 122 | N11: 211 | O11: =COUNTIF($L$7:$L$500,N11) -> 0 | P11: =O11/$Q$4 -> 0 | Q11: =IF(P11=0,0,(P11*((LOG(P11))/LOG(2)))) -> 0 | T11: =N11 -> 211 | U11: =COUNTIF(L7:L36,T11) -> 0 | Y11: =N11 -> 211 | Z11: =COUNTIF(L37:L66,Y11) -> 0 | AD11: =N11 -> 211 | AE11: =COUNTIF(L67:L96,AD11) -> 0 | AI11: =N11 -> 211 | AJ11: =COUNTIF(L97:L126,AI11) -> 0 | AN11: =N11 -> 211 | AO11: =COUNTIF(L127:L156,AN11) -> 0 | AS11: =N11 -> 211 | AT11: =COUNTIF(L157:L186,AS11) -> 0
A12: 21 | B12: 649 | C12: 22 | D12: 655 | E12: 24 | F12: 664 | K12: 0 | L12: 222 | N12: 212 | O12: =COUNTIF($L$7:$L$500,N12) -> 0 | P12: =O12/$Q$4 -> 0 | Q12: =IF(P12=0,0,(P12*((LOG(P12))/LOG(2)))) -> 0 | T12: =N12 -> 212 | U12: =COUNTIF(L7:L36,T12) -> 0 | V12: =U12/(W4-U11) -> 0 | W12: =IF(V12=0,0,(V12*((LOG(V12))/LOG(2)))) -> 0 | Y12: =N12 -> 212 | Z12: =COUNTIF(L37:L66,Y12) -> 0 | AA12: =Z12/(AB4-Z11) -> 0 | AB12: =IF(AA12=0,0,(AA12*((LOG(AA12))/LOG(2)))) -> 0 | AD12: =N12 -> 212 | AE12: =COUNTIF(L67:L96,AD12) -> 0 | AF12: =AE12/(AG4-AE11) -> 0 | AG12: =IF(AF12=0,0,(AF12*((LOG(AF12))/LOG(2)))) -> 0 | AI12: =N12 -> 212 | AJ12: =COUNTIF(L97:L126,AI12) -> 0 | AK12: =AJ12/(AL4-AJ11) -> 0 | AL12: =IF(AK12=0,0,(AK12*((LOG(AK12))/LOG(2)))) -> 0 | AN12: =N12 -> 212 | AO12: =COUNTIF(L127:L156,AN12) -> 0 | AP12: =AO12/(AQ4-AO11) -> 0 | AQ12: =IF(AP12=0,0,(AP12*((LOG(AP12))/LOG(2)))) -> 0 | AS12: =N12 -> 212 | AT12: =COUNTIF(L157:L186,AS12) -> 0 | AU12: =AT12/(AV4-AT11) -> 0 | AV12: =IF(AU12=0,0,(AU12*((LOG(AU12))/LOG(2)))) -> 0
A13: 12 | B13: 769 | C13: 24 | D13: 782 | E13: 24 | F13: 808 | K13: 0 | L13: 122 | N13: 221 | O13: =COUNTIF($L$7:$L$500,N13) -> 0 | P13: =O13/$Q$4 -> 0 | Q13: =IF(P13=0,0,(P13*((LOG(P13))/LOG(2)))) -> 0 | T13: =N13 -> 221 | U13: =COUNTIF(L7:L36,T13) -> 0 | V13: =U13/(W4-U11) -> 0 | W13: =IF(V13=0,0,(V13*((LOG(V13))/LOG(2)))) -> 0 | Y13: =N13 -> 221 | Z13: =COUNTIF(L37:L66,Y13) -> 0 | AA13: =Z13/(AB4-Z11) -> 0 | AB13: =IF(AA13=0,0,(AA13*((LOG(AA13))/LOG(2)))) -> 0 | AD13: =N13 -> 221 | AE13: =COUNTIF(L67:L96,AD13) -> 0 | AF13: =AE13/(AG4-AE11) -> 0 | AG13: =IF(AF13=0,0,(AF13*((LOG(AF13))/LOG(2)))) -> 0 | AI13: =N13 -> 221 | AJ13: =COUNTIF(L97:L126,AI13) -> 0 | AK13: =AJ13/(AL4-AJ11) -> 0 | AL13: =IF(AK13=0,0,(AK13*((LOG(AK13))/LOG(2)))) -> 0 | AN13: =N13 -> 221 | AO13: =COUNTIF(L127:L156,AN13) -> 0 | AP13: =AO13/(AQ4-AO11) -> 0 | AQ13: =IF(AP13=0,0,(AP13*((LOG(AP13))/LOG(2)))) -> 0 | AS13: =N13 -> 221 | AT13: =COUNTIF(L157:L186,AS13) -> 0 | AU13: =AT13/(AV4-AT11) -> 0 | AV13: =IF(AU13=0,0,(AU13*((LOG(AU13))/LOG(2)))) -> 0
A14: 12 | B14: 908 | C14: 24 | D14: 920 | E14: 24 | F14: 926 | K14: 0 | L14: 122 | N14: 222 | O14: =COUNTIF($L$7:$L$500,N14) -> 35 | P14: =O14/$Q$4 -> 0.1944444444 | Q14: =IF(P14=0,0,(P14*((LOG(P14))/LOG(2)))) -> -0.4593886265 | T14: =N14 -> 222 | U14: =COUNTIF(L7:L36,T14) -> 5 | V14: =U14/(W4-U11) -> 0.1666666667 | W14: =IF(V14=0,0,(V14*((LOG(V14))/LOG(2)))) -> -0.4308270835 | Y14: =N14 -> 222 | Z14: =COUNTIF(L37:L66,Y14) -> 4 | AA14: =Z14/(AB4-Z11) -> 0.1333333333 | AB14: =IF(AA14=0,0,(AA14*((LOG(AA14))/LOG(2)))) -> -0.3875854127 | AD14: =N14 -> 222 | AE14: =COUNTIF(L67:L96,AD14) -> 2 | AF14: =AE14/(AG4-AE11) -> 0.06666666667 | AG14: =IF(AF14=0,0,(AF14*((LOG(AF14))/LOG(2)))) -> -0.260459373 | AI14: =N14 -> 222 | AJ14: =COUNTIF(L97:L126,AI14) -> 8 | AK14: =AJ14/(AL4-AJ11) -> 0.2666666667 | AL14: =IF(AK14=0,0,(AK14*((LOG(AK14))/LOG(2)))) -> -0.5085041588 | AN14: =N14 -> 222 | AO14: =COUNTIF(L127:L156,AN14) -> 8 | AP14: =AO14/(AQ4-AO11) -> 0.2666666667 | AQ14: =IF(AP14=0,0,(AP14*((LOG(AP14))/LOG(2)))) -> -0.5085041588 | AS14: =N14 -> 222 | AT14: =COUNTIF(L157:L186,AS14) -> 8 | AU14: =AT14/(AV4-AT11) -> 0.2666666667 | AV14: =IF(AU14=0,0,(AU14*((LOG(AU14))/LOG(2)))) -> -0.5085041588
A15: 12 | B15: 1025 | C15: 24 | D15: 1035 | E15: 24 | F15: 1062 | K15: 0 | L15: 122 | P15: =SUM(P7:P14) -> 1 | Q15: =-SUM(Q7:Q14) -> 1.292230041 | V15: =SUM(V7:V14) -> 1 | W15: =-SUM(W7:W14) -> 1.091156476 | AA15: =SUM(AA7:AA14) -> 1 | AB15: =-SUM(AB7:AB14) -> 1.241946032 | AF15: =SUM(AF7:AF14) -> 1 | AG15: =-SUM(AG7:AG14) -> 0.6998428399 | AK15: =SUM(AK7:AK14) -> 1 | AL15: =-SUM(AL7:AL14) -> 1.552389217 | AP15: =SUM(AP7:AP14) -> 1 | AQ15: =-SUM(AQ7:AQ14) -> 1.258040254 | AU15: =SUM(AU7:AU14) -> 1 | AV15: =-SUM(AV7:AV14) -> 1.158938532
A16: 21 | B16: 1185 | C16: 22 | D16: 1190 | E16: 24 | F16: 1197 | K16: 0 | L16: 222 | P16: U= | Q16: =Q15/(LOG(Q4)/LOG(2)) -> 0.172484701 | V16: U1= | W16: =W15/(LOG(W4)/LOG(2)) -> 0.2223722854 | AA16: U2= | AB16: =AB15/(LOG(AB4)/LOG(2)) -> 0.2531024501 | AF16: U3= | AG16: =AG15/(LOG(AG4)/LOG(2)) -> 0.1426245045 | AK16: U4= | AL16: =AL15/(LOG(AL4)/LOG(2)) -> 0.3163692336 | AP16: U5= | AQ16: =AQ15/(LOG(AQ4)/LOG(2)) -> 0.2563823727 | AU16: U6= | AV16: =AV15/(LOG(AV4)/LOG(2)) -> 0.2361859328
A17: 12 | B17: 1294 | C17: 24 | D17: 1305 | E17: 24 | F17: 1311 | K17: 0 | L17: 122
A18: 21 | B18: 1424 | C18: 22 | D18: 1430 | E18: 24 | F18: 1439 | K18: 0 | L18: 222
A19: 21 | B19: 1566 | C19: 22 | D19: 1621 | E19: 24 | F19: 1645 | K19: 0 | L19: 222 | N19: Total Target Seq
A20: 12 | B20: 1746 | C20: 24 | D20: 1769 | E20: 24 | F20: 1782 | K20: 0 | L20: 122 | N20: =COUNTIF(L7:L186,G3) -> 0 | P20: 30 | Q20: 30 | R20: 30 | S20: 30 | T20: 30 | U20: 30
A21: 12 | B21: 1879 | C21: 24 | D21: 1889 | E21: 24 | F21: 1903 | K21: 0 | L21: 122 | P21: % of reinforcement given in 6 equal intervals based on number of trials
A22: 12 | B22: 2003 | C22: 13 | D22: 2005 | E22: 24 | F22: 2022 | K22: 0 | L22: 112 | P22: %_1 | Q22: %_2 | R22: %_3 | S22: %_4 | T22: %_5 | U22: %_6
A23: 12 | B23: 2121 | C23: 24 | D23: 2138 | E23: 24 | F23: 2156 | K23: 0 | L23: 122 | O23: target sequence | P23: =$G$3 -> 211 | Q23: =$G$3 -> 211 | R23: =$G$3 -> 211 | S23: =$G$3 -> 211 | T23: =$G$3 -> 211 | U23: =$G$3 -> 211
A24: 12 | B24: 2257 | C24: 24 | D24: 2281 | E24: 24 | F24: 2300 | K24: 0 | L24: 122 | O24: total reinforcement | P24: =U11 -> 0 | Q24: =Z11 -> 0 | R24: =AE11 -> 0 | S24: =AJ11 -> 0 | T24: =AO11 -> 0 | U24: =AT11 -> 0
A25: 12 | B25: 2409 | C25: 24 | D25: 2421 | E25: 24 | F25: 2453 | K25: 0 | L25: 122 | O25: % target
A26: 12 | B26: 2548 | C26: 24 | D26: 2562 | E26: 24 | F26: 2567 | K26: 0 | L26: 122 | O26: CCRF
A27: 12 | B27: 2666 | C27: 24 | D27: 2678 | E27: 24 | F27: 2695 | K27: 0 | L27: 122 | O27: % CCRf
A28: 21 | B28: 2810 | C28: 22 | D28: 2817 | E28: 24 | F28: 2827 | K28: 0 | L28: 222 | O28: average response rate | P28: =F36/P20 -> 131.3666667 | Q28: =(F66-F36)/Q20 -> 134.5333333 | R28: =(F96-F66)/R20 -> 131.7666667 | S28: =(F126-F96)/S20 -> 130.4333333 | T28: =(F156-F126)/T20 -> 132.1666667 | U28: =(F186-F156)/U20 -> 137.9666667
A29: 12 | B29: 2927 | C29: 24 | D29: 2987 | E29: 24 | F29: 3011 | K29: 0 | L29: 122
A30: 12 | B30: 3109 | C30: 13 | D30: 3118 | E30: 24 | F30: 3131 | K30: 0 | L30: 112
A31: 12 | B31: 3230 | C31: 13 | D31: 3232 | E31: 24 | F31: 3250 | K31: 0 | L31: 112
A32: 12 | B32: 3348 | C32: 24 | D32: 3362 | E32: 24 | F32: 3382 | K32: 0 | L32: 122
A33: 12 | B33: 3485 | C33: 24 | D33: 3501 | E33: 24 | F33: 3510 | K33: 0 | L33: 122
A34: 12 | B34: 3613 | C34: 24 | D34: 3627 | E34: 24 | F34: 3636 | K34: 0 | L34: 122
A35: 12 | B35: 3738 | C35: 24 | D35: 3752 | E35: 24 | F35: 3815 | K35: 0 | L35: 122
A36: 12 | B36: 3923 | C36: 24 | D36: 3933 | E36: 24 | F36: 3941 | K36: 0 | L36: 122
A37: 12 | B37: 4041 | C37: 24 | D37: 4055 | E37: 24 | F37: 4087 | K37: 0 | L37: 122
A38: 12 | B38: 4190 | C38: 24 | D38: 4204 | E38: 24 | F38: 4227 | K38: 0 | L38: 122
A39: 12 | B39: 4331 | C39: 24 | D39: 4341 | E39: 24 | F39: 4347 | K39: 0 | L39: 122
A40: 12 | B40: 4445 | C40: 13 | D40: 4454 | E40: 24 | F40: 4468 | K40: 0 | L40: 112
A41: 12 | B41: 4572 | C41: 24 | D41: 4615 | E41: 24 | F41: 4628 | K41: 0 | L41: 122
A42: 12 | B42: 4733 | C42: 24 | D42: 4748 | E42: 24 | F42: 4773 | K42: 0 | L42: 122
A43: 12 | B43: 4875 | C43: 24 | D43: 4888 | E43: 24 | F43: 4906 | K43: 0 | L43: 122
A44: 12 | B44: 5008 | C44: 24 | D44: 5023 | E44: 24 | F44: 5042 | K44: 0 | L44: 122
A45: 12 | B45: 5144 | C45: 24 | D45: 5157 | E45: 24 | F45: 5167 | K45: 0 | L45: 122
A46: 12 | B46: 5268 | C46: 24 | D46: 5347 | E46: 24 | F46: 5363 | K46: 0 | L46: 122
A47: 12 | B47: 5463 | C47: 13 | D47: 5473 | E47: 24 | F47: 5483 | K47: 0 | L47: 112
A48: 12 | B48: 5584 | C48: 24 | D48: 5602 | E48: 24 | F48: 5618 | K48: 0 | L48: 122
A49: 12 | B49: 5712 | C49: 24 | D49: 5724 | E49: 24 | F49: 5729 | K49: 0 | L49: 122
A50: 12 | B50: 5826 | C50: 24 | D50: 5840 | E50: 24 | F50: 5848 | K50: 0 | L50: 122
A51: 12 | B51: 5952 | C51: 24 | D51: 5967 | E51: 24 | F51: 5977 | K51: 0 | L51: 122
A52: 12 | B52: 6077 | C52: 13 | D52: 6089 | E52: 24 | F52: 6107 | K52: 0 | L52: 112
A53: 12 | B53: 6210 | C53: 24 | D53: 6223 | E53: 24 | F53: 6232 | K53: 0 | L53: 122
A54: 12 | B54: 6334 | C54: 24 | D54: 6377 | E54: 24 | F54: 6386 | K54: 0 | L54: 122
A55: 12 | B55: 6484 | C55: 13 | D55: 6496 | E55: 24 | F55: 6509 | K55: 0 | L55: 112
A56: 12 | B56: 6619 | C56: 24 | D56: 6633 | E56: 24 | F56: 6650 | K56: 0 | L56: 122
A57: 21 | B57: 6780 | C57: 22 | D57: 6788 | E57: 24 | F57: 6803 | K57: 0 | L57: 222
A58: 12 | B58: 6911 | C58: 24 | D58: 6927 | E58: 24 | F58: 6946 | K58: 0 | L58: 122
A59: 12 | B59: 7045 | C59: 13 | D59: 7063 | E59: 24 | F59: 7075 | K59: 0 | L59: 112
A60: 12 | B60: 7170 | C60: 24 | D60: 7180 | E60: 24 | F60: 7185 | K60: 0 | L60: 122
A61: 12 | B61: 7287 | C61: 24 | D61: 7298 | E61: 24 | F61: 7324 | K61: 0 | L61: 122
A62: 21 | B62: 7439 | C62: 22 | D62: 7448 | E62: 24 | F62: 7456 | K62: 0 | L62: 222
A63: 12 | B63: 7557 | C63: 24 | D63: 7569 | E63: 24 | F63: 7606 | K63: 0 | L63: 122
A64: 21 | B64: 7725 | C64: 22 | D64: 7730 | E64: 24 | F64: 7743 | K64: 0 | L64: 222
A65: 21 | B65: 7845 | C65: 22 | D65: 7850 | E65: 24 | F65: 7858 | K65: 0 | L65: 222
A66: 12 | B66: 7955 | C66: 13 | D66: 7963 | E66: 24 | F66: 7977 | K66: 0 | L66: 112
A67: 12 | B67: 8080 | C67: 24 | D67: 8096 | E67: 24 | F67: 8104 | K67: 0 | L67: 122
A68: 12 | B68: 8200 | C68: 24 | D68: 8212 | E68: 24 | F68: 8246 | K68: 0 | L68: 122
A69: 12 | B69: 8348 | C69: 24 | D69: 8360 | E69: 24 | F69: 8367 | K69: 0 | L69: 122
A70: 12 | B70: 8466 | C70: 24 | D70: 8479 | E70: 24 | F70: 8484 | K70: 0 | L70: 122
A71: 12 | B71: 8582 | C71: 24 | D71: 8596 | E71: 24 | F71: 8627 | K71: 0 | L71: 122
A72: 12 | B72: 8734 | C72: 24 | D72: 8750 | E72: 24 | F72: 8758 | K72: 0 | L72: 122
A73: 12 | B73: 8858 | C73: 24 | D73: 8870 | E73: 24 | F73: 8878 | K73: 0 | L73: 122
A74: 12 | B74: 8977 | C74: 24 | D74: 9000 | E74: 24 | F74: 9014 | K74: 0 | L74: 122
A75: 12 | B75: 9115 | C75: 24 | D75: 9125 | E75: 24 | F75: 9131 | K75: 0 | L75: 122
A76: 21 | B76: 9235 | C76: 22 | D76: 9242 | E76: 24 | F76: 9270 | K76: 0 | L76: 222
A77: 12 | B77: 9375 | C77: 24 | D77: 9399 | E77: 24 | F77: 9413 | K77: 0 | L77: 122
A78: 12 | B78: 9511 | C78: 13 | D78: 9526 | E78: 24 | F78: 9540 | K78: 0 | L78: 112
A79: 12 | B79: 9644 | C79: 24 | D79: 9658 | E79: 24 | F79: 9666 | K79: 0 | L79: 122
A80: 12 | B80: 9767 | C80: 24 | D80: 9781 | E80: 24 | F80: 9801 | K80: 0 | L80: 122
A81: 12 | B81: 9897 | C81: 24 | D81: 9910 | E81: 24 | F81: 9915 | K81: 0 | L81: 122
A82: 12 | B82: 10013 | C82: 24 | D82: 10028 | E82: 24 | F82: 10044 | K82: 0 | L82: 122
A83: 12 | B83: 10141 | C83: 24 | D83: 10156 | E83: 24 | F83: 10174 | K83: 0 | L83: 122
A84: 12 | B84: 10278 | C84: 24 | D84: 10291 | E84: 24 | F84: 10308 | K84: 0 | L84: 122
A85: 12 | B85: 10407 | C85: 24 | D85: 10449 | E85: 24 | F85: 10453 | K85: 0 | L85: 122
A86: 12 | B86: 10555 | C86: 24 | D86: 10568 | E86: 24 | F86: 10573 | K86: 0 | L86: 122
A87: 12 | B87: 10673 | C87: 24 | D87: 10686 | E87: 24 | F87: 10693 | K87: 0 | L87: 122
A88: 21 | B88: 10810 | C88: 22 | D88: 10842 | E88: 24 | F88: 10905 | K88: 0 | L88: 222
A89: 12 | B89: 11001 | C89: 24 | D89: 11020 | E89: 24 | F89: 11029 | K89: 0 | L89: 122
A90: 12 | B90: 11139 | C90: 24 | D90: 11151 | E90: 24 | F90: 11191 | K90: 0 | L90: 122
A91: 12 | B91: 11286 | C91: 24 | D91: 11304 | E91: 24 | F91: 11310 | K91: 0 | L91: 122
A92: 12 | B92: 11410 | C92: 24 | D92: 11423 | E92: 24 | F92: 11437 | K92: 0 | L92: 122
A93: 12 | B93: 11538 | C93: 24 | D93: 11548 | E93: 24 | F93: 11553 | K93: 0 | L93: 122
A94: 12 | B94: 11648 | C94: 24 | D94: 11659 | E94: 24 | F94: 11683 | K94: 0 | L94: 122
A95: 12 | B95: 11782 | C95: 24 | D95: 11795 | E95: 24 | F95: 11810 | K95: 0 | L95: 122
A96: 12 | B96: 11909 | C96: 13 | D96: 11920 | E96: 24 | F96: 11930 | K96: 0 | L96: 112
A97: 12 | B97: 12028 | C97: 13 | D97: 12037 | E97: 24 | F97: 12050 | K97: 0 | L97: 112
A98: 12 | B98: 12149 | C98: 24 | D98: 12161 | E98: 24 | F98: 12170 | K98: 0 | L98: 122
A99: 21 | B99: 12276 | C99: 22 | D99: 12281 | E99: 24 | F99: 12292 | K99: 0 | L99: 222
A100: 12 | B100: 12398 | C100: 24 | D100: 12410 | E100: 24 | F100: 12417 | K100: 0 | L100: 122
A101: 12 | B101: 12517 | C101: 24 | D101: 12531 | E101: 24 | F101: 12539 | K101: 0 | L101: 122
A102: 12 | B102: 12646 | C102: 24 | D102: 12656 | E102: 24 | F102: 12662 | K102: 0 | L102: 122
A103: 12 | B103: 12760 | C103: 24 | D103: 12772 | E103: 24 | F103: 12778 | K103: 0 | L103: 122
A104: 12 | B104: 12879 | C104: 13 | D104: 12889 | E104: 24 | F104: 12928 | K104: 0 | L104: 112
A105: 12 | B105: 13026 | C105: 24 | D105: 13038 | E105: 24 | F105: 13046 | K105: 0 | L105: 122
A106: 12 | B106: 13145 | C106: 24 | D106: 13157 | E106: 24 | F106: 13167 | K106: 0 | L106: 122
A107: 12 | B107: 13268 | C107: 13 | D107: 13276 | E107: 24 | F107: 13288 | K107: 0 | L107: 112
A108: 21 | B108: 13400 | C108: 22 | D108: 13415 | E108: 24 | F108: 13424 | K108: 0 | L108: 222
A109: 12 | B109: 13521 | C109: 13 | D109: 13530 | E109: 24 | F109: 13550 | K109: 0 | L109: 112
A110: 12 | B110: 13647 | C110: 13 | D110: 13658 | E110: 24 | F110: 13670 | K110: 0 | L110: 112
A111: 12 | B111: 13769 | C111: 13 | D111: 13778 | E111: 24 | F111: 13792 | K111: 0 | L111: 112
A112: 12 | B112: 13886 | C112: 24 | D112: 13907 | E112: 24 | F112: 13912 | K112: 0 | L112: 122
A113: 12 | B113: 14016 | C113: 13 | D113: 14027 | E113: 24 | F113: 14040 | K113: 0 | L113: 112
A114: 12 | B114: 14138 | C114: 13 | D114: 14147 | E114: 24 | F114: 14160 | K114: 0 | L114: 112
A115: 12 | B115: 14260 | C115: 13 | D115: 14269 | E115: 24 | F115: 14291 | K115: 0 | L115: 112
A116: 12 | B116: 14389 | C116: 13 | D116: 14397 | E116: 24 | F116: 14410 | K116: 0 | L116: 112
A117: 12 | B117: 14509 | C117: 13 | D117: 14518 | E117: 24 | F117: 14532 | K117: 0 | L117: 112
A118: 21 | B118: 14663 | C118: 22 | D118: 14677 | E118: 24 | F118: 14696 | K118: 0 | L118: 222
A119: 12 | B119: 14792 | C119: 13 | D119: 14800 | E119: 24 | F119: 14812 | K119: 0 | L119: 112
A120: 21 | B120: 14944 | C120: 22 | D120: 14987 | E120: 24 | F120: 15007 | K120: 0 | L120: 222
A121: 21 | B121: 15118 | C121: 22 | D121: 15127 | E121: 24 | F121: 15145 | K121: 0 | L121: 222
A122: 21 | B122: 15258 | C122: 22 | D122: 15265 | E122: 24 | F122: 15282 | K122: 0 | L122: 222
A123: 12 | B123: 15388 | C123: 24 | D123: 15404 | E123: 24 | F123: 15413 | K123: 0 | L123: 122
A124: 12 | B124: 15513 | C124: 13 | D124: 15523 | E124: 24 | F124: 15560 | K124: 0 | L124: 112
A125: 21 | B125: 15676 | C125: 22 | D125: 15685 | E125: 24 | F125: 15693 | K125: 0 | L125: 222
A126: 21 | B126: 15813 | C126: 22 | D126: 15829 | E126: 24 | F126: 15843 | K126: 0 | L126: 222
A127: 12 | B127: 15939 | C127: 13 | D127: 15946 | E127: 24 | F127: 15982 | K127: 0 | L127: 112
A128: 12 | B128: 16078 | C128: 24 | D128: 16090 | E128: 24 | F128: 16119 | K128: 0 | L128: 122
A129: 12 | B129: 16226 | C129: 24 | D129: 16237 | E129: 24 | F129: 16245 | K129: 0 | L129: 122
A130: 21 | B130: 16348 | C130: 22 | D130: 16358 | E130: 24 | F130: 16366 | K130: 0 | L130: 222
A131: 21 | B131: 16480 | C131: 22 | D131: 16488 | E131: 24 | F131: 16501 | K131: 0 | L131: 222
A132: 12 | B132: 16599 | C132: 24 | D132: 16614 | E132: 24 | F132: 16636 | K132: 0 | L132: 122
A133: 21 | B133: 16747 | C133: 22 | D133: 16777 | E133: 24 | F133: 16790 | K133: 0 | L133: 222
A134: 12 | B134: 16890 | C134: 13 | D134: 16900 | E134: 24 | F134: 16911 | K134: 0 | L134: 112
A135: 21 | B135: 17016 | C135: 22 | D135: 17023 | E135: 24 | F135: 17033 | K135: 0 | L135: 222
A136: 12 | B136: 17133 | C136: 24 | D136: 17146 | E136: 24 | F136: 17154 | K136: 0 | L136: 122
A137: 21 | B137: 17292 | C137: 22 | D137: 17313 | E137: 24 | F137: 17327 | K137: 0 | L137: 222
A138: 12 | B138: 17440 | C138: 24 | D138: 17452 | E138: 24 | F138: 17462 | K138: 0 | L138: 122
A139: 12 | B139: 17559 | C139: 24 | D139: 17576 | E139: 24 | F139: 17589 | K139: 0 | L139: 122
A140: 12 | B140: 17696 | C140: 24 | D140: 17708 | E140: 24 | F140: 17714 | K140: 0 | L140: 122
A141: 12 | B141: 17824 | C141: 24 | D141: 17836 | E141: 24 | F141: 17853 | K141: 0 | L141: 122
A142: 12 | B142: 17959 | C142: 24 | D142: 17972 | E142: 24 | F142: 17979 | K142: 0 | L142: 122
A143: 12 | B143: 18091 | C143: 13 | D143: 18117 | E143: 24 | F143: 18134 | K143: 0 | L143: 112
A144: 12 | B144: 18236 | C144: 24 | D144: 18249 | E144: 24 | F144: 18265 | K144: 0 | L144: 122
A145: 12 | B145: 18365 | C145: 24 | D145: 18378 | E145: 24 | F145: 18392 | K145: 0 | L145: 122
A146: 12 | B146: 18489 | C146: 24 | D146: 18498 | E146: 24 | F146: 18504 | K146: 0 | L146: 122
A147: 12 | B147: 18603 | C147: 24 | D147: 18616 | E147: 24 | F147: 18622 | K147: 0 | L147: 122
A148: 12 | B148: 18720 | C148: 24 | D148: 18734 | E148: 24 | F148: 18740 | K148: 0 | L148: 122
A149: 12 | B149: 18845 | C149: 24 | D149: 18857 | E149: 24 | F149: 18863 | K149: 0 | L149: 122
A150: 12 | B150: 18957 | C150: 24 | D150: 18976 | E150: 24 | F150: 18988 | K150: 0 | L150: 122
A151: 21 | B151: 19109 | C151: 22 | D151: 19115 | E151: 24 | F151: 19124 | K151: 0 | L151: 222
A152: 12 | B152: 19227 | C152: 24 | D152: 19245 | E152: 24 | F152: 19255 | K152: 0 | L152: 122
A153: 12 | B153: 19360 | C153: 24 | D153: 19373 | E153: 24 | F153: 19385 | K153: 0 | L153: 122
A154: 12 | B154: 19496 | C154: 24 | D154: 19510 | E154: 24 | F154: 19516 | K154: 0 | L154: 122
A155: 21 | B155: 19623 | C155: 22 | D155: 19663 | E155: 24 | F155: 19673 | K155: 0 | L155: 222
A156: 21 | B156: 19792 | C156: 22 | D156: 19798 | E156: 24 | F156: 19808 | K156: 0 | L156: 222
A157: 12 | B157: 19909 | C157: 24 | D157: 19934 | E157: 24 | F157: 19944 | K157: 0 | L157: 122
A158: 12 | B158: 20050 | C158: 24 | D158: 20069 | E158: 24 | F158: 20078 | K158: 0 | L158: 122
A159: 12 | B159: 20177 | C159: 24 | D159: 20193 | E159: 24 | F159: 20199 | K159: 0 | L159: 122
A160: 21 | B160: 20341 | C160: 22 | D160: 20364 | E160: 24 | F160: 20377 | K160: 0 | L160: 222
A161: 12 | B161: 20478 | C161: 24 | D161: 20490 | E161: 24 | F161: 20495 | K161: 0 | L161: 122
A162: 12 | B162: 20604 | C162: 24 | D162: 20615 | E162: 24 | F162: 20621 | K162: 0 | L162: 122
A163: 12 | B163: 20732 | C163: 24 | D163: 20744 | E163: 24 | F163: 20751 | K163: 0 | L163: 122
A164: 21 | B164: 20865 | C164: 22 | D164: 20891 | E164: 24 | F164: 20939 | K164: 0 | L164: 222
A165: 12 | B165: 21041 | C165: 24 | D165: 21059 | E165: 24 | F165: 21068 | K165: 0 | L165: 122
A166: 21 | B166: 21170 | C166: 22 | D166: 21191 | E166: 24 | F166: 21200 | K166: 0 | L166: 222
A167: 12 | B167: 21297 | C167: 24 | D167: 21308 | E167: 24 | F167: 21320 | K167: 0 | L167: 122
A168: 12 | B168: 21428 | C168: 24 | D168: 21440 | E168: 24 | F168: 21455 | K168: 0 | L168: 122
A169: 12 | B169: 21555 | C169: 13 | D169: 21562 | E169: 24 | F169: 21575 | K169: 0 | L169: 112
A170: 12 | B170: 21687 | C170: 24 | D170: 21701 | E170: 24 | F170: 21714 | K170: 0 | L170: 122
A171: 12 | B171: 21818 | C171: 24 | D171: 21846 | E171: 24 | F171: 21853 | K171: 0 | L171: 122
A172: 21 | B172: 21963 | C172: 22 | D172: 21972 | E172: 24 | F172: 21980 | K172: 0 | L172: 222
A173: 12 | B173: 22085 | C173: 24 | D173: 22096 | E173: 24 | F173: 22102 | K173: 0 | L173: 122
A174: 12 | B174: 22208 | C174: 24 | D174: 22222 | E174: 24 | F174: 22228 | K174: 0 | L174: 122
A175: 12 | B175: 22332 | C175: 13 | D175: 22347 | E175: 24 | F175: 22363 | K175: 0 | L175: 112
A176: 21 | B176: 22481 | C176: 22 | D176: 22488 | E176: 24 | F176: 22497 | K176: 0 | L176: 222
A177: 12 | B177: 22599 | C177: 24 | D177: 22615 | E177: 24 | F177: 22636 | K177: 0 | L177: 122
A178: 12 | B178: 22737 | C178: 24 | D178: 22746 | E178: 24 | F178: 22783 | K178: 0 | L178: 122
A179: 12 | B179: 22883 | C179: 24 | D179: 22895 | E179: 24 | F179: 22903 | K179: 0 | L179: 122
A180: 12 | B180: 23007 | C180: 24 | D180: 23018 | E180: 24 | F180: 23023 | K180: 0 | L180: 122
A181: 21 | B181: 23170 | C181: 22 | D181: 23185 | E181: 24 | F181: 23221 | K181: 0 | L181: 222
A182: 12 | B182: 23330 | C182: 24 | D182: 23339 | E182: 24 | F182: 23345 | K182: 0 | L182: 122
A183: 12 | B183: 23453 | C183: 24 | D183: 23462 | E183: 24 | F183: 23478 | K183: 0 | L183: 122
A184: 21 | B184: 23601 | C184: 22 | D184: 23607 | E184: 24 | F184: 23633 | K184: 0 | L184: 222
A185: 12 | B185: 23735 | C185: 24 | D185: 23753 | E185: 24 | F185: 23761 | K185: 0 | L185: 122
A186: 21 | B186: 23920 | C186: 22 | D186: 23928 | E186: 24 | F186: 23947 | L186: 222

Sheet !M925640.091
A1: Report for:!M925640.091
A2: Date: | B2: <date>
A3: Hen: | B3: <hen> | F3: Correct Sequence | G3: =Start!J2 -> 211 | P3: Total Sequences in Data | Q3: =4994-COUNTBLANK(L7:L5000) -> 175 | V3: Total Sequences in Block Data | W3: =COUNTA(L7:L35) -> 29 | AA3: Total Sequences in Block Data | AB3: =COUNTA(L36:L64) -> 29 | AF3: Total Sequences in Block Data | AG3: =COUNTA(L65:L94) -> 30 | AK3: Total Sequences in Block Data | AL3: =COUNTA(L95:L123) -> 29 | AP3: Total Sequences in Block Data | AQ3: =COUNTA(L124:L152) -> 29 | AU3: Total Sequences in Block Data | AV3: =COUNTA(L153:L181) -> 29
P4: Total Sequences in Summary | Q4: =SUM(O7:O14) -> 175 | V4: Total Sequences in Block Summary | W4: =SUM(U7:U14) -> 29 | AA4: Total Sequences in Block Summary | AB4: =SUM(Z7:Z14) -> 29 | AF4: Total Sequences in Block Summary | AG4: =SUM(AE7:AE14) -> 30 | AK4: Total Sequences in Block Summary | AL4: =SUM(AJ7:AJ14) -> 29 | AP4: Total Sequences in Block Summary | AQ4: =SUM(AO7:AO14) -> 29 | AU4: Total Sequences in Block Summary | AV4: =SUM(AT7:AT14) -> 29
T5: Block 1 | Y5: Block 2 | AD5: Block 3 | AI5: Block 4 | AN5: Block 5 | AS5: Block 6
A6: Sequence Component 1 | B6: Time 1 | C6: Sequence Component 2 | D6: Time 2 | E6: Sequence Component 3 | F6: Time 3 | G6: Sequence Component 4 | H6: Time 4 | I6: Sequence Component 5 | J6: Time 5 | K6: Correct? 0=No 1=Yes | L6: Sequence | N6: Frequency | P6: Relative Frequency | Q6: Variability | T6: Frequency | V6: Relative Frequency | W6: Variability | Y6: Frequency | AA6: Relative Frequency | AB6: Variability | AD6: Frequency | AF6: Relative Frequency | AG6: Variability | AI6: Frequency | AK6: Relative Frequency | AL6: Variability | AN6: Frequency | AP6: Relative Frequency | AQ6: Variability | AS6: Frequency | AU6: Relative Frequency | AV6: Variability
A7: 12 | B7: 54 | C7: 13 | D7: 65 | E7: 24 | F7: 84 | K7: 0 | L7: 112 | N7: 111 | O7: =COUNTIF($L$7:$L$500,N7) -> 0 | P7: =O7/$Q$4 -> 0 | Q7: =IF(P7=0,0,(P7*((LOG(P7))/LOG(2)))) -> 0 | T7: =N7 -> 111 | U7: =COUNTIF(L7:L35,T7) -> 0 | V7: =U7/(W4-U11) -> 0 | W7: =IF(V7=0,0,(V7*((LOG(V7))/LOG(2)))) -> 0 | Y7: =N7 -> 111 | Z7: =COUNTIF(L36:L64,Y7) -> 0 | AA7: =Z7/(AB4-Z11) -> 0 | AB7: =IF(AA7=0,0,(AA7*((LOG(AA7))/LOG(2)))) -> 0 | AD7: =N7 -> 111 | AE7: =COUNTIF(L65:L94,AD7) -> 0 | AF7: =AE7/(AG4-AE11) -> 0 | AG7: =IF(AF7=0,0,(AF7*((LOG(AF7))/LOG(2)))) -> 0 | AI7: =N7 -> 111 | AJ7: =COUNTIF(L95:L123,AI7) -> 0 | AK7: =AJ7/(AL4-AJ11) -> 0 | AL7: =IF(AK7=0,0,(AK7*((LOG(AK7))/LOG(2)))) -> 0 | AN7: =N7 -> 111 | AO7: =COUNTIF(L124:L152,AN7) -> 0 | AP7: =AO7/(AQ4-AO11) -> 0 | AQ7: =IF(AP7=0,0,(AP7*((LOG(AP7))/LOG(2)))) -> 0 | AS7: =N7 -> 111 | AT7: =COUNTIF(L153:L181,AS7) -> 0 | AU7: =AT7/(AV4-AT11) -> 0 | AV7: =IF(AU7=0,0,(AU7*((LOG(AU7))/LOG(2)))) -> 0
A8: 12 | B8: 191 | C8: 24 | D8: 204 | E8: 24 | F8: 209 | K8: 0 | L8: 122 | N8: 112 | O8: =COUNTIF($L$7:$L$500,N8) -> 25 | P8: =O8/$Q$4 -> 0.1428571429 | Q8: =IF(P8=0,0,(P8*((LOG(P8))/LOG(2)))) -> -0.4010507032 | T8: =N8 -> 112 | U8: =COUNTIF(L7:L35,T8) -> 9 | V8: =U8/(W4-U11) -> 0.3103448276 | W8: =IF(V8=0,0,(V8*((LOG(V8))/LOG(2)))) -> -0.5238794463 | Y8: =N8 -> 112 | Z8: =COUNTIF(L36:L64,Y8) -> 9 | AA8: =Z8/(AB4-Z11) -> 0.3103448276 | AB8: =IF(AA8=0,0,(AA8*((LOG(AA8))/LOG(2)))) -> -0.5238794463 | AD8: =N8 -> 112 | AE8: =COUNTIF(L65:L94,AD8) -> 3 | AF8: =AE8/(AG4-AE11) -> 0.1 | AG8: =IF(AF8=0,0,(AF8*((LOG(AF8))/LOG(2)))) -> -0.3321928095 | AI8: =N8 -> 112 | AJ8: =COUNTIF(L95:L123,AI8) -> 2 | AK8: =AJ8/(AL4-AJ11) -> 0.06896551724 | AL8: =IF(AK8=0,0,(AK8*((LOG(AK8))/LOG(2)))) -> -0.2660676548 | AN8: =N8 -> 112 | AO8: =COUNTIF(L124:L152,AN8) -> 1 | AP8: =AO8/(AQ4-AO11) -> 0.03448275862 | AQ8: =IF(AP8=0,0,(AP8*((LOG(AP8))/LOG(2)))) -> -0.167516586 | AS8: =N8 -> 112 | AT8: =COUNTIF(L153:L181,AS8) -> 1 | AU8: =AT8/(AV4-AT11) -> 0.03448275862 | AV8: =IF(AU8=0,0,(AU8*((LOG(AU8))/LOG(2)))) -> -0.167516586
A9: 12 | B9: 312 | C9: 24 | D9: 352 | E9: 24 | F9: 390 | K9: 0 | L9: 122 | N9: 121 | O9: =COUNTIF($L$7:$L$500,N9) -> 0 | P9: =O9/$Q$4 -> 0 | Q9: =IF(P9=0,0,(P9*((LOG(P9))/LOG(2)))) -> 0 | T9: =N9 -> 121 | U9: =COUNTIF(L7:L35,T9) -> 0 | V9: =U9/(W4-U11) -> 0 | W9: =IF(V9=0,0,(V9*((LOG(V9))/LOG(2)))) -> 0 | Y9: =N9 -> 121 | Z9: =COUNTIF(L36:L64,Y9) -> 0 | AA9: =Z9/(AB4-Z11) -> 0 | AB9: =IF(AA9=0,0,(AA9*((LOG(AA9))/LOG(2)))) -> 0 | AD9: =N9 -> 121 | AE9: =COUNTIF(L65:L94,AD9) -> 0 | AF9: =AE9/(AG4-AE11) -> 0 | AG9: =IF(AF9=0,0,(AF9*((LOG(AF9))/LOG(2)))) -> 0 | AI9: =N9 -> 121 | AJ9: =COUNTIF(L95:L123,AI9) -> 0 | AK9: =AJ9/(AL4-AJ11) -> 0 | AL9: =IF(AK9=0,0,(AK9*((LOG(AK9))/LOG(2)))) -> 0 | AN9: =N9 -> 121 | AO9: =COUNTIF(L124:L152,AN9) -> 0 | AP9: =AO9/(AQ4-AO11) -> 0 | AQ9: =IF(AP9=0,0,(AP9*((LOG(AP9))/LOG(2)))) -> 0 | AS9: =N9 -> 121 | AT9: =COUNTIF(L153:L181,AS9) -> 0 | AU9: =AT9/(AV4-AT11) -> 0 | AV9: =IF(AU9=0,0,(AU9*((LOG(AU9))/LOG(2)))) -> 0
A10: 12 | B10: 494 | C10: 24 | D10: 508 | E10: 24 | F10: 516 | K10: 0 | L10: 122 | N10: 122 | O10: =COUNTIF($L$7:$L$500,N10) -> 82 | P10: =O10/$Q$4 -> 0.4685714286 | Q10: =IF(P10=0,0,(P10*((LOG(P10))/LOG(2)))) -> -0.5124574102 | T10: =N10 -> 122 | U10: =COUNTIF(L7:L35,T10) -> 18 | V10: =U10/(W4-U11) -> 0.6206896552 | W10: =IF(V10=0,0,(V10*((LOG(V10))/LOG(2)))) -> -0.4270692375 | Y10: =N10 -> 122 | Z10: =COUNTIF(L36:L64,Y10) -> 13 | AA10: =Z10/(AB4-Z11) -> 0.4482758621 | AB10: =IF(AA10=0,0,(AA10*((LOG(AA10))/LOG(2)))) -> -0.5188978138 | AD10: =N10 -> 122 | AE10: =COUNTIF(L65:L94,AD10) -> 13 | AF10: =AE10/(AG4-AE11) -> 0.4333333333 | AG10: =IF(AF10=0,0,(AF10*((LOG(AF10))/LOG(2)))) -> -0.5227953802 | AI10: =N10 -> 122 | AJ10: =COUNTIF(L95:L123,AI10) -> 13 | AK10: =AJ10/(AL4-AJ11) -> 0.4482758621 | AL10: =IF(AK10=0,0,(AK10*((LOG(AK10))/LOG(2)))) -> -0.5188978138 | AN10: =N10 -> 122 | AO10: =COUNTIF(L124:L152,AN10) -> 14 | AP10: =AO10/(AQ4-AO11) -> 0.4827586207 | AQ10: =IF(AP10=0,0,(AP10*((LOG(AP10))/LOG(2)))) -> -0.5071987939 | AS10: =N10 -> 122 | AT10: =COUNTIF(L153:L181,AS10) -> 11 | AU10: =AT10/(AV4-AT11) -> 0.3793103448 | AV10: =IF(AU10=0,0,(AU10*((LOG(AU10))/LOG(2)))) -> -0.5304842463
A11: 12 | B11: 617 | C11: 13 | D11: 628 | E11: 24 | F11: 641 | K11: 0 | L11: 112 | N11: 211 | O11: =COUNTIF($L$7:$L$500,N11) -> 0 | P11: =O11/$Q$4 -> 0 | Q11: =IF(P11=0,0,(P11*((LOG(P11))/LOG(2)))) -> 0 | T11: =N11 -> 211 | U11: =COUNTIF(L7:L35,T11) -> 0 | Y11: =N11 -> 211 | Z11: =COUNTIF(L36:L64,Y11) -> 0 | AD11: =N11 -> 211 | AE11: =COUNTIF(L65:L94,AD11) -> 0 | AI11: =N11 -> 211 | AJ11: =COUNTIF(L95:L123,AI11) -> 0 | AN11: =N11 -> 211 | AO11: =COUNTIF(L124:L152,AN11) -> 0 | AS11: =N11 -> 211 | AT11: =COUNTIF(L153:L181,AS11) -> 0
A12: 12 | B12: 743 | C12: 24 | D12: 758 | E12: 24 | F12: 765 | K12: 0 | L12: 122 | N12: 212 | O12: =COUNTIF($L$7:$L$500,N12) -> 0 | P12: =O12/$Q$4 -> 0 | Q12: =IF(P12=0,0,(P12*((LOG(P12))/LOG(2)))) -> 0 | T12: =N12 -> 212 | U12: =COUNTIF(L7:L35,T12) -> 0 | V12: =U12/(W4-U11) -> 0 | W12: =IF(V12=0,0,(V12*((LOG(V12))/LOG(2)))) -> 0 | Y12: =N12 -> 212 | Z12: =COUNTIF(L36:L64,Y12) -> 0 | AA12: =Z12/(AB4-Z11) -> 0 | AB12: =IF(AA12=0,0,(AA12*((LOG(AA12))/LOG(2)))) -> 0 | AD12: =N12 -> 212 | AE12: =COUNTIF(L65:L94,AD12) -> 0 | AF12: =AE12/(AG4-AE11) -> 0 | AG12: =IF(AF12=0,0,(AF12*((LOG(AF12))/LOG(2)))) -> 0 | AI12: =N12 -> 212 | AJ12: =COUNTIF(L95:L123,AI12) -> 0 | AK12: =AJ12/(AL4-AJ11) -> 0 | AL12: =IF(AK12=0,0,(AK12*((LOG(AK12))/LOG(2)))) -> 0 | AN12: =N12 -> 212 | AO12: =COUNTIF(L124:L152,AN12) -> 0 | AP12: =AO12/(AQ4-AO11) -> 0 | AQ12: =IF(AP12=0,0,(AP12*((LOG(AP12))/LOG(2)))) -> 0 | AS12: =N12 -> 212 | AT12: =COUNTIF(L153:L181,AS12) -> 0 | AU12: =AT12/(AV4-AT11) -> 0 | AV12: =IF(AU12=0,0,(AU12*((LOG(AU12))/LOG(2)))) -> 0
A13: 12 | B13: 864 | C13: 24 | D13: 878 | E13: 24 | F13: 899 | K13: 0 | L13: 122 | N13: 221 | O13: =COUNTIF($L$7:$L$500,N13) -> 0 | P13: =O13/$Q$4 -> 0 | Q13: =IF(P13=0,0,(P13*((LOG(P13))/LOG(2)))) -> 0 | T13: =N13 -> 221 | U13: =COUNTIF(L7:L35,T13) -> 0 | V13: =U13/(W4-U11) -> 0 | W13: =IF(V13=0,0,(V13*((LOG(V13))/LOG(2)))) -> 0 | Y13: =N13 -> 221 | Z13: =COUNTIF(L36:L64,Y13) -> 0 | AA13: =Z13/(AB4-Z11) -> 0 | AB13: =IF(AA13=0,0,(AA13*((LOG(AA13))/LOG(2)))) -> 0 | AD13: =N13 -> 221 | AE13: =COUNTIF(L65:L94,AD13) -> 0 | AF13: =AE13/(AG4-AE11) -> 0 | AG13: =IF(AF13=0,0,(AF13*((LOG(AF13))/LOG(2)))) -> 0 | AI13: =N13 -> 221 | AJ13: =COUNTIF(L95:L123,AI13) -> 0 | AK13: =AJ13/(AL4-AJ11) -> 0 | AL13: =IF(AK13=0,0,(AK13*((LOG(AK13))/LOG(2)))) -> 0 | AN13: =N13 -> 221 | AO13: =COUNTIF(L124:L152,AN13) -> 0 | AP13: =AO13/(AQ4-AO11) -> 0 | AQ13: =IF(AP13=0,0,(AP13*((LOG(AP13))/LOG(2)))) -> 0 | AS13: =N13 -> 221 | AT13: =COUNTIF(L153:L181,AS13) -> 0 | AU13: =AT13/(AV4-AT11) -> 0 | AV13: =IF(AU13=0,0,(AU13*((LOG(AU13))/LOG(2)))) -> 0
A14: 12 | B14: 1005 | C14: 24 | D14: 1052 | E14: 24 | F14: 1066 | K14: 0 | L14: 122 | N14: 222 | O14: =COUNTIF($L$7:$L$500,N14) -> 68 | P14: =O14/$Q$4 -> 0.3885714286 | Q14: =IF(P14=0,0,(P14*((LOG(P14))/LOG(2)))) -> -0.5299136137 | T14: =N14 -> 222 | U14: =COUNTIF(L7:L35,T14) -> 2 | V14: =U14/(W4-U11) -> 0.06896551724 | W14: =IF(V14=0,0,(V14*((LOG(V14))/LOG(2)))) -> -0.2660676548 | Y14: =N14 -> 222 | Z14: =COUNTIF(L36:L64,Y14) -> 7 | AA14: =Z14/(AB4-Z11) -> 0.2413793103 | AB14: =IF(AA14=0,0,(AA14*((LOG(AA14))/LOG(2)))) -> -0.4949787073 | AD14: =N14 -> 222 | AE14: =COUNTIF(L65:L94,AD14) -> 14 | AF14: =AE14/(AG4-AE11) -> 0.4666666667 | AG14: =IF(AF14=0,0,(AF14*((LOG(AF14))/LOG(2)))) -> -0.5131166477 | AI14: =N14 -> 222 | AJ14: =COUNTIF(L95:L123,AI14) -> 14 | AK14: =AJ14/(AL4-AJ11) -> 0.4827586207 | AL14: =IF(AK14=0,0,(AK14*((LOG(AK14))/LOG(2)))) -> -0.5071987939 | AN14: =N14 -> 222 | AO14: =COUNTIF(L124:L152,AN14) -> 14 | AP14: =AO14/(AQ4-AO11) -> 0.4827586207 | AQ14: =IF(AP14=0,0,(AP14*((LOG(AP14))/LOG(2)))) -> -0.5071987939 | AS14: =N14 -> 222 | AT14: =COUNTIF(L153:L181,AS14) -> 17 | AU14: =AT14/(AV4-AT11) -> 0.5862068966 | AV14: =IF(AU14=0,0,(AU14*((LOG(AU14))/LOG(2)))) -> -0.4516830557
A15: 12 | B15: 1168 | C15: 13 | D15: 1190 | E15: 24 | F15: 1204 | K15: 0 | L15: 112 | P15: =SUM(P7:P14) -> 1 | Q15: =-SUM(Q7:Q14) -> 1.443421727 | V15: =SUM(V7:V14) -> 1 | W15: =-SUM(W7:W14) -> 1.217016339 | AA15: =SUM(AA7:AA14) -> 1 | AB15: =-SUM(AB7:AB14) -> 1.537755967 | AF15: =SUM(AF7:AF14) -> 1 | AG15: =-SUM(AG7:AG14) -> 1.368104837 | AK15: =SUM(AK7:AK14) -> 1 | AL15: =-SUM(AL7:AL14) -> 1.292164263 | AP15: =SUM(AP7:AP14) -> 1 | AQ15: =-SUM(AQ7:AQ14) -> 1.181914174 | AU15: =SUM(AU7:AU14) -> 1 | AV15: =-SUM(AV7:AV14) -> 1.149683888
A16: 12 | B16: 1303 | C16: 24 | D16: 1320 | E16: 24 | F16: 1327 | K16: 0 | L16: 122 | P16: U= | Q16: =Q15/(LOG(Q4)/LOG(2)) -> 0.1937163913 | V16: U1= | W16: =W15/(LOG(W4)/LOG(2)) -> 0.2505189584 | AA16: U2= | AB16: =AB15/(LOG(AB4)/LOG(2)) -> 0.316542195 | AF16: U3= | AG16: =AG15/(LOG(AG4)/LOG(2)) -> 0.2788129898 | AK16: U4= | AL16: =AL15/(LOG(AL4)/LOG(2)) -> 0.2659879205 | AP16: U5= | AQ16: =AQ15/(LOG(AQ4)/LOG(2)) -> 0.2432932889 | AU16: U6= | AV16: =AV15/(LOG(AV4)/LOG(2)) -> 0.2366587867
A17: 12 | B17: 1429 | C17: 24 | D17: 1456 | E17: 24 | F17: 1505 | K17: 0 | L17: 122
A18: 21 | B18: 1628 | C18: 22 | D18: 1636 | E18: 24 | F18: 1653 | K18: 0 | L18: 222
A19: 12 | B19: 1753 | C19: 24 | D19: 1768 | E19: 24 | F19: 1775 | K19: 0 | L19: 122 | N19: Total Target Seq
A20: 12 | B20: 1884 | C20: 24 | D20: 1900 | E20: 24 | F20: 1915 | K20: 0 | L20: 122 | N20: =COUNTIF(L7:L181,G3) -> 0 | P20: 29 | Q20: 29 | R20: 30 | S20: 29 | T20: 29 | U20: 29
A21: 12 | B21: 2015 | C21: 24 | D21: 2029 | E21: 24 | F21: 2036 | K21: 0 | L21: 122 | P21: % of reinforcement given in 6 equal intervals based on number of trials
A22: 12 | B22: 2139 | C22: 13 | D22: 2153 | E22: 24 | F22: 2166 | K22: 0 | L22: 112 | P22: %_1 | Q22: %_2 | R22: %_3 | S22: %_4 | T22: %_5 | U22: %_6
A23: 12 | B23: 2265 | C23: 13 | D23: 2276 | E23: 24 | F23: 2289 | K23: 0 | L23: 112 | O23: target sequence | P23: =$G$3 -> 211 | Q23: =$G$3 -> 211 | R23: =$G$3 -> 211 | S23: =$G$3 -> 211 | T23: =$G$3 -> 211 | U23: =$G$3 -> 211
A24: 12 | B24: 2391 | C24: 24 | D24: 2419 | E24: 24 | F24: 2442 | K24: 0 | L24: 122 | O24: total reinforcement | P24: =U11 -> 0 | Q24: =Z11 -> 0 | R24: =AE11 -> 0 | S24: =AJ11 -> 0 | T24: =AO11 -> 0 | U24: =AT11 -> 0
A25: 12 | B25: 2536 | C25: 24 | D25: 2551 | E25: 24 | F25: 2558 | K25: 0 | L25: 122 | O25: % target
A26: 12 | B26: 2659 | C26: 13 | D26: 2671 | E26: 24 | F26: 2691 | K26: 0 | L26: 112 | O26: CCRF
A27: 12 | B27: 2796 | C27: 24 | D27: 2809 | E27: 24 | F27: 2818 | K27: 0 | L27: 122 | O27: % CCRf
A28: 12 | B28: 2917 | C28: 24 | D28: 2946 | E28: 24 | F28: 2969 | K28: 0 | L28: 122 | O28: average response rate | P28: =F35/P20 -> 135.2758621 | Q28: =(F64-F35)/Q20 -> 135.0344828 | R28: =(F94-F64)/R20 -> 140.1333333 | S28: =(F123-F94)/S20 -> 135.2413793 | T28: =(F152-F123)/T20 -> 135.7241379 | U28: =(F181-F152)/U20 -> 138
A29: 12 | B29: 3070 | C29: 24 | D29: 3083 | E29: 24 | F29: 3092 | K29: 0 | L29: 122
A30: 12 | B30: 3187 | C30: 13 | D30: 3196 | E30: 24 | F30: 3209 | K30: 0 | L30: 112
A31: 12 | B31: 3309 | C31: 13 | D31: 3319 | E31: 24 | F31: 3331 | K31: 0 | L31: 112
A32: 12 | B32: 3433 | C32: 24 | D32: 3450 | E32: 24 | F32: 3467 | K32: 0 | L32: 122
A33: 12 | B33: 3568 | C33: 13 | D33: 3577 | E33: 24 | F33: 3590 | K33: 0 | L33: 112
A34: 21 | B34: 3743 | C34: 22 | D34: 3753 | E34: 24 | F34: 3782 | K34: 0 | L34: 222
A35: 12 | B35: 3895 | C35: 24 | D35: 3908 | E35: 24 | F35: 3923 | K35: 0 | L35: 122
A36: 12 | B36: 4019 | C36: 24 | D36: 4046 | E36: 24 | F36: 4064 | K36: 0 | L36: 122
A37: 12 | B37: 4175 | C37: 24 | D37: 4188 | E37: 24 | F37: 4261 | K37: 0 | L37: 122
A38: 12 | B38: 4361 | C38: 13 | D38: 4369 | E38: 24 | F38: 4383 | K38: 0 | L38: 112
A39: 12 | B39: 4483 | C39: 13 | D39: 4495 | E39: 24 | F39: 4513 | K39: 0 | L39: 112
A40: 12 | B40: 4628 | C40: 24 | D40: 4641 | E40: 24 | F40: 4650 | K40: 0 | L40: 122
A41: 12 | B41: 4756 | C41: 13 | D41: 4769 | E41: 24 | F41: 4782 | K41: 0 | L41: 112
A42: 12 | B42: 4882 | C42: 13 | D42: 4891 | E42: 24 | F42: 4906 | K42: 0 | L42: 112
A43: 12 | B43: 5001 | C43: 13 | D43: 5010 | E43: 24 | F43: 5023 | K43: 0 | L43: 112
A44: 21 | B44: 5139 | C44: 22 | D44: 5148 | E44: 24 | F44: 5183 | K44: 0 | L44: 222
A45: 12 | B45: 5290 | C45: 24 | D45: 5303 | E45: 24 | F45: 5311 | K45: 0 | L45: 122
A46: 12 | B46: 5415 | C46: 24 | D46: 5425 | E46: 24 | F46: 5454 | K46: 0 | L46: 122
A47: 12 | B47: 5562 | C47: 24 | D47: 5574 | E47: 24 | F47: 5580 | K47: 0 | L47: 122
A48: 12 | B48: 5684 | C48: 24 | D48: 5696 | E48: 24 | F48: 5713 | K48: 0 | L48: 122
A49: 12 | B49: 5815 | C49: 24 | D49: 5837 | E49: 24 | F49: 5845 | K49: 0 | L49: 122
A50: 21 | B50: 5958 | C50: 22 | D50: 5975 | E50: 24 | F50: 5992 | K50: 0 | L50: 222
A51: 12 | B51: 6092 | C51: 13 | D51: 6103 | E51: 24 | F51: 6115 | K51: 0 | L51: 112
A52: 12 | B52: 6220 | C52: 24 | D52: 6233 | E52: 24 | F52: 6251 | K52: 0 | L52: 122
A53: 21 | B53: 6376 | C53: 22 | D53: 6384 | E53: 24 | F53: 6393 | K53: 0 | L53: 222
A54: 21 | B54: 6509 | C54: 22 | D54: 6528 | E54: 24 | F54: 6539 | K54: 0 | L54: 222
A55: 12 | B55: 6638 | C55: 24 | D55: 6653 | E55: 24 | F55: 6660 | K55: 0 | L55: 122
A56: 12 | B56: 6764 | C56: 13 | D56: 6774 | E56: 24 | F56: 6797 | K56: 0 | L56: 112
A57: 12 | B57: 6896 | C57: 13 | D57: 6907 | E57: 24 | F57: 6919 | K57: 0 | L57: 112
A58: 21 | B58: 7035 | C58: 22 | D58: 7042 | E58: 24 | F58: 7050 | K58: 0 | L58: 222
A59: 21 | B59: 7166 | C59: 22 | D59: 7174 | E59: 24 | F59: 7182 | K59: 0 | L59: 222
A60: 12 | B60: 7287 | C60: 24 | D60: 7300 | E60: 24 | F60: 7315 | K60: 0 | L60: 122
A61: 12 | B61: 7409 | C61: 24 | D61: 7430 | E61: 24 | F61: 7438 | K61: 0 | L61: 122
A62: 12 | B62: 7540 | C62: 24 | D62: 7553 | E62: 24 | F62: 7582 | K62: 0 | L62: 122
A63: 12 | B63: 7682 | C63: 13 | D63: 7683 | E63: 24 | F63: 7699 | K63: 0 | L63: 112
A64: 21 | B64: 7815 | C64: 22 | D64: 7832 | E64: 24 | F64: 7839 | K64: 0 | L64: 222
A65: 12 | B65: 7938 | C65: 13 | D65: 7948 | E65: 24 | F65: 7960 | K65: 0 | L65: 112
A66: 12 | B66: 8064 | C66: 24 | D66: 8078 | E66: 24 | F66: 8098 | K66: 0 | L66: 122
A67: 12 | B67: 8205 | C67: 24 | D67: 8219 | E67: 24 | F67: 8226 | K67: 0 | L67: 122
A68: 12 | B68: 8333 | C68: 13 | D68: 8340 | E68: 24 | F68: 8357 | K68: 0 | L68: 112
A69: 21 | B69: 8475 | C69: 22 | D69: 8504 | E69: 24 | F69: 8516 | K69: 0 | L69: 222
A70: 21 | B70: 8636 | C70: 22 | D70: 8644 | E70: 24 | F70: 8656 | K70: 0 | L70: 222
A71: 21 | B71: 8776 | C71: 22 | D71: 8785 | E71: 24 | F71: 8817 | K71: 0 | L71: 222
A72: 21 | B72: 8922 | C72: 22 | D72: 8927 | E72: 24 | F72: 8934 | K72: 0 | L72: 222
A73: 21 | B73: 9047 | C73: 22 | D73: 9065 | E73: 24 | F73: 9138 | K73: 0 | L73: 222
A74: 12 | B74: 9244 | C74: 24 | D74: 9256 | E74: 24 | F74: 9293 | K74: 0 | L74: 122
A75: 12 | B75: 9391 | C75: 24 | D75: 9400 | E75: 24 | F75: 9414 | K75: 0 | L75: 122
A76: 12 | B76: 9513 | C76: 13 | D76: 9520 | E76: 24 | F76: 9549 | K76: 0 | L76: 112
A77: 21 | B77: 9687 | C77: 22 | D77: 9720 | E77: 24 | F77: 9728 | K77: 0 | L77: 222
A78: 21 | B78: 9853 | C78: 22 | D78: 9865 | E78: 24 | F78: 9890 | K78: 0 | L78: 222
A79: 12 | B79: 9992 | C79: 24 | D79: 10002 | E79: 24 | F79: 10007 | K79: 0 | L79: 122
A80: 12 | B80: 10107 | C80: 24 | D80: 10120 | E80: 24 | F80: 10132 | K80: 0 | L80: 122
A81: 21 | B81: 10239 | C81: 22 | D81: 10247 | E81: 24 | F81: 10279 | K81: 0 | L81: 222
A82: 21 | B82: 10382 | C82: 22 | D82: 10387 | E82: 24 | F82: 10392 | K82: 0 | L82: 222
A83: 12 | B83: 10495 | C83: 24 | D83: 10507 | E83: 24 | F83: 10526 | K83: 0 | L83: 122
A84: 12 | B84: 10633 | C84: 24 | D84: 10646 | E84: 24 | F84: 10652 | K84: 0 | L84: 122
A85: 21 | B85: 10757 | C85: 22 | D85: 10763 | E85: 24 | F85: 10771 | K85: 0 | L85: 222
A86: 21 | B86: 10875 | C86: 22 | D86: 10880 | E86: 24 | F86: 10937 | K86: 0 | L86: 222
A87: 21 | B87: 11056 | C87: 22 | D87: 11082 | E87: 24 | F87: 11105 | K87: 0 | L87: 222
A88: 12 | B88: 11212 | C88: 24 | D88: 11224 | E88: 24 | F88: 11233 | K88: 0 | L88: 122
A89: 12 | B89: 11340 | C89: 24 | D89: 11355 | E89: 24 | F89: 11361 | K89: 0 | L89: 122
A90: 12 | B90: 11457 | C90: 24 | D90: 11466 | E90: 24 | F90: 11472 | K90: 0 | L90: 122
A91: 12 | B91: 11572 | C91: 24 | D91: 11583 | E91: 24 | F91: 11590 | K91: 0 | L91: 122
A92: 21 | B92: 11703 | C92: 22 | D92: 11711 | E92: 24 | F92: 11739 | K92: 0 | L92: 222
A93: 21 | B93: 11897 | C93: 22 | D93: 11907 | E93: 24 | F93: 11930 | K93: 0 | L93: 222
A94: 12 | B94: 12025 | C94: 24 | D94: 12037 | E94: 24 | F94: 12043 | K94: 0 | L94: 122
A95: 21 | B95: 12157 | C95: 22 | D95: 12162 | E95: 24 | F95: 12171 | K95: 0 | L95: 222
A96: 12 | B96: 12267 | C96: 24 | D96: 12282 | E96: 24 | F96: 12289 | K96: 0 | L96: 122
A97: 21 | B97: 12398 | C97: 22 | D97: 12435 | E97: 24 | F97: 12442 | K97: 0 | L97: 222
A98: 21 | B98: 12559 | C98: 22 | D98: 12574 | E98: 24 | F98: 12582 | K98: 0 | L98: 222
A99: 21 | B99: 12693 | C99: 22 | D99: 12716 | E99: 24 | F99: 12724 | K99: 0 | L99: 222
A100: 21 | B100: 12823 | C100: 22 | D100: 12828 | E100: 24 | F100: 12846 | K100: 0 | L100: 222
A101: 12 | B101: 12948 | C101: 24 | D101: 12964 | E101: 24 | F101: 13025 | K101: 0 | L101: 122
A102: 12 | B102: 13132 | C102: 24 | D102: 13145 | E102: 24 | F102: 13150 | K102: 0 | L102: 122
A103: 21 | B103: 13270 | C103: 22 | D103: 13313 | E103: 24 | F103: 13324 | K103: 0 | L103: 222
A104: 21 | B104: 13432 | C104: 22 | D104: 13447 | E104: 24 | F104: 13462 | K104: 0 | L104: 222
A105: 21 | B105: 13573 | C105: 22 | D105: 13578 | E105: 24 | F105: 13594 | K105: 0 | L105: 222
A106: 21 | B106: 13707 | C106: 22 | D106: 13712 | E106: 24 | F106: 13727 | K106: 0 | L106: 222
A107: 12 | B107: 13830 | C107: 24 | D107: 13839 | E107: 24 | F107: 13845 | K107: 0 | L107: 122
A108: 12 | B108: 13944 | C108: 24 | D108: 13956 | E108: 24 | F108: 13967 | K108: 0 | L108: 122
A109: 12 | B109: 14068 | C109: 24 | D109: 14081 | E109: 24 | F109: 14086 | K109: 0 | L109: 122
A110: 21 | B110: 14189 | C110: 22 | D110: 14232 | E110: 24 | F110: 14240 | K110: 0 | L110: 222
A111: 21 | B111: 14378 | C111: 22 | D111: 14386 | E111: 24 | F111: 14419 | K111: 0 | L111: 222
A112: 12 | B112: 14518 | C112: 13 | D112: 14527 | E112: 24 | F112: 14540 | K112: 0 | L112: 112
A113: 12 | B113: 14640 | C113: 24 | D113: 14654 | E113: 24 | F113: 14667 | K113: 0 | L113: 122
A114: 12 | B114: 14767 | C114: 24 | D114: 14780 | E114: 24 | F114: 14786 | K114: 0 | L114: 122
A115: 21 | B115: 14898 | C115: 22 | D115: 14907 | E115: 24 | F115: 14916 | K115: 0 | L115: 222
A116: 12 | B116: 15016 | C116: 13 | D116: 15030 | E116: 24 | F116: 15046 | K116: 0 | L116: 112
A117: 12 | B117: 15142 | C117: 24 | D117: 15155 | E117: 24 | F117: 15162 | K117: 0 | L117: 122
A118: 21 | B118: 15277 | C118: 22 | D118: 15299 | E118: 24 | F118: 15318 | K118: 0 | L118: 222
A119: 12 | B119: 15420 | C119: 24 | D119: 15428 | E119: 24 | F119: 15435 | K119: 0 | L119: 122
A120: 12 | B120: 15537 | C120: 24 | D120: 15562 | E120: 24 | F120: 15570 | K120: 0 | L120: 122
A121: 12 | B121: 15678 | C121: 24 | D121: 15690 | E121: 24 | F121: 15697 | K121: 0 | L121: 122
A122: 21 | B122: 15811 | C122: 22 | D122: 15816 | E122: 24 | F122: 15830 | K122: 0 | L122: 222
A123: 12 | B123: 15940 | C123: 24 | D123: 15955 | E123: 24 | F123: 15965 | K123: 0 | L123: 122
A124: 12 | B124: 16070 | C124: 24 | D124: 16081 | E124: 24 | F124: 16105 | K124: 0 | L124: 122
A125: 21 | B125: 16215 | C125: 22 | D125: 16246 | E125: 24 | F125: 16254 | K125: 0 | L125: 222
A126: 12 | B126: 16366 | C126: 24 | D126: 16377 | E126: 24 | F126: 16391 | K126: 0 | L126: 122
A127: 12 | B127: 16494 | C127: 24 | D127: 16526 | E127: 24 | F127: 16541 | K127: 0 | L127: 122
A128: 12 | B128: 16654 | C128: 24 | D128: 16664 | E128: 24 | F128: 16669 | K128: 0 | L128: 122
A129: 21 | B129: 16787 | C129: 22 | D129: 16807 | E129: 24 | F129: 16830 | K129: 0 | L129: 222
A130: 21 | B130: 16953 | C130: 22 | D130: 16970 | E130: 24 | F130: 16999 | K130: 0 | L130: 222
A131: 21 | B131: 17107 | C131: 22 | D131: 17127 | E131: 24 | F131: 17139 | K131: 0 | L131: 222
A132: 12 | B132: 17239 | C132: 24 | D132: 17254 | E132: 24 | F132: 17261 | K132: 0 | L132: 122
A133: 21 | B133: 17371 | C133: 22 | D133: 17376 | E133: 24 | F133: 17384 | K133: 0 | L133: 222
A134: 21 | B134: 17499 | C134: 22 | D134: 17513 | E134: 24 | F134: 17530 | K134: 0 | L134: 222
A135: 21 | B135: 17641 | C135: 22 | D135: 17645 | E135: 24 | F135: 17666 | K135: 0 | L135: 222
A136: 21 | B136: 17770 | C136: 22 | D136: 17806 | E136: 24 | F136: 17848 | K136: 0 | L136: 222
A137: 21 | B137: 17966 | C137: 22 | D137: 17972 | E137: 24 | F137: 17979 | K137: 0 | L137: 222
A138: 12 | B138: 18080 | C138: 24 | D138: 18091 | E138: 24 | F138: 18111 | K138: 0 | L138: 122
A139: 12 | B139: 18212 | C139: 24 | D139: 18222 | E139: 24 | F139: 18259 | K139: 0 | L139: 122
A140: 21 | B140: 18366 | C140: 22 | D140: 18371 | E140: 24 | F140: 18379 | K140: 0 | L140: 222
A141: 12 | B141: 18481 | C141: 24 | D141: 18493 | E141: 24 | F141: 18498 | K141: 0 | L141: 122
A142: 21 | B142: 18601 | C142: 22 | D142: 18611 | E142: 24 | F142: 18627 | K142: 0 | L142: 222
A143: 21 | B143: 18730 | C143: 22 | D143: 18735 | E143: 24 | F143: 18742 | K143: 0 | L143: 222
A144: 21 | B144: 18844 | C144: 22 | D144: 18857 | E144: 24 | F144: 18871 | K144: 0 | L144: 222
A145: 12 | B145: 18973 | C145: 13 | D145: 18982 | E145: 24 | F145: 18994 | K145: 0 | L145: 112
A146: 12 | B146: 19096 | C146: 24 | D146: 19108 | E146: 24 | F146: 19114 | K146: 0 | L146: 122
A147: 12 | B147: 19214 | C147: 24 | D147: 19230 | E147: 24 | F147: 19236 | K147: 0 | L147: 122
A148: 12 | B148: 19340 | C148: 24 | D148: 19353 | E148: 24 | F148: 19357 | K148: 0 | L148: 122
A149: 12 | B149: 19457 | C149: 24 | D149: 19470 | E149: 24 | F149: 19475 | K149: 0 | L149: 122
A150: 21 | B150: 19605 | C150: 22 | D150: 19618 | E150: 24 | F150: 19627 | K150: 0 | L150: 222
A151: 12 | B151: 19737 | C151: 24 | D151: 19755 | E151: 24 | F151: 19790 | K151: 0 | L151: 122
A152: 12 | B152: 19885 | C152: 24 | D152: 19896 | E152: 24 | F152: 19901 | K152: 0 | L152: 122
A153: 21 | B153: 20003 | C153: 22 | D153: 20008 | E153: 24 | F153: 20022 | K153: 0 | L153: 222
A154: 21 | B154: 20132 | C154: 22 | D154: 20165 | E154: 24 | F154: 20173 | K154: 0 | L154: 222
A155: 21 | B155: 20279 | C155: 22 | D155: 20284 | E155: 24 | F155: 20297 | K155: 0 | L155: 222
A156: 21 | B156: 20415 | C156: 22 | D156: 20456 | E156: 24 | F156: 20469 | K156: 0 | L156: 222
A157: 12 | B157: 20577 | C157: 24 | D157: 20593 | E157: 24 | F157: 20615 | K157: 0 | L157: 122
A158: 12 | B158: 20718 | C158: 24 | D158: 20731 | E158: 24 | F158: 20739 | K158: 0 | L158: 122
A159: 12 | B159: 20841 | C159: 24 | D159: 20850 | E159: 24 | F159: 20856 | K159: 0 | L159: 122
A160: 12 | B160: 20956 | C160: 13 | D160: 20962 | E160: 24 | F160: 20975 | K160: 0 | L160: 112
A161: 21 | B161: 21078 | C161: 22 | D161: 21097 | E161: 24 | F161: 21103 | K161: 0 | L161: 222
A162: 21 | B162: 21208 | C162: 22 | D162: 21236 | E162: 24 | F162: 21253 | K162: 0 | L162: 222
A163: 12 | B163: 21351 | C163: 24 | D163: 21363 | E163: 24 | F163: 21368 | K163: 0 | L163: 122
A164: 12 | B164: 21476 | C164: 24 | D164: 21488 | E164: 24 | F164: 21495 | K164: 0 | L164: 122
A165: 12 | B165: 21599 | C165: 24 | D165: 21612 | E165: 24 | F165: 21630 | K165: 0 | L165: 122
A166: 12 | B166: 21734 | C166: 24 | D166: 21744 | E166: 24 | F166: 21750 | K166: 0 | L166: 122
A167: 21 | B167: 21864 | C167: 22 | D167: 21870 | E167: 24 | F167: 21878 | K167: 0 | L167: 222
A168: 21 | B168: 21994 | C168: 22 | D168: 22000 | E168: 24 | F168: 22009 | K168: 0 | L168: 222
A169: 21 | B169: 22114 | C169: 22 | D169: 22119 | E169: 24 | F169: 22143 | K169: 0 | L169: 222
A170: 21 | B170: 22240 | C170: 22 | D170: 22252 | E170: 24 | F170: 22257 | K170: 0 | L170: 222
A171: 21 | B171: 22401 | C171: 22 | D171: 22416 | E171: 24 | F171: 22445 | K171: 0 | L171: 222
A172: 21 | B172: 22556 | C172: 22 | D172: 22578 | E172: 24 | F172: 22633 | K172: 0 | L172: 222
A173: 12 | B173: 22733 | C173: 24 | D173: 22743 | E173: 24 | F173: 22748 | K173: 0 | L173: 122
A174: 21 | B174: 22876 | C174: 22 | D174: 22884 | E174: 24 | F174: 22905 | K174: 0 | L174: 222
A175: 12 | B175: 23010 | C175: 24 | D175: 23024 | E175: 24 | F175: 23030 | K175: 0 | L175: 122
A176: 21 | B176: 23157 | C176: 22 | D176: 23167 | E176: 24 | F176: 23175 | K176: 0 | L176: 222
A177: 21 | B177: 23281 | C177: 22 | D177: 23301 | E177: 24 | F177: 23313 | K177: 0 | L177: 222
A178: 12 | B178: 23415 | C178: 24 | D178: 23436 | E178: 24 | F178: 23460 | K178: 0 | L178: 122
A179: 21 | B179: 23570 | C179: 22 | D179: 23576 | E179: 24 | F179: 23603 | K179: 0 | L179: 222
A180: 12 | B180: 23710 | C180: 24 | D180: 23725 | E180: 24 | F180: 23742 | K180: 0 | L180: 122
A181: 21 | B181: 23858 | C181: 22 | D181: 23888 | E181: 24 | F181: 23903 | K181: 0 | L181: 222

Sheet !M926650.091
A1: Report for:!M926650.091
A2: Date: | B2: <date>
A3: Hen: | B3: <hen> | F3: Correct Sequence | G3: =Start!J2 -> 211 | P3: Total Sequences in Data | Q3: =4994-COUNTBLANK(L7:L5000) -> 184 | V3: Total Sequences in Block Data | W3: =COUNTA(L7:L37) -> 31 | AA3: Total Sequences in Block Data | AB3: =COUNTA(L38:L67) -> 30 | AF3: Total Sequences in Block Data | AG3: =COUNTA(L68:L98) -> 31 | AK3: Total Sequences in Block Data | AL3: =COUNTA(L99:L129) -> 31 | AP3: Total Sequences in Block Data | AQ3: =COUNTA(L130:L159) -> 30 | AU3: Total Sequences in Block Data | AV3: =COUNTA(L160:L190) -> 31
P4: Total Sequences in Summary | Q4: =SUM(O7:O14) -> 184 | V4: Total Sequences in Block Summary | W4: =SUM(U7:U14) -> 31 | AA4: Total Sequences in Block Summary | AB4: =SUM(Z7:Z14) -> 30 | AF4: Total Sequences in Block Summary | AG4: =SUM(AE7:AE14) -> 31 | AK4: Total Sequences in Block Summary | AL4: =SUM(AJ7:AJ14) -> 31 | AP4: Total Sequences in Block Summary | AQ4: =SUM(AO7:AO14) -> 30 | AU4: Total Sequences in Block Summary | AV4: =SUM(AT7:AT14) -> 31
T5: Block 1 | Y5: Block 2 | AD5: Block 3 | AI5: Block 4 | AN5: Block 5 | AS5: Block 6
A6: Sequence Component 1 | B6: Time 1 | C6: Sequence Component 2 | D6: Time 2 | E6: Sequence Component 3 | F6: Time 3 | G6: Sequence Component 4 | H6: Time 4 | I6: Sequence Component 5 | J6: Time 5 | K6: Correct? 0=No 1=Yes | L6: Sequence | N6: Frequency | P6: Relative Frequency | Q6: Variability | T6: Frequency | V6: Relative Frequency | W6: Variability | Y6: Frequency | AA6: Relative Frequency | AB6: Variability | AD6: Frequency | AF6: Relative Frequency | AG6: Variability | AI6: Frequency | AK6: Relative Frequency | AL6: Variability | AN6: Frequency | AP6: Relative Frequency | AQ6: Variability | AS6: Frequency | AU6: Relative Frequency | AV6: Variability
A7: 21 | B7: 21 | C7: 22 | D7: 30 | E7: 24 | F7: 42 | K7: 0 | L7: 222 | N7: 111 | O7: =COUNTIF($L$7:$L$500,N7) -> 0 | P7: =O7/$Q$4 -> 0 | Q7: =IF(P7=0,0,(P7*((LOG(P7))/LOG(2)))) -> 0 | T7: =N7 -> 111 | U7: =COUNTIF(L7:L37,T7) -> 0 | V7: =U7/(W4-U11) -> 0 | W7: =IF(V7=0,0,(V7*((LOG(V7))/LOG(2)))) -> 0 | Y7: =N7 -> 111 | Z7: =COUNTIF(L38:L67,Y7) -> 0 | AA7: =Z7/(AB4-Z11) -> 0 | AB7: =IF(AA7=0,0,(AA7*((LOG(AA7))/LOG(2)))) -> 0 | AD7: =N7 -> 111 | AE7: =COUNTIF(L68:L98,AD7) -> 0 | AF7: =AE7/(AG4-AE11) -> 0 | AG7: =IF(AF7=0,0,(AF7*((LOG(AF7))/LOG(2)))) -> 0 | AI7: =N7 -> 111 | AJ7: =COUNTIF(L99:L129,AI7) -> 0 | AK7: =AJ7/(AL4-AJ11) -> 0 | AL7: =IF(AK7=0,0,(AK7*((LOG(AK7))/LOG(2)))) -> 0 | AN7: =N7 -> 111 | AO7: =COUNTIF(L130:L159,AN7) -> 0 | AP7: =AO7/(AQ4-AO11) -> 0 | AQ7: =IF(AP7=0,0,(AP7*((LOG(AP7))/LOG(2)))) -> 0 | AS7: =N7 -> 111 | AT7: =COUNTIF(L160:L190,AS7) -> 0 | AU7: =AT7/(AV4-AT11) -> 0 | AV7: =IF(AU7=0,0,(AU7*((LOG(AU7))/LOG(2)))) -> 0
A8: 12 | B8: 145 | C8: 13 | D8: 156 | E8: 24 | F8: 168 | K8: 0 | L8: 112 | N8: 112 | O8: =COUNTIF($L$7:$L$500,N8) -> 13 | P8: =O8/$Q$4 -> 0.07065217391 | Q8: =IF(P8=0,0,(P8*((LOG(P8))/LOG(2)))) -> -0.2701118972 | T8: =N8 -> 112 | U8: =COUNTIF(L7:L37,T8) -> 7 | V8: =U8/(W4-U11) -> 0.2258064516 | W8: =IF(V8=0,0,(V8*((LOG(V8))/LOG(2)))) -> -0.4847706361 | Y8: =N8 -> 112 | Z8: =COUNTIF(L38:L67,Y8) -> 5 | AA8: =Z8/(AB4-Z11) -> 0.1666666667 | AB8: =IF(AA8=0,0,(AA8*((LOG(AA8))/LOG(2)))) -> -0.4308270835 | AD8: =N8 -> 112 | AE8: =COUNTIF(L68:L98,AD8) -> 0 | AF8: =AE8/(AG4-AE11) -> 0 | AG8: =IF(AF8=0,0,(AF8*((LOG(AF8))/LOG(2)))) -> 0 | AI8: =N8 -> 112 | AJ8: =COUNTIF(L99:L129,AI8) -> 0 | AK8: =AJ8/(AL4-AJ11) -> 0 | AL8: =IF(AK8=0,0,(AK8*((LOG(AK8))/LOG(2)))) -> 0 | AN8: =N8 -> 112 | AO8: =COUNTIF(L130:L159,AN8) -> 0 | AP8: =AO8/(AQ4-AO11) -> 0 | AQ8: =IF(AP8=0,0,(AP8*((LOG(AP8))/LOG(2)))) -> 0 | AS8: =N8 -> 112 | AT8: =COUNTIF(L160:L190,AS8) -> 1 | AU8: =AT8/(AV4-AT11) -> 0.03225806452 | AV8: =IF(AU8=0,0,(AU8*((LOG(AU8))/LOG(2)))) -> -0.1598127842
A9: 12 | B9: 275 | C9: 24 | D9: 293 | E9: 24 | F9: 302 | K9: 0 | L9: 122 | N9: 121 | O9: =COUNTIF($L$7:$L$500,N9) -> 0 | P9: =O9/$Q$4 -> 0 | Q9: =IF(P9=0,0,(P9*((LOG(P9))/LOG(2)))) -> 0 | T9: =N9 -> 121 | U9: =COUNTIF(L7:L37,T9) -> 0 | V9: =U9/(W4-U11) -> 0 | W9: =IF(V9=0,0,(V9*((LOG(V9))/LOG(2)))) -> 0 | Y9: =N9 -> 121 | Z9: =COUNTIF(L38:L67,Y9) -> 0 | AA9: =Z9/(AB4-Z11) -> 0 | AB9: =IF(AA9=0,0,(AA9*((LOG(AA9))/LOG(2)))) -> 0 | AD9: =N9 -> 121 | AE9: =COUNTIF(L68:L98,AD9) -> 0 | AF9: =AE9/(AG4-AE11) -> 0 | AG9: =IF(AF9=0,0,(AF9*((LOG(AF9))/LOG(2)))) -> 0 | AI9: =N9 -> 121 | AJ9: =COUNTIF(L99:L129,AI9) -> 0 | AK9: =AJ9/(AL4-AJ11) -> 0 | AL9: =IF(AK9=0,0,(AK9*((LOG(AK9))/LOG(2)))) -> 0 | AN9: =N9 -> 121 | AO9: =COUNTIF(L130:L159,AN9) -> 0 | AP9: =AO9/(AQ4-AO11) -> 0 | AQ9: =IF(AP9=0,0,(AP9*((LOG(AP9))/LOG(2)))) -> 0 | AS9: =N9 -> 121 | AT9: =COUNTIF(L160:L190,AS9) -> 0 | AU9: =AT9/(AV4-AT11) -> 0 | AV9: =IF(AU9=0,0,(AU9*((LOG(AU9))/LOG(2)))) -> 0
A10: 12 | B10: 402 | C10: 13 | D10: 413 | E10: 24 | F10: 426 | K10: 0 | L10: 112 | N10: 122 | O10: =COUNTIF($L$7:$L$500,N10) -> 91 | P10: =O10/$Q$4 -> 0.4945652174 | Q10: =IF(P10=0,0,(P10*((LOG(P10))/LOG(2)))) -> -0.5023631834 | T10: =N10 -> 122 | U10: =COUNTIF(L7:L37,T10) -> 20 | V10: =U10/(W4-U11) -> 0.6451612903 | W10: =IF(V10=0,0,(V10*((LOG(V10))/LOG(2)))) -> -0.4079149777 | Y10: =N10 -> 122 | Z10: =COUNTIF(L38:L67,Y10) -> 20 | AA10: =Z10/(AB4-Z11) -> 0.6666666667 | AB10: =IF(AA10=0,0,(AA10*((LOG(AA10))/LOG(2)))) -> -0.3899750005 | AD10: =N10 -> 122 | AE10: =COUNTIF(L68:L98,AD10) -> 12 | AF10: =AE10/(AG4-AE11) -> 0.3870967742 | AG10: =IF(AF10=0,0,(AF10*((LOG(AF10))/LOG(2)))) -> -0.5300259908 | AI10: =N10 -> 122 | AJ10: =COUNTIF(L99:L129,AI10) -> 12 | AK10: =AJ10/(AL4-AJ11) -> 0.3870967742 | AL10: =IF(AK10=0,0,(AK10*((LOG(AK10))/LOG(2)))) -> -0.5300259908 | AN10: =N10 -> 122 | AO10: =COUNTIF(L130:L159,AN10) -> 12 | AP10: =AO10/(AQ4-AO11) -> 0.4 | AQ10: =IF(AP10=0,0,(AP10*((LOG(AP10))/LOG(2)))) -> -0.528771238 | AS10: =N10 -> 122 | AT10: =COUNTIF(L160:L190,AS10) -> 15 | AU10: =AT10/(AV4-AT11) -> 0.4838709677 | AV10: =IF(AU10=0,0,(AU10*((LOG(AU10))/LOG(2)))) -> -0.5067608297
A11: 12 | B11: 524 | C11: 24 | D11: 538 | E11: 24 | F11: 547 | K11: 0 | L11: 122 | N11: 211 | O11: =COUNTIF($L$7:$L$500,N11) -> 0 | P11: =O11/$Q$4 -> 0 | Q11: =IF(P11=0,0,(P11*((LOG(P11))/LOG(2)))) -> 0 | T11: =N11 -> 211 | U11: =COUNTIF(L7:L37,T11) -> 0 | Y11: =N11 -> 211 | Z11: =COUNTIF(L38:L67,Y11) -> 0 | AD11: =N11 -> 211 | AE11: =COUNTIF(L68:L98,AD11) -> 0 | AI11: =N11 -> 211 | AJ11: =COUNTIF(L99:L129,AI11) -> 0 | AN11: =N11 -> 211 | AO11: =COUNTIF(L130:L159,AN11) -> 0 | AS11: =N11 -> 211 | AT11: =COUNTIF(L160:L190,AS11) -> 0
A12: 12 | B12: 642 | C12: 24 | D12: 660 | E12: 24 | F12: 669 | K12: 0 | L12: 122 | N12: 212 | O12: =COUNTIF($L$7:$L$500,N12) -> 0 | P12: =O12/$Q$4 -> 0 | Q12: =IF(P12=0,0,(P12*((LOG(P12))/LOG(2)))) -> 0 | T12: =N12 -> 212 | U12: =COUNTIF(L7:L37,T12) -> 0 | V12: =U12/(W4-U11) -> 0 | W12: =IF(V12=0,0,(V12*((LOG(V12))/LOG(2)))) -> 0 | Y12: =N12 -> 212 | Z12: =COUNTIF(L38:L67,Y12) -> 0 | AA12: =Z12/(AB4-Z11) -> 0 | AB12: =IF(AA12=0,0,(AA12*((LOG(AA12))/LOG(2)))) -> 0 | AD12: =N12 -> 212 | AE12: =COUNTIF(L68:L98,AD12) -> 0 | AF12: =AE12/(AG4-AE11) -> 0 | AG12: =IF(AF12=0,0,(AF12*((LOG(AF12))/LOG(2)))) -> 0 | AI12: =N12 -> 212 | AJ12: =COUNTIF(L99:L129,AI12) -> 0 | AK12: =AJ12/(AL4-AJ11) -> 0 | AL12: =IF(AK12=0,0,(AK12*((LOG(AK12))/LOG(2)))) -> 0 | AN12: =N12 -> 212 | AO12: =COUNTIF(L130:L159,AN12) -> 0 | AP12: =AO12/(AQ4-AO11) -> 0 | AQ12: =IF(AP12=0,0,(AP12*((LOG(AP12))/LOG(2)))) -> 0 | AS12: =N12 -> 212 | AT12: =COUNTIF(L160:L190,AS12) -> 0 | AU12: =AT12/(AV4-AT11) -> 0 | AV12: =IF(AU12=0,0,(AU12*((LOG(AU12))/LOG(2)))) -> 0
A13: 12 | B13: 771 | C13: 24 | D13: 784 | E13: 24 | F13: 796 | K13: 0 | L13: 122 | N13: 221 | O13: =COUNTIF($L$7:$L$500,N13) -> 0 | P13: =O13/$Q$4 -> 0 | Q13: =IF(P13=0,0,(P13*((LOG(P13))/LOG(2)))) -> 0 | T13: =N13 -> 221 | U13: =COUNTIF(L7:L37,T13) -> 0 | V13: =U13/(W4-U11) -> 0 | W13: =IF(V13=0,0,(V13*((LOG(V13))/LOG(2)))) -> 0 | Y13: =N13 -> 221 | Z13: =COUNTIF(L38:L67,Y13) -> 0 | AA13: =Z13/(AB4-Z11) -> 0 | AB13: =IF(AA13=0,0,(AA13*((LOG(AA13))/LOG(2)))) -> 0 | AD13: =N13 -> 221 | AE13: =COUNTIF(L68:L98,AD13) -> 0 | AF13: =AE13/(AG4-AE11) -> 0 | AG13: =IF(AF13=0,0,(AF13*((LOG(AF13))/LOG(2)))) -> 0 | AI13: =N13 -> 221 | AJ13: =COUNTIF(L99:L129,AI13) -> 0 | AK13: =AJ13/(AL4-AJ11) -> 0 | AL13: =IF(AK13=0,0,(AK13*((LOG(AK13))/LOG(2)))) -> 0 | AN13: =N13 -> 221 | AO13: =COUNTIF(L130:L159,AN13) -> 0 | AP13: =AO13/(AQ4-AO11) -> 0 | AQ13: =IF(AP13=0,0,(AP13*((LOG(AP13))/LOG(2)))) -> 0 | AS13: =N13 -> 221 | AT13: =COUNTIF(L160:L190,AS13) -> 0 | AU13: =AT13/(AV4-AT11) -> 0 | AV13: =IF(AU13=0,0,(AU13*((LOG(AU13))/LOG(2)))) -> 0
A14: 12 | B14: 897 | C14: 24 | D14: 913 | E14: 24 | F14: 932 | K14: 0 | L14: 122 | N14: 222 | O14: =COUNTIF($L$7:$L$500,N14) -> 80 | P14: =O14/$Q$4 -> 0.4347826087 | Q14: =IF(P14=0,0,(P14*((LOG(P14))/LOG(2)))) -> -0.5224495049 | T14: =N14 -> 222 | U14: =COUNTIF(L7:L37,T14) -> 4 | V14: =U14/(W4-U11) -> 0.1290322581 | W14: =IF(V14=0,0,(V14*((LOG(V14))/LOG(2)))) -> -0.3811866207 | Y14: =N14 -> 222 | Z14: =COUNTIF(L38:L67,Y14) -> 5 | AA14: =Z14/(AB4-Z11) -> 0.1666666667 | AB14: =IF(AA14=0,0,(AA14*((LOG(AA14))/LOG(2)))) -> -0.4308270835 | AD14: =N14 -> 222 | AE14: =COUNTIF(L68:L98,AD14) -> 19 | AF14: =AE14/(AG4-AE11) -> 0.6129032258 | AG14: =IF(AF14=0,0,(AF14*((LOG(AF14))/LOG(2)))) -> -0.4328744239 | AI14: =N14 -> 222 | AJ14: =COUNTIF(L99:L129,AI14) -> 19 | AK14: =AJ14/(AL4-AJ11) -> 0.6129032258 | AL14: =IF(AK14=0,0,(AK14*((LOG(AK14))/LOG(2)))) -> -0.4328744239 | AN14: =N14 -> 222 | AO14: =COUNTIF(L130:L159,AN14) -> 18 | AP14: =AO14/(AQ4-AO11) -> 0.6 | AQ14: =IF(AP14=0,0,(AP14*((LOG(AP14))/LOG(2)))) -> -0.4421793565 | AS14: =N14 -> 222 | AT14: =COUNTIF(L160:L190,AS14) -> 15 | AU14: =AT14/(AV4-AT11) -> 0.4838709677 | AV14: =IF(AU14=0,0,(AU14*((LOG(AU14))/LOG(2)))) -> -0.5067608297
A15: 12 | B15: 1029 | C15: 24 | D15: 1045 | E15: 24 | F15: 1055 | K15: 0 | L15: 122 | P15: =SUM(P7:P14) -> 1 | Q15: =-SUM(Q7:Q14) -> 1.294924585 | V15: =SUM(V7:V14) -> 1 | W15: =-SUM(W7:W14) -> 1.273872235 | AA15: =SUM(AA7:AA14) -> 1 | AB15: =-SUM(AB7:AB14) -> 1.251629167 | AF15: =SUM(AF7:AF14) -> 1 | AG15: =-SUM(AG7:AG14) -> 0.9629004148 | AK15: =SUM(AK7:AK14) -> 1 | AL15: =-SUM(AL7:AL14) -> 0.9629004148 | AP15: =SUM(AP7:AP14) -> 1 | AQ15: =-SUM(AQ7:AQ14) -> 0.9709505945 | AU15: =SUM(AU7:AU14) -> 1 | AV15: =-SUM(AV7:AV14) -> 1.173334444
A16: 12 | B16: 1157 | C16: 13 | D16: 1169 | E16: 24 | F16: 1183 | K16: 0 | L16: 112 | P16: U= | Q16: =Q15/(LOG(Q4)/LOG(2)) -> 0.1721158931 | V16: U1= | W16: =W15/(LOG(W4)/LOG(2)) -> 0.257129947 | AA16: U2= | AB16: =AB15/(LOG(AB4)/LOG(2)) -> 0.2550758251 | AF16: U3= | AG16: =AG15/(LOG(AG4)/LOG(2)) -> 0.1943605692 | AK16: U4= | AL16: =AL15/(LOG(AL4)/LOG(2)) -> 0.1943605692 | AP16: U5= | AQ16: =AQ15/(LOG(AQ4)/LOG(2)) -> 0.1978749221 | AU16: U6= | AV16: =AV15/(LOG(AV4)/LOG(2)) -> 0.2368364857
A17: 12 | B17: 1279 | C17: 24 | D17: 1292 | E17: 24 | F17: 1306 | K17: 0 | L17: 122
A18: 12 | B18: 1404 | C18: 13 | D18: 1419 | E18: 24 | F18: 1432 | K18: 0 | L18: 112
A19: 12 | B19: 1531 | C19: 24 | D19: 1550 | E19: 24 | F19: 1559 | K19: 0 | L19: 122 | N19: Total Target Seq
A20: 12 | B20: 1662 | C20: 24 | D20: 1699 | E20: 24 | F20: 1714 | K20: 0 | L20: 122 | N20: =COUNTIF(L7:L190,G3) -> 0 | P20: 31 | Q20: 30 | R20: 31 | S20: 31 | T20: 30 | U20: 31
A21: 12 | B21: 1808 | C21: 24 | D21: 1823 | E21: 24 | F21: 1829 | K21: 0 | L21: 122 | P21: % of reinforcement given in 6 equal intervals based on number of trials
A22: 12 | B22: 1927 | C22: 24 | D22: 1941 | E22: 24 | F22: 1947 | K22: 0 | L22: 122 | P22: %_1 | Q22: %_2 | R22: %_3 | S22: %_4 | T22: %_5 | U22: %_6
A23: 12 | B23: 2046 | C23: 24 | D23: 2068 | E23: 24 | F23: 2082 | K23: 0 | L23: 122 | O23: target sequence | P23: =$G$3 -> 211 | Q23: =$G$3 -> 211 | R23: =$G$3 -> 211 | S23: =$G$3 -> 211 | T23: =$G$3 -> 211 | U23: =$G$3 -> 211
A24: 12 | B24: 2190 | C24: 24 | D24: 2204 | E24: 24 | F24: 2230 | K24: 0 | L24: 122 | O24: total reinforcement | P24: =U11 -> 0 | Q24: =Z11 -> 0 | R24: =AE11 -> 0 | S24: =AJ11 -> 0 | T24: =AO11 -> 0 | U24: =AT11 -> 0
A25: 12 | B25: 2330 | C25: 13 | D25: 2339 | E25: 24 | F25: 2352 | K25: 0 | L25: 112 | O25: % target
A26: 21 | B26: 2461 | C26: 22 | D26: 2467 | E26: 24 | F26: 2477 | K26: 0 | L26: 222 | O26: CCRF
A27: 12 | B27: 2578 | C27: 24 | D27: 2589 | E27: 24 | F27: 2637 | K27: 0 | L27: 122 | O27: % CCRf
A28: 21 | B28: 2742 | C28: 22 | D28: 2751 | E28: 24 | F28: 2760 | K28: 0 | L28: 222 | O28: average response rate | P28: =F37/P20 -> 129.2258065 | Q28: =(F67-F37)/Q20 -> 132.0333333 | R28: =(F98-F67)/R20 -> 132.1612903 | S28: =(F129-F98)/S20 -> 131.2903226 | T28: =(F159-F129)/T20 -> 129.7666667 | U28: =(F190-F159)/U20 -> 127.9354839
A29: 12 | B29: 2861 | C29: 24 | D29: 2876 | E29: 24 | F29: 2920 | K29: 0 | L29: 122
A30: 12 | B30: 3022 | C30: 24 | D30: 3042 | E30: 24 | F30: 3061 | K30: 0 | L30: 122
A31: 12 | B31: 3167 | C31: 24 | D31: 3181 | E31: 24 | F31: 3206 | K31: 0 | L31: 122
A32: 12 | B32: 3300 | C32: 13 | D32: 3309 | E32: 24 | F32: 3318 | K32: 0 | L32: 112
A33: 12 | B33: 3420 | C33: 24 | D33: 3435 | E33: 24 | F33: 3454 | K33: 0 | L33: 122
A34: 12 | B34: 3558 | C34: 13 | D34: 3570 | E34: 24 | F34: 3585 | K34: 0 | L34: 112
A35: 12 | B35: 3681 | C35: 24 | D35: 3698 | E35: 24 | F35: 3741 | K35: 0 | L35: 122
A36: 12 | B36: 3843 | C36: 24 | D36: 3858 | E36: 24 | F36: 3870 | K36: 0 | L36: 122
A37: 21 | B37: 3983 | C37: 22 | D37: 3998 | E37: 24 | F37: 4006 | K37: 0 | L37: 222
A38: 12 | B38: 4107 | C38: 24 | D38: 4122 | E38: 24 | F38: 4149 | K38: 0 | L38: 122
A39: 12 | B39: 4252 | C39: 13 | D39: 4262 | E39: 24 | F39: 4281 | K39: 0 | L39: 112
A40: 12 | B40: 4379 | C40: 13 | D40: 4388 | E40: 24 | F40: 4399 | K40: 0 | L40: 112
A41: 12 | B41: 4499 | C41: 24 | D41: 4515 | E41: 24 | F41: 4538 | K41: 0 | L41: 122
A42: 12 | B42: 4631 | C42: 13 | D42: 4641 | E42: 24 | F42: 4655 | K42: 0 | L42: 112
A43: 12 | B43: 4761 | C43: 24 | D43: 4776 | E43: 24 | F43: 4787 | K43: 0 | L43: 122
A44: 12 | B44: 4885 | C44: 13 | D44: 4894 | E44: 24 | F44: 4906 | K44: 0 | L44: 112
A45: 21 | B45: 5019 | C45: 22 | D45: 5025 | E45: 24 | F45: 5040 | K45: 0 | L45: 222
A46: 12 | B46: 5139 | C46: 13 | D46: 5146 | E46: 24 | F46: 5161 | K46: 0 | L46: 112
A47: 12 | B47: 5260 | C47: 24 | D47: 5278 | E47: 24 | F47: 5294 | K47: 0 | L47: 122
A48: 12 | B48: 5395 | C48: 24 | D48: 5410 | E48: 24 | F48: 5418 | K48: 0 | L48: 122
A49: 12 | B49: 5521 | C49: 24 | D49: 5534 | E49: 24 | F49: 5562 | K49: 0 | L49: 122
A50: 21 | B50: 5664 | C50: 22 | D50: 5670 | E50: 24 | F50: 5678 | K50: 0 | L50: 222
A51: 12 | B51: 5781 | C51: 24 | D51: 5795 | E51: 24 | F51: 5820 | K51: 0 | L51: 122
A52: 12 | B52: 5919 | C52: 24 | D52: 5933 | E52: 24 | F52: 5946 | K52: 0 | L52: 122
A53: 12 | B53: 6062 | C53: 24 | D53: 6074 | E53: 24 | F53: 6089 | K53: 0 | L53: 122
A54: 12 | B54: 6203 | C54: 24 | D54: 6217 | E54: 24 | F54: 6232 | K54: 0 | L54: 122
A55: 12 | B55: 6333 | C55: 24 | D55: 6347 | E55: 24 | F55: 6353 | K55: 0 | L55: 122
A56: 12 | B56: 6456 | C56: 24 | D56: 6476 | E56: 24 | F56: 6487 | K56: 0 | L56: 122
A57: 21 | B57: 6602 | C57: 22 | D57: 6611 | E57: 24 | F57: 6647 | K57: 0 | L57: 222
A58: 12 | B58: 6746 | C58: 24 | D58: 6759 | E58: 24 | F58: 6786 | K58: 0 | L58: 122
A59: 12 | B59: 6891 | C59: 24 | D59: 6902 | E59: 24 | F59: 6940 | K59: 0 | L59: 122
A60: 12 | B60: 7042 | C60: 24 | D60: 7058 | E60: 24 | F60: 7072 | K60: 0 | L60: 122
A61: 12 | B61: 7175 | C61: 24 | D61: 7189 | E61: 24 | F61: 7233 | K61: 0 | L61: 122
A62: 12 | B62: 7336 | C62: 24 | D62: 7346 | E62: 24 | F62: 7351 | K62: 0 | L62: 122
A63: 12 | B63: 7457 | C63: 24 | D63: 7467 | E63: 24 | F63: 7480 | K63: 0 | L63: 122
A64: 12 | B64: 7581 | C64: 24 | D64: 7596 | E64: 24 | F64: 7603 | K64: 0 | L64: 122
A65: 21 | B65: 7707 | C65: 22 | D65: 7712 | E65: 24 | F65: 7739 | K65: 0 | L65: 222
A66: 12 | B66: 7834 | C66: 24 | D66: 7847 | E66: 24 | F66: 7852 | K66: 0 | L66: 122
A67: 21 | B67: 7957 | C67: 22 | D67: 7962 | E67: 24 | F67: 7967 | K67: 0 | L67: 222
A68: 21 | B68: 8074 | C68: 22 | D68: 8080 | E68: 24 | F68: 8095 | K68: 0 | L68: 222
A69: 12 | B69: 8196 | C69: 24 | D69: 8210 | E69: 24 | F69: 8216 | K69: 0 | L69: 122
A70: 12 | B70: 8322 | C70: 24 | D70: 8363 | E70: 24 | F70: 8371 | K70: 0 | L70: 122
A71: 21 | B71: 8485 | C71: 22 | D71: 8490 | E71: 24 | F71: 8500 | K71: 0 | L71: 222
A72: 12 | B72: 8595 | C72: 24 | D72: 8608 | E72: 24 | F72: 8613 | K72: 0 | L72: 122
A73: 21 | B73: 8727 | C73: 22 | D73: 8733 | E73: 24 | F73: 8741 | K73: 0 | L73: 222
A74: 21 | B74: 8858 | C74: 22 | D74: 8863 | E74: 24 | F74: 8904 | K74: 0 | L74: 222
A75: 12 | B75: 9001 | C75: 24 | D75: 9019 | E75: 24 | F75: 9034 | K75: 0 | L75: 122
A76: 12 | B76: 9136 | C76: 24 | D76: 9149 | E76: 24 | F76: 9154 | K76: 0 | L76: 122
A77: 12 | B77: 9254 | C77: 24 | D77: 9267 | E77: 24 | F77: 9279 | K77: 0 | L77: 122
A78: 21 | B78: 9393 | C78: 22 | D78: 9399 | E78: 24 | F78: 9420 | K78: 0 | L78: 222
A79: 21 | B79: 9530 | C79: 22 | D79: 9561 | E79: 24 | F79: 9575 | K79: 0 | L79: 222
A80: 21 | B80: 9691 | C80: 22 | D80: 9696 | E80: 24 | F80: 9702 | K80: 0 | L80: 222
A81: 12 | B81: 9809 | C81: 24 | D81: 9822 | E81: 24 | F81: 9845 | K81: 0 | L81: 122
A82: 21 | B82: 9953 | C82: 22 | D82: 9958 | E82: 24 | F82: 9967 | K82: 0 | L82: 222
A83: 21 | B83: 10078 | C83: 22 | D83: 10095 | E83: 24 | F83: 10104 | K83: 0 | L83: 222
A84: 21 | B84: 10211 | C84: 22 | D84: 10220 | E84: 24 | F84: 10225 | K84: 0 | L84: 222
A85: 21 | B85: 10341 | C85: 22 | D85: 10360 | E85: 24 | F85: 10373 | K85: 0 | L85: 222
A86: 21 | B86: 10481 | C86: 22 | D86: 10486 | E86: 24 | F86: 10495 | K86: 0 | L86: 222
A87: 21 | B87: 10602 | C87: 22 | D87: 10622 | E87: 24 | F87: 10630 | K87: 0 | L87: 222
A88: 12 | B88: 10733 | C88: 24 | D88: 10747 | E88: 24 | F88: 10754 | K88: 0 | L88: 122
A89: 12 | B89: 10857 | C89: 24 | D89: 10871 | E89: 24 | F89: 10891 | K89: 0 | L89: 122
A90: 12 | B90: 10992 | C90: 24 | D90: 11006 | E90: 24 | F90: 11017 | K90: 0 | L90: 122
A91: 21 | B91: 11130 | C91: 22 | D91: 11135 | E91: 24 | F91: 11150 | K91: 0 | L91: 222
A92: 12 | B92: 11251 | C92: 24 | D92: 11260 | E92: 24 | F92: 11265 | K92: 0 | L92: 122
A93: 21 | B93: 11370 | C93: 22 | D93: 11376 | E93: 24 | F93: 11384 | K93: 0 | L93: 222
A94: 21 | B94: 11489 | C94: 22 | D94: 11495 | E94: 24 | F94: 11502 | K94: 0 | L94: 222
A95: 21 | B95: 11605 | C95: 22 | D95: 11611 | E95: 24 | F95: 11654 | K95: 0 | L95: 222
A96: 12 | B96: 11768 | C96: 24 | D96: 11780 | E96: 24 | F96: 11787 | K96: 0 | L96: 122
A97: 21 | B97: 11903 | C97: 22 | D97: 11909 | E97: 24 | F97: 11919 | K97: 0 | L97: 222
A98: 21 | B98: 12030 | C98: 22 | D98: 12056 | E98: 24 | F98: 12064 | K98: 0 | L98: 222
A99: 12 | B99: 12169 | C99: 24 | D99: 12187 | E99: 24 | F99: 12197 | K99: 0 | L99: 122
A100: 21 | B100: 12300 | C100: 22 | D100: 12306 | E100: 24 | F100: 12311 | K100: 0 | L100: 222
A101: 12 | B101: 12414 | C101: 24 | D101: 12427 | E101: 24 | F101: 12438 | K101: 0 | L101: 122
A102: 21 | B102: 12558 | C102: 22 | D102: 12563 | E102: 24 | F102: 12571 | K102: 0 | L102: 222
A103: 12 | B103: 12674 | C103: 24 | D103: 12686 | E103: 24 | F103: 12691 | K103: 0 | L103: 122
A104: 21 | B104: 12795 | C104: 22 | D104: 12805 | E104: 24 | F104: 12814 | K104: 0 | L104: 222
A105: 12 | B105: 12921 | C105: 24 | D105: 12935 | E105: 24 | F105: 12944 | K105: 0 | L105: 122
A106: 12 | B106: 13047 | C106: 24 | D106: 13064 | E106: 24 | F106: 13072 | K106: 0 | L106: 122
A107: 12 | B107: 13175 | C107: 24 | D107: 13189 | E107: 24 | F107: 13203 | K107: 0 | L107: 122
A108: 21 | B108: 13312 | C108: 22 | D108: 13318 | E108: 24 | F108: 13335 | K108: 0 | L108: 222
A109: 12 | B109: 13436 | C109: 24 | D109: 13449 | E109: 24 | F109: 13455 | K109: 0 | L109: 122
A110: 12 | B110: 13552 | C110: 24 | D110: 13564 | E110: 24 | F110: 13569 | K110: 0 | L110: 122
A111: 21 | B111: 13674 | C111: 22 | D111: 13679 | E111: 24 | F111: 13685 | K111: 0 | L111: 222
A112: 21 | B112: 13800 | C112: 22 | D112: 13806 | E112: 24 | F112: 13813 | K112: 0 | L112: 222
A113: 21 | B113: 13916 | C113: 22 | D113: 13926 | E113: 24 | F113: 13944 | K113: 0 | L113: 222
A114: 21 | B114: 14045 | C114: 22 | D114: 14049 | E114: 24 | F114: 14058 | K114: 0 | L114: 222
A115: 21 | B115: 14165 | C115: 22 | D115: 14180 | E115: 24 | F115: 14196 | K115: 0 | L115: 222
A116: 21 | B116: 14305 | C116: 22 | D116: 14310 | E116: 24 | F116: 14315 | K116: 0 | L116: 222
A117: 21 | B117: 14424 | C117: 22 | D117: 14440 | E117: 24 | F117: 14448 | K117: 0 | L117: 222
A118: 12 | B118: 14553 | C118: 24 | D118: 14563 | E118: 24 | F118: 14569 | K118: 0 | L118: 122
A119: 21 | B119: 14682 | C119: 22 | D119: 14696 | E119: 24 | F119: 14723 | K119: 0 | L119: 222
A120: 21 | B120: 14825 | C120: 22 | D120: 14830 | E120: 24 | F120: 14835 | K120: 0 | L120: 222
A121: 21 | B121: 14948 | C121: 22 | D121: 14964 | E121: 24 | F121: 15022 | K121: 0 | L121: 222
A122: 12 | B122: 15120 | C122: 24 | D122: 15135 | E122: 24 | F122: 15143 | K122: 0 | L122: 122
A123: 12 | B123: 15250 | C123: 24 | D123: 15261 | E123: 24 | F123: 15278 | K123: 0 | L123: 122
A124: 21 | B124: 15382 | C124: 22 | D124: 15387 | E124: 24 | F124: 15404 | K124: 0 | L124: 222
A125: 21 | B125: 15518 | C125: 22 | D125: 15533 | E125: 24 | F125: 15549 | K125: 0 | L125: 222
A126: 12 | B126: 15647 | C126: 24 | D126: 15663 | E126: 24 | F126: 15668 | K126: 0 | L126: 122
A127: 21 | B127: 15778 | C127: 22 | D127: 15792 | E127: 24 | F127: 15800 | K127: 0 | L127: 222
A128: 21 | B128: 15925 | C128: 22 | D128: 15938 | E128: 24 | F128: 15945 | K128: 0 | L128: 222
A129: 21 | B129: 16083 | C129: 22 | D129: 16100 | E129: 24 | F129: 16134 | K129: 0 | L129: 222
A130: 21 | B130: 16241 | C130: 22 | D130: 16247 | E130: 24 | F130: 16254 | K130: 0 | L130: 222
A131: 12 | B131: 16355 | C131: 24 | D131: 16368 | E131: 24 | F131: 16374 | K131: 0 | L131: 122
A132: 21 | B132: 16475 | C132: 22 | D132: 16486 | E132: 24 | F132: 16519 | K132: 0 | L132: 222
A133: 21 | B133: 16635 | C133: 22 | D133: 16643 | E133: 24 | F133: 16683 | K133: 0 | L133: 222
A134: 21 | B134: 16789 | C134: 22 | D134: 16795 | E134: 24 | F134: 16808 | K134: 0 | L134: 222
A135: 12 | B135: 16909 | C135: 24 | D135: 16922 | E135: 24 | F135: 16928 | K135: 0 | L135: 122
A136: 12 | B136: 17028 | C136: 24 | D136: 17045 | E136: 24 | F136: 17062 | K136: 0 | L136: 122
A137: 12 | B137: 17169 | C137: 24 | D137: 17183 | E137: 24 | F137: 17203 | K137: 0 | L137: 122
A138: 12 | B138: 17306 | C138: 24 | D138: 17320 | E138: 24 | F138: 17355 | K138: 0 | L138: 122
A139: 12 | B139: 17456 | C139: 24 | D139: 17466 | E139: 24 | F139: 17470 | K139: 0 | L139: 122
A140: 21 | B140: 17573 | C140: 22 | D140: 17580 | E140: 24 | F140: 17585 | K140: 0 | L140: 222
A141: 21 | B141: 17693 | C141: 22 | D141: 17698 | E141: 24 | F141: 17728 | K141: 0 | L141: 222
A142: 21 | B142: 17843 | C142: 22 | D142: 17859 | E142: 24 | F142: 17880 | K142: 0 | L142: 222
A143: 21 | B143: 17983 | C143: 22 | D143: 17989 | E143: 24 | F143: 17994 | K143: 0 | L143: 222
A144: 12 | B144: 18099 | C144: 24 | D144: 18116 | E144: 24 | F144: 18124 | K144: 0 | L144: 122
A145: 21 | B145: 18239 | C145: 22 | D145: 18254 | E145: 24 | F145: 18261 | K145: 0 | L145: 222
A146: 12 | B146: 18363 | C146: 24 | D146: 18377 | E146: 24 | F146: 18391 | K146: 0 | L146: 122
A147: 21 | B147: 18497 | C147: 22 | D147: 18503 | E147: 24 | F147: 18516 | K147: 0 | L147: 222
A148: 12 | B148: 18619 | C148: 24 | D148: 18632 | E148: 24 | F148: 18654 | K148: 0 | L148: 122
A149: 21 | B149: 18759 | C149: 22 | D149: 18763 | E149: 24 | F149: 18768 | K149: 0 | L149: 222
A150: 12 | B150: 18864 | C150: 24 | D150: 18877 | E150: 24 | F150: 18889 | K150: 0 | L150: 122
A151: 12 | B151: 18992 | C151: 24 | D151: 19002 | E151: 24 | F151: 19007 | K151: 0 | L151: 122
A152: 21 | B152: 19107 | C152: 22 | D152: 19116 | E152: 24 | F152: 19149 | K152: 0 | L152: 222
A153: 21 | B153: 19250 | C153: 22 | D153: 19255 | E153: 24 | F153: 19261 | K153: 0 | L153: 222
A154: 21 | B154: 19368 | C154: 22 | D154: 19374 | E154: 24 | F154: 19389 | K154: 0 | L154: 222
A155: 21 | B155: 19496 | C155: 22 | D155: 19505 | E155: 24 | F155: 19525 | K155: 0 | L155: 222
A156: 21 | B156: 19627 | C156: 22 | D156: 19632 | E156: 24 | F156: 19637 | K156: 0 | L156: 222
A157: 21 | B157: 19746 | C157: 22 | D157: 19751 | E157: 24 | F157: 19765 | K157: 0 | L157: 222
A158: 12 | B158: 19873 | C158: 24 | D158: 19886 | E158: 24 | F158: 19892 | K158: 0 | L158: 122
A159: 21 | B159: 20006 | C159: 22 | D159: 20011 | E159: 24 | F159: 20027 | K159: 0 | L159: 222
A160: 21 | B160: 20136 | C160: 22 | D160: 20149 | E160: 24 | F160: 20157 | K160: 0 | L160: 222
A161: 12 | B161: 20256 | C161: 24 | D161: 20270 | E161: 24 | F161: 20275 | K161: 0 | L161: 122
A162: 12 | B162: 20378 | C162: 24 | D162: 20388 | E162: 24 | F162: 20393 | K162: 0 | L162: 122
A163: 12 | B163: 20496 | C163: 24 | D163: 20509 | E163: 24 | F163: 20515 | K163: 0 | L163: 122
A164: 12 | B164: 20617 | C164: 24 | D164: 20635 | E164: 24 | F164: 20672 | K164: 0 | L164: 122
A165: 21 | B165: 20775 | C165: 22 | D165: 20780 | E165: 24 | F165: 20805 | K165: 0 | L165: 222
A166: 12 | B166: 20903 | C166: 24 | D166: 20916 | E166: 24 | F166: 20921 | K166: 0 | L166: 122
A167: 21 | B167: 21028 | C167: 22 | D167: 21042 | E167: 24 | F167: 21050 | K167: 0 | L167: 222
A168: 21 | B168: 21162 | C168: 22 | D168: 21168 | E168: 24 | F168: 21175 | K168: 0 | L168: 222
A169: 21 | B169: 21295 | C169: 22 | D169: 21306 | E169: 24 | F169: 21330 | K169: 0 | L169: 222
A170: 21 | B170: 21436 | C170: 22 | D170: 21450 | E170: 24 | F170: 21457 | K170: 0 | L170: 222
A171: 12 | B171: 21560 | C171: 24 | D171: 21578 | E171: 24 | F171: 21586 | K171: 0 | L171: 122
A172: 21 | B172: 21697 | C172: 22 | D172: 21705 | E172: 24 | F172: 21719 | K172: 0 | L172: 222
A173: 21 | B173: 21818 | C173: 22 | D173: 21823 | E173: 24 | F173: 21828 | K173: 0 | L173: 222
A174: 21 | B174: 21926 | C174: 22 | D174: 21934 | E174: 24 | F174: 21953 | K174: 0 | L174: 222
A175: 12 | B175: 22057 | C175: 24 | D175: 22071 | E175: 24 | F175: 22075 | K175: 0 | L175: 122
A176: 12 | B176: 22174 | C176: 24 | D176: 22186 | E176: 24 | F176: 22191 | K176: 0 | L176: 122
A177: 12 | B177: 22291 | C177: 24 | D177: 22310 | E177: 24 | F177: 22318 | K177: 0 | L177: 122
A178: 12 | B178: 22428 | C178: 24 | D178: 22442 | E178: 24 | F178: 22455 | K178: 0 | L178: 122
A179: 21 | B179: 22556 | C179: 22 | D179: 22563 | E179: 24 | F179: 22593 | K179: 0 | L179: 222
A180: 21 | B180: 22695 | C180: 22 | D180: 22699 | E180: 24 | F180: 22705 | K180: 0 | L180: 222
A181: 21 | B181: 22812 | C181: 22 | D181: 22817 | E181: 24 | F181: 22833 | K181: 0 | L181: 222
A182: 21 | B182: 22939 | C182: 22 | D182: 22944 | E182: 24 | F182: 22950 | K182: 0 | L182: 222
A183: 12 | B183: 23054 | C183: 24 | D183: 23069 | E183: 24 | F183: 23082 | K183: 0 | L183: 122
A184: 21 | B184: 23198 | C184: 22 | D184: 23202 | E184: 24 | F184: 23211 | K184: 0 | L184: 222
A185: 12 | B185: 23308 | C185: 13 | D185: 23317 | E185: 24 | F185: 23331 | K185: 0 | L185: 112
A186: 21 | B186: 23435 | C186: 22 | D186: 23441 | E186: 24 | F186: 23470 | K186: 0 | L186: 222
A187: 12 | B187: 23572 | C187: 24 | D187: 23588 | E187: 24 | F187: 23612 | K187: 0 | L187: 122
A188: 12 | B188: 23719 | C188: 24 | D188: 23734 | E188: 24 | F188: 23739 | K188: 0 | L188: 122
A189: 12 | B189: 23837 | C189: 24 | D189: 23856 | E189: 24 | F189: 23863 | K189: 0 | L189: 122
A190: 12 | B190: 23966 | C190: 24 | D190: 23978 | E190: 24 | F190: 23993 | L190: 122

Sheet !M927750.091
A1: Report for:!M927750.091
A2: Date: | B2: <date>
A3: Hen: | B3: <hen> | F3: Correct Sequence | G3: =Start!J2 -> 211 | P3: Total Sequences in Data | Q3: =4994-COUNTBLANK(L7:L5000) -> 183 | V3: Total Sequences in Block Data | W3: =COUNTA(L7:L37) -> 31 | AA3: Total Sequences in Block Data | AB3: =COUNTA(L38:L67) -> 30 | AF3: Total Sequences in Block Data | AG3: =COUNTA(L68:L98) -> 31 | AK3: Total Sequences in Block Data | AL3: =COUNTA(L99:L128) -> 30 | AP3: Total Sequences in Block Data | AQ3: =COUNTA(L129:L159) -> 31 | AU3: Total Sequences in Block Data | AV3: =COUNTA(L160:L189) -> 30
P4: Total Sequences in Summary | Q4: =SUM(O7:O14) -> 183 | V4: Total Sequences in Block Summary | W4: =SUM(U7:U14) -> 31 | AA4: Total Sequences in Block Summary | AB4: =SUM(Z7:Z14) -> 30 | AF4: Total Sequences in Block Summary | AG4: =SUM(AE7:AE14) -> 31 | AK4: Total Sequences in Block Summary | AL4: =SUM(AJ7:AJ14) -> 30 | AP4: Total Sequences in Block Summary | AQ4: =SUM(AO7:AO14) -> 31 | AU4: Total Sequences in Block Summary | AV4: =SUM(AT7:AT14) -> 30
T5: Block 1 | Y5: Block 2 | AD5: Block 3 | AI5: Block 4 | AN5: Block 5 | AS5: Block 6
A6: Sequence Component 1 | B6: Time 1 | C6: Sequence Component 2 | D6: Time 2 | E6: Sequence Component 3 | F6: Time 3 | G6: Sequence Component 4 | H6: Time 4 | I6: Sequence Component 5 | J6: Time 5 | K6: Correct? 0=No 1=Yes | L6: Sequence | N6: Frequency | P6: Relative Frequency | Q6: Variability | T6: Frequency | V6: Relative Frequency | W6: Variability | Y6: Frequency | AA6: Relative Frequency | AB6: Variability | AD6: Frequency | AF6: Relative Frequency | AG6: Variability | AI6: Frequency | AK6: Relative Frequency | AL6: Variability | AN6: Frequency | AP6: Relative Frequency | AQ6: Variability | AS6: Frequency | AU6: Relative Frequency | AV6: Variability
A7: 21 | B7: 20 | C7: 22 | D7: 40 | E7: 24 | F7: 57 | K7: 0 | L7: 222 | N7: 111 | O7: =COUNTIF($L$7:$L$500,N7) -> 0 | P7: =O7/$Q$4 -> 0 | Q7: =IF(P7=0,0,(P7*((LOG(P7))/LOG(2)))) -> 0 | T7: =N7 -> 111 | U7: =COUNTIF(L7:L37,T7) -> 0 | V7: =U7/(W4-U11) -> 0 | W7: =IF(V7=0,0,(V7*((LOG(V7))/LOG(2)))) -> 0 | Y7: =N7 -> 111 | Z7: =COUNTIF(L38:L67,Y7) -> 0 | AA7: =Z7/(AB4-Z11) -> 0 | AB7: =IF(AA7=0,0,(AA7*((LOG(AA7))/LOG(2)))) -> 0 | AD7: =N7 -> 111 | AE7: =COUNTIF(L68:L98,AD7) -> 0 | AF7: =AE7/(AG4-AE11) -> 0 | AG7: =IF(AF7=0,0,(AF7*((LOG(AF7))/LOG(2)))) -> 0 | AI7: =N7 -> 111 | AJ7: =COUNTIF(L99:L128,AI7) -> 0 | AK7: =AJ7/(AL4-AJ11) -> 0 | AL7: =IF(AK7=0,0,(AK7*((LOG(AK7))/LOG(2)))) -> 0 | AN7: =N7 -> 111 | AO7: =COUNTIF(L129:L159,AN7) -> 0 | AP7: =AO7/(AQ4-AO11) -> 0 | AQ7: =IF(AP7=0,0,(AP7*((LOG(AP7))/LOG(2)))) -> 0 | AS7: =N7 -> 111 | AT7: =COUNTIF(L160:L189,AS7) -> 0 | AU7: =AT7/(AV4-AT11) -> 0 | AV7: =IF(AU7=0,0,(AU7*((LOG(AU7))/LOG(2)))) -> 0
A8: 21 | B8: 167 | C8: 22 | D8: 176 | E8: 24 | F8: 185 | K8: 0 | L8: 222 | N8: 112 | O8: =COUNTIF($L$7:$L$500,N8) -> 2 | P8: =O8/$Q$4 -> 0.01092896175 | Q8: =IF(P8=0,0,(P8*((LOG(P8))/LOG(2)))) -> -0.0712098343 | T8: =N8 -> 112 | U8: =COUNTIF(L7:L37,T8) -> 0 | V8: =U8/(W4-U11) -> 0 | W8: =IF(V8=0,0,(V8*((LOG(V8))/LOG(2)))) -> 0 | Y8: =N8 -> 112 | Z8: =COUNTIF(L38:L67,Y8) -> 1 | AA8: =Z8/(AB4-Z11) -> 0.03333333333 | AB8: =IF(AA8=0,0,(AA8*((LOG(AA8))/LOG(2)))) -> -0.1635630199 | AD8: =N8 -> 112 | AE8: =COUNTIF(L68:L98,AD8) -> 0 | AF8: =AE8/(AG4-AE11) -> 0 | AG8: =IF(AF8=0,0,(AF8*((LOG(AF8))/LOG(2)))) -> 0 | AI8: =N8 -> 112 | AJ8: =COUNTIF(L99:L128,AI8) -> 0 | AK8: =AJ8/(AL4-AJ11) -> 0 | AL8: =IF(AK8=0,0,(AK8*((LOG(AK8))/LOG(2)))) -> 0 | AN8: =N8 -> 112 | AO8: =COUNTIF(L129:L159,AN8) -> 0 | AP8: =AO8/(AQ4-AO11) -> 0 | AQ8: =IF(AP8=0,0,(AP8*((LOG(AP8))/LOG(2)))) -> 0 | AS8: =N8 -> 112 | AT8: =COUNTIF(L160:L189,AS8) -> 1 | AU8: =AT8/(AV4-AT11) -> 0.03333333333 | AV8: =IF(AU8=0,0,(AU8*((LOG(AU8))/LOG(2)))) -> -0.1635630199
A9: 21 | B9: 292 | C9: 22 | D9: 306 | E9: 24 | F9: 315 | K9: 0 | L9: 222 | N9: 121 | O9: =COUNTIF($L$7:$L$500,N9) -> 0 | P9: =O9/$Q$4 -> 0 | Q9: =IF(P9=0,0,(P9*((LOG(P9))/LOG(2)))) -> 0 | T9: =N9 -> 121 | U9: =COUNTIF(L7:L37,T9) -> 0 | V9: =U9/(W4-U11) -> 0 | W9: =IF(V9=0,0,(V9*((LOG(V9))/LOG(2)))) -> 0 | Y9: =N9 -> 121 | Z9: =COUNTIF(L38:L67,Y9) -> 0 | AA9: =Z9/(AB4-Z11) -> 0 | AB9: =IF(AA9=0,0,(AA9*((LOG(AA9))/LOG(2)))) -> 0 | AD9: =N9 -> 121 | AE9: =COUNTIF(L68:L98,AD9) -> 0 | AF9: =AE9/(AG4-AE11) -> 0 | AG9: =IF(AF9=0,0,(AF9*((LOG(AF9))/LOG(2)))) -> 0 | AI9: =N9 -> 121 | AJ9: =COUNTIF(L99:L128,AI9) -> 0 | AK9: =AJ9/(AL4-AJ11) -> 0 | AL9: =IF(AK9=0,0,(AK9*((LOG(AK9))/LOG(2)))) -> 0 | AN9: =N9 -> 121 | AO9: =COUNTIF(L129:L159,AN9) -> 0 | AP9: =AO9/(AQ4-AO11) -> 0 | AQ9: =IF(AP9=0,0,(AP9*((LOG(AP9))/LOG(2)))) -> 0 | AS9: =N9 -> 121 | AT9: =COUNTIF(L160:L189,AS9) -> 0 | AU9: =AT9/(AV4-AT11) -> 0 | AV9: =IF(AU9=0,0,(AU9*((LOG(AU9))/LOG(2)))) -> 0
A10: 12 | B10: 420 | C10: 24 | D10: 437 | E10: 24 | F10: 485 | K10: 0 | L10: 122 | N10: 122 | O10: =COUNTIF($L$7:$L$500,N10) -> 98 | P10: =O10/$Q$4 -> 0.5355191257 | Q10: =IF(P10=0,0,(P10*((LOG(P10))/LOG(2)))) -> -0.4824973739 | T10: =N10 -> 122 | U10: =COUNTIF(L7:L37,T10) -> 15 | V10: =U10/(W4-U11) -> 0.4838709677 | W10: =IF(V10=0,0,(V10*((LOG(V10))/LOG(2)))) -> -0.5067608297 | Y10: =N10 -> 122 | Z10: =COUNTIF(L38:L67,Y10) -> 14 | AA10: =Z10/(AB4-Z11) -> 0.4666666667 | AB10: =IF(AA10=0,0,(AA10*((LOG(AA10))/LOG(2)))) -> -0.5131166477 | AD10: =N10 -> 122 | AE10: =COUNTIF(L68:L98,AD10) -> 21 | AF10: =AE10/(AG4-AE11) -> 0.6774193548 | AG10: =IF(AF10=0,0,(AF10*((LOG(AF10))/LOG(2)))) -> -0.3806276335 | AI10: =N10 -> 122 | AJ10: =COUNTIF(L99:L128,AI10) -> 14 | AK10: =AJ10/(AL4-AJ11) -> 0.4666666667 | AL10: =IF(AK10=0,0,(AK10*((LOG(AK10))/LOG(2)))) -> -0.5131166477 | AN10: =N10 -> 122 | AO10: =COUNTIF(L129:L159,AN10) -> 16 | AP10: =AO10/(AQ4-AO11) -> 0.5161290323 | AQ10: =IF(AP10=0,0,(AP10*((LOG(AP10))/LOG(2)))) -> -0.4924884183 | AS10: =N10 -> 122 | AT10: =COUNTIF(L160:L189,AS10) -> 18 | AU10: =AT10/(AV4-AT11) -> 0.6 | AV10: =IF(AU10=0,0,(AU10*((LOG(AU10))/LOG(2)))) -> -0.4421793565
A11: 12 | B11: 591 | C11: 24 | D11: 608 | E11: 24 | F11: 616 | K11: 0 | L11: 122 | N11: 211 | O11: =COUNTIF($L$7:$L$500,N11) -> 0 | P11: =O11/$Q$4 -> 0 | Q11: =IF(P11=0,0,(P11*((LOG(P11))/LOG(2)))) -> 0 | T11: =N11 -> 211 | U11: =COUNTIF(L7:L37,T11) -> 0 | Y11: =N11 -> 211 | Z11: =COUNTIF(L38:L67,Y11) -> 0 | AD11: =N11 -> 211 | AE11: =COUNTIF(L68:L98,AD11) -> 0 | AI11: =N11 -> 211 | AJ11: =COUNTIF(L99:L128,AI11) -> 0 | AN11: =N11 -> 211 | AO11: =COUNTIF(L129:L159,AN11) -> 0 | AS11: =N11 -> 211 | AT11: =COUNTIF(L160:L189,AS11) -> 0
A12: 12 | B12: 725 | C12: 24 | D12: 735 | E12: 24 | F12: 752 | K12: 0 | L12: 122 | N12: 212 | O12: =COUNTIF($L$7:$L$500,N12) -> 0 | P12: =O12/$Q$4 -> 0 | Q12: =IF(P12=0,0,(P12*((LOG(P12))/LOG(2)))) -> 0 | T12: =N12 -> 212 | U12: =COUNTIF(L7:L37,T12) -> 0 | V12: =U12/(W4-U11) -> 0 | W12: =IF(V12=0,0,(V12*((LOG(V12))/LOG(2)))) -> 0 | Y12: =N12 -> 212 | Z12: =COUNTIF(L38:L67,Y12) -> 0 | AA12: =Z12/(AB4-Z11) -> 0 | AB12: =IF(AA12=0,0,(AA12*((LOG(AA12))/LOG(2)))) -> 0 | AD12: =N12 -> 212 | AE12: =COUNTIF(L68:L98,AD12) -> 0 | AF12: =AE12/(AG4-AE11) -> 0 | AG12: =IF(AF12=0,0,(AF12*((LOG(AF12))/LOG(2)))) -> 0 | AI12: =N12 -> 212 | AJ12: =COUNTIF(L99:L128,AI12) -> 0 | AK12: =AJ12/(AL4-AJ11) -> 0 | AL12: =IF(AK12=0,0,(AK12*((LOG(AK12))/LOG(2)))) -> 0 | AN12: =N12 -> 212 | AO12: =COUNTIF(L129:L159,AN12) -> 0 | AP12: =AO12/(AQ4-AO11) -> 0 | AQ12: =IF(AP12=0,0,(AP12*((LOG(AP12))/LOG(2)))) -> 0 | AS12: =N12 -> 212 | AT12: =COUNTIF(L160:L189,AS12) -> 0 | AU12: =AT12/(AV4-AT11) -> 0 | AV12: =IF(AU12=0,0,(AU12*((LOG(AU12))/LOG(2)))) -> 0
A13: 21 | B13: 862 | C13: 22 | D13: 871 | E13: 24 | F13: 881 | K13: 0 | L13: 222 | N13: 221 | O13: =COUNTIF($L$7:$L$500,N13) -> 0 | P13: =O13/$Q$4 -> 0 | Q13: =IF(P13=0,0,(P13*((LOG(P13))/LOG(2)))) -> 0 | T13: =N13 -> 221 | U13: =COUNTIF(L7:L37,T13) -> 0 | V13: =U13/(W4-U11) -> 0 | W13: =IF(V13=0,0,(V13*((LOG(V13))/LOG(2)))) -> 0 | Y13: =N13 -> 221 | Z13: =COUNTIF(L38:L67,Y13) -> 0 | AA13: =Z13/(AB4-Z11) -> 0 | AB13: =IF(AA13=0,0,(AA13*((LOG(AA13))/LOG(2)))) -> 0 | AD13: =N13 -> 221 | AE13: =COUNTIF(L68:L98,AD13) -> 0 | AF13: =AE13/(AG4-AE11) -> 0 | AG13: =IF(AF13=0,0,(AF13*((LOG(AF13))/LOG(2)))) -> 0 | AI13: =N13 -> 221 | AJ13: =COUNTIF(L99:L128,AI13) -> 0 | AK13: =AJ13/(AL4-AJ11) -> 0 | AL13: =IF(AK13=0,0,(AK13*((LOG(AK13))/LOG(2)))) -> 0 | AN13: =N13 -> 221 | AO13: =COUNTIF(L129:L159,AN13) -> 0 | AP13: =AO13/(AQ4-AO11) -> 0 | AQ13: =IF(AP13=0,0,(AP13*((LOG(AP13))/LOG(2)))) -> 0 | AS13: =N13 -> 221 | AT13: =COUNTIF(L160:L189,AS13) -> 0 | AU13: =AT13/(AV4-AT11) -> 0 | AV13: =IF(AU13=0,0,(AU13*((LOG(AU13))/LOG(2)))) -> 0
A14: 21 | B14: 989 | C14: 22 | D14: 999 | E14: 24 | F14: 1008 | K14: 0 | L14: 222 | N14: 222 | O14: =COUNTIF($L$7:$L$500,N14) -> 83 | P14: =O14/$Q$4 -> 0.4535519126 | Q14: =IF(P14=0,0,(P14*((LOG(P14))/LOG(2)))) -> -0.5173487092 | T14: =N14 -> 222 | U14: =COUNTIF(L7:L37,T14) -> 16 | V14: =U14/(W4-U11) -> 0.5161290323 | W14: =IF(V14=0,0,(V14*((LOG(V14))/LOG(2)))) -> -0.4924884183 | Y14: =N14 -> 222 | Z14: =COUNTIF(L38:L67,Y14) -> 15 | AA14: =Z14/(AB4-Z11) -> 0.5 | AB14: =IF(AA14=0,0,(AA14*((LOG(AA14))/LOG(2)))) -> -0.5 | AD14: =N14 -> 222 | AE14: =COUNTIF(L68:L98,AD14) -> 10 | AF14: =AE14/(AG4-AE11) -> 0.3225806452 | AG14: =IF(AF14=0,0,(AF14*((LOG(AF14))/LOG(2)))) -> -0.526538134 | AI14: =N14 -> 222 | AJ14: =COUNTIF(L99:L128,AI14) -> 16 | AK14: =AJ14/(AL4-AJ11) -> 0.5333333333 | AL14: =IF(AK14=0,0,(AK14*((LOG(AK14))/LOG(2)))) -> -0.4836749843 | AN14: =N14 -> 222 | AO14: =COUNTIF(L129:L159,AN14) -> 15 | AP14: =AO14/(AQ4-AO11) -> 0.4838709677 | AQ14: =IF(AP14=0,0,(AP14*((LOG(AP14))/LOG(2)))) -> -0.5067608297 | AS14: =N14 -> 222 | AT14: =COUNTIF(L160:L189,AS14) -> 11 | AU14: =AT14/(AV4-AT11) -> 0.3666666667 | AV14: =IF(AU14=0,0,(AU14*((LOG(AU14))/LOG(2)))) -> -0.5307349582
A15: 21 | B15: 1123 | C15: 22 | D15: 1131 | E15: 24 | F15: 1139 | K15: 0 | L15: 222 | P15: =SUM(P7:P14) -> 1 | Q15: =-SUM(Q7:Q14) -> 1.071055917 | V15: =SUM(V7:V14) -> 1 | W15: =-SUM(W7:W14) -> 0.999249248 | AA15: =SUM(AA7:AA14) -> 1 | AB15: =-SUM(AB7:AB14) -> 1.176679668 | AF15: =SUM(AF7:AF14) -> 1 | AG15: =-SUM(AG7:AG14) -> 0.9071657676 | AK15: =SUM(AK7:AK14) -> 1 | AL15: =-SUM(AL7:AL14) -> 0.996791632 | AP15: =SUM(AP7:AP14) -> 1 | AQ15: =-SUM(AQ7:AQ14) -> 0.999249248 | AU15: =SUM(AU7:AU14) -> 1 | AV15: =-SUM(AV7:AV14) -> 1.136477335
A16: 12 | B16: 1241 | C16: 24 | D16: 1254 | E16: 24 | F16: 1261 | K16: 0 | L16: 122 | P16: U= | Q16: =Q15/(LOG(Q4)/LOG(2)) -> 0.1425091396 | V16: U1= | W16: =W15/(LOG(W4)/LOG(2)) -> 0.201697548 | AA16: U2= | AB16: =AB15/(LOG(AB4)/LOG(2)) -> 0.2398014883 | AF16: U3= | AG16: =AG15/(LOG(AG4)/LOG(2)) -> 0.1831105816 | AK16: U4= | AL16: =AL15/(LOG(AL4)/LOG(2)) -> 0.2031411976 | AP16: U5= | AQ16: =AQ15/(LOG(AQ4)/LOG(2)) -> 0.201697548 | AU16: U6= | AV16: =AV15/(LOG(AV4)/LOG(2)) -> 0.2316084519
A17: 21 | B17: 1376 | C17: 22 | D17: 1386 | E17: 24 | F17: 1400 | K17: 0 | L17: 222
A18: 21 | B18: 1508 | C18: 22 | D18: 1514 | E18: 24 | F18: 1533 | K18: 0 | L18: 222
A19: 12 | B19: 1630 | C19: 24 | D19: 1640 | E19: 24 | F19: 1645 | K19: 0 | L19: 122 | N19: Total Target Seq
A20: 21 | B20: 1752 | C20: 22 | D20: 1757 | E20: 24 | F20: 1766 | K20: 0 | L20: 222 | N20: =COUNTIF(L7:L189,G3) -> 0 | P20: 31 | Q20: 30 | R20: 31 | S20: 30 | T20: 31 | U20: 30
A21: 12 | B21: 1864 | C21: 24 | D21: 1877 | E21: 24 | F21: 1884 | K21: 0 | L21: 122 | P21: % of reinforcement given in 6 equal intervals based on number of trials
A22: 21 | B22: 2000 | C22: 22 | D22: 2006 | E22: 24 | F22: 2015 | K22: 0 | L22: 222 | P22: %_1 | Q22: %_2 | R22: %_3 | S22: %_4 | T22: %_5 | U22: %_6
A23: 12 | B23: 2118 | C23: 24 | D23: 2129 | E23: 24 | F23: 2199 | K23: 0 | L23: 122 | O23: target sequence | P23: =$G$3 -> 211 | Q23: =$G$3 -> 211 | R23: =$G$3 -> 211 | S23: =$G$3 -> 211 | T23: =$G$3 -> 211 | U23: =$G$3 -> 211
A24: 12 | B24: 2301 | C24: 24 | D24: 2312 | E24: 24 | F24: 2317 | K24: 0 | L24: 122 | O24: total reinforcement | P24: =U11 -> 0 | Q24: =Z11 -> 0 | R24: =AE11 -> 0 | S24: =AJ11 -> 0 | T24: =AO11 -> 0 | U24: =AT11 -> 0
A25: 21 | B25: 2426 | C25: 22 | D25: 2441 | E25: 24 | F25: 2450 | K25: 0 | L25: 222 | O25: % target
A26: 12 | B26: 2551 | C26: 24 | D26: 2564 | E26: 24 | F26: 2576 | K26: 0 | L26: 122 | O26: CCRF
A27: 21 | B27: 2682 | C27: 22 | D27: 2689 | E27: 24 | F27: 2697 | K27: 0 | L27: 222 | O27: % CCRf
A28: 21 | B28: 2810 | C28: 22 | D28: 2815 | E28: 24 | F28: 2824 | K28: 0 | L28: 222 | O28: average response rate | P28: =F37/P20 -> 131.1612903 | Q28: =(F67-F37)/Q20 -> 135 | R28: =(F98-F67)/R20 -> 130.8064516 | S28: =(F128-F98)/S20 -> 124.3 | T28: =(F159-F128)/T20 -> 130 | U28: =(F189-F159)/U20 -> 134.4333333
A29: 12 | B29: 2926 | C29: 24 | D29: 2937 | E29: 24 | F29: 2945 | K29: 0 | L29: 122
A30: 12 | B30: 3045 | C30: 24 | D30: 3058 | E30: 24 | F30: 3065 | K30: 0 | L30: 122
A31: 21 | B31: 3179 | C31: 22 | D31: 3195 | E31: 24 | F31: 3204 | K31: 0 | L31: 222
A32: 12 | B32: 3306 | C32: 24 | D32: 3317 | E32: 24 | F32: 3406 | K32: 0 | L32: 122
A33: 12 | B33: 3505 | C33: 24 | D33: 3519 | E33: 24 | F33: 3559 | K33: 0 | L33: 122
A34: 21 | B34: 3674 | C34: 22 | D34: 3681 | E34: 24 | F34: 3691 | K34: 0 | L34: 222
A35: 12 | B35: 3785 | C35: 24 | D35: 3798 | E35: 24 | F35: 3804 | K35: 0 | L35: 122
A36: 21 | B36: 3927 | C36: 22 | D36: 3935 | E36: 24 | F36: 3943 | K36: 0 | L36: 222
A37: 12 | B37: 4044 | C37: 24 | D37: 4057 | E37: 24 | F37: 4066 | K37: 0 | L37: 122
A38: 12 | B38: 4164 | C38: 13 | D38: 4174 | E38: 24 | F38: 4187 | K38: 0 | L38: 112
A39: 12 | B39: 4282 | C39: 24 | D39: 4292 | E39: 24 | F39: 4297 | K39: 0 | L39: 122
A40: 12 | B40: 4397 | C40: 24 | D40: 4410 | E40: 24 | F40: 4424 | K40: 0 | L40: 122
A41: 12 | B41: 4526 | C41: 24 | D41: 4540 | E41: 24 | F41: 4563 | K41: 0 | L41: 122
A42: 21 | B42: 4668 | C42: 22 | D42: 4674 | E42: 24 | F42: 4679 | K42: 0 | L42: 222
A43: 12 | B43: 4780 | C43: 24 | D43: 4790 | E43: 24 | F43: 4806 | K43: 0 | L43: 122
A44: 21 | B44: 4909 | C44: 22 | D44: 4914 | E44: 24 | F44: 4974 | K44: 0 | L44: 222
A45: 12 | B45: 5075 | C45: 24 | D45: 5084 | E45: 24 | F45: 5093 | K45: 0 | L45: 122
A46: 12 | B46: 5193 | C46: 24 | D46: 5206 | E46: 24 | F46: 5212 | K46: 0 | L46: 122
A47: 12 | B47: 5312 | C47: 24 | D47: 5325 | E47: 24 | F47: 5331 | K47: 0 | L47: 122
A48: 21 | B48: 5431 | C48: 22 | D48: 5436 | E48: 24 | F48: 5460 | K48: 0 | L48: 222
A49: 12 | B49: 5561 | C49: 24 | D49: 5573 | E49: 24 | F49: 5595 | K49: 0 | L49: 122
A50: 21 | B50: 5701 | C50: 22 | D50: 5706 | E50: 24 | F50: 5714 | K50: 0 | L50: 222
A51: 12 | B51: 5813 | C51: 24 | D51: 5826 | E51: 24 | F51: 5848 | K51: 0 | L51: 122
A52: 12 | B52: 5948 | C52: 24 | D52: 5958 | E52: 24 | F52: 5964 | K52: 0 | L52: 122
A53: 12 | B53: 6065 | C53: 24 | D53: 6078 | E53: 24 | F53: 6085 | K53: 0 | L53: 122
A54: 21 | B54: 6201 | C54: 22 | D54: 6227 | E54: 24 | F54: 6236 | K54: 0 | L54: 222
A55: 21 | B55: 6337 | C55: 22 | D55: 6350 | E55: 24 | F55: 6366 | K55: 0 | L55: 222
A56: 12 | B56: 6470 | C56: 24 | D56: 6484 | E56: 24 | F56: 6543 | K56: 0 | L56: 122
A57: 21 | B57: 6651 | C57: 22 | D57: 6695 | E57: 24 | F57: 6725 | K57: 0 | L57: 222
A58: 21 | B58: 6836 | C58: 22 | D58: 6842 | E58: 24 | F58: 6872 | K58: 0 | L58: 222
A59: 21 | B59: 6989 | C59: 22 | D59: 7002 | E59: 24 | F59: 7010 | K59: 0 | L59: 222
A60: 21 | B60: 7124 | C60: 22 | D60: 7129 | E60: 24 | F60: 7138 | K60: 0 | L60: 222
A61: 12 | B61: 7232 | C61: 24 | D61: 7242 | E61: 24 | F61: 7248 | K61: 0 | L61: 122
A62: 21 | B62: 7352 | C62: 22 | D62: 7357 | E62: 24 | F62: 7392 | K62: 0 | L62: 222
A63: 21 | B63: 7529 | C63: 22 | D63: 7537 | E63: 24 | F63: 7544 | K63: 0 | L63: 222
A64: 12 | B64: 7642 | C64: 24 | D64: 7656 | E64: 24 | F64: 7660 | K64: 0 | L64: 122
A65: 21 | B65: 7778 | C65: 22 | D65: 7787 | E65: 24 | F65: 7804 | K65: 0 | L65: 222
A66: 21 | B66: 7917 | C66: 22 | D66: 7942 | E66: 24 | F66: 7955 | K66: 0 | L66: 222
A67: 21 | B67: 8068 | C67: 22 | D67: 8073 | E67: 24 | F67: 8116 | K67: 0 | L67: 222
A68: 21 | B68: 8226 | C68: 22 | D68: 8234 | E68: 24 | F68: 8273 | K68: 0 | L68: 222
A69: 21 | B69: 8376 | C69: 22 | D69: 8381 | E69: 24 | F69: 8389 | K69: 0 | L69: 222
A70: 21 | B70: 8501 | C70: 22 | D70: 8584 | E70: 24 | F70: 8599 | K70: 0 | L70: 222
A71: 12 | B71: 8700 | C71: 24 | D71: 8710 | E71: 24 | F71: 8720 | K71: 0 | L71: 122
A72: 12 | B72: 8821 | C72: 24 | D72: 8831 | E72: 24 | F72: 8842 | K72: 0 | L72: 122
A73: 21 | B73: 8950 | C73: 22 | D73: 8956 | E73: 24 | F73: 8976 | K73: 0 | L73: 222
A74: 12 | B74: 9079 | C74: 24 | D74: 9090 | E74: 24 | F74: 9096 | K74: 0 | L74: 122
A75: 12 | B75: 9193 | C75: 24 | D75: 9238 | E75: 24 | F75: 9247 | K75: 0 | L75: 122
A76: 12 | B76: 9351 | C76: 24 | D76: 9360 | E76: 24 | F76: 9390 | K76: 0 | L76: 122
A77: 12 | B77: 9490 | C77: 24 | D77: 9499 | E77: 24 | F77: 9505 | K77: 0 | L77: 122
A78: 12 | B78: 9609 | C78: 24 | D78: 9619 | E78: 24 | F78: 9624 | K78: 0 | L78: 122
A79: 21 | B79: 9732 | C79: 22 | D79: 9741 | E79: 24 | F79: 9756 | K79: 0 | L79: 222
A80: 12 | B80: 9856 | C80: 24 | D80: 9869 | E80: 24 | F80: 9879 | K80: 0 | L80: 122
A81: 12 | B81: 9978 | C81: 24 | D81: 9988 | E81: 24 | F81: 9994 | K81: 0 | L81: 122
A82: 12 | B82: 10099 | C82: 24 | D82: 10112 | E82: 24 | F82: 10147 | K82: 0 | L82: 122
A83: 12 | B83: 10247 | C83: 24 | D83: 10256 | E83: 24 | F83: 10262 | K83: 0 | L83: 122
A84: 12 | B84: 10369 | C84: 24 | D84: 10382 | E84: 24 | F84: 10425 | K84: 0 | L84: 122
A85: 12 | B85: 10520 | C85: 24 | D85: 10528 | E85: 24 | F85: 10533 | K85: 0 | L85: 122
A86: 12 | B86: 10636 | C86: 24 | D86: 10645 | E86: 24 | F86: 10650 | K86: 0 | L86: 122
A87: 12 | B87: 10748 | C87: 24 | D87: 10765 | E87: 24 | F87: 10774 | K87: 0 | L87: 122
A88: 21 | B88: 10876 | C88: 22 | D88: 10881 | E88: 24 | F88: 10889 | K88: 0 | L88: 222
A89: 12 | B89: 10993 | C89: 24 | D89: 11002 | E89: 24 | F89: 11009 | K89: 0 | L89: 122
A90: 12 | B90: 11109 | C90: 24 | D90: 11121 | E90: 24 | F90: 11127 | K90: 0 | L90: 122
A91: 12 | B91: 11227 | C91: 24 | D91: 11236 | E91: 24 | F91: 11242 | K91: 0 | L91: 122
A92: 21 | B92: 11348 | C92: 22 | D92: 11354 | E92: 24 | F92: 11361 | K92: 0 | L92: 222
A93: 12 | B93: 11462 | C93: 24 | D93: 11478 | E93: 24 | F93: 11501 | K93: 0 | L93: 122
A94: 21 | B94: 11623 | C94: 22 | D94: 11631 | E94: 24 | F94: 11647 | K94: 0 | L94: 222
A95: 21 | B95: 11752 | C95: 22 | D95: 11774 | E95: 24 | F95: 11812 | K95: 0 | L95: 222
A96: 12 | B96: 11913 | C96: 24 | D96: 11923 | E96: 24 | F96: 11928 | K96: 0 | L96: 122
A97: 21 | B97: 12030 | C97: 22 | D97: 12035 | E97: 24 | F97: 12040 | K97: 0 | L97: 222
A98: 12 | B98: 12141 | C98: 24 | D98: 12150 | E98: 24 | F98: 12171 | K98: 0 | L98: 122
A99: 21 | B99: 12271 | C99: 22 | D99: 12280 | E99: 24 | F99: 12296 | K99: 0 | L99: 222
A100: 12 | B100: 12404 | C100: 24 | D100: 12417 | E100: 24 | F100: 12455 | K100: 0 | L100: 122
A101: 21 | B101: 12563 | C101: 22 | D101: 12570 | E101: 24 | F101: 12578 | K101: 0 | L101: 222
A102: 21 | B102: 12684 | C102: 22 | D102: 12689 | E102: 24 | F102: 12698 | K102: 0 | L102: 222
A103: 12 | B103: 12799 | C103: 24 | D103: 12812 | E103: 24 | F103: 12817 | K103: 0 | L103: 122
A104: 21 | B104: 12922 | C104: 22 | D104: 12927 | E104: 24 | F104: 12932 | K104: 0 | L104: 222
A105: 21 | B105: 13037 | C105: 22 | D105: 13042 | E105: 24 | F105: 13047 | K105: 0 | L105: 222
A106: 21 | B106: 13143 | C106: 22 | D106: 13148 | E106: 24 | F106: 13155 | K106: 0 | L106: 222
A107: 12 | B107: 13255 | C107: 24 | D107: 13267 | E107: 24 | F107: 13272 | K107: 0 | L107: 122
A108: 12 | B108: 13376 | C108: 24 | D108: 13393 | E108: 24 | F108: 13401 | K108: 0 | L108: 122
A109: 21 | B109: 13505 | C109: 22 | D109: 13513 | E109: 24 | F109: 13551 | K109: 0 | L109: 222
A110: 21 | B110: 13657 | C110: 22 | D110: 13662 | E110: 24 | F110: 13670 | K110: 0 | L110: 222
A111: 21 | B111: 13772 | C111: 22 | D111: 13782 | E111: 24 | F111: 13799 | K111: 0 | L111: 222
A112: 12 | B112: 13896 | C112: 24 | D112: 13905 | E112: 24 | F112: 13911 | K112: 0 | L112: 122
A113: 21 | B113: 14015 | C113: 22 | D113: 14019 | E113: 24 | F113: 14025 | K113: 0 | L113: 222
A114: 12 | B114: 14127 | C114: 24 | D114: 14136 | E114: 24 | F114: 14141 | K114: 0 | L114: 122
A115: 12 | B115: 14246 | C115: 24 | D115: 14258 | E115: 24 | F115: 14265 | K115: 0 | L115: 122
A116: 12 | B116: 14368 | C116: 24 | D116: 14384 | E116: 24 | F116: 14392 | K116: 0 | L116: 122
A117: 12 | B117: 14496 | C117: 24 | D117: 14509 | E117: 24 | F117: 14514 | K117: 0 | L117: 122
A118: 12 | B118: 14616 | C118: 24 | D118: 14629 | E118: 24 | F118: 14642 | K118: 0 | L118: 122
A119: 21 | B119: 14739 | C119: 22 | D119: 14754 | E119: 24 | F119: 14761 | K119: 0 | L119: 222
A120: 21 | B120: 14869 | C120: 22 | D120: 14882 | E120: 24 | F120: 14890 | K120: 0 | L120: 222
A121: 21 | B121: 14991 | C121: 22 | D121: 14995 | E121: 24 | F121: 15000 | K121: 0 | L121: 222
A122: 12 | B122: 15100 | C122: 24 | D122: 15114 | E122: 24 | F122: 15125 | K122: 0 | L122: 122
A123: 21 | B123: 15228 | C123: 22 | D123: 15235 | E123: 24 | F123: 15244 | K123: 0 | L123: 222
A124: 21 | B124: 15342 | C124: 22 | D124: 15347 | E124: 24 | F124: 15408 | K124: 0 | L124: 222
A125: 21 | B125: 15520 | C125: 22 | D125: 15535 | E125: 24 | F125: 15555 | K125: 0 | L125: 222
A126: 12 | B126: 15651 | C126: 24 | D126: 15663 | E126: 24 | F126: 15668 | K126: 0 | L126: 122
A127: 12 | B127: 15773 | C127: 24 | D127: 15782 | E127: 24 | F127: 15786 | K127: 0 | L127: 122
A128: 12 | B128: 15884 | C128: 24 | D128: 15896 | E128: 24 | F128: 15900 | K128: 0 | L128: 122
A129: 12 | B129: 16003 | C129: 24 | D129: 16023 | E129: 24 | F129: 16031 | K129: 0 | L129: 122
A130: 12 | B130: 16135 | C130: 24 | D130: 16145 | E130: 24 | F130: 16150 | K130: 0 | L130: 122
A131: 12 | B131: 16248 | C131: 24 | D131: 16258 | E131: 24 | F131: 16262 | K131: 0 | L131: 122
A132: 12 | B132: 16364 | C132: 24 | D132: 16377 | E132: 24 | F132: 16415 | K132: 0 | L132: 122
A133: 12 | B133: 16515 | C133: 24 | D133: 16524 | E133: 24 | F133: 16539 | K133: 0 | L133: 122
A134: 12 | B134: 16637 | C134: 24 | D134: 16652 | E134: 24 | F134: 16657 | K134: 0 | L134: 122
A135: 12 | B135: 16759 | C135: 24 | D135: 16769 | E135: 24 | F135: 16775 | K135: 0 | L135: 122
A136: 12 | B136: 16874 | C136: 24 | D136: 16890 | E136: 24 | F136: 16895 | K136: 0 | L136: 122
A137: 21 | B137: 17001 | C137: 22 | D137: 17007 | E137: 24 | F137: 17012 | K137: 0 | L137: 222
A138: 12 | B138: 17111 | C138: 24 | D138: 17123 | E138: 24 | F138: 17130 | K138: 0 | L138: 122
A139: 12 | B139: 17233 | C139: 24 | D139: 17245 | E139: 24 | F139: 17298 | K139: 0 | L139: 122
A140: 21 | B140: 17401 | C140: 22 | D140: 17419 | E140: 24 | F140: 17433 | K140: 0 | L140: 222
A141: 21 | B141: 17535 | C141: 22 | D141: 17539 | E141: 24 | F141: 17549 | K141: 0 | L141: 222
A142: 21 | B142: 17664 | C142: 22 | D142: 17669 | E142: 24 | F142: 17675 | K142: 0 | L142: 222
A143: 21 | B143: 17775 | C143: 22 | D143: 17780 | E143: 24 | F143: 17791 | K143: 0 | L143: 222
A144: 21 | B144: 17893 | C144: 22 | D144: 17899 | E144: 24 | F144: 17905 | K144: 0 | L144: 222
A145: 12 | B145: 18008 | C145: 24 | D145: 18021 | E145: 24 | F145: 18033 | K145: 0 | L145: 122
A146: 12 | B146: 18132 | C146: 24 | D146: 18145 | E146: 24 | F146: 18153 | K146: 0 | L146: 122
A147: 21 | B147: 18256 | C147: 22 | D147: 18275 | E147: 24 | F147: 18313 | K147: 0 | L147: 222
A148: 12 | B148: 18412 | C148: 24 | D148: 18422 | E148: 24 | F148: 18486 | K148: 0 | L148: 122
A149: 21 | B149: 18591 | C149: 22 | D149: 18640 | E149: 24 | F149: 18669 | K149: 0 | L149: 222
A150: 21 | B150: 18775 | C150: 22 | D150: 18779 | E150: 24 | F150: 18786 | K150: 0 | L150: 222
A151: 21 | B151: 18888 | C151: 22 | D151: 18893 | E151: 24 | F151: 18899 | K151: 0 | L151: 222
A152: 12 | B152: 18997 | C152: 24 | D152: 19011 | E152: 24 | F152: 19015 | K152: 0 | L152: 122
A153: 21 | B153: 19121 | C153: 22 | D153: 19146 | E153: 24 | F153: 19162 | K153: 0 | L153: 222
A154: 21 | B154: 19268 | C154: 22 | D154: 19273 | E154: 24 | F154: 19279 | K154: 0 | L154: 222
A155: 12 | B155: 19396 | C155: 24 | D155: 19408 | E155: 24 | F155: 19415 | K155: 0 | L155: 122
A156: 21 | B156: 19516 | C156: 22 | D156: 19521 | E156: 24 | F156: 19534 | K156: 0 | L156: 222
A157: 21 | B157: 19634 | C157: 22 | D157: 19639 | E157: 24 | F157: 19666 | K157: 0 | L157: 222
A158: 12 | B158: 19769 | C158: 24 | D158: 19785 | E158: 24 | F158: 19790 | K158: 0 | L158: 122
A159: 21 | B159: 19895 | C159: 22 | D159: 19922 | E159: 24 | F159: 19930 | K159: 0 | L159: 222
A160: 21 | B160: 20032 | C160: 22 | D160: 20042 | E160: 24 | F160: 20061 | K160: 0 | L160: 222
A161: 21 | B161: 20166 | C161: 22 | D161: 20189 | E161: 24 | F161: 20204 | K161: 0 | L161: 222
A162: 21 | B162: 20309 | C162: 22 | D162: 20327 | E162: 24 | F162: 20341 | K162: 0 | L162: 222
A163: 21 | B163: 20437 | C163: 22 | D163: 20442 | E163: 24 | F163: 20446 | K163: 0 | L163: 222
A164: 12 | B164: 20548 | C164: 24 | D164: 20561 | E164: 24 | F164: 20565 | K164: 0 | L164: 122
A165: 12 | B165: 20668 | C165: 24 | D165: 20680 | E165: 24 | F165: 20698 | K165: 0 | L165: 122
A166: 12 | B166: 20800 | C166: 24 | D166: 20812 | E166: 24 | F166: 20866 | K166: 0 | L166: 122
A167: 21 | B167: 20995 | C167: 22 | D167: 21010 | E167: 24 | F167: 21021 | K167: 0 | L167: 222
A168: 12 | B168: 21127 | C168: 24 | D168: 21140 | E168: 24 | F168: 21168 | K168: 0 | L168: 122
A169: 21 | B169: 21276 | C169: 22 | D169: 21281 | E169: 24 | F169: 21293 | K169: 0 | L169: 222
A170: 12 | B170: 21396 | C170: 24 | D170: 21411 | E170: 24 | F170: 21418 | K170: 0 | L170: 122
A171: 12 | B171: 21523 | C171: 24 | D171: 21535 | E171: 24 | F171: 21553 | K171: 0 | L171: 122
A172: 12 | B172: 21655 | C172: 24 | D172: 21668 | E172: 24 | F172: 21677 | K172: 0 | L172: 122
A173: 12 | B173: 21780 | C173: 24 | D173: 21796 | E173: 24 | F173: 21811 | K173: 0 | L173: 122
A174: 12 | B174: 21908 | C174: 24 | D174: 21921 | E174: 24 | F174: 21929 | K174: 0 | L174: 122
A175: 12 | B175: 22030 | C175: 24 | D175: 22056 | E175: 24 | F175: 22086 | K175: 0 | L175: 122
A176: 12 | B176: 22186 | C176: 24 | D176: 22200 | E176: 24 | F176: 22221 | K176: 0 | L176: 122
A177: 12 | B177: 22323 | C177: 24 | D177: 22334 | E177: 24 | F177: 22364 | K177: 0 | L177: 122
A178: 21 | B178: 22471 | C178: 22 | D178: 22476 | E178: 24 | F178: 22484 | K178: 0 | L178: 222
A179: 12 | B179: 22585 | C179: 24 | D179: 22597 | E179: 24 | F179: 22612 | K179: 0 | L179: 122
A180: 12 | B180: 22717 | C180: 24 | D180: 22727 | E180: 24 | F180: 22732 | K180: 0 | L180: 122
A181: 12 | B181: 22835 | C181: 24 | D181: 22844 | E181: 24 | F181: 22850 | K181: 0 | L181: 122
A182: 12 | B182: 22948 | C182: 24 | D182: 22963 | E182: 24 | F182: 22969 | K182: 0 | L182: 122
A183: 12 | B183: 23067 | C183: 13 | D183: 23080 | E183: 24 | F183: 23091 | K183: 0 | L183: 112
A184: 21 | B184: 23212 | C184: 22 | D184: 23234 | E184: 24 | F184: 23258 | K184: 0 | L184: 222
A185: 21 | B185: 23368 | C185: 22 | D185: 23377 | E185: 24 | F185: 23390 | K185: 0 | L185: 222
A186: 21 | B186: 23496 | C186: 22 | D186: 23509 | E186: 24 | F186: 23523 | K186: 0 | L186: 222
A187: 12 | B187: 23626 | C187: 24 | D187: 23641 | E187: 24 | F187: 23645 | K187: 0 | L187: 122
A188: 21 | B188: 23795 | C188: 22 | D188: 23817 | E188: 24 | F188: 23833 | K188: 0 | L188: 222
A189: 12 | B189: 23938 | C189: 24 | D189: 23953 | E189: 24 | F189: 23963 | L189: 122

Sheet !M928850.091
A1: Report for:!M928850.091
A2: Date: | B2: <date>
A3: Hen: | B3: <hen> | F3: Correct Sequence | G3: =Start!J2 -> 211 | P3: Total Sequences in Data | Q3: =4994-COUNTBLANK(L7:L5000) -> 182 | V3: Total Sequences in Block Data | W3: =COUNTA(L7:L36) -> 30 | AA3: Total Sequences in Block Data | AB3: =COUNTA(L37:L67) -> 31 | AF3: Total Sequences in Block Data | AG3: =COUNTA(L68:L97) -> 30 | AK3: Total Sequences in Block Data | AL3: =COUNTA(L98:L127) -> 30 | AP3: Total Sequences in Block Data | AQ3: =COUNTA(L128:L158) -> 31 | AU3: Total Sequences in Block Data | AV3: =COUNTA(L159:L188) -> 30
P4: Total Sequences in Summary | Q4: =SUM(O7:O14) -> 182 | V4: Total Sequences in Block Summary | W4: =SUM(U7:U14) -> 30 | AA4: Total Sequences in Block Summary | AB4: =SUM(Z7:Z14) -> 31 | AF4: Total Sequences in Block Summary | AG4: =SUM(AE7:AE14) -> 30 | AK4: Total Sequences in Block Summary | AL4: =SUM(AJ7:AJ14) -> 30 | AP4: Total Sequences in Block Summary | AQ4: =SUM(AO7:AO14) -> 31 | AU4: Total Sequences in Block Summary | AV4: =SUM(AT7:AT14) -> 30
T5: Block 1 | Y5: Block 2 | AD5: Block 3 | AI5: Block 4 | AN5: Block 5 | AS5: Block 6
A6: Sequence Component 1 | B6: Time 1 | C6: Sequence Component 2 | D6: Time 2 | E6: Sequence Component 3 | F6: Time 3 | G6: Sequence Component 4 | H6: Time 4 | I6: Sequence Component 5 | J6: Time 5 | K6: Correct? 0=No 1=Yes | L6: Sequence | N6: Frequency | P6: Relative Frequency | Q6: Variability | T6: Frequency | V6: Relative Frequency | W6: Variability | Y6: Frequency | AA6: Relative Frequency | AB6: Variability | AD6: Frequency | AF6: Relative Frequency | AG6: Variability | AI6: Frequency | AK6: Relative Frequency | AL6: Variability | AN6: Frequency | AP6: Relative Frequency | AQ6: Variability | AS6: Frequency | AU6: Relative Frequency | AV6: Variability
A7: 21 | B7: 38 | C7: 22 | D7: 47 | E7: 24 | F7: 55 | K7: 0 | L7: 222 | N7: 111 | O7: =COUNTIF($L$7:$L$500,N7) -> 0 | P7: =O7/$Q$4 -> 0 | Q7: =IF(P7=0,0,(P7*((LOG(P7))/LOG(2)))) -> 0 | T7: =N7 -> 111 | U7: =COUNTIF(L7:L36,T7) -> 0 | V7: =U7/(W4-U11) -> 0 | W7: =IF(V7=0,0,(V7*((LOG(V7))/LOG(2)))) -> 0 | Y7: =N7 -> 111 | Z7: =COUNTIF(L37:L67,Y7) -> 0 | AA7: =Z7/(AB4-Z11) -> 0 | AB7: =IF(AA7=0,0,(AA7*((LOG(AA7))/LOG(2)))) -> 0 | AD7: =N7 -> 111 | AE7: =COUNTIF(L68:L97,AD7) -> 0 | AF7: =AE7/(AG4-AE11) -> 0 | AG7: =IF(AF7=0,0,(AF7*((LOG(AF7))/LOG(2)))) -> 0 | AI7: =N7 -> 111 | AJ7: =COUNTIF(L98:L127,AI7) -> 0 | AK7: =AJ7/(AL4-AJ11) -> 0 | AL7: =IF(AK7=0,0,(AK7*((LOG(AK7))/LOG(2)))) -> 0 | AN7: =N7 -> 111 | AO7: =COUNTIF(L128:L158,AN7) -> 0 | AP7: =AO7/(AQ4-AO11) -> 0 | AQ7: =IF(AP7=0,0,(AP7*((LOG(AP7))/LOG(2)))) -> 0 | AS7: =N7 -> 111 | AT7: =COUNTIF(L159:L188,AS7) -> 0 | AU7: =AT7/(AV4-AT11) -> 0 | AV7: =IF(AU7=0,0,(AU7*((LOG(AU7))/LOG(2)))) -> 0
A8: 21 | B8: 171 | C8: 22 | D8: 180 | E8: 24 | F8: 190 | K8: 0 | L8: 222 | N8: 112 | O8: =COUNTIF($L$7:$L$500,N8) -> 3 | P8: =O8/$Q$4 -> 0.01648351648 | Q8: =IF(P8=0,0,(P8*((LOG(P8))/LOG(2)))) -> -0.0976291012 | T8: =N8 -> 112 | U8: =COUNTIF(L7:L36,T8) -> 2 | V8: =U8/(W4-U11) -> 0.06666666667 | W8: =IF(V8=0,0,(V8*((LOG(V8))/LOG(2)))) -> -0.260459373 | Y8: =N8 -> 112 | Z8: =COUNTIF(L37:L67,Y8) -> 0 | AA8: =Z8/(AB4-Z11) -> 0 | AB8: =IF(AA8=0,0,(AA8*((LOG(AA8))/LOG(2)))) -> 0 | AD8: =N8 -> 112 | AE8: =COUNTIF(L68:L97,AD8) -> 1 | AF8: =AE8/(AG4-AE11) -> 0.03333333333 | AG8: =IF(AF8=0,0,(AF8*((LOG(AF8))/LOG(2)))) -> -0.1635630199 | AI8: =N8 -> 112 | AJ8: =COUNTIF(L98:L127,AI8) -> 0 | AK8: =AJ8/(AL4-AJ11) -> 0 | AL8: =IF(AK8=0,0,(AK8*((LOG(AK8))/LOG(2)))) -> 0 | AN8: =N8 -> 112 | AO8: =COUNTIF(L128:L158,AN8) -> 0 | AP8: =AO8/(AQ4-AO11) -> 0 | AQ8: =IF(AP8=0,0,(AP8*((LOG(AP8))/LOG(2)))) -> 0 | AS8: =N8 -> 112 | AT8: =COUNTIF(L159:L188,AS8) -> 0 | AU8: =AT8/(AV4-AT11) -> 0 | AV8: =IF(AU8=0,0,(AU8*((LOG(AU8))/LOG(2)))) -> 0
A9: 12 | B9: 291 | C9: 24 | D9: 305 | E9: 24 | F9: 315 | K9: 0 | L9: 122 | N9: 121 | O9: =COUNTIF($L$7:$L$500,N9) -> 0 | P9: =O9/$Q$4 -> 0 | Q9: =IF(P9=0,0,(P9*((LOG(P9))/LOG(2)))) -> 0 | T9: =N9 -> 121 | U9: =COUNTIF(L7:L36,T9) -> 0 | V9: =U9/(W4-U11) -> 0 | W9: =IF(V9=0,0,(V9*((LOG(V9))/LOG(2)))) -> 0 | Y9: =N9 -> 121 | Z9: =COUNTIF(L37:L67,Y9) -> 0 | AA9: =Z9/(AB4-Z11) -> 0 | AB9: =IF(AA9=0,0,(AA9*((LOG(AA9))/LOG(2)))) -> 0 | AD9: =N9 -> 121 | AE9: =COUNTIF(L68:L97,AD9) -> 0 | AF9: =AE9/(AG4-AE11) -> 0 | AG9: =IF(AF9=0,0,(AF9*((LOG(AF9))/LOG(2)))) -> 0 | AI9: =N9 -> 121 | AJ9: =COUNTIF(L98:L127,AI9) -> 0 | AK9: =AJ9/(AL4-AJ11) -> 0 | AL9: =IF(AK9=0,0,(AK9*((LOG(AK9))/LOG(2)))) -> 0 | AN9: =N9 -> 121 | AO9: =COUNTIF(L128:L158,AN9) -> 0 | AP9: =AO9/(AQ4-AO11) -> 0 | AQ9: =IF(AP9=0,0,(AP9*((LOG(AP9))/LOG(2)))) -> 0 | AS9: =N9 -> 121 | AT9: =COUNTIF(L159:L188,AS9) -> 0 | AU9: =AT9/(AV4-AT11) -> 0 | AV9: =IF(AU9=0,0,(AU9*((LOG(AU9))/LOG(2)))) -> 0
A10: 21 | B10: 431 | C10: 22 | D10: 449 | E10: 24 | F10: 458 | K10: 0 | L10: 222 | N10: 122 | O10: =COUNTIF($L$7:$L$500,N10) -> 99 | P10: =O10/$Q$4 -> 0.543956044 | Q10: =IF(P10=0,0,(P10*((LOG(P10))/LOG(2)))) -> -0.4778316703 | T10: =N10 -> 122 | U10: =COUNTIF(L7:L36,T10) -> 14 | V10: =U10/(W4-U11) -> 0.4666666667 | W10: =IF(V10=0,0,(V10*((LOG(V10))/LOG(2)))) -> -0.5131166477 | Y10: =N10 -> 122 | Z10: =COUNTIF(L37:L67,Y10) -> 20 | AA10: =Z10/(AB4-Z11) -> 0.6451612903 | AB10: =IF(AA10=0,0,(AA10*((LOG(AA10))/LOG(2)))) -> -0.4079149777 | AD10: =N10 -> 122 | AE10: =COUNTIF(L68:L97,AD10) -> 16 | AF10: =AE10/(AG4-AE11) -> 0.5333333333 | AG10: =IF(AF10=0,0,(AF10*((LOG(AF10))/LOG(2)))) -> -0.4836749843 | AI10: =N10 -> 122 | AJ10: =COUNTIF(L98:L127,AI10) -> 16 | AK10: =AJ10/(AL4-AJ11) -> 0.5333333333 | AL10: =IF(AK10=0,0,(AK10*((LOG(AK10))/LOG(2)))) -> -0.4836749843 | AN10: =N10 -> 122 | AO10: =COUNTIF(L128:L158,AN10) -> 18 | AP10: =AO10/(AQ4-AO11) -> 0.5806451613 | AQ10: =IF(AP10=0,0,(AP10*((LOG(AP10))/LOG(2)))) -> -0.4553833407 | AS10: =N10 -> 122 | AT10: =COUNTIF(L159:L188,AS10) -> 15 | AU10: =AT10/(AV4-AT11) -> 0.5 | AV10: =IF(AU10=0,0,(AU10*((LOG(AU10))/LOG(2)))) -> -0.5
A11: 21 | B11: 574 | C11: 22 | D11: 581 | E11: 24 | F11: 590 | K11: 0 | L11: 222 | N11: 211 | O11: =COUNTIF($L$7:$L$500,N11) -> 0 | P11: =O11/$Q$4 -> 0 | Q11: =IF(P11=0,0,(P11*((LOG(P11))/LOG(2)))) -> 0 | T11: =N11 -> 211 | U11: =COUNTIF(L7:L36,T11) -> 0 | Y11: =N11 -> 211 | Z11: =COUNTIF(L37:L67,Y11) -> 0 | AD11: =N11 -> 211 | AE11: =COUNTIF(L68:L97,AD11) -> 0 | AI11: =N11 -> 211 | AJ11: =COUNTIF(L98:L127,AI11) -> 0 | AN11: =N11 -> 211 | AO11: =COUNTIF(L128:L158,AN11) -> 0 | AS11: =N11 -> 211 | AT11: =COUNTIF(L159:L188,AS11) -> 0
A12: 12 | B12: 689 | C12: 24 | D12: 703 | E12: 24 | F12: 722 | K12: 0 | L12: 122 | N12: 212 | O12: =COUNTIF($L$7:$L$500,N12) -> 0 | P12: =O12/$Q$4 -> 0 | Q12: =IF(P12=0,0,(P12*((LOG(P12))/LOG(2)))) -> 0 | T12: =N12 -> 212 | U12: =COUNTIF(L7:L36,T12) -> 0 | V12: =U12/(W4-U11) -> 0 | W12: =IF(V12=0,0,(V12*((LOG(V12))/LOG(2)))) -> 0 | Y12: =N12 -> 212 | Z12: =COUNTIF(L37:L67,Y12) -> 0 | AA12: =Z12/(AB4-Z11) -> 0 | AB12: =IF(AA12=0,0,(AA12*((LOG(AA12))/LOG(2)))) -> 0 | AD12: =N12 -> 212 | AE12: =COUNTIF(L68:L97,AD12) -> 0 | AF12: =AE12/(AG4-AE11) -> 0 | AG12: =IF(AF12=0,0,(AF12*((LOG(AF12))/LOG(2)))) -> 0 | AI12: =N12 -> 212 | AJ12: =COUNTIF(L98:L127,AI12) -> 0 | AK12: =AJ12/(AL4-AJ11) -> 0 | AL12: =IF(AK12=0,0,(AK12*((LOG(AK12))/LOG(2)))) -> 0 | AN12: =N12 -> 212 | AO12: =COUNTIF(L128:L158,AN12) -> 0 | AP12: =AO12/(AQ4-AO11) -> 0 | AQ12: =IF(AP12=0,0,(AP12*((LOG(AP12))/LOG(2)))) -> 0 | AS12: =N12 -> 212 | AT12: =COUNTIF(L159:L188,AS12) -> 0 | AU12: =AT12/(AV4-AT11) -> 0 | AV12: =IF(AU12=0,0,(AU12*((LOG(AU12))/LOG(2)))) -> 0
A13: 12 | B13: 820 | C13: 24 | D13: 829 | E13: 24 | F13: 834 | K13: 0 | L13: 122 | N13: 221 | O13: =COUNTIF($L$7:$L$500,N13) -> 0 | P13: =O13/$Q$4 -> 0 | Q13: =IF(P13=0,0,(P13*((LOG(P13))/LOG(2)))) -> 0 | T13: =N13 -> 221 | U13: =COUNTIF(L7:L36,T13) -> 0 | V13: =U13/(W4-U11) -> 0 | W13: =IF(V13=0,0,(V13*((LOG(V13))/LOG(2)))) -> 0 | Y13: =N13 -> 221 | Z13: =COUNTIF(L37:L67,Y13) -> 0 | AA13: =Z13/(AB4-Z11) -> 0 | AB13: =IF(AA13=0,0,(AA13*((LOG(AA13))/LOG(2)))) -> 0 | AD13: =N13 -> 221 | AE13: =COUNTIF(L68:L97,AD13) -> 0 | AF13: =AE13/(AG4-AE11) -> 0 | AG13: =IF(AF13=0,0,(AF13*((LOG(AF13))/LOG(2)))) -> 0 | AI13: =N13 -> 221 | AJ13: =COUNTIF(L98:L127,AI13) -> 0 | AK13: =AJ13/(AL4-AJ11) -> 0 | AL13: =IF(AK13=0,0,(AK13*((LOG(AK13))/LOG(2)))) -> 0 | AN13: =N13 -> 221 | AO13: =COUNTIF(L128:L158,AN13) -> 0 | AP13: =AO13/(AQ4-AO11) -> 0 | AQ13: =IF(AP13=0,0,(AP13*((LOG(AP13))/LOG(2)))) -> 0 | AS13: =N13 -> 221 | AT13: =COUNTIF(L159:L188,AS13) -> 0 | AU13: =AT13/(AV4-AT11) -> 0 | AV13: =IF(AU13=0,0,(AU13*((LOG(AU13))/LOG(2)))) -> 0
A14: 12 | B14: 933 | C14: 24 | D14: 946 | E14: 24 | F14: 952 | K14: 0 | L14: 122 | N14: 222 | O14: =COUNTIF($L$7:$L$500,N14) -> 80 | P14: =O14/$Q$4 -> 0.4395604396 | Q14: =IF(P14=0,0,(P14*((LOG(P14))/LOG(2)))) -> -0.5212600199 | T14: =N14 -> 222 | U14: =COUNTIF(L7:L36,T14) -> 14 | V14: =U14/(W4-U11) -> 0.4666666667 | W14: =IF(V14=0,0,(V14*((LOG(V14))/LOG(2)))) -> -0.5131166477 | Y14: =N14 -> 222 | Z14: =COUNTIF(L37:L67,Y14) -> 11 | AA14: =Z14/(AB4-Z11) -> 0.3548387097 | AB14: =IF(AA14=0,0,(AA14*((LOG(AA14))/LOG(2)))) -> -0.5304003745 | AD14: =N14 -> 222 | AE14: =COUNTIF(L68:L97,AD14) -> 13 | AF14: =AE14/(AG4-AE11) -> 0.4333333333 | AG14: =IF(AF14=0,0,(AF14*((LOG(AF14))/LOG(2)))) -> -0.5227953802 | AI14: =N14 -> 222 | AJ14: =COUNTIF(L98:L127,AI14) -> 14 | AK14: =AJ14/(AL4-AJ11) -> 0.4666666667 | AL14: =IF(AK14=0,0,(AK14*((LOG(AK14))/LOG(2)))) -> -0.5131166477 | AN14: =N14 -> 222 | AO14: =COUNTIF(L128:L158,AN14) -> 13 | AP14: =AO14/(AQ4-AO11) -> 0.4193548387 | AQ14: =IF(AP14=0,0,(AP14*((LOG(AP14))/LOG(2)))) -> -0.5257688935 | AS14: =N14 -> 222 | AT14: =COUNTIF(L159:L188,AS14) -> 15 | AU14: =AT14/(AV4-AT11) -> 0.5 | AV14: =IF(AU14=0,0,(AU14*((LOG(AU14))/LOG(2)))) -> -0.5
A15: 12 | B15: 1051 | C15: 24 | D15: 1062 | E15: 24 | F15: 1068 | K15: 0 | L15: 122 | P15: =SUM(P7:P14) -> 1 | Q15: =-SUM(Q7:Q14) -> 1.096720791 | V15: =SUM(V7:V14) -> 1 | W15: =-SUM(W7:W14) -> 1.286692668 | AA15: =SUM(AA7:AA14) -> 1 | AB15: =-SUM(AB7:AB14) -> 0.9383153522 | AF15: =SUM(AF7:AF14) -> 1 | AG15: =-SUM(AG7:AG14) -> 1.170033384 | AK15: =SUM(AK7:AK14) -> 1 | AL15: =-SUM(AL7:AL14) -> 0.996791632 | AP15: =SUM(AP7:AP14) -> 1 | AQ15: =-SUM(AQ7:AQ14) -> 0.9811522342 | AU15: =SUM(AU7:AU14) -> 1 | AV15: =-SUM(AV7:AV14) -> 1
A16: 12 | B16: 1167 | C16: 24 | D16: 1181 | E16: 24 | F16: 1187 | K16: 0 | L16: 122 | P16: U= | Q16: =Q15/(LOG(Q4)/LOG(2)) -> 0.1460776225 | V16: U1= | W16: =W15/(LOG(W4)/LOG(2)) -> 0.2622215929 | AA16: U2= | AB16: =AB15/(LOG(AB4)/LOG(2)) -> 0.1893980968 | AF16: U3= | AG16: =AG15/(LOG(AG4)/LOG(2)) -> 0.2384470087 | AK16: U4= | AL16: =AL15/(LOG(AL4)/LOG(2)) -> 0.2031411976 | AP16: U5= | AQ16: =AQ15/(LOG(AQ4)/LOG(2)) -> 0.1980446823 | AU16: U6= | AV16: =AV15/(LOG(AV4)/LOG(2)) -> 0.2037950471
A17: 21 | B17: 1300 | C17: 22 | D17: 1315 | E17: 24 | F17: 1324 | K17: 0 | L17: 222
A18: 21 | B18: 1431 | C18: 22 | D18: 1437 | E18: 24 | F18: 1449 | K18: 0 | L18: 222
A19: 12 | B19: 1547 | C19: 24 | D19: 1561 | E19: 24 | F19: 1569 | K19: 0 | L19: 122 | N19: Total Target Seq
A20: 12 | B20: 1670 | C20: 24 | D20: 1681 | E20: 24 | F20: 1689 | K20: 0 | L20: 122 | N20: =COUNTIF(L7:L188,G3) -> 0 | P20: 30 | Q20: 31 | R20: 30 | S20: 30 | T20: 31 | U20: 30
A21: 12 | B21: 1791 | C21: 24 | D21: 1812 | E21: 24 | F21: 1863 | K21: 0 | L21: 122 | P21: % of reinforcement given in 6 equal intervals based on number of trials
A22: 21 | B22: 1973 | C22: 22 | D22: 1981 | E22: 24 | F22: 1991 | K22: 0 | L22: 222 | P22: %_1 | Q22: %_2 | R22: %_3 | S22: %_4 | T22: %_5 | U22: %_6
A23: 21 | B23: 2100 | C23: 22 | D23: 2113 | E23: 24 | F23: 2122 | K23: 0 | L23: 222 | O23: target sequence | P23: =$G$3 -> 211 | Q23: =$G$3 -> 211 | R23: =$G$3 -> 211 | S23: =$G$3 -> 211 | T23: =$G$3 -> 211 | U23: =$G$3 -> 211
A24: 12 | B24: 2225 | C24: 13 | D24: 2239 | E24: 24 | F24: 2250 | K24: 0 | L24: 112 | O24: total reinforcement | P24: =U11 -> 0 | Q24: =Z11 -> 0 | R24: =AE11 -> 0 | S24: =AJ11 -> 0 | T24: =AO11 -> 0 | U24: =AT11 -> 0
A25: 12 | B25: 2364 | C25: 24 | D25: 2378 | E25: 24 | F25: 2387 | K25: 0 | L25: 122 | O25: % target
A26: 12 | B26: 2489 | C26: 13 | D26: 2502 | E26: 24 | F26: 2515 | K26: 0 | L26: 112 | O26: CCRF
A27: 12 | B27: 2616 | C27: 24 | D27: 2627 | E27: 24 | F27: 2632 | K27: 0 | L27: 122 | O27: % CCRf
A28: 21 | B28: 2735 | C28: 22 | D28: 2744 | E28: 24 | F28: 2764 | K28: 0 | L28: 222 | O28: average response rate | P28: =F36/P20 -> 127.3666667 | Q28: =(F67-F36)/Q20 -> 128.7096774 | R28: =(F97-F67)/R20 -> 133.8333333 | S28: =(F127-F97)/S20 -> 132.7666667 | T28: =(F158-F127)/T20 -> 129.5483871 | U28: =(F188-F158)/U20 -> 136
A29: 21 | B29: 2867 | C29: 22 | D29: 2872 | E29: 24 | F29: 2881 | K29: 0 | L29: 222
A30: 12 | B30: 2980 | C30: 24 | D30: 2994 | E30: 24 | F30: 3000 | K30: 0 | L30: 122
A31: 21 | B31: 3108 | C31: 22 | D31: 3118 | E31: 24 | F31: 3128 | K31: 0 | L31: 222
A32: 21 | B32: 3248 | C32: 22 | D32: 3257 | E32: 24 | F32: 3265 | K32: 0 | L32: 222
A33: 12 | B33: 3371 | C33: 24 | D33: 3386 | E33: 24 | F33: 3400 | K33: 0 | L33: 122
A34: 21 | B34: 3503 | C34: 22 | D34: 3520 | E34: 24 | F34: 3550 | K34: 0 | L34: 222
A35: 12 | B35: 3656 | C35: 24 | D35: 3668 | E35: 24 | F35: 3683 | K35: 0 | L35: 122
A36: 21 | B36: 3808 | C36: 22 | D36: 3813 | E36: 24 | F36: 3821 | K36: 0 | L36: 222
A37: 12 | B37: 3918 | C37: 24 | D37: 3928 | E37: 24 | F37: 3933 | K37: 0 | L37: 122
A38: 12 | B38: 4032 | C38: 24 | D38: 4042 | E38: 24 | F38: 4054 | K38: 0 | L38: 122
A39: 12 | B39: 4155 | C39: 24 | D39: 4168 | E39: 24 | F39: 4179 | K39: 0 | L39: 122
A40: 12 | B40: 4280 | C40: 24 | D40: 4289 | E40: 24 | F40: 4297 | K40: 0 | L40: 122
A41: 12 | B41: 4399 | C41: 24 | D41: 4415 | E41: 24 | F41: 4440 | K41: 0 | L41: 122
A42: 21 | B42: 4549 | C42: 22 | D42: 4557 | E42: 24 | F42: 4564 | K42: 0 | L42: 222
A43: 12 | B43: 4666 | C43: 24 | D43: 4676 | E43: 24 | F43: 4681 | K43: 0 | L43: 122
A44: 12 | B44: 4782 | C44: 24 | D44: 4796 | E44: 24 | F44: 4804 | K44: 0 | L44: 122
A45: 12 | B45: 4905 | C45: 24 | D45: 4918 | E45: 24 | F45: 4923 | K45: 0 | L45: 122
A46: 12 | B46: 5025 | C46: 24 | D46: 5044 | E46: 24 | F46: 5069 | K46: 0 | L46: 122
A47: 12 | B47: 5167 | C47: 24 | D47: 5176 | E47: 24 | F47: 5182 | K47: 0 | L47: 122
A48: 12 | B48: 5284 | C48: 24 | D48: 5294 | E48: 24 | F48: 5312 | K48: 0 | L48: 122
A49: 12 | B49: 5411 | C49: 24 | D49: 5423 | E49: 24 | F49: 5428 | K49: 0 | L49: 122
A50: 21 | B50: 5543 | C50: 22 | D50: 5549 | E50: 24 | F50: 5558 | K50: 0 | L50: 222
A51: 21 | B51: 5674 | C51: 22 | D51: 5691 | E51: 24 | F51: 5699 | K51: 0 | L51: 222
A52: 12 | B52: 5803 | C52: 24 | D52: 5835 | E52: 24 | F52: 5844 | K52: 0 | L52: 122
A53: 12 | B53: 5947 | C53: 24 | D53: 5957 | E53: 24 | F53: 5962 | K53: 0 | L53: 122
A54: 21 | B54: 6064 | C54: 22 | D54: 6070 | E54: 24 | F54: 6079 | K54: 0 | L54: 222
A55: 12 | B55: 6182 | C55: 24 | D55: 6191 | E55: 24 | F55: 6217 | K55: 0 | L55: 122
A56: 21 | B56: 6331 | C56: 22 | D56: 6336 | E56: 24 | F56: 6354 | K56: 0 | L56: 222
A57: 12 | B57: 6454 | C57: 24 | D57: 6464 | E57: 24 | F57: 6472 | K57: 0 | L57: 122
A58: 12 | B58: 6572 | C58: 24 | D58: 6588 | E58: 24 | F58: 6603 | K58: 0 | L58: 122
A59: 21 | B59: 6703 | C59: 22 | D59: 6713 | E59: 24 | F59: 6723 | K59: 0 | L59: 222
A60: 21 | B60: 6824 | C60: 22 | D60: 6829 | E60: 24 | F60: 6852 | K60: 0 | L60: 222
A61: 12 | B61: 6954 | C61: 24 | D61: 6969 | E61: 24 | F61: 7004 | K61: 0 | L61: 122
A62: 21 | B62: 7110 | C62: 22 | D62: 7120 | E62: 24 | F62: 7192 | K62: 0 | L62: 222
A63: 12 | B63: 7298 | C63: 24 | D63: 7312 | E63: 24 | F63: 7321 | K63: 0 | L63: 122
A64: 12 | B64: 7420 | C64: 24 | D64: 7457 | E64: 24 | F64: 7477 | K64: 0 | L64: 122
A65: 21 | B65: 7575 | C65: 22 | D65: 7580 | E65: 24 | F65: 7587 | K65: 0 | L65: 222
A66: 21 | B66: 7689 | C66: 22 | D66: 7694 | E66: 24 | F66: 7698 | K66: 0 | L66: 222
A67: 21 | B67: 7795 | C67: 22 | D67: 7804 | E67: 24 | F67: 7811 | K67: 0 | L67: 222
A68: 21 | B68: 7911 | C68: 22 | D68: 7931 | E68: 24 | F68: 7955 | K68: 0 | L68: 222
A69: 21 | B69: 8055 | C69: 22 | D69: 8060 | E69: 24 | F69: 8072 | K69: 0 | L69: 222
A70: 12 | B70: 8173 | C70: 24 | D70: 8187 | E70: 24 | F70: 8193 | K70: 0 | L70: 122
A71: 21 | B71: 8294 | C71: 22 | D71: 8300 | E71: 24 | F71: 8311 | K71: 0 | L71: 222
A72: 12 | B72: 8415 | C72: 24 | D72: 8429 | E72: 24 | F72: 8434 | K72: 0 | L72: 122
A73: 12 | B73: 8535 | C73: 24 | D73: 8629 | E73: 24 | F73: 8637 | K73: 0 | L73: 122
A74: 21 | B74: 8737 | C74: 22 | D74: 8759 | E74: 24 | F74: 8768 | K74: 0 | L74: 222
A75: 21 | B75: 8863 | C75: 22 | D75: 8868 | E75: 24 | F75: 8892 | K75: 0 | L75: 222
A76: 21 | B76: 9007 | C76: 22 | D76: 9016 | E76: 24 | F76: 9023 | K76: 0 | L76: 222
A77: 21 | B77: 9125 | C77: 22 | D77: 9131 | E77: 24 | F77: 9146 | K77: 0 | L77: 222
A78: 12 | B78: 9244 | C78: 24 | D78: 9259 | E78: 24 | F78: 9265 | K78: 0 | L78: 122
A79: 12 | B79: 9364 | C79: 13 | D79: 9376 | E79: 24 | F79: 9386 | K79: 0 | L79: 112
A80: 21 | B80: 9485 | C80: 22 | D80: 9494 | E80: 24 | F80: 9503 | K80: 0 | L80: 222
A81: 21 | B81: 9604 | C81: 22 | D81: 9611 | E81: 24 | F81: 9620 | K81: 0 | L81: 222
A82: 12 | B82: 9723 | C82: 24 | D82: 9741 | E82: 24 | F82: 9749 | K82: 0 | L82: 122
A83: 21 | B83: 9848 | C83: 22 | D83: 9854 | E83: 24 | F83: 9867 | K83: 0 | L83: 222
A84: 12 | B84: 9962 | C84: 24 | D84: 9972 | E84: 24 | F84: 9993 | K84: 0 | L84: 122
A85: 12 | B85: 10095 | C85: 24 | D85: 10107 | E85: 24 | F85: 10135 | K85: 0 | L85: 122
A86: 12 | B86: 10237 | C86: 24 | D86: 10252 | E86: 24 | F86: 10267 | K86: 0 | L86: 122
A87: 21 | B87: 10370 | C87: 22 | D87: 10379 | E87: 24 | F87: 10390 | K87: 0 | L87: 222
A88: 12 | B88: 10491 | C88: 24 | D88: 10519 | E88: 24 | F88: 10551 | K88: 0 | L88: 122
A89: 12 | B89: 10652 | C89: 24 | D89: 10661 | E89: 24 | F89: 10684 | K89: 0 | L89: 122
A90: 12 | B90: 10790 | C90: 24 | D90: 10823 | E90: 24 | F90: 10857 | K90: 0 | L90: 122
A91: 12 | B91: 10960 | C91: 24 | D91: 10976 | E91: 24 | F91: 11002 | K91: 0 | L91: 122
A92: 12 | B92: 11100 | C92: 24 | D92: 11113 | E92: 24 | F92: 11119 | K92: 0 | L92: 122
A93: 21 | B93: 11236 | C93: 22 | D93: 11263 | E93: 24 | F93: 11286 | K93: 0 | L93: 222
A94: 21 | B94: 11386 | C94: 22 | D94: 11414 | E94: 24 | F94: 11451 | K94: 0 | L94: 222
A95: 12 | B95: 11551 | C95: 24 | D95: 11578 | E95: 24 | F95: 11592 | K95: 0 | L95: 122
A96: 12 | B96: 11694 | C96: 24 | D96: 11704 | E96: 24 | F96: 11711 | K96: 0 | L96: 122
A97: 12 | B97: 11811 | C97: 24 | D97: 11820 | E97: 24 | F97: 11826 | K97: 0 | L97: 122
A98: 12 | B98: 11932 | C98: 24 | D98: 11947 | E98: 24 | F98: 12031 | K98: 0 | L98: 122
A99: 21 | B99: 12131 | C99: 22 | D99: 12136 | E99: 24 | F99: 12179 | K99: 0 | L99: 222
A100: 12 | B100: 12275 | C100: 24 | D100: 12285 | E100: 24 | F100: 12310 | K100: 0 | L100: 122
A101: 12 | B101: 12406 | C101: 24 | D101: 12415 | E101: 24 | F101: 12420 | K101: 0 | L101: 122
A102: 12 | B102: 12521 | C102: 24 | D102: 12537 | E102: 24 | F102: 12549 | K102: 0 | L102: 122
A103: 12 | B103: 12648 | C103: 24 | D103: 12659 | E103: 24 | F103: 12663 | K103: 0 | L103: 122
A104: 21 | B104: 12761 | C104: 22 | D104: 12768 | E104: 24 | F104: 12779 | K104: 0 | L104: 222
A105: 21 | B105: 12887 | C105: 22 | D105: 12897 | E105: 24 | F105: 12916 | K105: 0 | L105: 222
A106: 12 | B106: 13021 | C106: 24 | D106: 13031 | E106: 24 | F106: 13047 | K106: 0 | L106: 122
A107: 12 | B107: 13145 | C107: 24 | D107: 13158 | E107: 24 | F107: 13164 | K107: 0 | L107: 122
A108: 12 | B108: 13264 | C108: 24 | D108: 13279 | E108: 24 | F108: 13305 | K108: 0 | L108: 122
A109: 21 | B109: 13415 | C109: 22 | D109: 13422 | E109: 24 | F109: 13431 | K109: 0 | L109: 222
A110: 21 | B110: 13547 | C110: 22 | D110: 13555 | E110: 24 | F110: 13564 | K110: 0 | L110: 222
A111: 21 | B111: 13675 | C111: 22 | D111: 13681 | E111: 24 | F111: 13698 | K111: 0 | L111: 222
A112: 12 | B112: 13798 | C112: 24 | D112: 13808 | E112: 24 | F112: 13812 | K112: 0 | L112: 122
A113: 12 | B113: 13907 | C113: 24 | D113: 13917 | E113: 24 | F113: 13923 | K113: 0 | L113: 122
A114: 21 | B114: 14026 | C114: 22 | D114: 14062 | E114: 24 | F114: 14076 | K114: 0 | L114: 222
A115: 21 | B115: 14175 | C115: 22 | D115: 14180 | E115: 24 | F115: 14188 | K115: 0 | L115: 222
A116: 12 | B116: 14289 | C116: 24 | D116: 14303 | E116: 24 | F116: 14313 | K116: 0 | L116: 122
A117: 12 | B117: 14411 | C117: 24 | D117: 14426 | E117: 24 | F117: 14431 | K117: 0 | L117: 122
A118: 12 | B118: 14537 | C118: 24 | D118: 14548 | E118: 24 | F118: 14553 | K118: 0 | L118: 122
A119: 21 | B119: 14700 | C119: 22 | D119: 14708 | E119: 24 | F119: 14715 | K119: 0 | L119: 222
A120: 21 | B120: 14824 | C120: 22 | D120: 14857 | E120: 24 | F120: 14880 | K120: 0 | L120: 222
A121: 21 | B121: 14982 | C121: 22 | D121: 14990 | E121: 24 | F121: 15001 | K121: 0 | L121: 222
A122: 12 | B122: 15101 | C122: 24 | D122: 15110 | E122: 24 | F122: 15115 | K122: 0 | L122: 122
A123: 21 | B123: 15263 | C123: 22 | D123: 15283 | E123: 24 | F123: 15296 | K123: 0 | L123: 222
A124: 12 | B124: 15396 | C124: 24 | D124: 15418 | E124: 24 | F124: 15425 | K124: 0 | L124: 122
A125: 21 | B125: 15540 | C125: 22 | D125: 15549 | E125: 24 | F125: 15580 | K125: 0 | L125: 222
A126: 21 | B126: 15680 | C126: 22 | D126: 15684 | E126: 24 | F126: 15690 | K126: 0 | L126: 222
A127: 12 | B127: 15788 | C127: 24 | D127: 15803 | E127: 24 | F127: 15809 | K127: 0 | L127: 122
A128: 12 | B128: 15928 | C128: 24 | D128: 15943 | E128: 24 | F128: 15961 | K128: 0 | L128: 122
A129: 12 | B129: 16063 | C129: 24 | D129: 16072 | E129: 24 | F129: 16082 | K129: 0 | L129: 122
A130: 21 | B130: 16190 | C130: 22 | D130: 16202 | E130: 24 | F130: 16213 | K130: 0 | L130: 222
A131: 12 | B131: 16312 | C131: 24 | D131: 16342 | E131: 24 | F131: 16369 | K131: 0 | L131: 122
A132: 12 | B132: 16492 | C132: 24 | D132: 16506 | E132: 24 | F132: 16513 | K132: 0 | L132: 122
A133: 21 | B133: 16619 | C133: 22 | D133: 16641 | E133: 24 | F133: 16648 | K133: 0 | L133: 222
A134: 21 | B134: 16748 | C134: 22 | D134: 16754 | E134: 24 | F134: 16771 | K134: 0 | L134: 222
A135: 21 | B135: 16873 | C135: 22 | D135: 16878 | E135: 24 | F135: 16892 | K135: 0 | L135: 222
A136: 21 | B136: 16994 | C136: 22 | D136: 16999 | E136: 24 | F136: 17014 | K136: 0 | L136: 222
A137: 12 | B137: 17110 | C137: 24 | D137: 17118 | E137: 24 | F137: 17124 | K137: 0 | L137: 122
A138: 21 | B138: 17229 | C138: 22 | D138: 17241 | E138: 24 | F138: 17271 | K138: 0 | L138: 222
A139: 21 | B139: 17384 | C139: 22 | D139: 17390 | E139: 24 | F139: 17405 | K139: 0 | L139: 222
A140: 12 | B140: 17503 | C140: 24 | D140: 17554 | E140: 24 | F140: 17561 | K140: 0 | L140: 122
A141: 12 | B141: 17665 | C141: 24 | D141: 17679 | E141: 24 | F141: 17684 | K141: 0 | L141: 122
A142: 12 | B142: 17785 | C142: 24 | D142: 17819 | E142: 24 | F142: 17831 | K142: 0 | L142: 122
A143: 21 | B143: 17925 | C143: 22 | D143: 17937 | E143: 24 | F143: 17946 | K143: 0 | L143: 222
A144: 21 | B144: 18045 | C144: 22 | D144: 18057 | E144: 24 | F144: 18068 | K144: 0 | L144: 222
A145: 12 | B145: 18169 | C145: 24 | D145: 18177 | E145: 24 | F145: 18182 | K145: 0 | L145: 122
A146: 12 | B146: 18280 | C146: 24 | D146: 18290 | E146: 24 | F146: 18294 | K146: 0 | L146: 122
A147: 12 | B147: 18392 | C147: 24 | D147: 18407 | E147: 24 | F147: 18414 | K147: 0 | L147: 122
A148: 12 | B148: 18520 | C148: 24 | D148: 18535 | E148: 24 | F148: 18542 | K148: 0 | L148: 122
A149: 12 | B149: 18647 | C149: 24 | D149: 18656 | E149: 24 | F149: 18663 | K149: 0 | L149: 122
A150: 21 | B150: 18773 | C150: 22 | D150: 18780 | E150: 24 | F150: 18788 | K150: 0 | L150: 222
A151: 21 | B151: 18895 | C151: 22 | D151: 18916 | E151: 24 | F151: 18923 | K151: 0 | L151: 222
A152: 12 | B152: 19024 | C152: 24 | D152: 19042 | E152: 24 | F152: 19051 | K152: 0 | L152: 122
A153: 21 | B153: 19148 | C153: 22 | D153: 19156 | E153: 24 | F153: 19190 | K153: 0 | L153: 222
A154: 12 | B154: 19291 | C154: 24 | D154: 19302 | E154: 24 | F154: 19307 | K154: 0 | L154: 122
A155: 12 | B155: 19409 | C155: 24 | D155: 19419 | E155: 24 | F155: 19424 | K155: 0 | L155: 122
A156: 12 | B156: 19533 | C156: 24 | D156: 19542 | E156: 24 | F156: 19548 | K156: 0 | L156: 122
A157: 12 | B157: 19649 | C157: 24 | D157: 19659 | E157: 24 | F157: 19665 | K157: 0 | L157: 122
A158: 21 | B158: 19768 | C158: 22 | D158: 19786 | E158: 24 | F158: 19825 | K158: 0 | L158: 222
A159: 12 | B159: 19928 | C159: 24 | D159: 19938 | E159: 24 | F159: 19947 | K159: 0 | L159: 122
A160: 21 | B160: 20044 | C160: 22 | D160: 20048 | E160: 24 | F160: 20058 | K160: 0 | L160: 222
A161: 12 | B161: 20154 | C161: 24 | D161: 20170 | E161: 24 | F161: 20184 | K161: 0 | L161: 122
A162: 21 | B162: 20384 | C162: 22 | D162: 20398 | E162: 24 | F162: 20425 | K162: 0 | L162: 222
A163: 21 | B163: 20525 | C163: 22 | D163: 20530 | E163: 24 | F163: 20543 | K163: 0 | L163: 222
A164: 12 | B164: 20643 | C164: 24 | D164: 20652 | E164: 24 | F164: 20657 | K164: 0 | L164: 122
A165: 21 | B165: 20763 | C165: 22 | D165: 20768 | E165: 24 | F165: 20784 | K165: 0 | L165: 222
A166: 12 | B166: 20894 | C166: 24 | D166: 20904 | E166: 24 | F166: 20918 | K166: 0 | L166: 122
A167: 12 | B167: 21018 | C167: 24 | D167: 21031 | E167: 24 | F167: 21036 | K167: 0 | L167: 122
A168: 12 | B168: 21139 | C168: 24 | D168: 21155 | E168: 24 | F168: 21168 | K168: 0 | L168: 122
A169: 12 | B169: 21269 | C169: 24 | D169: 21283 | E169: 24 | F169: 21297 | K169: 0 | L169: 122
A170: 21 | B170: 21456 | C170: 22 | D170: 21463 | E170: 24 | F170: 21487 | K170: 0 | L170: 222
A171: 12 | B171: 21583 | C171: 24 | D171: 21593 | E171: 24 | F171: 21598 | K171: 0 | L171: 122
A172: 21 | B172: 21715 | C172: 22 | D172: 21721 | E172: 24 | F172: 21747 | K172: 0 | L172: 222
A173: 21 | B173: 21868 | C173: 22 | D173: 21886 | E173: 24 | F173: 21902 | K173: 0 | L173: 222
A174: 21 | B174: 22018 | C174: 22 | D174: 22026 | E174: 24 | F174: 22037 | K174: 0 | L174: 222
A175: 12 | B175: 22143 | C175: 24 | D175: 22181 | E175: 24 | F175: 22193 | K175: 0 | L175: 122
A176: 21 | B176: 22298 | C176: 22 | D176: 22314 | E176: 24 | F176: 22322 | K176: 0 | L176: 222
A177: 12 | B177: 22424 | C177: 24 | D177: 22438 | E177: 24 | F177: 22457 | K177: 0 | L177: 122
A178: 12 | B178: 22559 | C178: 24 | D178: 22591 | E178: 24 | F178: 22605 | K178: 0 | L178: 122
A179: 21 | B179: 22703 | C179: 22 | D179: 22708 | E179: 24 | F179: 22722 | K179: 0 | L179: 222
A180: 21 | B180: 22840 | C180: 22 | D180: 22859 | E180: 24 | F180: 22874 | K180: 0 | L180: 222
A181: 21 | B181: 22986 | C181: 22 | D181: 22991 | E181: 24 | F181: 22999 | K181: 0 | L181: 222
A182: 12 | B182: 23105 | C182: 24 | D182: 23116 | E182: 24 | F182: 23121 | K182: 0 | L182: 122
A183: 21 | B183: 23222 | C183: 22 | D183: 23227 | E183: 24 | F183: 23235 | K183: 0 | L183: 222
A184: 12 | B184: 23335 | C184: 24 | D184: 23347 | E184: 24 | F184: 23362 | K184: 0 | L184: 122
A185: 12 | B185: 23465 | C185: 24 | D185: 23479 | E185: 24 | F185: 23497 | K185: 0 | L185: 122
A186: 21 | B186: 23602 | C186: 22 | D186: 23607 | E186: 24 | F186: 23612 | K186: 0 | L186: 222
A187: 21 | B187: 23717 | C187: 22 | D187: 23723 | E187: 24 | F187: 23766 | K187: 0 | L187: 222
A188: 12 | B188: 23868 | C188: 24 | D188: 23881 | E188: 24 | F188: 23905 | K188: 0 | L188: 122

Sheet !M929840.091
A1: Report for:!M929840.091
A2: Date: | B2: <date>
A3: Hen: | B3: <hen> | F3: Correct Sequence | G3: =Start!J2 -> 211 | P3: Total Sequences in Data | Q3: =4994-COUNTBLANK(L7:L5000) -> 185 | V3: Total Sequences in Block Data | W3: =COUNTA(L7:L37) -> 31 | AA3: Total Sequences in Block Data | AB3: =COUNTA(L38:L68) -> 31 | AF3: Total Sequences in Block Data | AG3: =COUNTA(L69:L98) -> 30 | AK3: Total Sequences in Block Data | AL3: =COUNTA(L99:L129) -> 31 | AP3: Total Sequences in Block Data | AQ3: =COUNTA(L130:L160) -> 31 | AU3: Total Sequences in Block Data | AV3: =COUNTA(L161:L191) -> 31
P4: Total Sequences in Summary | Q4: =SUM(O7:O14) -> 184 | V4: Total Sequences in Block Summary | W4: =SUM(U7:U14) -> 31 | AA4: Total Sequences in Block Summary | AB4: =SUM(Z7:Z14) -> 31 | AF4: Total Sequences in Block Summary | AG4: =SUM(AE7:AE14) -> 30 | AK4: Total Sequences in Block Summary | AL4: =SUM(AJ7:AJ14) -> 31 | AP4: Total Sequences in Block Summary | AQ4: =SUM(AO7:AO14) -> 31 | AU4: Total Sequences in Block Summary | AV4: =SUM(AT7:AT14) -> 30
T5: Block 1 | Y5: Block 2 | AD5: Block 3 | AI5: Block 4 | AN5: Block 5 | AS5: Block 6
A6: Sequence Component 1 | B6: Time 1 | C6: Sequence Component 2 | D6: Time 2 | E6: Sequence Component 3 | F6: Time 3 | G6: Sequence Component 4 | H6: Time 4 | I6: Sequence Component 5 | J6: Time 5 | K6: Correct? 0=No 1=Yes | L6: Sequence | N6: Frequency | P6: Relative Frequency | Q6: Variability | T6: Frequency | V6: Relative Frequency | W6: Variability | Y6: Frequency | AA6: Relative Frequency | AB6: Variability | AD6: Frequency | AF6: Relative Frequency | AG6: Variability | AI6: Frequency | AK6: Relative Frequency | AL6: Variability | AN6: Frequency | AP6: Relative Frequency | AQ6: Variability | AS6: Frequency | AU6: Relative Frequency | AV6: Variability
A7: 21 | B7: 21 | C7: 22 | D7: 38 | E7: 24 | F7: 49 | K7: 0 | L7: 222 | N7: 111 | O7: =COUNTIF($L$7:$L$500,N7) -> 0 | P7: =O7/$Q$4 -> 0 | Q7: =IF(P7=0,0,(P7*((LOG(P7))/LOG(2)))) -> 0 | T7: =N7 -> 111 | U7: =COUNTIF(L7:L37,T7) -> 0 | V7: =U7/(W4-U11) -> 0 | W7: =IF(V7=0,0,(V7*((LOG(V7))/LOG(2)))) -> 0 | Y7: =N7 -> 111 | Z7: =COUNTIF(L38:L68,Y7) -> 0 | AA7: =Z7/(AB4-Z11) -> 0 | AB7: =IF(AA7=0,0,(AA7*((LOG(AA7))/LOG(2)))) -> 0 | AD7: =N7 -> 111 | AE7: =COUNTIF(L69:L98,AD7) -> 0 | AF7: =AE7/(AG4-AE11) -> 0 | AG7: =IF(AF7=0,0,(AF7*((LOG(AF7))/LOG(2)))) -> 0 | AI7: =N7 -> 111 | AJ7: =COUNTIF(L99:L129,AI7) -> 0 | AK7: =AJ7/(AL4-AJ11) -> 0 | AL7: =IF(AK7=0,0,(AK7*((LOG(AK7))/LOG(2)))) -> 0 | AN7: =N7 -> 111 | AO7: =COUNTIF(L130:L160,AN7) -> 0 | AP7: =AO7/(AQ4-AO11) -> 0 | AQ7: =IF(AP7=0,0,(AP7*((LOG(AP7))/LOG(2)))) -> 0 | AS7: =N7 -> 111 | AT7: =COUNTIF(L161:L191,AS7) -> 0 | AU7: =AT7/(AV4-AT11) -> 0 | AV7: =IF(AU7=0,0,(AU7*((LOG(AU7))/LOG(2)))) -> 0
A8: 21 | B8: 159 | C8: 22 | D8: 165 | E8: 24 | F8: 174 | K8: 0 | L8: 222 | N8: 112 | O8: =COUNTIF($L$7:$L$500,N8) -> 3 | P8: =O8/$Q$4 -> 0.01630434783 | Q8: =IF(P8=0,0,(P8*((LOG(P8))/LOG(2)))) -> -0.09682499112 | T8: =N8 -> 112 | U8: =COUNTIF(L7:L37,T8) -> 0 | V8: =U8/(W4-U11) -> 0 | W8: =IF(V8=0,0,(V8*((LOG(V8))/LOG(2)))) -> 0 | Y8: =N8 -> 112 | Z8: =COUNTIF(L38:L68,Y8) -> 2 | AA8: =Z8/(AB4-Z11) -> 0.06451612903 | AB8: =IF(AA8=0,0,(AA8*((LOG(AA8))/LOG(2)))) -> -0.2551094394 | AD8: =N8 -> 112 | AE8: =COUNTIF(L69:L98,AD8) -> 0 | AF8: =AE8/(AG4-AE11) -> 0 | AG8: =IF(AF8=0,0,(AF8*((LOG(AF8))/LOG(2)))) -> 0 | AI8: =N8 -> 112 | AJ8: =COUNTIF(L99:L129,AI8) -> 0 | AK8: =AJ8/(AL4-AJ11) -> 0 | AL8: =IF(AK8=0,0,(AK8*((LOG(AK8))/LOG(2)))) -> 0 | AN8: =N8 -> 112 | AO8: =COUNTIF(L130:L160,AN8) -> 0 | AP8: =AO8/(AQ4-AO11) -> 0 | AQ8: =IF(AP8=0,0,(AP8*((LOG(AP8))/LOG(2)))) -> 0 | AS8: =N8 -> 112 | AT8: =COUNTIF(L161:L191,AS8) -> 1 | AU8: =AT8/(AV4-AT11) -> 0.03333333333 | AV8: =IF(AU8=0,0,(AU8*((LOG(AU8))/LOG(2)))) -> -0.1635630199
A9: 12 | B9: 278 | C9: 24 | D9: 292 | E9: 24 | F9: 299 | K9: 0 | L9: 122 | N9: 121 | O9: =COUNTIF($L$7:$L$500,N9) -> 0 | P9: =O9/$Q$4 -> 0 | Q9: =IF(P9=0,0,(P9*((LOG(P9))/LOG(2)))) -> 0 | T9: =N9 -> 121 | U9: =COUNTIF(L7:L37,T9) -> 0 | V9: =U9/(W4-U11) -> 0 | W9: =IF(V9=0,0,(V9*((LOG(V9))/LOG(2)))) -> 0 | Y9: =N9 -> 121 | Z9: =COUNTIF(L38:L68,Y9) -> 0 | AA9: =Z9/(AB4-Z11) -> 0 | AB9: =IF(AA9=0,0,(AA9*((LOG(AA9))/LOG(2)))) -> 0 | AD9: =N9 -> 121 | AE9: =COUNTIF(L69:L98,AD9) -> 0 | AF9: =AE9/(AG4-AE11) -> 0 | AG9: =IF(AF9=0,0,(AF9*((LOG(AF9))/LOG(2)))) -> 0 | AI9: =N9 -> 121 | AJ9: =COUNTIF(L99:L129,AI9) -> 0 | AK9: =AJ9/(AL4-AJ11) -> 0 | AL9: =IF(AK9=0,0,(AK9*((LOG(AK9))/LOG(2)))) -> 0 | AN9: =N9 -> 121 | AO9: =COUNTIF(L130:L160,AN9) -> 0 | AP9: =AO9/(AQ4-AO11) -> 0 | AQ9: =IF(AP9=0,0,(AP9*((LOG(AP9))/LOG(2)))) -> 0 | AS9: =N9 -> 121 | AT9: =COUNTIF(L161:L191,AS9) -> 0 | AU9: =AT9/(AV4-AT11) -> 0 | AV9: =IF(AU9=0,0,(AU9*((LOG(AU9))/LOG(2)))) -> 0
A10: 21 | B10: 414 | C10: 22 | D10: 426 | E10: 24 | F10: 444 | K10: 0 | L10: 222 | N10: 122 | O10: =COUNTIF($L$7:$L$500,N10) -> 87 | P10: =O10/$Q$4 -> 0.472826087 | Q10: =IF(P10=0,0,(P10*((LOG(P10))/LOG(2)))) -> -0.510944598 | T10: =N10 -> 122 | U10: =COUNTIF(L7:L37,T10) -> 17 | V10: =U10/(W4-U11) -> 0.5483870968 | W10: =IF(V10=0,0,(V10*((LOG(V10))/LOG(2)))) -> -0.4753054508 | Y10: =N10 -> 122 | Z10: =COUNTIF(L38:L68,Y10) -> 16 | AA10: =Z10/(AB4-Z11) -> 0.5161290323 | AB10: =IF(AA10=0,0,(AA10*((LOG(AA10))/LOG(2)))) -> -0.4924884183 | AD10: =N10 -> 122 | AE10: =COUNTIF(L69:L98,AD10) -> 12 | AF10: =AE10/(AG4-AE11) -> 0.4 | AG10: =IF(AF10=0,0,(AF10*((LOG(AF10))/LOG(2)))) -> -0.528771238 | AI10: =N10 -> 122 | AJ10: =COUNTIF(L99:L129,AI10) -> 12 | AK10: =AJ10/(AL4-AJ11) -> 0.3870967742 | AL10: =IF(AK10=0,0,(AK10*((LOG(AK10))/LOG(2)))) -> -0.5300259908 | AN10: =N10 -> 122 | AO10: =COUNTIF(L130:L160,AN10) -> 16 | AP10: =AO10/(AQ4-AO11) -> 0.5161290323 | AQ10: =IF(AP10=0,0,(AP10*((LOG(AP10))/LOG(2)))) -> -0.4924884183 | AS10: =N10 -> 122 | AT10: =COUNTIF(L161:L191,AS10) -> 14 | AU10: =AT10/(AV4-AT11) -> 0.4666666667 | AV10: =IF(AU10=0,0,(AU10*((LOG(AU10))/LOG(2)))) -> -0.5131166477
A11: 12 | B11: 544 | C11: 24 | D11: 556 | E11: 24 | F11: 571 | K11: 0 | L11: 122 | N11: 211 | O11: =COUNTIF($L$7:$L$500,N11) -> 0 | P11: =O11/$Q$4 -> 0 | Q11: =IF(P11=0,0,(P11*((LOG(P11))/LOG(2)))) -> 0 | T11: =N11 -> 211 | U11: =COUNTIF(L7:L37,T11) -> 0 | Y11: =N11 -> 211 | Z11: =COUNTIF(L38:L68,Y11) -> 0 | AD11: =N11 -> 211 | AE11: =COUNTIF(L69:L98,AD11) -> 0 | AI11: =N11 -> 211 | AJ11: =COUNTIF(L99:L129,AI11) -> 0 | AN11: =N11 -> 211 | AO11: =COUNTIF(L130:L160,AN11) -> 0 | AS11: =N11 -> 211 | AT11: =COUNTIF(L161:L191,AS11) -> 0
A12: 12 | B12: 675 | C12: 24 | D12: 685 | E12: 24 | F12: 694 | K12: 0 | L12: 122 | N12: 212 | O12: =COUNTIF($L$7:$L$500,N12) -> 0 | P12: =O12/$Q$4 -> 0 | Q12: =IF(P12=0,0,(P12*((LOG(P12))/LOG(2)))) -> 0 | T12: =N12 -> 212 | U12: =COUNTIF(L7:L37,T12) -> 0 | V12: =U12/(W4-U11) -> 0 | W12: =IF(V12=0,0,(V12*((LOG(V12))/LOG(2)))) -> 0 | Y12: =N12 -> 212 | Z12: =COUNTIF(L38:L68,Y12) -> 0 | AA12: =Z12/(AB4-Z11) -> 0 | AB12: =IF(AA12=0,0,(AA12*((LOG(AA12))/LOG(2)))) -> 0 | AD12: =N12 -> 212 | AE12: =COUNTIF(L69:L98,AD12) -> 0 | AF12: =AE12/(AG4-AE11) -> 0 | AG12: =IF(AF12=0,0,(AF12*((LOG(AF12))/LOG(2)))) -> 0 | AI12: =N12 -> 212 | AJ12: =COUNTIF(L99:L129,AI12) -> 0 | AK12: =AJ12/(AL4-AJ11) -> 0 | AL12: =IF(AK12=0,0,(AK12*((LOG(AK12))/LOG(2)))) -> 0 | AN12: =N12 -> 212 | AO12: =COUNTIF(L130:L160,AN12) -> 0 | AP12: =AO12/(AQ4-AO11) -> 0 | AQ12: =IF(AP12=0,0,(AP12*((LOG(AP12))/LOG(2)))) -> 0 | AS12: =N12 -> 212 | AT12: =COUNTIF(L161:L191,AS12) -> 0 | AU12: =AT12/(AV4-AT11) -> 0 | AV12: =IF(AU12=0,0,(AU12*((LOG(AU12))/LOG(2)))) -> 0
A13: 21 | B13: 797 | C13: 22 | D13: 804 | E13: 24 | F13: 835 | K13: 0 | L13: 222 | N13: 221 | O13: =COUNTIF($L$7:$L$500,N13) -> 0 | P13: =O13/$Q$4 -> 0 | Q13: =IF(P13=0,0,(P13*((LOG(P13))/LOG(2)))) -> 0 | T13: =N13 -> 221 | U13: =COUNTIF(L7:L37,T13) -> 0 | V13: =U13/(W4-U11) -> 0 | W13: =IF(V13=0,0,(V13*((LOG(V13))/LOG(2)))) -> 0 | Y13: =N13 -> 221 | Z13: =COUNTIF(L38:L68,Y13) -> 0 | AA13: =Z13/(AB4-Z11) -> 0 | AB13: =IF(AA13=0,0,(AA13*((LOG(AA13))/LOG(2)))) -> 0 | AD13: =N13 -> 221 | AE13: =COUNTIF(L69:L98,AD13) -> 0 | AF13: =AE13/(AG4-AE11) -> 0 | AG13: =IF(AF13=0,0,(AF13*((LOG(AF13))/LOG(2)))) -> 0 | AI13: =N13 -> 221 | AJ13: =COUNTIF(L99:L129,AI13) -> 0 | AK13: =AJ13/(AL4-AJ11) -> 0 | AL13: =IF(AK13=0,0,(AK13*((LOG(AK13))/LOG(2)))) -> 0 | AN13: =N13 -> 221 | AO13: =COUNTIF(L130:L160,AN13) -> 0 | AP13: =AO13/(AQ4-AO11) -> 0 | AQ13: =IF(AP13=0,0,(AP13*((LOG(AP13))/LOG(2)))) -> 0 | AS13: =N13 -> 221 | AT13: =COUNTIF(L161:L191,AS13) -> 0 | AU13: =AT13/(AV4-AT11) -> 0 | AV13: =IF(AU13=0,0,(AU13*((LOG(AU13))/LOG(2)))) -> 0
A14: 21 | B14: 937 | C14: 22 | D14: 943 | E14: 24 | F14: 953 | K14: 0 | L14: 222 | N14: 222 | O14: =COUNTIF($L$7:$L$500,N14) -> 94 | P14: =O14/$Q$4 -> 0.5108695652 | Q14: =IF(P14=0,0,(P14*((LOG(P14))/LOG(2)))) -> -0.4950188685 | T14: =N14 -> 222 | U14: =COUNTIF(L7:L37,T14) -> 14 | V14: =U14/(W4-U11) -> 0.4516129032 | W14: =IF(V14=0,0,(V14*((LOG(V14))/LOG(2)))) -> -0.5179283689 | Y14: =N14 -> 222 | Z14: =COUNTIF(L38:L68,Y14) -> 13 | AA14: =Z14/(AB4-Z11) -> 0.4193548387 | AB14: =IF(AA14=0,0,(AA14*((LOG(AA14))/LOG(2)))) -> -0.5257688935 | AD14: =N14 -> 222 | AE14: =COUNTIF(L69:L98,AD14) -> 18 | AF14: =AE14/(AG4-AE11) -> 0.6 | AG14: =IF(AF14=0,0,(AF14*((LOG(AF14))/LOG(2)))) -> -0.4421793565 | AI14: =N14 -> 222 | AJ14: =COUNTIF(L99:L129,AI14) -> 19 | AK14: =AJ14/(AL4-AJ11) -> 0.6129032258 | AL14: =IF(AK14=0,0,(AK14*((LOG(AK14))/LOG(2)))) -> -0.4328744239 | AN14: =N14 -> 222 | AO14: =COUNTIF(L130:L160,AN14) -> 15 | AP14: =AO14/(AQ4-AO11) -> 0.4838709677 | AQ14: =IF(AP14=0,0,(AP14*((LOG(AP14))/LOG(2)))) -> -0.5067608297 | AS14: =N14 -> 222 | AT14: =COUNTIF(L161:L191,AS14) -> 15 | AU14: =AT14/(AV4-AT11) -> 0.5 | AV14: =IF(AU14=0,0,(AU14*((LOG(AU14))/LOG(2)))) -> -0.5
A15: 21 | B15: 1065 | C15: 22 | D15: 1072 | E15: 24 | F15: 1110 | K15: 0 | L15: 222 | P15: =SUM(P7:P14) -> 1 | Q15: =-SUM(Q7:Q14) -> 1.102788458 | V15: =SUM(V7:V14) -> 1 | W15: =-SUM(W7:W14) -> 0.9932338197 | AA15: =SUM(AA7:AA14) -> 1 | AB15: =-SUM(AB7:AB14) -> 1.273366751 | AF15: =SUM(AF7:AF14) -> 1 | AG15: =-SUM(AG7:AG14) -> 0.9709505945 | AK15: =SUM(AK7:AK14) -> 1 | AL15: =-SUM(AL7:AL14) -> 0.9629004148 | AP15: =SUM(AP7:AP14) -> 1 | AQ15: =-SUM(AQ7:AQ14) -> 0.999249248 | AU15: =SUM(AU7:AU14) -> 1 | AV15: =-SUM(AV7:AV14) -> 1.176679668
A16: 12 | B16: 1210 | C16: 24 | D16: 1219 | E16: 24 | F16: 1256 | K16: 0 | L16: 122 | P16: U= | Q16: =Q15/(LOG(Q4)/LOG(2)) -> 0.1465779725 | V16: U1= | W16: =W15/(LOG(W4)/LOG(2)) -> 0.2004833393 | AA16: U2= | AB16: =AB15/(LOG(AB4)/LOG(2)) -> 0.2570279156 | AF16: U3= | AG16: =AG15/(LOG(AG4)/LOG(2)) -> 0.1978749221 | AK16: U4= | AL16: =AL15/(LOG(AL4)/LOG(2)) -> 0.1943605692 | AP16: U5= | AQ16: =AQ15/(LOG(AQ4)/LOG(2)) -> 0.201697548 | AU16: U6= | AV16: =AV15/(LOG(AV4)/LOG(2)) -> 0.2398014883
A17: 12 | B17: 1352 | C17: 24 | D17: 1362 | E17: 24 | F17: 1368 | K17: 0 | L17: 122
A18: 12 | B18: 1468 | C18: 24 | D18: 1483 | E18: 24 | F18: 1491 | K18: 0 | L18: 122
A19: 21 | B19: 1589 | C19: 22 | D19: 1601 | E19: 24 | F19: 1621 | K19: 0 | L19: 222 | N19: Total Target Seq
A20: 21 | B20: 1722 | C20: 22 | D20: 1728 | E20: 24 | F20: 1738 | K20: 0 | L20: 222 | N20: =COUNTIF(L7:L191,G3) -> 0 | P20: 31 | Q20: 31 | R20: 30 | S20: 31 | T20: 31 | U20: 31
A21: 21 | B21: 1850 | C21: 22 | D21: 1855 | E21: 24 | F21: 1862 | K21: 0 | L21: 222 | P21: % of reinforcement given in 6 equal intervals based on number of trials
A22: 21 | B22: 1970 | C22: 22 | D22: 1976 | E22: 24 | F22: 1985 | K22: 0 | L22: 222 | P22: %_1 | Q22: %_2 | R22: %_3 | S22: %_4 | T22: %_5 | U22: %_6
A23: 21 | B23: 2100 | C23: 22 | D23: 2109 | E23: 24 | F23: 2118 | K23: 0 | L23: 222 | O23: target sequence | P23: =$G$3 -> 211 | Q23: =$G$3 -> 211 | R23: =$G$3 -> 211 | S23: =$G$3 -> 211 | T23: =$G$3 -> 211 | U23: =$G$3 -> 211
A24: 21 | B24: 2229 | C24: 22 | D24: 2235 | E24: 24 | F24: 2245 | K24: 0 | L24: 222 | O24: total reinforcement | P24: =U11 -> 0 | Q24: =Z11 -> 0 | R24: =AE11 -> 0 | S24: =AJ11 -> 0 | T24: =AO11 -> 0 | U24: =AT11 -> 0
A25: 12 | B25: 2343 | C25: 24 | D25: 2355 | E25: 24 | F25: 2361 | K25: 0 | L25: 122 | O25: % target
A26: 12 | B26: 2463 | C26: 24 | D26: 2473 | E26: 24 | F26: 2482 | K26: 0 | L26: 122 | O26: CCRF
A27: 21 | B27: 2584 | C27: 22 | D27: 2594 | E27: 24 | F27: 2604 | K27: 0 | L27: 222 | O27: % CCRf
A28: 12 | B28: 2704 | C28: 24 | D28: 2717 | E28: 24 | F28: 2725 | K28: 0 | L28: 122 | O28: average response rate | P28: =F37/P20 -> 123.8387097 | Q28: =(F68-F37)/Q20 -> 133.483871 | R28: =(F98-F68)/R20 -> 134.9666667 | S28: =(F129-F98)/S20 -> 128.9677419 | T28: =(F160-F129)/T20 -> 131.8709677 | U28: =(F191-F160)/U20 -> -648.7741935
A29: 12 | B29: 2826 | C29: 24 | D29: 2836 | E29: 24 | F29: 2850 | K29: 0 | L29: 122
A30: 12 | B30: 2950 | C30: 24 | D30: 2960 | E30: 24 | F30: 2976 | K30: 0 | L30: 122
A31: 21 | B31: 3077 | C31: 22 | D31: 3085 | E31: 24 | F31: 3092 | K31: 0 | L31: 222
A32: 12 | B32: 3192 | C32: 24 | D32: 3202 | E32: 24 | F32: 3210 | K32: 0 | L32: 122
A33: 12 | B33: 3310 | C33: 24 | D33: 3325 | E33: 24 | F33: 3357 | K33: 0 | L33: 122
A34: 12 | B34: 3460 | C34: 24 | D34: 3470 | E34: 24 | F34: 3477 | K34: 0 | L34: 122
A35: 12 | B35: 3575 | C35: 24 | D35: 3590 | E35: 24 | F35: 3596 | K35: 0 | L35: 122
A36: 12 | B36: 3697 | C36: 24 | D36: 3706 | E36: 24 | F36: 3722 | K36: 0 | L36: 122
A37: 12 | B37: 3822 | C37: 24 | D37: 3833 | E37: 24 | F37: 3839 | K37: 0 | L37: 122
A38: 12 | B38: 3938 | C38: 24 | D38: 3961 | E38: 24 | F38: 3966 | K38: 0 | L38: 122
A39: 12 | B39: 4063 | C39: 13 | D39: 4071 | E39: 24 | F39: 4081 | K39: 0 | L39: 112
A40: 12 | B40: 4182 | C40: 24 | D40: 4193 | E40: 24 | F40: 4201 | K40: 0 | L40: 122
A41: 12 | B41: 4302 | C41: 24 | D41: 4315 | E41: 24 | F41: 4342 | K41: 0 | L41: 122
A42: 12 | B42: 4438 | C42: 13 | D42: 4451 | E42: 24 | F42: 4461 | K42: 0 | L42: 112
A43: 12 | B43: 4559 | C43: 24 | D43: 4570 | E43: 24 | F43: 4575 | K43: 0 | L43: 122
A44: 12 | B44: 4674 | C44: 24 | D44: 4686 | E44: 24 | F44: 4693 | K44: 0 | L44: 122
A45: 21 | B45: 4796 | C45: 22 | D45: 4802 | E45: 24 | F45: 4818 | K45: 0 | L45: 222
A46: 12 | B46: 4918 | C46: 24 | D46: 4929 | E46: 24 | F46: 4937 | K46: 0 | L46: 122
A47: 12 | B47: 5038 | C47: 24 | D47: 5049 | E47: 24 | F47: 5056 | K47: 0 | L47: 122
A48: 12 | B48: 5168 | C48: 24 | D48: 5178 | E48: 24 | F48: 5185 | K48: 0 | L48: 122
A49: 21 | B49: 5290 | C49: 22 | D49: 5306 | E49: 24 | F49: 5317 | K49: 0 | L49: 222
A50: 21 | B50: 5428 | C50: 22 | D50: 5449 | E50: 24 | F50: 5464 | K50: 0 | L50: 222
A51: 21 | B51: 5564 | C51: 22 | D51: 5574 | E51: 24 | F51: 5597 | K51: 0 | L51: 222
A52: 21 | B52: 5698 | C52: 22 | D52: 5709 | E52: 24 | F52: 5730 | K52: 0 | L52: 222
A53: 12 | B53: 5830 | C53: 24 | D53: 5839 | E53: 24 | F53: 5851 | K53: 0 | L53: 122
A54: 12 | B54: 5949 | C54: 24 | D54: 5959 | E54: 24 | F54: 5964 | K54: 0 | L54: 122
A55: 12 | B55: 6064 | C55: 24 | D55: 6109 | E55: 24 | F55: 6144 | K55: 0 | L55: 122
A56: 21 | B56: 6257 | C56: 22 | D56: 6262 | E56: 24 | F56: 6277 | K56: 0 | L56: 222
A57: 12 | B57: 6376 | C57: 24 | D57: 6387 | E57: 24 | F57: 6433 | K57: 0 | L57: 122
A58: 21 | B58: 6540 | C58: 22 | D58: 6568 | E58: 24 | F58: 6589 | K58: 0 | L58: 222
A59: 21 | B59: 6701 | C59: 22 | D59: 6743 | E59: 24 | F59: 6752 | K59: 0 | L59: 222
A60: 12 | B60: 6860 | C60: 24 | D60: 6870 | E60: 24 | F60: 6875 | K60: 0 | L60: 122
A61: 21 | B61: 6971 | C61: 22 | D61: 7036 | E61: 24 | F61: 7046 | K61: 0 | L61: 222
A62: 21 | B62: 7144 | C62: 22 | D62: 7150 | E62: 24 | F62: 7155 | K62: 0 | L62: 222
A63: 12 | B63: 7256 | C63: 24 | D63: 7270 | E63: 24 | F63: 7335 | K63: 0 | L63: 122
A64: 12 | B64: 7438 | C64: 24 | D64: 7448 | E64: 24 | F64: 7454 | K64: 0 | L64: 122
A65: 21 | B65: 7555 | C65: 22 | D65: 7563 | E65: 24 | F65: 7598 | K65: 0 | L65: 222
A66: 21 | B66: 7711 | C66: 22 | D66: 7725 | E66: 24 | F66: 7738 | K66: 0 | L66: 222
A67: 21 | B67: 7838 | C67: 22 | D67: 7847 | E67: 24 | F67: 7858 | K67: 0 | L67: 222
A68: 12 | B68: 7959 | C68: 24 | D68: 7972 | E68: 24 | F68: 7977 | K68: 0 | L68: 122
A69: 12 | B69: 8081 | C69: 24 | D69: 8091 | E69: 24 | F69: 8097 | K69: 0 | L69: 122
A70: 21 | B70: 8285 | C70: 22 | D70: 8303 | E70: 24 | F70: 8331 | K70: 0 | L70: 222
A71: 21 | B71: 8434 | C71: 22 | D71: 8442 | E71: 24 | F71: 8455 | K71: 0 | L71: 222
A72: 12 | B72: 8555 | C72: 24 | D72: 8567 | E72: 24 | F72: 8579 | K72: 0 | L72: 122
A73: 21 | B73: 8680 | C73: 22 | D73: 8687 | E73: 24 | F73: 8695 | K73: 0 | L73: 222
A74: 21 | B74: 8830 | C74: 22 | D74: 8863 | E74: 24 | F74: 8896 | K74: 0 | L74: 222
A75: 21 | B75: 8998 | C75: 22 | D75: 9018 | E75: 24 | F75: 9040 | K75: 0 | L75: 222
A76: 21 | B76: 9141 | C76: 22 | D76: 9145 | E76: 24 | F76: 9150 | K76: 0 | L76: 222
A77: 21 | B77: 9252 | C77: 22 | D77: 9261 | E77: 24 | F77: 9269 | K77: 0 | L77: 222
A78: 21 | B78: 9401 | C78: 22 | D78: 9455 | E78: 24 | F78: 9463 | K78: 0 | L78: 222
A79: 21 | B79: 9559 | C79: 22 | D79: 9564 | E79: 24 | F79: 9570 | K79: 0 | L79: 222
A80: 12 | B80: 9671 | C80: 24 | D80: 9680 | E80: 24 | F80: 9685 | K80: 0 | L80: 122
A81: 21 | B81: 9786 | C81: 22 | D81: 9805 | E81: 24 | F81: 9845 | K81: 0 | L81: 222
A82: 12 | B82: 9941 | C82: 24 | D82: 9959 | E82: 24 | F82: 9975 | K82: 0 | L82: 122
A83: 12 | B83: 10075 | C83: 24 | D83: 10084 | E83: 24 | F83: 10089 | K83: 0 | L83: 122
A84: 12 | B84: 10189 | C84: 24 | D84: 10205 | E84: 24 | F84: 10215 | K84: 0 | L84: 122
A85: 12 | B85: 10313 | C85: 24 | D85: 10327 | E85: 24 | F85: 10332 | K85: 0 | L85: 122
A86: 21 | B86: 10451 | C86: 22 | D86: 10460 | E86: 24 | F86: 10469 | K86: 0 | L86: 222
A87: 21 | B87: 10581 | C87: 22 | D87: 10600 | E87: 24 | F87: 10615 | K87: 0 | L87: 222
A88: 21 | B88: 10718 | C88: 22 | D88: 10727 | E88: 24 | F88: 10747 | K88: 0 | L88: 222
A89: 12 | B89: 10848 | C89: 24 | D89: 10857 | E89: 24 | F89: 10862 | K89: 0 | L89: 122
A90: 12 | B90: 10970 | C90: 24 | D90: 10979 | E90: 24 | F90: 11018 | K90: 0 | L90: 122
A91: 21 | B91: 11119 | C91: 22 | D91: 11131 | E91: 24 | F91: 11142 | K91: 0 | L91: 222
A92: 12 | B92: 11241 | C92: 24 | D92: 11250 | E92: 24 | F92: 11254 | K92: 0 | L92: 122
A93: 21 | B93: 11359 | C93: 22 | D93: 11364 | E93: 24 | F93: 11396 | K93: 0 | L93: 222
A94: 12 | B94: 11498 | C94: 24 | D94: 11510 | E94: 24 | F94: 11516 | K94: 0 | L94: 122
A95: 21 | B95: 11613 | C95: 22 | D95: 11629 | E95: 24 | F95: 11645 | K95: 0 | L95: 222
A96: 12 | B96: 11749 | C96: 24 | D96: 11762 | E96: 24 | F96: 11770 | K96: 0 | L96: 122
A97: 21 | B97: 11870 | C97: 22 | D97: 11875 | E97: 24 | F97: 11887 | K97: 0 | L97: 222
A98: 21 | B98: 11994 | C98: 22 | D98: 11999 | E98: 24 | F98: 12026 | K98: 0 | L98: 222
A99: 21 | B99: 12132 | C99: 22 | D99: 12139 | E99: 24 | F99: 12151 | K99: 0 | L99: 222
A100: 21 | B100: 12250 | C100: 22 | D100: 12254 | E100: 24 | F100: 12266 | K100: 0 | L100: 222
A101: 21 | B101: 12366 | C101: 22 | D101: 12384 | E101: 24 | F101: 12392 | K101: 0 | L101: 222
A102: 21 | B102: 12497 | C102: 22 | D102: 12515 | E102: 24 | F102: 12528 | K102: 0 | L102: 222
A103: 12 | B103: 12627 | C103: 24 | D103: 12637 | E103: 24 | F103: 12642 | K103: 0 | L103: 122
A104: 21 | B104: 12740 | C104: 22 | D104: 12763 | E104: 24 | F104: 12771 | K104: 0 | L104: 222
A105: 12 | B105: 12873 | C105: 24 | D105: 12886 | E105: 24 | F105: 12947 | K105: 0 | L105: 122
A106: 21 | B106: 13046 | C106: 22 | D106: 13058 | E106: 24 | F106: 13067 | K106: 0 | L106: 222
A107: 21 | B107: 13178 | C107: 22 | D107: 13184 | E107: 24 | F107: 13202 | K107: 0 | L107: 222
A108: 12 | B108: 13299 | C108: 24 | D108: 13309 | E108: 24 | F108: 13316 | K108: 0 | L108: 122
A109: 21 | B109: 13420 | C109: 22 | D109: 13426 | E109: 24 | F109: 13434 | K109: 0 | L109: 222
A110: 21 | B110: 13536 | C110: 22 | D110: 13541 | E110: 24 | F110: 13562 | K110: 0 | L110: 222
A111: 21 | B111: 13658 | C111: 22 | D111: 13663 | E111: 24 | F111: 13673 | K111: 0 | L111: 222
A112: 12 | B112: 13768 | C112: 24 | D112: 13777 | E112: 24 | F112: 13792 | K112: 0 | L112: 122
A113: 12 | B113: 13893 | C113: 24 | D113: 13907 | E113: 24 | F113: 13919 | K113: 0 | L113: 122
A114: 21 | B114: 14036 | C114: 22 | D114: 14043 | E114: 24 | F114: 14050 | K114: 0 | L114: 222
A115: 21 | B115: 14162 | C115: 22 | D115: 14169 | E115: 24 | F115: 14177 | K115: 0 | L115: 222
A116: 12 | B116: 14277 | C116: 24 | D116: 14286 | E116: 24 | F116: 14292 | K116: 0 | L116: 122
A117: 21 | B117: 14397 | C117: 22 | D117: 14423 | E117: 24 | F117: 14461 | K117: 0 | L117: 222
A118: 12 | B118: 14563 | C118: 24 | D118: 14588 | E118: 24 | F118: 14597 | K118: 0 | L118: 122
A119: 12 | B119: 14694 | C119: 24 | D119: 14708 | E119: 24 | F119: 14714 | K119: 0 | L119: 122
A120: 21 | B120: 14811 | C120: 22 | D120: 14816 | E120: 24 | F120: 14834 | K120: 0 | L120: 222
A121: 12 | B121: 14934 | C121: 24 | D121: 14943 | E121: 24 | F121: 14948 | K121: 0 | L121: 122
A122: 21 | B122: 15054 | C122: 22 | D122: 15083 | E122: 24 | F122: 15099 | K122: 0 | L122: 222
A123: 21 | B123: 15208 | C123: 22 | D123: 15214 | E123: 24 | F123: 15225 | K123: 0 | L123: 222
A124: 21 | B124: 15342 | C124: 22 | D124: 15350 | E124: 24 | F124: 15369 | K124: 0 | L124: 222
A125: 12 | B125: 15474 | C125: 24 | D125: 15488 | E125: 24 | F125: 15497 | K125: 0 | L125: 122
A126: 12 | B126: 15602 | C126: 24 | D126: 15619 | E126: 24 | F126: 15640 | K126: 0 | L126: 122
A127: 21 | B127: 15749 | C127: 22 | D127: 15754 | E127: 24 | F127: 15762 | K127: 0 | L127: 222
A128: 12 | B128: 15860 | C128: 24 | D128: 15874 | E128: 24 | F128: 15879 | K128: 0 | L128: 122
A129: 21 | B129: 15992 | C129: 22 | D129: 15997 | E129: 24 | F129: 16024 | K129: 0 | L129: 222
A130: 21 | B130: 16127 | C130: 22 | D130: 16132 | E130: 24 | F130: 16140 | K130: 0 | L130: 222
A131: 21 | B131: 16249 | C131: 22 | D131: 16263 | E131: 24 | F131: 16277 | K131: 0 | L131: 222
A132: 12 | B132: 16375 | C132: 24 | D132: 16387 | E132: 24 | F132: 16392 | K132: 0 | L132: 122
A133: 12 | B133: 16491 | C133: 24 | D133: 16502 | E133: 24 | F133: 16512 | K133: 0 | L133: 122
A134: 12 | B134: 16613 | C134: 24 | D134: 16633 | E134: 24 | F134: 16638 | K134: 0 | L134: 122
A135: 21 | B135: 16738 | C135: 22 | D135: 16750 | E135: 24 | F135: 16759 | K135: 0 | L135: 222
A136: 21 | B136: 16869 | C136: 22 | D136: 16882 | E136: 24 | F136: 16888 | K136: 0 | L136: 222
A137: 12 | B137: 16990 | C137: 24 | D137: 17001 | E137: 24 | F137: 17014 | K137: 0 | L137: 122
A138: 12 | B138: 17118 | C138: 24 | D138: 17131 | E138: 24 | F138: 17155 | K138: 0 | L138: 122
A139: 21 | B139: 17253 | C139: 22 | D139: 17258 | E139: 24 | F139: 17263 | K139: 0 | L139: 222
A140: 12 | B140: 17360 | C140: 24 | D140: 17372 | E140: 24 | F140: 17378 | K140: 0 | L140: 122
A141: 12 | B141: 17482 | C141: 24 | D141: 17524 | E141: 24 | F141: 17546 | K141: 0 | L141: 122
A142: 12 | B142: 17646 | C142: 24 | D142: 17699 | E142: 24 | F142: 17714 | K142: 0 | L142: 122
A143: 21 | B143: 17815 | C143: 22 | D143: 17821 | E143: 24 | F143: 17830 | K143: 0 | L143: 222
A144: 21 | B144: 17932 | C144: 22 | D144: 17940 | E144: 24 | F144: 17948 | K144: 0 | L144: 222
A145: 12 | B145: 18046 | C145: 24 | D145: 18059 | E145: 24 | F145: 18064 | K145: 0 | L145: 122
A146: 12 | B146: 18166 | C146: 24 | D146: 18179 | E146: 24 | F146: 18185 | K146: 0 | L146: 122
A147: 12 | B147: 18285 | C147: 24 | D147: 18297 | E147: 24 | F147: 18303 | K147: 0 | L147: 122
A148: 21 | B148: 18405 | C148: 22 | D148: 18512 | E148: 24 | F148: 18528 | K148: 0 | L148: 222
A149: 12 | B149: 18630 | C149: 24 | D149: 18647 | E149: 24 | F149: 18661 | K149: 0 | L149: 122
A150: 12 | B150: 18762 | C150: 24 | D150: 18772 | E150: 24 | F150: 18777 | K150: 0 | L150: 122
A151: 12 | B151: 18882 | C151: 24 | D151: 18895 | E151: 24 | F151: 18949 | K151: 0 | L151: 122
A152: 21 | B152: 19049 | C152: 22 | D152: 19057 | E152: 24 | F152: 19088 | K152: 0 | L152: 222
A153: 21 | B153: 19196 | C153: 22 | D153: 19209 | E153: 24 | F153: 19217 | K153: 0 | L153: 222
A154: 21 | B154: 19327 | C154: 22 | D154: 19335 | E154: 24 | F154: 19344 | K154: 0 | L154: 222
A155: 21 | B155: 19443 | C155: 22 | D155: 19447 | E155: 24 | F155: 19453 | K155: 0 | L155: 222
A156: 12 | B156: 19550 | C156: 24 | D156: 19559 | E156: 24 | F156: 19565 | K156: 0 | L156: 122
A157: 21 | B157: 19667 | C157: 22 | D157: 19694 | E157: 24 | F157: 19733 | K157: 0 | L157: 222
A158: 21 | B158: 19848 | C158: 22 | D158: 19855 | E158: 24 | F158: 19869 | K158: 0 | L158: 222
A159: 12 | B159: 19974 | C159: 24 | D159: 19986 | E159: 24 | F159: 19991 | K159: 0 | L159: 122
A160: 21 | B160: 20090 | C160: 22 | D160: 20103 | E160: 24 | F160: 20112 | K160: 0 | L160: 222
A161: 12 | B161: 20220 | C161: 24 | D161: 20232 | E161: 24 | F161: 20237 | K161: 0 | L161: 122
A162: 12 | B162: 20335 | C162: 24 | D162: 20344 | E162: 24 | F162: 20349 | K162: 0 | L162: 122
A163: 12 | B163: 20448 | C163: 24 | D163: 20465 | E163: 24 | F163: 20472 | K163: 0 | L163: 122
A164: 12 | B164: 20589 | C164: 24 | D164: 20603 | E164: 24 | F164: 20610 | K164: 0 | L164: 122
A165: 21 | B165: 20718 | C165: 22 | D165: 20735 | E165: 24 | F165: 20753 | K165: 0 | L165: 222
A166: 21 | B166: 20856 | C166: 22 | D166: 20860 | E166: 24 | F166: 20868 | K166: 0 | L166: 222
A167: 12 | B167: 20968 | C167: 24 | D167: 20978 | E167: 24 | F167: 20983 | K167: 0 | L167: 122
A168: 12 | B168: 21081 | C168: 24 | D168: 21093 | E168: 24 | F168: 21098 | K168: 0 | L168: 122
A169: 21 | B169: 21201 | C169: 22 | D169: 21214 | E169: 24 | F169: 21239 | K169: 0 | L169: 222
A170: 21 | B170: 21339 | C170: 22 | D170: 21346 | E170: 24 | F170: 21355 | K170: 0 | L170: 222
A171: 12 | B171: 21455 | C171: 24 | D171: 21467 | E171: 24 | F171: 21476 | K171: 0 | L171: 122
A172: 21 | B172: 21571 | C172: 22 | D172: 21576 | E172: 24 | F172: 21586 | K172: 0 | L172: 222
A173: 12 | B173: 21688 | C173: 24 | D173: 21699 | E173: 24 | F173: 21707 | K173: 0 | L173: 122
A174: 12 | B174: 21810 | C174: 24 | D174: 21826 | E174: 24 | F174: 21841 | K174: 0 | L174: 122
A175: 21 | B175: 21947 | C175: 22 | D175: 21957 | E175: 24 | F175: 21980 | K175: 0 | L175: 222
A176: 21 | B176: 22075 | C176: 22 | D176: 22080 | E176: 24 | F176: 22085 | K176: 0 | L176: 222
A177: 12 | B177: 22183 | C177: 24 | D177: 22196 | E177: 24 | F177: 22205 | K177: 0 | L177: 122
A178: 12 | B178: 22305 | C178: 24 | D178: 22317 | E178: 24 | F178: 22329 | K178: 0 | L178: 122
A179: 21 | B179: 22445 | C179: 22 | D179: 22456 | E179: 24 | F179: 22479 | K179: 0 | L179: 222
A180: 12 | B180: 22579 | C180: 24 | D180: 22595 | E180: 24 | F180: 22602 | K180: 0 | L180: 122
A181: 12 | B181: 22702 | C181: 24 | D181: 22715 | E181: 24 | F181: 22721 | K181: 0 | L181: 122
A182: 21 | B182: 22836 | C182: 22 | D182: 22877 | E182: 24 | F182: 22895 | K182: 0 | L182: 222
A183: 21 | B183: 22998 | C183: 22 | D183: 23003 | E183: 24 | F183: 23016 | K183: 0 | L183: 222
A184: 21 | B184: 23115 | C184: 22 | D184: 23120 | E184: 24 | F184: 23125 | K184: 0 | L184: 222
A185: 21 | B185: 23229 | C185: 22 | D185: 23234 | E185: 24 | F185: 23262 | K185: 0 | L185: 222
A186: 12 | B186: 23361 | C186: 13 | D186: 23371 | E186: 24 | F186: 23379 | K186: 0 | L186: 112
A187: 21 | B187: 23478 | C187: 22 | D187: 23482 | E187: 24 | F187: 23487 | K187: 0 | L187: 222
A188: 21 | B188: 23599 | C188: 22 | D188: 23608 | E188: 24 | F188: 23648 | K188: 0 | L188: 222
A189: 12 | B189: 23748 | C189: 24 | D189: 23758 | E189: 24 | F189: 23763 | K189: 0 | L189: 122
A190: 21 | B190: 23864 | C190: 22 | D190: 23869 | E190: 24 | F190: 23878 | K190: 0 | L190: 222
A191: 21 | B191: 23980 | C191: 22 | D191: 23993 | L191: 22

Sheet !M930840.091
A1: Report for:!M930840.091
A2: Date: | B2: <date>
A3: Hen: | B3: <hen> | F3: Correct Sequence | G3: =Start!J2 -> 211 | P3: Total Sequences in Data | Q3: =4994-COUNTBLANK(L7:L5000) -> 182 | V3: Total Sequences in Block Data | W3: =COUNTA(L7:L36) -> 30 | AA3: Total Sequences in Block Data | AB3: =COUNTA(L37:L67) -> 31 | AF3: Total Sequences in Block Data | AG3: =COUNTA(L68:L97) -> 30 | AK3: Total Sequences in Block Data | AL3: =COUNTA(L98:L127) -> 30 | AP3: Total Sequences in Block Data | AQ3: =COUNTA(L128:L158) -> 31 | AU3: Total Sequences in Block Data | AV3: =COUNTA(L159:L188) -> 30
P4: Total Sequences in Summary | Q4: =SUM(O7:O14) -> 182 | V4: Total Sequences in Block Summary | W4: =SUM(U7:U14) -> 30 | AA4: Total Sequences in Block Summary | AB4: =SUM(Z7:Z14) -> 31 | AF4: Total Sequences in Block Summary | AG4: =SUM(AE7:AE14) -> 30 | AK4: Total Sequences in Block Summary | AL4: =SUM(AJ7:AJ14) -> 30 | AP4: Total Sequences in Block Summary | AQ4: =SUM(AO7:AO14) -> 31 | AU4: Total Sequences in Block Summary | AV4: =SUM(AT7:AT14) -> 30
T5: Block 1 | Y5: Block 2 | AD5: Block 3 | AI5: Block 4 | AN5: Block 5 | AS5: Block 6
A6: Sequence Component 1 | B6: Time 1 | C6: Sequence Component 2 | D6: Time 2 | E6: Sequence Component 3 | F6: Time 3 | G6: Sequence Component 4 | H6: Time 4 | I6: Sequence Component 5 | J6: Time 5 | K6: Correct? 0=No 1=Yes | L6: Sequence | N6: Frequency | P6: Relative Frequency | Q6: Variability | T6: Frequency | V6: Relative Frequency | W6: Variability | Y6: Frequency | AA6: Relative Frequency | AB6: Variability | AD6: Frequency | AF6: Relative Frequency | AG6: Variability | AI6: Frequency | AK6: Relative Frequency | AL6: Variability | AN6: Frequency | AP6: Relative Frequency | AQ6: Variability | AS6: Frequency | AU6: Relative Frequency | AV6: Variability
A7: 21 | B7: 27 | C7: 22 | D7: 41 | E7: 24 | F7: 50 | K7: 0 | L7: 222 | N7: 111 | O7: =COUNTIF($L$7:$L$500,N7) -> 1 | P7: =O7/$Q$4 -> 0.005494505495 | Q7: =IF(P7=0,0,(P7*((LOG(P7))/LOG(2)))) -> -0.0412516189 | T7: =N7 -> 111 | U7: =COUNTIF(L7:L36,T7) -> 0 | V7: =U7/(W4-U11) -> 0 | W7: =IF(V7=0,0,(V7*((LOG(V7))/LOG(2)))) -> 0 | Y7: =N7 -> 111 | Z7: =COUNTIF(L37:L67,Y7) -> 0 | AA7: =Z7/(AB4-Z11) -> 0 | AB7: =IF(AA7=0,0,(AA7*((LOG(AA7))/LOG(2)))) -> 0 | AD7: =N7 -> 111 | AE7: =COUNTIF(L68:L97,AD7) -> 0 | AF7: =AE7/(AG4-AE11) -> 0 | AG7: =IF(AF7=0,0,(AF7*((LOG(AF7))/LOG(2)))) -> 0 | AI7: =N7 -> 111 | AJ7: =COUNTIF(L98:L127,AI7) -> 0 | AK7: =AJ7/(AL4-AJ11) -> 0 | AL7: =IF(AK7=0,0,(AK7*((LOG(AK7))/LOG(2)))) -> 0 | AN7: =N7 -> 111 | AO7: =COUNTIF(L128:L158,AN7) -> 0 | AP7: =AO7/(AQ4-AO11) -> 0 | AQ7: =IF(AP7=0,0,(AP7*((LOG(AP7))/LOG(2)))) -> 0 | AS7: =N7 -> 111 | AT7: =COUNTIF(L159:L188,AS7) -> 1 | AU7: =AT7/(AV4-AT11) -> 0.03333333333 | AV7: =IF(AU7=0,0,(AU7*((LOG(AU7))/LOG(2)))) -> -0.1635630199
A8: 12 | B8: 152 | C8: 24 | D8: 165 | E8: 24 | F8: 175 | K8: 0 | L8: 122 | N8: 112 | O8: =COUNTIF($L$7:$L$500,N8) -> 4 | P8: =O8/$Q$4 -> 0.02197802198 | Q8: =IF(P8=0,0,(P8*((LOG(P8))/LOG(2)))) -> -0.1210504317 | T8: =N8 -> 112 | U8: =COUNTIF(L7:L36,T8) -> 2 | V8: =U8/(W4-U11) -> 0.06666666667 | W8: =IF(V8=0,0,(V8*((LOG(V8))/LOG(2)))) -> -0.260459373 | Y8: =N8 -> 112 | Z8: =COUNTIF(L37:L67,Y8) -> 1 | AA8: =Z8/(AB4-Z11) -> 0.03225806452 | AB8: =IF(AA8=0,0,(AA8*((LOG(AA8))/LOG(2)))) -> -0.1598127842 | AD8: =N8 -> 112 | AE8: =COUNTIF(L68:L97,AD8) -> 0 | AF8: =AE8/(AG4-AE11) -> 0 | AG8: =IF(AF8=0,0,(AF8*((LOG(AF8))/LOG(2)))) -> 0 | AI8: =N8 -> 112 | AJ8: =COUNTIF(L98:L127,AI8) -> 0 | AK8: =AJ8/(AL4-AJ11) -> 0 | AL8: =IF(AK8=0,0,(AK8*((LOG(AK8))/LOG(2)))) -> 0 | AN8: =N8 -> 112 | AO8: =COUNTIF(L128:L158,AN8) -> 0 | AP8: =AO8/(AQ4-AO11) -> 0 | AQ8: =IF(AP8=0,0,(AP8*((LOG(AP8))/LOG(2)))) -> 0 | AS8: =N8 -> 112 | AT8: =COUNTIF(L159:L188,AS8) -> 1 | AU8: =AT8/(AV4-AT11) -> 0.03333333333 | AV8: =IF(AU8=0,0,(AU8*((LOG(AU8))/LOG(2)))) -> -0.1635630199
A9: 21 | B9: 279 | C9: 22 | D9: 299 | E9: 24 | F9: 343 | K9: 0 | L9: 222 | N9: 121 | O9: =COUNTIF($L$7:$L$500,N9) -> 0 | P9: =O9/$Q$4 -> 0 | Q9: =IF(P9=0,0,(P9*((LOG(P9))/LOG(2)))) -> 0 | T9: =N9 -> 121 | U9: =COUNTIF(L7:L36,T9) -> 0 | V9: =U9/(W4-U11) -> 0 | W9: =IF(V9=0,0,(V9*((LOG(V9))/LOG(2)))) -> 0 | Y9: =N9 -> 121 | Z9: =COUNTIF(L37:L67,Y9) -> 0 | AA9: =Z9/(AB4-Z11) -> 0 | AB9: =IF(AA9=0,0,(AA9*((LOG(AA9))/LOG(2)))) -> 0 | AD9: =N9 -> 121 | AE9: =COUNTIF(L68:L97,AD9) -> 0 | AF9: =AE9/(AG4-AE11) -> 0 | AG9: =IF(AF9=0,0,(AF9*((LOG(AF9))/LOG(2)))) -> 0 | AI9: =N9 -> 121 | AJ9: =COUNTIF(L98:L127,AI9) -> 0 | AK9: =AJ9/(AL4-AJ11) -> 0 | AL9: =IF(AK9=0,0,(AK9*((LOG(AK9))/LOG(2)))) -> 0 | AN9: =N9 -> 121 | AO9: =COUNTIF(L128:L158,AN9) -> 0 | AP9: =AO9/(AQ4-AO11) -> 0 | AQ9: =IF(AP9=0,0,(AP9*((LOG(AP9))/LOG(2)))) -> 0 | AS9: =N9 -> 121 | AT9: =COUNTIF(L159:L188,AS9) -> 0 | AU9: =AT9/(AV4-AT11) -> 0 | AV9: =IF(AU9=0,0,(AU9*((LOG(AU9))/LOG(2)))) -> 0
A10: 21 | B10: 463 | C10: 22 | D10: 483 | E10: 24 | F10: 493 | K10: 0 | L10: 222 | N10: 122 | O10: =COUNTIF($L$7:$L$500,N10) -> 73 | P10: =O10/$Q$4 -> 0.4010989011 | Q10: =IF(P10=0,0,(P10*((LOG(P10))/LOG(2)))) -> -0.5286363513 | T10: =N10 -> 122 | U10: =COUNTIF(L7:L36,T10) -> 10 | V10: =U10/(W4-U11) -> 0.3333333333 | W10: =IF(V10=0,0,(V10*((LOG(V10))/LOG(2)))) -> -0.5283208336 | Y10: =N10 -> 122 | Z10: =COUNTIF(L37:L67,Y10) -> 9 | AA10: =Z10/(AB4-Z11) -> 0.2903225806 | AB10: =IF(AA10=0,0,(AA10*((LOG(AA10))/LOG(2)))) -> -0.518014251 | AD10: =N10 -> 122 | AE10: =COUNTIF(L68:L97,AD10) -> 9 | AF10: =AE10/(AG4-AE11) -> 0.3 | AG10: =IF(AF10=0,0,(AF10*((LOG(AF10))/LOG(2)))) -> -0.5210896782 | AI10: =N10 -> 122 | AJ10: =COUNTIF(L98:L127,AI10) -> 13 | AK10: =AJ10/(AL4-AJ11) -> 0.4333333333 | AL10: =IF(AK10=0,0,(AK10*((LOG(AK10))/LOG(2)))) -> -0.5227953802 | AN10: =N10 -> 122 | AO10: =COUNTIF(L128:L158,AN10) -> 15 | AP10: =AO10/(AQ4-AO11) -> 0.4838709677 | AQ10: =IF(AP10=0,0,(AP10*((LOG(AP10))/LOG(2)))) -> -0.5067608297 | AS10: =N10 -> 122 | AT10: =COUNTIF(L159:L188,AS10) -> 17 | AU10: =AT10/(AV4-AT11) -> 0.5666666667 | AV10: =IF(AU10=0,0,(AU10*((LOG(AU10))/LOG(2)))) -> -0.4643423941
A11: 21 | B11: 600 | C11: 22 | D11: 618 | E11: 24 | F11: 627 | K11: 0 | L11: 222 | N11: 211 | O11: =COUNTIF($L$7:$L$500,N11) -> 0 | P11: =O11/$Q$4 -> 0 | Q11: =IF(P11=0,0,(P11*((LOG(P11))/LOG(2)))) -> 0 | T11: =N11 -> 211 | U11: =COUNTIF(L7:L36,T11) -> 0 | Y11: =N11 -> 211 | Z11: =COUNTIF(L37:L67,Y11) -> 0 | AD11: =N11 -> 211 | AE11: =COUNTIF(L68:L97,AD11) -> 0 | AI11: =N11 -> 211 | AJ11: =COUNTIF(L98:L127,AI11) -> 0 | AN11: =N11 -> 211 | AO11: =COUNTIF(L128:L158,AN11) -> 0 | AS11: =N11 -> 211 | AT11: =COUNTIF(L159:L188,AS11) -> 0
A12: 21 | B12: 740 | C12: 22 | D12: 747 | E12: 24 | F12: 758 | K12: 0 | L12: 222 | N12: 212 | O12: =COUNTIF($L$7:$L$500,N12) -> 0 | P12: =O12/$Q$4 -> 0 | Q12: =IF(P12=0,0,(P12*((LOG(P12))/LOG(2)))) -> 0 | T12: =N12 -> 212 | U12: =COUNTIF(L7:L36,T12) -> 0 | V12: =U12/(W4-U11) -> 0 | W12: =IF(V12=0,0,(V12*((LOG(V12))/LOG(2)))) -> 0 | Y12: =N12 -> 212 | Z12: =COUNTIF(L37:L67,Y12) -> 0 | AA12: =Z12/(AB4-Z11) -> 0 | AB12: =IF(AA12=0,0,(AA12*((LOG(AA12))/LOG(2)))) -> 0 | AD12: =N12 -> 212 | AE12: =COUNTIF(L68:L97,AD12) -> 0 | AF12: =AE12/(AG4-AE11) -> 0 | AG12: =IF(AF12=0,0,(AF12*((LOG(AF12))/LOG(2)))) -> 0 | AI12: =N12 -> 212 | AJ12: =COUNTIF(L98:L127,AI12) -> 0 | AK12: =AJ12/(AL4-AJ11) -> 0 | AL12: =IF(AK12=0,0,(AK12*((LOG(AK12))/LOG(2)))) -> 0 | AN12: =N12 -> 212 | AO12: =COUNTIF(L128:L158,AN12) -> 0 | AP12: =AO12/(AQ4-AO11) -> 0 | AQ12: =IF(AP12=0,0,(AP12*((LOG(AP12))/LOG(2)))) -> 0 | AS12: =N12 -> 212 | AT12: =COUNTIF(L159:L188,AS12) -> 0 | AU12: =AT12/(AV4-AT11) -> 0 | AV12: =IF(AU12=0,0,(AU12*((LOG(AU12))/LOG(2)))) -> 0
A13: 12 | B13: 860 | C13: 13 | D13: 873 | E13: 24 | F13: 885 | K13: 0 | L13: 112 | N13: 221 | O13: =COUNTIF($L$7:$L$500,N13) -> 0 | P13: =O13/$Q$4 -> 0 | Q13: =IF(P13=0,0,(P13*((LOG(P13))/LOG(2)))) -> 0 | T13: =N13 -> 221 | U13: =COUNTIF(L7:L36,T13) -> 0 | V13: =U13/(W4-U11) -> 0 | W13: =IF(V13=0,0,(V13*((LOG(V13))/LOG(2)))) -> 0 | Y13: =N13 -> 221 | Z13: =COUNTIF(L37:L67,Y13) -> 0 | AA13: =Z13/(AB4-Z11) -> 0 | AB13: =IF(AA13=0,0,(AA13*((LOG(AA13))/LOG(2)))) -> 0 | AD13: =N13 -> 221 | AE13: =COUNTIF(L68:L97,AD13) -> 0 | AF13: =AE13/(AG4-AE11) -> 0 | AG13: =IF(AF13=0,0,(AF13*((LOG(AF13))/LOG(2)))) -> 0 | AI13: =N13 -> 221 | AJ13: =COUNTIF(L98:L127,AI13) -> 0 | AK13: =AJ13/(AL4-AJ11) -> 0 | AL13: =IF(AK13=0,0,(AK13*((LOG(AK13))/LOG(2)))) -> 0 | AN13: =N13 -> 221 | AO13: =COUNTIF(L128:L158,AN13) -> 0 | AP13: =AO13/(AQ4-AO11) -> 0 | AQ13: =IF(AP13=0,0,(AP13*((LOG(AP13))/LOG(2)))) -> 0 | AS13: =N13 -> 221 | AT13: =COUNTIF(L159:L188,AS13) -> 0 | AU13: =AT13/(AV4-AT11) -> 0 | AV13: =IF(AU13=0,0,(AU13*((LOG(AU13))/LOG(2)))) -> 0
A14: 12 | B14: 983 | C14: 24 | D14: 992 | E14: 24 | F14: 1010 | K14: 0 | L14: 122 | N14: 222 | O14: =COUNTIF($L$7:$L$500,N14) -> 104 | P14: =O14/$Q$4 -> 0.5714285714 | Q14: =IF(P14=0,0,(P14*((LOG(P14))/LOG(2)))) -> -0.4613456697 | T14: =N14 -> 222 | U14: =COUNTIF(L7:L36,T14) -> 18 | V14: =U14/(W4-U11) -> 0.6 | W14: =IF(V14=0,0,(V14*((LOG(V14))/LOG(2)))) -> -0.4421793565 | Y14: =N14 -> 222 | Z14: =COUNTIF(L37:L67,Y14) -> 21 | AA14: =Z14/(AB4-Z11) -> 0.6774193548 | AB14: =IF(AA14=0,0,(AA14*((LOG(AA14))/LOG(2)))) -> -0.3806276335 | AD14: =N14 -> 222 | AE14: =COUNTIF(L68:L97,AD14) -> 21 | AF14: =AE14/(AG4-AE11) -> 0.7 | AG14: =IF(AF14=0,0,(AF14*((LOG(AF14))/LOG(2)))) -> -0.360201221 | AI14: =N14 -> 222 | AJ14: =COUNTIF(L98:L127,AI14) -> 17 | AK14: =AJ14/(AL4-AJ11) -> 0.5666666667 | AL14: =IF(AK14=0,0,(AK14*((LOG(AK14))/LOG(2)))) -> -0.4643423941 | AN14: =N14 -> 222 | AO14: =COUNTIF(L128:L158,AN14) -> 16 | AP14: =AO14/(AQ4-AO11) -> 0.5161290323 | AQ14: =IF(AP14=0,0,(AP14*((LOG(AP14))/LOG(2)))) -> -0.4924884183 | AS14: =N14 -> 222 | AT14: =COUNTIF(L159:L188,AS14) -> 11 | AU14: =AT14/(AV4-AT11) -> 0.3666666667 | AV14: =IF(AU14=0,0,(AU14*((LOG(AU14))/LOG(2)))) -> -0.5307349582
A15: 21 | B15: 1116 | C15: 22 | D15: 1140 | E15: 24 | F15: 1149 | K15: 0 | L15: 222 | P15: =SUM(P7:P14) -> 1 | Q15: =-SUM(Q7:Q14) -> 1.152284072 | V15: =SUM(V7:V14) -> 1 | W15: =-SUM(W7:W14) -> 1.230959563 | AA15: =SUM(AA7:AA14) -> 1 | AB15: =-SUM(AB7:AB14) -> 1.058454669 | AF15: =SUM(AF7:AF14) -> 1 | AG15: =-SUM(AG7:AG14) -> 0.8812908992 | AK15: =SUM(AK7:AK14) -> 1 | AL15: =-SUM(AL7:AL14) -> 0.9871377744 | AP15: =SUM(AP7:AP14) -> 1 | AQ15: =-SUM(AQ7:AQ14) -> 0.999249248 | AU15: =SUM(AU7:AU14) -> 1 | AV15: =-SUM(AV7:AV14) -> 1.322203392
A16: 12 | B16: 1249 | C16: 24 | D16: 1277 | E16: 24 | F16: 1288 | K16: 0 | L16: 122 | P16: U= | Q16: =Q15/(LOG(Q4)/LOG(2)) -> 0.1534783684 | V16: U1= | W16: =W15/(LOG(W4)/LOG(2)) -> 0.2508634621 | AA16: U2= | AB16: =AB15/(LOG(AB4)/LOG(2)) -> 0.2136481081 | AF16: U3= | AG16: =AG15/(LOG(AG4)/LOG(2)) -> 0.1796027203 | AK16: U4= | AL16: =AL15/(LOG(AL4)/LOG(2)) -> 0.2011737892 | AP16: U5= | AQ16: =AQ15/(LOG(AQ4)/LOG(2)) -> 0.201697548 | AU16: U6= | AV16: =AV15/(LOG(AV4)/LOG(2)) -> 0.2694585025
A17: 21 | B17: 1401 | C17: 22 | D17: 1407 | E17: 24 | F17: 1426 | K17: 0 | L17: 222
A18: 21 | B18: 1534 | C18: 22 | D18: 1544 | E18: 24 | F18: 1555 | K18: 0 | L18: 222
A19: 12 | B19: 1655 | C19: 24 | D19: 1665 | E19: 24 | F19: 1687 | K19: 0 | L19: 122 | N19: Total Target Seq
A20: 12 | B20: 1786 | C20: 24 | D20: 1796 | E20: 24 | F20: 1805 | K20: 0 | L20: 122 | N20: =COUNTIF(L7:L188,G3) -> 0 | P20: 30 | Q20: 31 | R20: 30 | S20: 30 | T20: 31 | U20: 30
A21: 21 | B21: 1943 | C21: 22 | D21: 1990 | E21: 24 | F21: 2021 | K21: 0 | L21: 222 | P21: % of reinforcement given in 6 equal intervals based on number of trials
A22: 21 | B22: 2135 | C22: 22 | D22: 2142 | E22: 24 | F22: 2152 | K22: 0 | L22: 222 | P22: %_1 | Q22: %_2 | R22: %_3 | S22: %_4 | T22: %_5 | U22: %_6
A23: 12 | B23: 2254 | C23: 24 | D23: 2267 | E23: 24 | F23: 2277 | K23: 0 | L23: 122 | O23: target sequence | P23: =$G$3 -> 211 | Q23: =$G$3 -> 211 | R23: =$G$3 -> 211 | S23: =$G$3 -> 211 | T23: =$G$3 -> 211 | U23: =$G$3 -> 211
A24: 12 | B24: 2378 | C24: 13 | D24: 2394 | E24: 24 | F24: 2405 | K24: 0 | L24: 112 | O24: total reinforcement | P24: =U11 -> 0 | Q24: =Z11 -> 0 | R24: =AE11 -> 0 | S24: =AJ11 -> 0 | T24: =AO11 -> 0 | U24: =AT11 -> 0
A25: 21 | B25: 2508 | C25: 22 | D25: 2513 | E25: 24 | F25: 2523 | K25: 0 | L25: 222 | O25: % target
A26: 21 | B26: 2626 | C26: 22 | D26: 2633 | E26: 24 | F26: 2642 | K26: 0 | L26: 222 | O26: CCRF
A27: 21 | B27: 2759 | C27: 22 | D27: 2765 | E27: 24 | F27: 2774 | K27: 0 | L27: 222 | O27: % CCRf
A28: 21 | B28: 2877 | C28: 22 | D28: 2895 | E28: 24 | F28: 2903 | K28: 0 | L28: 222 | O28: average response rate | P28: =F36/P20 -> 133.2 | Q28: =(F67-F36)/Q20 -> 128.6451613 | R28: =(F97-F67)/R20 -> 126.0666667 | S28: =(F127-F97)/S20 -> 130.7333333 | T28: =(F158-F127)/T20 -> 137.7741935 | U28: =(F188-F158)/U20 -> 134.4666667
A29: 12 | B29: 3010 | C29: 24 | D29: 3020 | E29: 24 | F29: 3026 | K29: 0 | L29: 122
A30: 21 | B30: 3133 | C30: 22 | D30: 3192 | E30: 24 | F30: 3201 | K30: 0 | L30: 222
A31: 21 | B31: 3301 | C31: 22 | D31: 3311 | E31: 24 | F31: 3320 | K31: 0 | L31: 222
A32: 21 | B32: 3442 | C32: 22 | D32: 3460 | E32: 24 | F32: 3481 | K32: 0 | L32: 222
A33: 21 | B33: 3589 | C33: 22 | D33: 3610 | E33: 24 | F33: 3620 | K33: 0 | L33: 222
A34: 12 | B34: 3720 | C34: 24 | D34: 3734 | E34: 24 | F34: 3742 | K34: 0 | L34: 122
A35: 12 | B35: 3841 | C35: 24 | D35: 3856 | E35: 24 | F35: 3880 | K35: 0 | L35: 122
A36: 12 | B36: 3978 | C36: 24 | D36: 3991 | E36: 24 | F36: 3996 | K36: 0 | L36: 122
A37: 12 | B37: 4102 | C37: 24 | D37: 4118 | E37: 24 | F37: 4136 | K37: 0 | L37: 122
A38: 12 | B38: 4237 | C38: 24 | D38: 4249 | E38: 24 | F38: 4256 | K38: 0 | L38: 122
A39: 21 | B39: 4357 | C39: 22 | D39: 4369 | E39: 24 | F39: 4411 | K39: 0 | L39: 222
A40: 21 | B40: 4512 | C40: 22 | D40: 4517 | E40: 24 | F40: 4525 | K40: 0 | L40: 222
A41: 12 | B41: 4626 | C41: 24 | D41: 4638 | E41: 24 | F41: 4649 | K41: 0 | L41: 122
A42: 21 | B42: 4750 | C42: 22 | D42: 4760 | E42: 24 | F42: 4768 | K42: 0 | L42: 222
A43: 12 | B43: 4869 | C43: 24 | D43: 4882 | E43: 24 | F43: 4889 | K43: 0 | L43: 122
A44: 21 | B44: 4991 | C44: 22 | D44: 4996 | E44: 24 | F44: 5040 | K44: 0 | L44: 222
A45: 12 | B45: 5138 | C45: 24 | D45: 5148 | E45: 24 | F45: 5154 | K45: 0 | L45: 122
A46: 21 | B46: 5259 | C46: 22 | D46: 5284 | E46: 24 | F46: 5292 | K46: 0 | L46: 222
A47: 21 | B47: 5393 | C47: 22 | D47: 5403 | E47: 24 | F47: 5414 | K47: 0 | L47: 222
A48: 12 | B48: 5516 | C48: 24 | D48: 5526 | E48: 24 | F48: 5535 | K48: 0 | L48: 122
A49: 21 | B49: 5642 | C49: 22 | D49: 5654 | E49: 24 | F49: 5665 | K49: 0 | L49: 222
A50: 12 | B50: 5764 | C50: 24 | D50: 5775 | E50: 24 | F50: 5785 | K50: 0 | L50: 122
A51: 21 | B51: 5889 | C51: 22 | D51: 5894 | E51: 24 | F51: 5914 | K51: 0 | L51: 222
A52: 21 | B52: 6017 | C52: 22 | D52: 6022 | E52: 24 | F52: 6038 | K52: 0 | L52: 222
A53: 21 | B53: 6147 | C53: 22 | D53: 6172 | E53: 24 | F53: 6188 | K53: 0 | L53: 222
A54: 12 | B54: 6294 | C54: 24 | D54: 6306 | E54: 24 | F54: 6317 | K54: 0 | L54: 122
A55: 12 | B55: 6410 | C55: 13 | D55: 6417 | E55: 24 | F55: 6427 | K55: 0 | L55: 112
A56: 21 | B56: 6527 | C56: 22 | D56: 6533 | E56: 24 | F56: 6540 | K56: 0 | L56: 222
A57: 21 | B57: 6646 | C57: 22 | D57: 6652 | E57: 24 | F57: 6679 | K57: 0 | L57: 222
A58: 21 | B58: 6781 | C58: 22 | D58: 6786 | E58: 24 | F58: 6796 | K58: 0 | L58: 222
A59: 21 | B59: 6898 | C59: 22 | D59: 6903 | E59: 24 | F59: 6928 | K59: 0 | L59: 222
A60: 21 | B60: 7047 | C60: 22 | D60: 7069 | E60: 24 | F60: 7078 | K60: 0 | L60: 222
A61: 21 | B61: 7174 | C61: 22 | D61: 7192 | E61: 24 | F61: 7200 | K61: 0 | L61: 222
A62: 12 | B62: 7300 | C62: 24 | D62: 7313 | E62: 24 | F62: 7318 | K62: 0 | L62: 122
A63: 21 | B63: 7420 | C63: 22 | D63: 7425 | E63: 24 | F63: 7431 | K63: 0 | L63: 222
A64: 21 | B64: 7534 | C64: 22 | D64: 7538 | E64: 24 | F64: 7546 | K64: 0 | L64: 222
A65: 21 | B65: 7658 | C65: 22 | D65: 7665 | E65: 24 | F65: 7693 | K65: 0 | L65: 222
A66: 21 | B66: 7787 | C66: 22 | D66: 7793 | E66: 24 | F66: 7797 | K66: 0 | L66: 222
A67: 21 | B67: 7927 | C67: 22 | D67: 7968 | E67: 24 | F67: 7984 | K67: 0 | L67: 222
A68: 12 | B68: 8084 | C68: 24 | D68: 8098 | E68: 24 | F68: 8105 | K68: 0 | L68: 122
A69: 21 | B69: 8204 | C69: 22 | D69: 8213 | E69: 24 | F69: 8222 | K69: 0 | L69: 222
A70: 21 | B70: 8315 | C70: 22 | D70: 8325 | E70: 24 | F70: 8332 | K70: 0 | L70: 222
A71: 12 | B71: 8434 | C71: 24 | D71: 8443 | E71: 24 | F71: 8448 | K71: 0 | L71: 122
A72: 12 | B72: 8547 | C72: 24 | D72: 8557 | E72: 24 | F72: 8562 | K72: 0 | L72: 122
A73: 21 | B73: 8664 | C73: 22 | D73: 8668 | E73: 24 | F73: 8673 | K73: 0 | L73: 222
A74: 21 | B74: 8776 | C74: 22 | D74: 8787 | E74: 24 | F74: 8829 | K74: 0 | L74: 222
A75: 21 | B75: 8930 | C75: 22 | D75: 8950 | E75: 24 | F75: 8959 | K75: 0 | L75: 222
A76: 21 | B76: 9060 | C76: 22 | D76: 9065 | E76: 24 | F76: 9076 | K76: 0 | L76: 222
A77: 21 | B77: 9179 | C77: 22 | D77: 9183 | E77: 24 | F77: 9212 | K77: 0 | L77: 222
A78: 12 | B78: 9311 | C78: 24 | D78: 9324 | E78: 24 | F78: 9330 | K78: 0 | L78: 122
A79: 21 | B79: 9428 | C79: 22 | D79: 9432 | E79: 24 | F79: 9441 | K79: 0 | L79: 222
A80: 21 | B80: 9542 | C80: 22 | D80: 9554 | E80: 24 | F80: 9567 | K80: 0 | L80: 222
A81: 21 | B81: 9670 | C81: 22 | D81: 9678 | E81: 24 | F81: 9704 | K81: 0 | L81: 222
A82: 21 | B82: 9806 | C82: 22 | D82: 9814 | E82: 24 | F82: 9822 | K82: 0 | L82: 222
A83: 21 | B83: 9926 | C83: 22 | D83: 9931 | E83: 24 | F83: 9948 | K83: 0 | L83: 222
A84: 21 | B84: 10054 | C84: 22 | D84: 10059 | E84: 24 | F84: 10093 | K84: 0 | L84: 222
A85: 21 | B85: 10199 | C85: 22 | D85: 10204 | E85: 24 | F85: 10227 | K85: 0 | L85: 222
A86: 12 | B86: 10320 | C86: 24 | D86: 10333 | E86: 24 | F86: 10341 | K86: 0 | L86: 122
A87: 21 | B87: 10447 | C87: 22 | D87: 10456 | E87: 24 | F87: 10480 | K87: 0 | L87: 222
A88: 21 | B88: 10588 | C88: 22 | D88: 10614 | E88: 24 | F88: 10623 | K88: 0 | L88: 222
A89: 12 | B89: 10722 | C89: 24 | D89: 10735 | E89: 24 | F89: 10743 | K89: 0 | L89: 122
A90: 21 | B90: 10847 | C90: 22 | D90: 10854 | E90: 24 | F90: 10879 | K90: 0 | L90: 222
A91: 21 | B91: 10984 | C91: 22 | D91: 10989 | E91: 24 | F91: 11001 | K91: 0 | L91: 222
A92: 12 | B92: 11101 | C92: 24 | D92: 11115 | E92: 24 | F92: 11120 | K92: 0 | L92: 122
A93: 12 | B93: 11219 | C93: 24 | D93: 11235 | E93: 24 | F93: 11248 | K93: 0 | L93: 122
A94: 21 | B94: 11343 | C94: 22 | D94: 11348 | E94: 24 | F94: 11364 | K94: 0 | L94: 222
A95: 21 | B95: 11473 | C95: 22 | D95: 11505 | E95: 24 | F95: 11532 | K95: 0 | L95: 222
A96: 21 | B96: 11631 | C96: 22 | D96: 11636 | E96: 24 | F96: 11641 | K96: 0 | L96: 222
A97: 12 | B97: 11740 | C97: 24 | D97: 11758 | E97: 24 | F97: 11766 | K97: 0 | L97: 122
A98: 21 | B98: 11873 | C98: 22 | D98: 11878 | E98: 24 | F98: 11885 | K98: 0 | L98: 222
A99: 12 | B99: 11984 | C99: 24 | D99: 11998 | E99: 24 | F99: 12003 | K99: 0 | L99: 122
A100: 12 | B100: 12104 | C100: 24 | D100: 12119 | E100: 24 | F100: 12128 | K100: 0 | L100: 122
A101: 12 | B101: 12227 | C101: 24 | D101: 12245 | E101: 24 | F101: 12253 | K101: 0 | L101: 122
A102: 21 | B102: 12354 | C102: 22 | D102: 12386 | E102: 24 | F102: 12413 | K102: 0 | L102: 222
A103: 12 | B103: 12512 | C103: 24 | D103: 12526 | E103: 24 | F103: 12531 | K103: 0 | L103: 122
A104: 12 | B104: 12628 | C104: 24 | D104: 12644 | E104: 24 | F104: 12653 | K104: 0 | L104: 122
A105: 12 | B105: 12751 | C105: 24 | D105: 12764 | E105: 24 | F105: 12773 | K105: 0 | L105: 122
A106: 12 | B106: 12872 | C106: 24 | D106: 12889 | E106: 24 | F106: 12904 | K106: 0 | L106: 122
A107: 21 | B107: 13010 | C107: 22 | D107: 13045 | E107: 24 | F107: 13079 | K107: 0 | L107: 222
A108: 21 | B108: 13185 | C108: 22 | D108: 13190 | E108: 24 | F108: 13195 | K108: 0 | L108: 222
A109: 21 | B109: 13344 | C109: 22 | D109: 13353 | E109: 24 | F109: 13370 | K109: 0 | L109: 222
A110: 12 | B110: 13472 | C110: 24 | D110: 13485 | E110: 24 | F110: 13489 | K110: 0 | L110: 122
A111: 12 | B111: 13589 | C111: 24 | D111: 13603 | E111: 24 | F111: 13615 | K111: 0 | L111: 122
A112: 21 | B112: 13710 | C112: 22 | D112: 13714 | E112: 24 | F112: 13751 | K112: 0 | L112: 222
A113: 21 | B113: 13848 | C113: 22 | D113: 13854 | E113: 24 | F113: 13862 | K113: 0 | L113: 222
A114: 21 | B114: 13964 | C114: 22 | D114: 13974 | E114: 24 | F114: 13991 | K114: 0 | L114: 222
A115: 21 | B115: 14092 | C115: 22 | D115: 14097 | E115: 24 | F115: 14104 | K115: 0 | L115: 222
A116: 21 | B116: 14207 | C116: 22 | D116: 14214 | E116: 24 | F116: 14219 | K116: 0 | L116: 222
A117: 21 | B117: 14320 | C117: 22 | D117: 14329 | E117: 24 | F117: 14364 | K117: 0 | L117: 222
A118: 21 | B118: 14461 | C118: 22 | D118: 14494 | E118: 24 | F118: 14523 | K118: 0 | L118: 222
A119: 21 | B119: 14627 | C119: 22 | D119: 14633 | E119: 24 | F119: 14639 | K119: 0 | L119: 222
A120: 12 | B120: 14741 | C120: 24 | D120: 14758 | E120: 24 | F120: 14805 | K120: 0 | L120: 122
A121: 21 | B121: 14908 | C121: 22 | D121: 14913 | E121: 24 | F121: 14921 | K121: 0 | L121: 222
A122: 12 | B122: 15028 | C122: 24 | D122: 15043 | E122: 24 | F122: 15048 | K122: 0 | L122: 122
A123: 21 | B123: 15152 | C123: 22 | D123: 15157 | E123: 24 | F123: 15167 | K123: 0 | L123: 222
A124: 21 | B124: 15275 | C124: 22 | D124: 15286 | E124: 24 | F124: 15294 | K124: 0 | L124: 222
A125: 12 | B125: 15396 | C125: 24 | D125: 15410 | E125: 24 | F125: 15417 | K125: 0 | L125: 122
A126: 21 | B126: 15527 | C126: 22 | D126: 15560 | E126: 24 | F126: 15568 | K126: 0 | L126: 222
A127: 12 | B127: 15668 | C127: 24 | D127: 15682 | E127: 24 | F127: 15688 | K127: 0 | L127: 122
A128: 12 | B128: 15787 | C128: 24 | D128: 15803 | E128: 24 | F128: 15809 | K128: 0 | L128: 122
A129: 21 | B129: 15907 | C129: 22 | D129: 15912 | E129: 24 | F129: 15934 | K129: 0 | L129: 222
A130: 21 | B130: 16043 | C130: 22 | D130: 16049 | E130: 24 | F130: 16075 | K130: 0 | L130: 222
A131: 21 | B131: 16197 | C131: 22 | D131: 16230 | E131: 24 | F131: 16307 | K131: 0 | L131: 222
A132: 12 | B132: 16411 | C132: 24 | D132: 16427 | E132: 24 | F132: 16433 | K132: 0 | L132: 122
A133: 21 | B133: 16541 | C133: 22 | D133: 16566 | E133: 24 | F133: 16592 | K133: 0 | L133: 222
A134: 21 | B134: 16690 | C134: 22 | D134: 16700 | E134: 24 | F134: 16709 | K134: 0 | L134: 222
A135: 12 | B135: 16814 | C135: 24 | D135: 16833 | E135: 24 | F135: 16857 | K135: 0 | L135: 122
A136: 12 | B136: 16957 | C136: 24 | D136: 16971 | E136: 24 | F136: 16983 | K136: 0 | L136: 122
A137: 21 | B137: 17087 | C137: 22 | D137: 17094 | E137: 24 | F137: 17113 | K137: 0 | L137: 222
A138: 12 | B138: 17212 | C138: 24 | D138: 17225 | E138: 24 | F138: 17240 | K138: 0 | L138: 122
A139: 21 | B139: 17343 | C139: 22 | D139: 17348 | E139: 24 | F139: 17357 | K139: 0 | L139: 222
A140: 21 | B140: 17479 | C140: 22 | D140: 17488 | E140: 24 | F140: 17496 | K140: 0 | L140: 222
A141: 12 | B141: 17598 | C141: 24 | D141: 17613 | E141: 24 | F141: 17619 | K141: 0 | L141: 122
A142: 12 | B142: 17718 | C142: 24 | D142: 17735 | E142: 24 | F142: 17740 | K142: 0 | L142: 122
A143: 21 | B143: 17843 | C143: 22 | D143: 17896 | E143: 24 | F143: 17916 | K143: 0 | L143: 222
A144: 12 | B144: 18014 | C144: 24 | D144: 18030 | E144: 24 | F144: 18043 | K144: 0 | L144: 122
A145: 12 | B145: 18144 | C145: 24 | D145: 18163 | E145: 24 | F145: 18171 | K145: 0 | L145: 122
A146: 21 | B146: 18282 | C146: 22 | D146: 18305 | E146: 24 | F146: 18316 | K146: 0 | L146: 222
A147: 12 | B147: 18410 | C147: 24 | D147: 18420 | E147: 24 | F147: 18425 | K147: 0 | L147: 122
A148: 12 | B148: 18527 | C148: 24 | D148: 18539 | E148: 24 | F148: 18543 | K148: 0 | L148: 122
A149: 21 | B149: 18642 | C149: 22 | D149: 18647 | E149: 24 | F149: 18676 | K149: 0 | L149: 222
A150: 21 | B150: 18776 | C150: 22 | D150: 18781 | E150: 24 | F150: 18788 | K150: 0 | L150: 222
A151: 21 | B151: 18891 | C151: 22 | D151: 18897 | E151: 24 | F151: 18916 | K151: 0 | L151: 222
A152: 12 | B152: 19018 | C152: 24 | D152: 19035 | E152: 24 | F152: 19042 | K152: 0 | L152: 122
A153: 21 | B153: 19155 | C153: 22 | D153: 19159 | E153: 24 | F153: 19179 | K153: 0 | L153: 222
A154: 12 | B154: 19278 | C154: 24 | D154: 19297 | E154: 24 | F154: 19349 | K154: 0 | L154: 122
A155: 12 | B155: 19450 | C155: 24 | D155: 19465 | E155: 24 | F155: 19469 | K155: 0 | L155: 122
A156: 21 | B156: 19571 | C156: 22 | D156: 19578 | E156: 24 | F156: 19588 | K156: 0 | L156: 222
A157: 12 | B157: 19693 | C157: 24 | D157: 19763 | E157: 24 | F157: 19820 | K157: 0 | L157: 122
A158: 21 | B158: 19923 | C158: 22 | D158: 19937 | E158: 24 | F158: 19959 | K158: 0 | L158: 222
A159: 12 | B159: 20060 | C159: 24 | D159: 20075 | E159: 24 | F159: 20159 | K159: 0 | L159: 122
A160: 21 | B160: 20271 | C160: 22 | D160: 20280 | E160: 24 | F160: 20313 | K160: 0 | L160: 222
A161: 12 | B161: 20411 | C161: 24 | D161: 20423 | E161: 24 | F161: 20428 | K161: 0 | L161: 122
A162: 12 | B162: 20540 | C162: 24 | D162: 20551 | E162: 24 | F162: 20585 | K162: 0 | L162: 122
A163: 12 | B163: 20698 | C163: 13 | D163: 20706 | E163: 13 | F163: 20716 | K163: 0 | L163: 111
A164: 12 | B164: 20821 | C164: 24 | D164: 20832 | E164: 24 | F164: 20836 | K164: 0 | L164: 122
A165: 12 | B165: 20935 | C165: 24 | D165: 20950 | E165: 24 | F165: 20955 | K165: 0 | L165: 122
A166: 21 | B166: 21064 | C166: 22 | D166: 21070 | E166: 24 | F166: 21079 | K166: 0 | L166: 222
A167: 12 | B167: 21177 | C167: 24 | D167: 21188 | E167: 24 | F167: 21193 | K167: 0 | L167: 122
A168: 21 | B168: 21305 | C168: 22 | D168: 21312 | E168: 24 | F168: 21331 | K168: 0 | L168: 222
A169: 21 | B169: 21438 | C169: 22 | D169: 21461 | E169: 24 | F169: 21469 | K169: 0 | L169: 222
A170: 21 | B170: 21581 | C170: 22 | D170: 21587 | E170: 24 | F170: 21618 | K170: 0 | L170: 222
A171: 21 | B171: 21715 | C171: 22 | D171: 21719 | E171: 24 | F171: 21725 | K171: 0 | L171: 222
A172: 21 | B172: 21827 | C172: 22 | D172: 21841 | E172: 24 | F172: 21846 | K172: 0 | L172: 222
A173: 12 | B173: 21946 | C173: 24 | D173: 21964 | E173: 24 | F173: 21995 | K173: 0 | L173: 122
A174: 12 | B174: 22093 | C174: 24 | D174: 22112 | E174: 24 | F174: 22119 | K174: 0 | L174: 122
A175: 12 | B175: 22223 | C175: 24 | D175: 22259 | E175: 24 | F175: 22279 | K175: 0 | L175: 122
A176: 21 | B176: 22389 | C176: 22 | D176: 22395 | E176: 24 | F176: 22402 | K176: 0 | L176: 222
A177: 12 | B177: 22500 | C177: 24 | D177: 22513 | E177: 24 | F177: 22518 | K177: 0 | L177: 122
A178: 12 | B178: 22616 | C178: 24 | D178: 22637 | E178: 24 | F178: 22652 | K178: 0 | L178: 122
A179: 21 | B179: 22762 | C179: 22 | D179: 22772 | E179: 24 | F179: 22781 | K179: 0 | L179: 222
A180: 12 | B180: 22881 | C180: 24 | D180: 22893 | E180: 24 | F180: 22906 | K180: 0 | L180: 122
A181: 12 | B181: 23008 | C181: 24 | D181: 23018 | E181: 24 | F181: 23023 | K181: 0 | L181: 122
A182: 12 | B182: 23126 | C182: 24 | D182: 23136 | E182: 24 | F182: 23141 | K182: 0 | L182: 122
A183: 12 | B183: 23246 | C183: 13 | D183: 23254 | E183: 24 | F183: 23268 | K183: 0 | L183: 112
A184: 21 | B184: 23367 | C184: 22 | D184: 23371 | E184: 24 | F184: 23399 | K184: 0 | L184: 222
A185: 12 | B185: 23501 | C185: 24 | D185: 23517 | E185: 24 | F185: 23611 | K185: 0 | L185: 122
A186: 12 | B186: 23711 | C186: 24 | D186: 23723 | E186: 24 | F186: 23730 | K186: 0 | L186: 122
A187: 12 | B187: 23828 | C187: 24 | D187: 23846 | E187: 24 | F187: 23859 | K187: 0 | L187: 122
A188: 21 | B188: 23974 | C188: 22 | D188: 23982 | E188: 24 | F188: 23993 | L188: 222

Sheet !MA01700.091
A1: Report for:!MA01700.091
A2: Date: | B2: <date>
A3: Hen: | B3: <hen> | F3: Correct Sequence | G3: =Start!J2 -> 211 | P3: Total Sequences in Data | Q3: =4994-COUNTBLANK(L7:L5000) -> 194 | V3: Total Sequences in Block Data | W3: =COUNTA(L7:L38) -> 32 | AA3: Total Sequences in Block Data | AB3: =COUNTA(L39:L71) -> 33 | AF3: Total Sequences in Block Data | AG3: =COUNTA(L72:L103) -> 32 | AK3: Total Sequences in Block Data | AL3: =COUNTA(L104:L135) -> 32 | AP3: Total Sequences in Block Data | AQ3: =COUNTA(L136:L168) -> 33 | AU3: Total Sequences in Block Data | AV3: =COUNTA(L169:L200) -> 32
P4: Total Sequences in Summary | Q4: =SUM(O7:O14) -> 194 | V4: Total Sequences in Block Summary | W4: =SUM(U7:U14) -> 32 | AA4: Total Sequences in Block Summary | AB4: =SUM(Z7:Z14) -> 33 | AF4: Total Sequences in Block Summary | AG4: =SUM(AE7:AE14) -> 32 | AK4: Total Sequences in Block Summary | AL4: =SUM(AJ7:AJ14) -> 32 | AP4: Total Sequences in Block Summary | AQ4: =SUM(AO7:AO14) -> 33 | AU4: Total Sequences in Block Summary | AV4: =SUM(AT7:AT14) -> 32
T5: Block 1 | Y5: Block 2 | AD5: Block 3 | AI5: Block 4 | AN5: Block 5 | AS5: Block 6
A6: Sequence Component 1 | B6: Time 1 | C6: Sequence Component 2 | D6: Time 2 | E6: Sequence Component 3 | F6: Time 3 | G6: Sequence Component 4 | H6: Time 4 | I6: Sequence Component 5 | J6: Time 5 | K6: Correct? 0=No 1=Yes | L6: Sequence | N6: Frequency | P6: Relative Frequency | Q6: Variability | T6: Frequency | V6: Relative Frequency | W6: Variability | Y6: Frequency | AA6: Relative Frequency | AB6: Variability | AD6: Frequency | AF6: Relative Frequency | AG6: Variability | AI6: Frequency | AK6: Relative Frequency | AL6: Variability | AN6: Frequency | AP6: Relative Frequency | AQ6: Variability | AS6: Frequency | AU6: Relative Frequency | AV6: Variability
A7: 21 | B7: 61 | C7: 22 | D7: 74 | E7: 24 | F7: 81 | K7: 0 | L7: 222 | N7: 111 | O7: =COUNTIF($L$7:$L$500,N7) -> 0 | P7: =O7/$Q$4 -> 0 | Q7: =IF(P7=0,0,(P7*((LOG(P7))/LOG(2)))) -> 0 | T7: =N7 -> 111 | U7: =COUNTIF(L7:L38,T7) -> 0 | V7: =U7/(W4-U11) -> 0 | W7: =IF(V7=0,0,(V7*((LOG(V7))/LOG(2)))) -> 0 | Y7: =N7 -> 111 | Z7: =COUNTIF(L39:L71,Y7) -> 0 | AA7: =Z7/(AB4-Z11) -> 0 | AB7: =IF(AA7=0,0,(AA7*((LOG(AA7))/LOG(2)))) -> 0 | AD7: =N7 -> 111 | AE7: =COUNTIF(L72:L103,AD7) -> 0 | AF7: =AE7/(AG4-AE11) -> 0 | AG7: =IF(AF7=0,0,(AF7*((LOG(AF7))/LOG(2)))) -> 0 | AI7: =N7 -> 111 | AJ7: =COUNTIF(L104:L135,AI7) -> 0 | AK7: =AJ7/(AL4-AJ11) -> 0 | AL7: =IF(AK7=0,0,(AK7*((LOG(AK7))/LOG(2)))) -> 0 | AN7: =N7 -> 111 | AO7: =COUNTIF(L136:L168,AN7) -> 0 | AP7: =AO7/(AQ4-AO11) -> 0 | AQ7: =IF(AP7=0,0,(AP7*((LOG(AP7))/LOG(2)))) -> 0 | AS7: =N7 -> 111 | AT7: =COUNTIF(L169:L200,AS7) -> 0 | AU7: =AT7/(AV4-AT11) -> 0 | AV7: =IF(AU7=0,0,(AU7*((LOG(AU7))/LOG(2)))) -> 0
A8: 21 | B8: 189 | C8: 22 | D8: 198 | E8: 24 | F8: 229 | K8: 0 | L8: 222 | N8: 112 | O8: =COUNTIF($L$7:$L$500,N8) -> 2 | P8: =O8/$Q$4 -> 0.01030927835 | Q8: =IF(P8=0,0,(P8*((LOG(P8))/LOG(2)))) -> -0.06804033858 | T8: =N8 -> 112 | U8: =COUNTIF(L7:L38,T8) -> 1 | V8: =U8/(W4-U11) -> 0.03125 | W8: =IF(V8=0,0,(V8*((LOG(V8))/LOG(2)))) -> -0.15625 | Y8: =N8 -> 112 | Z8: =COUNTIF(L39:L71,Y8) -> 0 | AA8: =Z8/(AB4-Z11) -> 0 | AB8: =IF(AA8=0,0,(AA8*((LOG(AA8))/LOG(2)))) -> 0 | AD8: =N8 -> 112 | AE8: =COUNTIF(L72:L103,AD8) -> 0 | AF8: =AE8/(AG4-AE11) -> 0 | AG8: =IF(AF8=0,0,(AF8*((LOG(AF8))/LOG(2)))) -> 0 | AI8: =N8 -> 112 | AJ8: =COUNTIF(L104:L135,AI8) -> 0 | AK8: =AJ8/(AL4-AJ11) -> 0 | AL8: =IF(AK8=0,0,(AK8*((LOG(AK8))/LOG(2)))) -> 0 | AN8: =N8 -> 112 | AO8: =COUNTIF(L136:L168,AN8) -> 1 | AP8: =AO8/(AQ4-AO11) -> 0.0303030303 | AQ8: =IF(AP8=0,0,(AP8*((LOG(AP8))/LOG(2)))) -> -0.1528604279 | AS8: =N8 -> 112 | AT8: =COUNTIF(L169:L200,AS8) -> 0 | AU8: =AT8/(AV4-AT11) -> 0 | AV8: =IF(AU8=0,0,(AU8*((LOG(AU8))/LOG(2)))) -> 0
A9: 12 | B9: 334 | C9: 24 | D9: 349 | E9: 24 | F9: 354 | K9: 0 | L9: 122 | N9: 121 | O9: =COUNTIF($L$7:$L$500,N9) -> 0 | P9: =O9/$Q$4 -> 0 | Q9: =IF(P9=0,0,(P9*((LOG(P9))/LOG(2)))) -> 0 | T9: =N9 -> 121 | U9: =COUNTIF(L7:L38,T9) -> 0 | V9: =U9/(W4-U11) -> 0 | W9: =IF(V9=0,0,(V9*((LOG(V9))/LOG(2)))) -> 0 | Y9: =N9 -> 121 | Z9: =COUNTIF(L39:L71,Y9) -> 0 | AA9: =Z9/(AB4-Z11) -> 0 | AB9: =IF(AA9=0,0,(AA9*((LOG(AA9))/LOG(2)))) -> 0 | AD9: =N9 -> 121 | AE9: =COUNTIF(L72:L103,AD9) -> 0 | AF9: =AE9/(AG4-AE11) -> 0 | AG9: =IF(AF9=0,0,(AF9*((LOG(AF9))/LOG(2)))) -> 0 | AI9: =N9 -> 121 | AJ9: =COUNTIF(L104:L135,AI9) -> 0 | AK9: =AJ9/(AL4-AJ11) -> 0 | AL9: =IF(AK9=0,0,(AK9*((LOG(AK9))/LOG(2)))) -> 0 | AN9: =N9 -> 121 | AO9: =COUNTIF(L136:L168,AN9) -> 0 | AP9: =AO9/(AQ4-AO11) -> 0 | AQ9: =IF(AP9=0,0,(AP9*((LOG(AP9))/LOG(2)))) -> 0 | AS9: =N9 -> 121 | AT9: =COUNTIF(L169:L200,AS9) -> 0 | AU9: =AT9/(AV4-AT11) -> 0 | AV9: =IF(AU9=0,0,(AU9*((LOG(AU9))/LOG(2)))) -> 0
A10: 12 | B10: 453 | C10: 24 | D10: 463 | E10: 24 | F10: 469 | K10: 0 | L10: 122 | N10: 122 | O10: =COUNTIF($L$7:$L$500,N10) -> 72 | P10: =O10/$Q$4 -> 0.3711340206 | Q10: =IF(P10=0,0,(P10*((LOG(P10))/LOG(2)))) -> -0.5307171368 | T10: =N10 -> 122 | U10: =COUNTIF(L7:L38,T10) -> 12 | V10: =U10/(W4-U11) -> 0.375 | W10: =IF(V10=0,0,(V10*((LOG(V10))/LOG(2)))) -> -0.5306390622 | Y10: =N10 -> 122 | Z10: =COUNTIF(L39:L71,Y10) -> 8 | AA10: =Z10/(AB4-Z11) -> 0.2424242424 | AB10: =IF(AA10=0,0,(AA10*((LOG(AA10))/LOG(2)))) -> -0.4956106956 | AD10: =N10 -> 122 | AE10: =COUNTIF(L72:L103,AD10) -> 12 | AF10: =AE10/(AG4-AE11) -> 0.375 | AG10: =IF(AF10=0,0,(AF10*((LOG(AF10))/LOG(2)))) -> -0.5306390622 | AI10: =N10 -> 122 | AJ10: =COUNTIF(L104:L135,AI10) -> 12 | AK10: =AJ10/(AL4-AJ11) -> 0.375 | AL10: =IF(AK10=0,0,(AK10*((LOG(AK10))/LOG(2)))) -> -0.5306390622 | AN10: =N10 -> 122 | AO10: =COUNTIF(L136:L168,AN10) -> 14 | AP10: =AO10/(AQ4-AO11) -> 0.4242424242 | AQ10: =IF(AP10=0,0,(AP10*((LOG(AP10))/LOG(2)))) -> -0.5248045079 | AS10: =N10 -> 122 | AT10: =COUNTIF(L169:L200,AS10) -> 14 | AU10: =AT10/(AV4-AT11) -> 0.4375 | AV10: =IF(AU10=0,0,(AU10*((LOG(AU10))/LOG(2)))) -> -0.5217822216
A11: 12 | B11: 571 | C11: 24 | D11: 580 | E11: 24 | F11: 587 | K11: 0 | L11: 122 | N11: 211 | O11: =COUNTIF($L$7:$L$500,N11) -> 0 | P11: =O11/$Q$4 -> 0 | Q11: =IF(P11=0,0,(P11*((LOG(P11))/LOG(2)))) -> 0 | T11: =N11 -> 211 | U11: =COUNTIF(L7:L38,T11) -> 0 | Y11: =N11 -> 211 | Z11: =COUNTIF(L39:L71,Y11) -> 0 | AD11: =N11 -> 211 | AE11: =COUNTIF(L72:L103,AD11) -> 0 | AI11: =N11 -> 211 | AJ11: =COUNTIF(L104:L135,AI11) -> 0 | AN11: =N11 -> 211 | AO11: =COUNTIF(L136:L168,AN11) -> 0 | AS11: =N11 -> 211 | AT11: =COUNTIF(L169:L200,AS11) -> 0
A12: 21 | B12: 690 | C12: 22 | D12: 697 | E12: 24 | F12: 708 | K12: 0 | L12: 222 | N12: 212 | O12: =COUNTIF($L$7:$L$500,N12) -> 0 | P12: =O12/$Q$4 -> 0 | Q12: =IF(P12=0,0,(P12*((LOG(P12))/LOG(2)))) -> 0 | T12: =N12 -> 212 | U12: =COUNTIF(L7:L38,T12) -> 0 | V12: =U12/(W4-U11) -> 0 | W12: =IF(V12=0,0,(V12*((LOG(V12))/LOG(2)))) -> 0 | Y12: =N12 -> 212 | Z12: =COUNTIF(L39:L71,Y12) -> 0 | AA12: =Z12/(AB4-Z11) -> 0 | AB12: =IF(AA12=0,0,(AA12*((LOG(AA12))/LOG(2)))) -> 0 | AD12: =N12 -> 212 | AE12: =COUNTIF(L72:L103,AD12) -> 0 | AF12: =AE12/(AG4-AE11) -> 0 | AG12: =IF(AF12=0,0,(AF12*((LOG(AF12))/LOG(2)))) -> 0 | AI12: =N12 -> 212 | AJ12: =COUNTIF(L104:L135,AI12) -> 0 | AK12: =AJ12/(AL4-AJ11) -> 0 | AL12: =IF(AK12=0,0,(AK12*((LOG(AK12))/LOG(2)))) -> 0 | AN12: =N12 -> 212 | AO12: =COUNTIF(L136:L168,AN12) -> 0 | AP12: =AO12/(AQ4-AO11) -> 0 | AQ12: =IF(AP12=0,0,(AP12*((LOG(AP12))/LOG(2)))) -> 0 | AS12: =N12 -> 212 | AT12: =COUNTIF(L169:L200,AS12) -> 0 | AU12: =AT12/(AV4-AT11) -> 0 | AV12: =IF(AU12=0,0,(AU12*((LOG(AU12))/LOG(2)))) -> 0
A13: 12 | B13: 810 | C13: 13 | D13: 826 | E13: 24 | F13: 843 | K13: 0 | L13: 112 | N13: 221 | O13: =COUNTIF($L$7:$L$500,N13) -> 0 | P13: =O13/$Q$4 -> 0 | Q13: =IF(P13=0,0,(P13*((LOG(P13))/LOG(2)))) -> 0 | T13: =N13 -> 221 | U13: =COUNTIF(L7:L38,T13) -> 0 | V13: =U13/(W4-U11) -> 0 | W13: =IF(V13=0,0,(V13*((LOG(V13))/LOG(2)))) -> 0 | Y13: =N13 -> 221 | Z13: =COUNTIF(L39:L71,Y13) -> 0 | AA13: =Z13/(AB4-Z11) -> 0 | AB13: =IF(AA13=0,0,(AA13*((LOG(AA13))/LOG(2)))) -> 0 | AD13: =N13 -> 221 | AE13: =COUNTIF(L72:L103,AD13) -> 0 | AF13: =AE13/(AG4-AE11) -> 0 | AG13: =IF(AF13=0,0,(AF13*((LOG(AF13))/LOG(2)))) -> 0 | AI13: =N13 -> 221 | AJ13: =COUNTIF(L104:L135,AI13) -> 0 | AK13: =AJ13/(AL4-AJ11) -> 0 | AL13: =IF(AK13=0,0,(AK13*((LOG(AK13))/LOG(2)))) -> 0 | AN13: =N13 -> 221 | AO13: =COUNTIF(L136:L168,AN13) -> 0 | AP13: =AO13/(AQ4-AO11) -> 0 | AQ13: =IF(AP13=0,0,(AP13*((LOG(AP13))/LOG(2)))) -> 0 | AS13: =N13 -> 221 | AT13: =COUNTIF(L169:L200,AS13) -> 0 | AU13: =AT13/(AV4-AT11) -> 0 | AV13: =IF(AU13=0,0,(AU13*((LOG(AU13))/LOG(2)))) -> 0
A14: 12 | B14: 942 | C14: 24 | D14: 963 | E14: 24 | F14: 973 | K14: 0 | L14: 122 | N14: 222 | O14: =COUNTIF($L$7:$L$500,N14) -> 120 | P14: =O14/$Q$4 -> 0.618556701 | Q14: =IF(P14=0,0,(P14*((LOG(P14))/LOG(2)))) -> -0.4286735546 | T14: =N14 -> 222 | U14: =COUNTIF(L7:L38,T14) -> 19 | V14: =U14/(W4-U11) -> 0.59375 | W14: =IF(V14=0,0,(V14*((LOG(V14))/LOG(2)))) -> -0.4465430389 | Y14: =N14 -> 222 | Z14: =COUNTIF(L39:L71,Y14) -> 25 | AA14: =Z14/(AB4-Z11) -> 0.7575757576 | AB14: =IF(AA14=0,0,(AA14*((LOG(AA14))/LOG(2)))) -> -0.3034378254 | AD14: =N14 -> 222 | AE14: =COUNTIF(L72:L103,AD14) -> 20 | AF14: =AE14/(AG4-AE11) -> 0.625 | AG14: =IF(AF14=0,0,(AF14*((LOG(AF14))/LOG(2)))) -> -0.4237949407 | AI14: =N14 -> 222 | AJ14: =COUNTIF(L104:L135,AI14) -> 20 | AK14: =AJ14/(AL4-AJ11) -> 0.625 | AL14: =IF(AK14=0,0,(AK14*((LOG(AK14))/LOG(2)))) -> -0.4237949407 | AN14: =N14 -> 222 | AO14: =COUNTIF(L136:L168,AN14) -> 18 | AP14: =AO14/(AQ4-AO11) -> 0.5454545455 | AQ14: =IF(AP14=0,0,(AP14*((LOG(AP14))/LOG(2)))) -> -0.4769831552 | AS14: =N14 -> 222 | AT14: =COUNTIF(L169:L200,AS14) -> 18 | AU14: =AT14/(AV4-AT11) -> 0.5625 | AV14: =IF(AU14=0,0,(AU14*((LOG(AU14))/LOG(2)))) -> -0.4669171867
A15: 12 | B15: 1074 | C15: 24 | D15: 1085 | E15: 24 | F15: 1092 | K15: 0 | L15: 122 | P15: =SUM(P7:P14) -> 1 | Q15: =-SUM(Q7:Q14) -> 1.02743103 | V15: =SUM(V7:V14) -> 1 | W15: =-SUM(W7:W14) -> 1.133432101 | AA15: =SUM(AA7:AA14) -> 1 | AB15: =-SUM(AB7:AB14) -> 0.799048521 | AF15: =SUM(AF7:AF14) -> 1 | AG15: =-SUM(AG7:AG14) -> 0.9544340029 | AK15: =SUM(AK7:AK14) -> 1 | AL15: =-SUM(AL7:AL14) -> 0.9544340029 | AP15: =SUM(AP7:AP14) -> 1 | AQ15: =-SUM(AQ7:AQ14) -> 1.154648091 | AU15: =SUM(AU7:AU14) -> 1 | AV15: =-SUM(AV7:AV14) -> 0.9886994083
A16: 21 | B16: 1189 | C16: 22 | D16: 1197 | E16: 24 | F16: 1205 | K16: 0 | L16: 222 | P16: U= | Q16: =Q15/(LOG(Q4)/LOG(2)) -> 0.1351898438 | V16: U1= | W16: =W15/(LOG(W4)/LOG(2)) -> 0.2266864202 | AA16: U2= | AB16: =AB15/(LOG(AB4)/LOG(2)) -> 0.1584032695 | AF16: U3= | AG16: =AG15/(LOG(AG4)/LOG(2)) -> 0.1908868006 | AK16: U4= | AL16: =AL15/(LOG(AL4)/LOG(2)) -> 0.1908868006 | AP16: U5= | AQ16: =AQ15/(LOG(AQ4)/LOG(2)) -> 0.2288972796 | AU16: U6= | AV16: =AV15/(LOG(AV4)/LOG(2)) -> 0.1977398817
A17: 21 | B17: 1308 | C17: 22 | D17: 1316 | E17: 24 | F17: 1327 | K17: 0 | L17: 222
A18: 21 | B18: 1430 | C18: 22 | D18: 1435 | E18: 24 | F18: 1443 | K18: 0 | L18: 222
A19: 21 | B19: 1548 | C19: 22 | D19: 1553 | E19: 24 | F19: 1568 | K19: 0 | L19: 222 | N19: Total Target Seq
A20: 21 | B20: 1674 | C20: 22 | D20: 1683 | E20: 24 | F20: 1692 | K20: 0 | L20: 222 | N20: =COUNTIF(L7:L200,G3) -> 0 | P20: 32 | Q20: 33 | R20: 32 | S20: 32 | T20: 33 | U20: 32
A21: 21 | B21: 1799 | C21: 22 | D21: 1808 | E21: 24 | F21: 1817 | K21: 0 | L21: 222 | P21: % of reinforcement given in 6 equal intervals based on number of trials
A22: 21 | B22: 1917 | C22: 22 | D22: 1922 | E22: 24 | F22: 1932 | K22: 0 | L22: 222 | P22: %_1 | Q22: %_2 | R22: %_3 | S22: %_4 | T22: %_5 | U22: %_6
A23: 21 | B23: 2044 | C23: 22 | D23: 2050 | E23: 24 | F23: 2059 | K23: 0 | L23: 222 | O23: target sequence | P23: =$G$3 -> 211 | Q23: =$G$3 -> 211 | R23: =$G$3 -> 211 | S23: =$G$3 -> 211 | T23: =$G$3 -> 211 | U23: =$G$3 -> 211
A24: 12 | B24: 2161 | C24: 24 | D24: 2171 | E24: 24 | F24: 2176 | K24: 0 | L24: 122 | O24: total reinforcement | P24: =U11 -> 0 | Q24: =Z11 -> 0 | R24: =AE11 -> 0 | S24: =AJ11 -> 0 | T24: =AO11 -> 0 | U24: =AT11 -> 0
A25: 12 | B25: 2278 | C25: 24 | D25: 2289 | E25: 24 | F25: 2299 | K25: 0 | L25: 122 | O25: % target
A26: 12 | B26: 2400 | C26: 24 | D26: 2409 | E26: 24 | F26: 2414 | K26: 0 | L26: 122 | O26: CCRF
A27: 12 | B27: 2522 | C27: 24 | D27: 2532 | E27: 24 | F27: 2548 | K27: 0 | L27: 122 | O27: % CCRf
A28: 21 | B28: 2650 | C28: 22 | D28: 2655 | E28: 24 | F28: 2663 | K28: 0 | L28: 222 | O28: average response rate | P28: =F38/P20 -> 122.15625 | Q28: =(F71-F38)/Q20 -> 126.3333333 | R28: =(F103-F71)/R20 -> 122.625 | S28: =(F135-F103)/S20 -> 122.15625 | T28: =(F168-F135)/T20 -> 123.3636364 | U28: =(F200-F168)/U20 -> 125.28125
A29: 21 | B29: 2764 | C29: 22 | D29: 2780 | E29: 24 | F29: 2789 | K29: 0 | L29: 222
A30: 21 | B30: 2896 | C30: 22 | D30: 2902 | E30: 24 | F30: 2911 | K30: 0 | L30: 222
A31: 12 | B31: 3007 | C31: 24 | D31: 3027 | E31: 24 | F31: 3035 | K31: 0 | L31: 122
A32: 21 | B32: 3147 | C32: 22 | D32: 3169 | E32: 24 | F32: 3177 | K32: 0 | L32: 222
A33: 21 | B33: 3288 | C33: 22 | D33: 3293 | E33: 24 | F33: 3309 | K33: 0 | L33: 222
A34: 21 | B34: 3412 | C34: 22 | D34: 3422 | E34: 24 | F34: 3430 | K34: 0 | L34: 222
A35: 12 | B35: 3531 | C35: 24 | D35: 3542 | E35: 24 | F35: 3548 | K35: 0 | L35: 122
A36: 12 | B36: 3649 | C36: 24 | D36: 3667 | E36: 24 | F36: 3675 | K36: 0 | L36: 122
A37: 21 | B37: 3779 | C37: 22 | D37: 3784 | E37: 24 | F37: 3790 | K37: 0 | L37: 222
A38: 21 | B38: 3893 | C38: 22 | D38: 3900 | E38: 24 | F38: 3909 | K38: 0 | L38: 222
A39: 21 | B39: 4012 | C39: 22 | D39: 4017 | E39: 24 | F39: 4026 | K39: 0 | L39: 222
A40: 21 | B40: 4128 | C40: 22 | D40: 4133 | E40: 24 | F40: 4164 | K40: 0 | L40: 222
A41: 21 | B41: 4263 | C41: 22 | D41: 4268 | E41: 24 | F41: 4273 | K41: 0 | L41: 222
A42: 12 | B42: 4378 | C42: 24 | D42: 4389 | E42: 24 | F42: 4395 | K42: 0 | L42: 122
A43: 21 | B43: 4497 | C43: 22 | D43: 4503 | E43: 24 | F43: 4513 | K43: 0 | L43: 222
A44: 21 | B44: 4623 | C44: 22 | D44: 4629 | E44: 24 | F44: 4637 | K44: 0 | L44: 222
A45: 12 | B45: 4738 | C45: 24 | D45: 4755 | E45: 24 | F45: 4764 | K45: 0 | L45: 122
A46: 21 | B46: 4868 | C46: 22 | D46: 4878 | E46: 24 | F46: 4891 | K46: 0 | L46: 222
A47: 21 | B47: 4984 | C47: 22 | D47: 5005 | E47: 24 | F47: 5013 | K47: 0 | L47: 222
A48: 12 | B48: 5116 | C48: 24 | D48: 5142 | E48: 24 | F48: 5151 | K48: 0 | L48: 122
A49: 12 | B49: 5250 | C49: 24 | D49: 5260 | E49: 24 | F49: 5266 | K49: 0 | L49: 122
A50: 21 | B50: 5365 | C50: 22 | D50: 5386 | E50: 24 | F50: 5394 | K50: 0 | L50: 222
A51: 21 | B51: 5527 | C51: 22 | D51: 5578 | E51: 24 | F51: 5592 | K51: 0 | L51: 222
A52: 21 | B52: 5696 | C52: 22 | D52: 5706 | E52: 24 | F52: 5724 | K52: 0 | L52: 222
A53: 21 | B53: 5824 | C53: 22 | D53: 5829 | E53: 24 | F53: 5848 | K53: 0 | L53: 222
A54: 21 | B54: 5960 | C54: 22 | D54: 5970 | E54: 24 | F54: 5978 | K54: 0 | L54: 222
A55: 12 | B55: 6078 | C55: 24 | D55: 6090 | E55: 24 | F55: 6098 | K55: 0 | L55: 122
A56: 21 | B56: 6197 | C56: 22 | D56: 6205 | E56: 24 | F56: 6217 | K56: 0 | L56: 222
A57: 21 | B57: 6317 | C57: 22 | D57: 6321 | E57: 24 | F57: 6329 | K57: 0 | L57: 222
A58: 21 | B58: 6430 | C58: 22 | D58: 6439 | E58: 24 | F58: 6454 | K58: 0 | L58: 222
A59: 21 | B59: 6570 | C59: 22 | D59: 6581 | E59: 24 | F59: 6607 | K59: 0 | L59: 222
A60: 21 | B60: 6716 | C60: 22 | D60: 6721 | E60: 24 | F60: 6729 | K60: 0 | L60: 222
A61: 21 | B61: 6844 | C61: 22 | D61: 6852 | E61: 24 | F61: 6866 | K61: 0 | L61: 222
A62: 21 | B62: 6964 | C62: 22 | D62: 6969 | E62: 24 | F62: 6976 | K62: 0 | L62: 222
A63: 12 | B63: 7075 | C63: 24 | D63: 7089 | E63: 24 | F63: 7102 | K63: 0 | L63: 122
A64: 21 | B64: 7205 | C64: 22 | D64: 7210 | E64: 24 | F64: 7215 | K64: 0 | L64: 222
A65: 12 | B65: 7319 | C65: 24 | D65: 7329 | E65: 24 | F65: 7348 | K65: 0 | L65: 122
A66: 12 | B66: 7444 | C66: 24 | D66: 7453 | E66: 24 | F66: 7484 | K66: 0 | L66: 122
A67: 21 | B67: 7584 | C67: 22 | D67: 7588 | E67: 24 | F67: 7594 | K67: 0 | L67: 222
A68: 21 | B68: 7695 | C68: 22 | D68: 7704 | E68: 24 | F68: 7725 | K68: 0 | L68: 222
A69: 21 | B69: 7825 | C69: 22 | D69: 7831 | E69: 24 | F69: 7848 | K69: 0 | L69: 222
A70: 21 | B70: 7949 | C70: 22 | D70: 7954 | E70: 24 | F70: 7959 | K70: 0 | L70: 222
A71: 21 | B71: 8061 | C71: 22 | D71: 8072 | E71: 24 | F71: 8078 | K71: 0 | L71: 222
A72: 21 | B72: 8192 | C72: 22 | D72: 8198 | E72: 24 | F72: 8206 | K72: 0 | L72: 222
A73: 12 | B73: 8306 | C73: 24 | D73: 8319 | E73: 24 | F73: 8325 | K73: 0 | L73: 122
A74: 21 | B74: 8425 | C74: 22 | D74: 8430 | E74: 24 | F74: 8445 | K74: 0 | L74: 222
A75: 21 | B75: 8546 | C75: 22 | D75: 8551 | E75: 24 | F75: 8560 | K75: 0 | L75: 222
A76: 12 | B76: 8663 | C76: 24 | D76: 8677 | E76: 24 | F76: 8683 | K76: 0 | L76: 122
A77: 21 | B77: 8785 | C77: 22 | D77: 8790 | E77: 24 | F77: 8795 | K77: 0 | L77: 222
A78: 21 | B78: 8891 | C78: 22 | D78: 8896 | E78: 24 | F78: 8904 | K78: 0 | L78: 222
A79: 21 | B79: 9008 | C79: 22 | D79: 9016 | E79: 24 | F79: 9022 | K79: 0 | L79: 222
A80: 21 | B80: 9125 | C80: 22 | D80: 9131 | E80: 24 | F80: 9159 | K80: 0 | L80: 222
A81: 21 | B81: 9253 | C81: 22 | D81: 9260 | E81: 24 | F81: 9267 | K81: 0 | L81: 222
A82: 12 | B82: 9367 | C82: 24 | D82: 9379 | E82: 24 | F82: 9385 | K82: 0 | L82: 122
A83: 21 | B83: 9486 | C83: 22 | D83: 9491 | E83: 24 | F83: 9500 | K83: 0 | L83: 222
A84: 12 | B84: 9599 | C84: 24 | D84: 9612 | E84: 24 | F84: 9621 | K84: 0 | L84: 122
A85: 12 | B85: 9720 | C85: 24 | D85: 9731 | E85: 24 | F85: 9736 | K85: 0 | L85: 122
A86: 12 | B86: 9834 | C86: 24 | D86: 9851 | E86: 24 | F86: 9863 | K86: 0 | L86: 122
A87: 21 | B87: 9970 | C87: 22 | D87: 10012 | E87: 24 | F87: 10020 | K87: 0 | L87: 222
A88: 21 | B88: 10135 | C88: 22 | D88: 10143 | E88: 24 | F88: 10164 | K88: 0 | L88: 222
A89: 12 | B89: 10265 | C89: 24 | D89: 10282 | E89: 24 | F89: 10291 | K89: 0 | L89: 122
A90: 12 | B90: 10392 | C90: 24 | D90: 10405 | E90: 24 | F90: 10411 | K90: 0 | L90: 122
A91: 21 | B91: 10514 | C91: 22 | D91: 10519 | E91: 24 | F91: 10526 | K91: 0 | L91: 222
A92: 12 | B92: 10623 | C92: 24 | D92: 10635 | E92: 24 | F92: 10643 | K92: 0 | L92: 122
A93: 21 | B93: 10747 | C93: 22 | D93: 10755 | E93: 24 | F93: 10762 | K93: 0 | L93: 222
A94: 21 | B94: 10864 | C94: 22 | D94: 10903 | E94: 24 | F94: 10915 | K94: 0 | L94: 222
A95: 12 | B95: 11013 | C95: 24 | D95: 11024 | E95: 24 | F95: 11058 | K95: 0 | L95: 122
A96: 21 | B96: 11157 | C96: 22 | D96: 11161 | E96: 24 | F96: 11166 | K96: 0 | L96: 222
A97: 21 | B97: 11275 | C97: 22 | D97: 11280 | E97: 24 | F97: 11288 | K97: 0 | L97: 222
A98: 21 | B98: 11392 | C98: 22 | D98: 11397 | E98: 24 | F98: 11410 | K98: 0 | L98: 222
A99: 12 | B99: 11508 | C99: 24 | D99: 11522 | E99: 24 | F99: 11532 | K99: 0 | L99: 122
A100: 21 | B100: 11627 | C100: 22 | D100: 11632 | E100: 24 | F100: 11653 | K100: 0 | L100: 222
A101: 12 | B101: 11749 | C101: 24 | D101: 11757 | E101: 24 | F101: 11762 | K101: 0 | L101: 122
A102: 21 | B102: 11862 | C102: 22 | D102: 11871 | E102: 24 | F102: 11879 | K102: 0 | L102: 222
A103: 21 | B103: 11985 | C103: 22 | D103: 11995 | E103: 24 | F103: 12002 | K103: 0 | L103: 222
A104: 21 | B104: 12108 | C104: 22 | D104: 12113 | E104: 24 | F104: 12118 | K104: 0 | L104: 222
A105: 21 | B105: 12220 | C105: 22 | D105: 12224 | E105: 24 | F105: 12235 | K105: 0 | L105: 222
A106: 21 | B106: 12341 | C106: 22 | D106: 12362 | E106: 24 | F106: 12378 | K106: 0 | L106: 222
A107: 12 | B107: 12477 | C107: 24 | D107: 12491 | E107: 24 | F107: 12496 | K107: 0 | L107: 122
A108: 12 | B108: 12595 | C108: 24 | D108: 12605 | E108: 24 | F108: 12610 | K108: 0 | L108: 122
A109: 12 | B109: 12709 | C109: 24 | D109: 12725 | E109: 24 | F109: 12732 | K109: 0 | L109: 122
A110: 21 | B110: 12838 | C110: 22 | D110: 12843 | E110: 24 | F110: 12851 | K110: 0 | L110: 222
A111: 21 | B111: 12944 | C111: 22 | D111: 12948 | E111: 24 | F111: 12958 | K111: 0 | L111: 222
A112: 21 | B112: 13062 | C112: 22 | D112: 13067 | E112: 24 | F112: 13083 | K112: 0 | L112: 222
A113: 21 | B113: 13191 | C113: 22 | D113: 13196 | E113: 24 | F113: 13204 | K113: 0 | L113: 222
A114: 12 | B114: 13302 | C114: 24 | D114: 13312 | E114: 24 | F114: 13317 | K114: 0 | L114: 122
A115: 21 | B115: 13416 | C115: 22 | D115: 13422 | E115: 24 | F115: 13432 | K115: 0 | L115: 222
A116: 12 | B116: 13531 | C116: 24 | D116: 13544 | E116: 24 | F116: 13549 | K116: 0 | L116: 122
A117: 12 | B117: 13648 | C117: 24 | D117: 13661 | E117: 24 | F117: 13677 | K117: 0 | L117: 122
A118: 12 | B118: 13778 | C118: 24 | D118: 13793 | E118: 24 | F118: 13826 | K118: 0 | L118: 122
A119: 21 | B119: 13928 | C119: 22 | D119: 13937 | E119: 24 | F119: 13948 | K119: 0 | L119: 222
A120: 21 | B120: 14048 | C120: 22 | D120: 14053 | E120: 24 | F120: 14061 | K120: 0 | L120: 222
A121: 21 | B121: 14159 | C121: 22 | D121: 14164 | E121: 24 | F121: 14168 | K121: 0 | L121: 222
A122: 12 | B122: 14269 | C122: 24 | D122: 14281 | E122: 24 | F122: 14286 | K122: 0 | L122: 122
A123: 12 | B123: 14387 | C123: 24 | D123: 14404 | E123: 24 | F123: 14411 | K123: 0 | L123: 122
A124: 21 | B124: 14519 | C124: 22 | D124: 14527 | E124: 24 | F124: 14538 | K124: 0 | L124: 222
A125: 21 | B125: 14634 | C125: 22 | D125: 14638 | E125: 24 | F125: 14661 | K125: 0 | L125: 222
A126: 21 | B126: 14771 | C126: 22 | D126: 14779 | E126: 24 | F126: 14786 | K126: 0 | L126: 222
A127: 21 | B127: 14892 | C127: 22 | D127: 14897 | E127: 24 | F127: 14905 | K127: 0 | L127: 222
A128: 12 | B128: 15005 | C128: 24 | D128: 15026 | E128: 24 | F128: 15034 | K128: 0 | L128: 122
A129: 21 | B129: 15144 | C129: 22 | D129: 15149 | E129: 24 | F129: 15156 | K129: 0 | L129: 222
A130: 21 | B130: 15259 | C130: 22 | D130: 15285 | E130: 24 | F130: 15292 | K130: 0 | L130: 222
A131: 21 | B131: 15394 | C131: 22 | D131: 15399 | E131: 24 | F131: 15416 | K131: 0 | L131: 222
A132: 12 | B132: 15518 | C132: 24 | D132: 15530 | E132: 24 | F132: 15536 | K132: 0 | L132: 122
A133: 21 | B133: 15640 | C133: 22 | D133: 15646 | E133: 24 | F133: 15657 | K133: 0 | L133: 222
A134: 12 | B134: 15756 | C134: 24 | D134: 15791 | E134: 24 | F134: 15800 | K134: 0 | L134: 122
A135: 21 | B135: 15902 | C135: 22 | D135: 15906 | E135: 24 | F135: 15911 | K135: 0 | L135: 222
A136: 21 | B136: 16016 | C136: 22 | D136: 16036 | E136: 24 | F136: 16072 | K136: 0 | L136: 222
A137: 21 | B137: 16169 | C137: 22 | D137: 16173 | E137: 24 | F137: 16178 | K137: 0 | L137: 222
A138: 12 | B138: 16277 | C138: 24 | D138: 16290 | E138: 24 | F138: 16294 | K138: 0 | L138: 122
A139: 12 | B139: 16395 | C139: 24 | D139: 16411 | E139: 24 | F139: 16419 | K139: 0 | L139: 122
A140: 12 | B140: 16521 | C140: 24 | D140: 16531 | E140: 24 | F140: 16544 | K140: 0 | L140: 122
A141: 21 | B141: 16646 | C141: 22 | D141: 16650 | E141: 24 | F141: 16660 | K141: 0 | L141: 222
A142: 12 | B142: 16760 | C142: 24 | D142: 16774 | E142: 24 | F142: 16781 | K142: 0 | L142: 122
A143: 12 | B143: 16881 | C143: 24 | D143: 16898 | E143: 24 | F143: 16908 | K143: 0 | L143: 122
A144: 21 | B144: 17007 | C144: 22 | D144: 17012 | E144: 24 | F144: 17017 | K144: 0 | L144: 222
A145: 21 | B145: 17111 | C145: 22 | D145: 17119 | E145: 24 | F145: 17133 | K145: 0 | L145: 222
A146: 21 | B146: 17235 | C146: 22 | D146: 17240 | E146: 24 | F146: 17251 | K146: 0 | L146: 222
A147: 12 | B147: 17350 | C147: 24 | D147: 17362 | E147: 24 | F147: 17367 | K147: 0 | L147: 122
A148: 12 | B148: 17466 | C148: 24 | D148: 17484 | E148: 24 | F148: 17492 | K148: 0 | L148: 122
A149: 12 | B149: 17593 | C149: 24 | D149: 17605 | E149: 24 | F149: 17623 | K149: 0 | L149: 122
A150: 12 | B150: 17721 | C150: 24 | D150: 17736 | E150: 24 | F150: 17742 | K150: 0 | L150: 122
A151: 21 | B151: 17848 | C151: 22 | D151: 17852 | E151: 24 | F151: 17857 | K151: 0 | L151: 222
A152: 21 | B152: 17960 | C152: 22 | D152: 17964 | E152: 24 | F152: 17969 | K152: 0 | L152: 222
A153: 21 | B153: 18069 | C153: 22 | D153: 18074 | E153: 24 | F153: 18082 | K153: 0 | L153: 222
A154: 12 | B154: 18182 | C154: 13 | D154: 18195 | E154: 24 | F154: 18214 | K154: 0 | L154: 112
A155: 12 | B155: 18320 | C155: 24 | D155: 18334 | E155: 24 | F155: 18339 | K155: 0 | L155: 122
A156: 21 | B156: 18446 | C156: 22 | D156: 18453 | E156: 24 | F156: 18460 | K156: 0 | L156: 222
A157: 12 | B157: 18560 | C157: 24 | D157: 18569 | E157: 24 | F157: 18574 | K157: 0 | L157: 122
A158: 21 | B158: 18673 | C158: 22 | D158: 18678 | E158: 24 | F158: 18684 | K158: 0 | L158: 222
A159: 21 | B159: 18786 | C159: 22 | D159: 18793 | E159: 24 | F159: 18805 | K159: 0 | L159: 222
A160: 21 | B160: 18915 | C160: 22 | D160: 18926 | E160: 24 | F160: 18939 | K160: 0 | L160: 222
A161: 21 | B161: 19044 | C161: 22 | D161: 19050 | E161: 24 | F161: 19058 | K161: 0 | L161: 222
A162: 21 | B162: 19167 | C162: 22 | D162: 19188 | E162: 24 | F162: 19201 | K162: 0 | L162: 222
A163: 12 | B163: 19304 | C163: 24 | D163: 19316 | E163: 24 | F163: 19337 | K163: 0 | L163: 122
A164: 21 | B164: 19448 | C164: 22 | D164: 19481 | E164: 24 | F164: 19491 | K164: 0 | L164: 222
A165: 21 | B165: 19605 | C165: 22 | D165: 19610 | E165: 24 | F165: 19618 | K165: 0 | L165: 222
A166: 12 | B166: 19725 | C166: 24 | D166: 19740 | E166: 24 | F166: 19747 | K166: 0 | L166: 122
A167: 21 | B167: 19851 | C167: 22 | D167: 19856 | E167: 24 | F167: 19867 | K167: 0 | L167: 222
A168: 12 | B168: 19965 | C168: 24 | D168: 19977 | E168: 24 | F168: 19982 | K168: 0 | L168: 122
A169: 21 | B169: 20081 | C169: 22 | D169: 20085 | E169: 24 | F169: 20091 | K169: 0 | L169: 222
A170: 12 | B170: 20185 | C170: 24 | D170: 20194 | E170: 24 | F170: 20199 | K170: 0 | L170: 122
A171: 21 | B171: 20309 | C171: 22 | D171: 20333 | E171: 24 | F171: 20348 | K171: 0 | L171: 222
A172: 21 | B172: 20450 | C172: 22 | D172: 20454 | E172: 24 | F172: 20459 | K172: 0 | L172: 222
A173: 21 | B173: 20561 | C173: 22 | D173: 20570 | E173: 24 | F173: 20592 | K173: 0 | L173: 222
A174: 21 | B174: 20696 | C174: 22 | D174: 20700 | E174: 24 | F174: 20721 | K174: 0 | L174: 222
A175: 21 | B175: 20823 | C175: 22 | D175: 20827 | E175: 24 | F175: 20836 | K175: 0 | L175: 222
A176: 12 | B176: 20932 | C176: 24 | D176: 20959 | E176: 24 | F176: 20989 | K176: 0 | L176: 122
A177: 21 | B177: 21090 | C177: 22 | D177: 21095 | E177: 24 | F177: 21114 | K177: 0 | L177: 222
A178: 21 | B178: 21221 | C178: 22 | D178: 21256 | E178: 24 | F178: 21264 | K178: 0 | L178: 222
A179: 21 | B179: 21364 | C179: 22 | D179: 21384 | E179: 24 | F179: 21397 | K179: 0 | L179: 222
A180: 21 | B180: 21498 | C180: 22 | D180: 21502 | E180: 24 | F180: 21510 | K180: 0 | L180: 222
A181: 21 | B181: 21607 | C181: 22 | D181: 21612 | E181: 24 | F181: 21616 | K181: 0 | L181: 222
A182: 12 | B182: 21715 | C182: 24 | D182: 21731 | E182: 24 | F182: 21736 | K182: 0 | L182: 122
A183: 12 | B183: 21847 | C183: 24 | D183: 21859 | E183: 24 | F183: 21876 | K183: 0 | L183: 122
A184: 21 | B184: 21972 | C184: 22 | D184: 21977 | E184: 24 | F184: 21981 | K184: 0 | L184: 222
A185: 12 | B185: 22081 | C185: 24 | D185: 22089 | E185: 24 | F185: 22099 | K185: 0 | L185: 122
A186: 21 | B186: 22201 | C186: 22 | D186: 22227 | E186: 24 | F186: 22235 | K186: 0 | L186: 222
A187: 12 | B187: 22333 | C187: 24 | D187: 22350 | E187: 24 | F187: 22362 | K187: 0 | L187: 122
A188: 12 | B188: 22463 | C188: 24 | D188: 22485 | E188: 24 | F188: 22493 | K188: 0 | L188: 122
A189: 12 | B189: 22593 | C189: 24 | D189: 22602 | E189: 24 | F189: 22606 | K189: 0 | L189: 122
A190: 12 | B190: 22706 | C190: 24 | D190: 22719 | E190: 24 | F190: 22726 | K190: 0 | L190: 122
A191: 12 | B191: 22825 | C191: 24 | D191: 22834 | E191: 24 | F191: 22843 | K191: 0 | L191: 122
A192: 12 | B192: 22945 | C192: 24 | D192: 22962 | E192: 24 | F192: 22975 | K192: 0 | L192: 122
A193: 21 | B193: 23076 | C193: 22 | D193: 23080 | E193: 24 | F193: 23090 | K193: 0 | L193: 222
A194: 12 | B194: 23190 | C194: 24 | D194: 23207 | E194: 24 | F194: 23217 | K194: 0 | L194: 122
A195: 21 | B195: 23323 | C195: 22 | D195: 23329 | E195: 24 | F195: 23341 | K195: 0 | L195: 222
A196: 21 | B196: 23463 | C196: 22 | D196: 23470 | E196: 24 | F196: 23488 | K196: 0 | L196: 222
A197: 12 | B197: 23585 | C197: 24 | D197: 23596 | E197: 24 | F197: 23601 | K197: 0 | L197: 122
A198: 12 | B198: 23703 | C198: 24 | D198: 23719 | E198: 24 | F198: 23727 | K198: 0 | L198: 122
A199: 21 | B199: 23831 | C199: 22 | D199: 23850 | E199: 24 | F199: 23855 | K199: 0 | L199: 222
A200: 21 | B200: 23957 | C200: 22 | D200: 23967 | E200: 24 | F200: 23991 | K200: 1 | L200: 222

Sheet !MA02750.091
A1: Report for:!MA02750.091
A2: Date: | B2: <date>
A3: Hen: | B3: <hen> | F3: Correct Sequence | G3: =Start!J2 -> 211 | P3: Total Sequences in Data | Q3: =4994-COUNTBLANK(L7:L5000) -> 191 | V3: Total Sequences in Block Data | W3: =COUNTA(L7:L38) -> 32 | AA3: Total Sequences in Block Data | AB3: =COUNTA(L39:L70) -> 32 | AF3: Total Sequences in Block Data | AG3: =COUNTA(L71:L101) -> 31 | AK3: Total Sequences in Block Data | AL3: =COUNTA(L102:L133) -> 32 | AP3: Total Sequences in Block Data | AQ3: =COUNTA(L134:L165) -> 32 | AU3: Total Sequences in Block Data | AV3: =COUNTA(L166:L197) -> 32
P4: Total Sequences in Summary | Q4: =SUM(O7:O14) -> 191 | V4: Total Sequences in Block Summary | W4: =SUM(U7:U14) -> 32 | AA4: Total Sequences in Block Summary | AB4: =SUM(Z7:Z14) -> 32 | AF4: Total Sequences in Block Summary | AG4: =SUM(AE7:AE14) -> 31 | AK4: Total Sequences in Block Summary | AL4: =SUM(AJ7:AJ14) -> 32 | AP4: Total Sequences in Block Summary | AQ4: =SUM(AO7:AO14) -> 32 | AU4: Total Sequences in Block Summary | AV4: =SUM(AT7:AT14) -> 32
T5: Block 1 | Y5: Block 2 | AD5: Block 3 | AI5: Block 4 | AN5: Block 5 | AS5: Block 6
